Workbook

Sheet 諸元入力
A1: 諸元 ケース (最大20) | B1: 分割数 ndiv (最大200) | C1: 全高 h (cm) | D1: 幅 b (cm) | E1: 鉄筋ヤング係数 Es (kN/mm2) | F1: 鉄筋降伏強度 fy (N/mm2) | G1: コンクリートヤング係数 Ec (kN/mm2) | H1: コンクリート圧縮強度 fc (N/mm2) | I1: コンクリート引張強度 ft (N/mm2) | J1: 鉄筋材料係数 γs | K1: コンクリート材料係数 γc | L1: 部材係数 γb | M1: 引張鉄筋断面積 as1 (cm2) | N1: 引張鉄筋かぶり cv1 (cm) | O1: 圧縮鉄筋断面積 as2 (cm2) | P1: 圧縮鉄筋かぶり cv2 (cm) | Q1: 軸力の 計算分割数 nnd1 （最大300）
A2: 1 | B2: 50 | C2: 20 | D2: 135 | E2: 200 | F2: 345 | G2: 29.5 | H2: 35 | I2: 2.46 | J2: 1 | K2: 1 | L2: 1 | M2: 12.67 | N2: 6 | O2: 12.67 | P2: 6 | Q2: 100 | R2: 対称配筋 10-D13 fck=35N/mm2 γb=1.0
A3: 2 | B3: 50 | C3: 20 | D3: 135 | E3: 200 | F3: 345 | G3: 29.5 | H3: 35 | I3: 2.46 | J3: 1 | K3: 1 | L3: 1 | M3: 12.67 | N3: 6 | O3: 6.335 | P3: 6 | Q3: 100 | R3: 非対称配筋 10-D13, 5-D13 fck=35N/mm2 γb=1.0

Sheet 断面力入力
A1: 断面力 ケース (最大100) | B1: 設計曲げ モーメント Md(kNm) | C1: 設計軸力 Nd(kN) | D1: 選択する諸元 ケース
A2: 1 | B2: 130 | C2: 1400 | D2: 1
A3: 2 | B3: -130 | C3: 1800 | D3: 1
A4: 3 | B4: 110 | C4: 1400 | D4: 2
A5: 4 | B5: -100 | C5: 1700 | D5: 2

Sheet 追加配筋データ
A1: ケース | B1: 配筋段数 | C1: 鉄筋断面積 （cm2） | D1: 引張縁からの距離 （cm） | E1: （以下、鉄筋段数分繰り返し）
A2: 1 | B2: 0 | C2: 12.67 | D2: 6 | E2: 12.67 | F2: 14
A3: 2 | B3: 0 | C3: 12.67 | D3: 6 | E3: 6.335 | F3: 14

Sheet 照査結果
A1: 諸元ケース | B1: 断面力ケース | C1: 設計曲げモーメント(kNm) | D1: 設計軸力(kN) | E1: 降伏曲げモーメント(kNm) | F1: 照査値(Md/My) | G1: 判定(My) | H1: 終局曲げモーメント(kNm)・N一定 | I1: 照査値(Md/Mu)・N一定 | J1: 判定(Mu)・N一定 | K1: 終局曲げモーメント(kNm)・M/N一定 | L1: 照査値(Md/Mu)・M/N一定 | M1: 判定(Mu)・M/N一定
A2: 1 | B2: 1 | C2: 130 | D2: 1400 | E2: 151.2715238 | F2: 0.859381837 | G2: OK | H2: 158.4363127 | I2: 0.8205189691 | J2: OK | K2: 184.9169756 | L2: 0.7030182035 | M2: OK
A3: 1 | B3: 2 | C3: -130 | D3: 1800 | E3: 172.4518858 | F3: 0.7538334497 | G3: OK | H3: 176.8639591 | I3: 0.735028214 | J3: OK | K3: 215.5280997 | L3: 0.6031696108 | M3: OK
A5: 2 | B5: 3 | C5: 110 | D5: 1400 | E5: 152.6983724 | F5: 0.7203744103 | G5: OK | H5: 158.982378 | I5: 0.6919005827 | J5: OK | K5: 207.8162445 | L5: 0.5293137708 | M5: OK
A6: 2 | B6: 4 | C6: -100 | D6: 1700 | E6: 146.2762345 | F6: 0.6836380521 | G6: OK | H6: 152.6997947 | I6: 0.6548797277 | J6: OK | K6: 209.7067957 | L6: 0.4768562681 | M6: OK

Sheet 照査結果2
A1: 断面力ケース | B1: 選択した諸元ケース | C1: 設計曲げモーメント(kNm) | D1: 設計軸力(kN) | E1: 降伏曲げモーメント(kNm) | F1: 照査値(降伏) | G1: 判定(降伏) | H1: 終局曲げモーメント(kNm) | I1: 照査値(終局) | J1: 判定(終局)
A2: 1 | B2: 1 | C2: 130 | D2: 1400 | E2: 151.5191701 | F2: 0.8579772444 | G2: OK | H2: 158.4863093 | I2: 0.8202601258 | J2: OK
A3: 2 | B3: 1 | C3: -130 | D3: 1800 | E3: 172.4681655 | F3: 0.7537622934 | G3: OK | H3: 176.8695028 | I3: 0.7350051757 | J3: OK
A4: 3 | B4: 2 | C4: 110 | D4: 1400 | E4: 152.703634 | F4: 0.7203495888 | G4: OK | H4: 158.9901342 | I4: 0.6918668292 | J4: OK
A5: 4 | B5: 2 | C5: -100 | D5: 1700 | E5: 146.2855775 | F5: 0.6835943891 | G5: OK | H5: 152.699318 | I5: 0.6548817723 | J5: OK

Sheet My(+)-N関係
A1: 諸元ケース 1 | B1: 番号 | C1: 曲げモーメント(kNm) | D1: 軸力(kN) | E1: 中立軸位置(cm) | F1: 圧縮鉄筋の降伏判定 | I1: 諸元ケース 2 | J1: 番号 | K1: 曲げモーメント(kNm) | L1: 軸力(kN) | M1: 中立軸位置(cm) | N1: 圧縮鉄筋の降伏判定
B2: 1 | D2: -873.35577 | E2: 999 | F2: 未降伏 | G2: 最小軸力(kN) | H2: -874.23 | J2: 1 | L2: -655.0168275 | M2: 999 | N2: 未降伏 | O2: 最小軸力(kN) | P2: -655.6725
B3: 2 | C3: 3.91338722 | D3: -776.3970907 | E3: -21.74389389 | F3: 未降伏 | G3: 全断面引張時(kN) | H3: -640.1524286 | J3: 2 | K3: 12.18667866 | L3: -562.2366493 | M3: -4.712941255 | N3: 未降伏 | O3: 全断面引張時(kN) | P3: -546.4849286
B4: 3 | C4: 7.79166153 | D4: -679.4384115 | E4: -3.952108012 | F4: 未降伏 | G4: 釣合軸力(kN) | H4: 2896.191919 | J4: 3 | K4: 18.63863228 | L4: -469.4564711 | M4: 1.442048909 | N4: 未降伏 | O4: 釣合軸力(kN) | P4: 2752.704668
B5: 4 | C5: 12.95938083 | D5: -582.4797322 | E5: 1.058657094 | F5: 未降伏 | G5: ほぼ全断面圧縮時(kN) | H5: 5585.000522 | J5: 4 | K5: 26.69206817 | L5: -376.6762929 | M5: 2.238380389 | N5: 未降伏 | O5: ほぼ全断面圧縮時(kN) | P5: 5385.289647
B6: 5 | C6: 20.88610126 | D6: -485.5210529 | E6: 1.950032142 | F6: 未降伏 | G6: 最大軸力(kN) | H6: 8831.3435 | J6: 5 | K6: 34.47632035 | L6: -283.8961147 | M6: 2.778347752 | N6: 未降伏 | O6: 最大軸力(kN) | P6: 8631.632625
B7: 6 | C7: 28.82025174 | D7: -388.5623737 | E7: 2.58977213 | F7: 未降伏 | J7: 6 | K7: 42.10514282 | L7: -191.1159365 | M7: 3.229352677 | N7: 未降伏
B8: 7 | C8: 36.54270886 | D8: -291.6036944 | E8: 3.057639676 | F8: 未降伏 | J8: 7 | K8: 49.58885712 | L8: -98.33575831 | M8: 3.620228715 | N8: 未降伏
B9: 8 | C9: 44.14668029 | D9: -194.6450151 | E9: 3.463005831 | F9: 未降伏 | J9: 8 | K9: 56.94628199 | L9: -5.555580109 | M9: 3.968680339 | N9: 未降伏
B10: 9 | C10: 51.64297252 | D10: -97.68633588 | E10: 3.823855691 | F10: 未降伏 | J10: 9 | K10: 64.20019016 | L10: 87.22459809 | M10: 4.286289442 | N10: 未降伏
B11: 10 | C11: 59.04788273 | D11: -0.727656615 | E11: 4.152026253 | F11: 未降伏 | J11: 10 | K11: 71.37285918 | L11: 180.0047763 | M11: 4.580887828 | N11: 未降伏
B12: 11 | C12: 66.03670359 | D12: 96.23102265 | E12: 4.41389432 | F12: 未降伏 | J12: 11 | K12: 78.07274664 | L12: 272.7849545 | M12: 4.81709206 | N12: 未降伏
B13: 12 | C13: 73.2003666 | D13: 193.1897019 | E13: 4.693186244 | F13: 未降伏 | J13: 12 | K13: 85.00801948 | L13: 365.5651327 | M13: 5.07378144 | N13: 未降伏
B14: 13 | C14: 79.99071603 | D14: 290.1483812 | E14: 4.925640391 | F14: 未降伏 | J14: 13 | K14: 91.49797476 | L14: 458.3453109 | M14: 5.285865237 | N14: 未降伏
B15: 14 | C15: 86.9194027 | D15: 387.1070604 | E15: 5.170403486 | F15: 未降伏 | J15: 14 | K15: 98.19637271 | L15: 551.1254891 | M15: 5.514441748 | N15: 未降伏
B16: 15 | C16: 93.78779506 | D16: 484.0657397 | E16: 5.403571936 | F16: 未降伏 | J16: 15 | K16: 104.4784593 | L16: 643.9056673 | M16: 5.708425653 | N16: 未降伏
B17: 16 | C17: 100.1920361 | D17: 581.024419 | E17: 5.598117078 | F17: 未降伏 | J17: 16 | K17: 110.9706678 | L17: 736.6858455 | M17: 5.917767042 | N17: 未降伏
B18: 17 | C18: 106.568997 | D18: 677.9830982 | E18: 5.790213185 | F18: 未降伏 | J18: 17 | K18: 117.0301247 | L18: 829.4660237 | M18: 6.097260828 | N18: 未降伏
B19: 18 | C19: 113.0549271 | D19: 774.9417775 | E19: 5.990982955 | F19: 未降伏 | J19: 18 | K19: 123.3544599 | L19: 922.2462019 | M19: 6.29476522 | N19: 未降伏
B20: 19 | C20: 119.2267117 | D20: 871.9004568 | E20: 6.170578785 | F20: 未降伏 | J20: 19 | K20: 129.147363 | L20: 1015.02638 | M20: 6.460993405 | N20: 未降伏
B21: 20 | C21: 125.5554157 | D21: 968.859136 | E21: 6.361501397 | F21: 未降伏 | J21: 20 | K21: 134.8894057 | L21: 1107.806558 | M21: 6.626558311 | N21: 未降伏
B22: 21 | C22: 131.4577657 | D22: 1065.817815 | E22: 6.528035712 | F22: 未降伏 | J22: 21 | K22: 140.7972367 | L22: 1200.586736 | M22: 6.805643925 | N22: 未降伏
B23: 22 | C23: 137.6112086 | D23: 1162.776495 | E23: 6.711458158 | F23: 未降伏 | J23: 22 | K23: 146.2423421 | L23: 1293.366915 | M23: 6.961718824 | N23: 未降伏
B24: 23 | C24: 143.2040499 | D24: 1259.735174 | E24: 6.86666569 | F24: 未降伏 | J24: 23 | K24: 151.936437 | L24: 1386.147093 | M24: 7.136773736 | N24: 未降伏
B25: 24 | C25: 148.7298054 | D25: 1356.693853 | E25: 7.02212833 | F25: 未降伏 | J25: 24 | K25: 157.0395177 | L25: 1478.927271 | M25: 7.285858684 | N25: 未降伏
B26: 25 | C26: 154.4204908 | D26: 1453.652532 | E26: 7.192030067 | F26: 未降伏 | J26: 25 | K26: 162.046345 | L26: 1571.707449 | M26: 7.43688245 | N26: 未降伏
B27: 26 | C27: 159.5990057 | D27: 1550.611212 | E27: 7.340349691 | F27: 未降伏 | J27: 26 | K27: 167.1787377 | L27: 1664.487627 | M27: 7.604896389 | N27: 未降伏
B28: 27 | C28: 165.032692 | D28: 1647.569891 | E28: 7.509588148 | F28: 未降伏 | J28: 27 | K28: 171.7581749 | L28: 1757.267806 | M28: 7.752246604 | N28: 未降伏
B29: 28 | C29: 169.7952244 | D29: 1744.52857 | E29: 7.65321379 | F29: 未降伏 | J29: 28 | K29: 176.5676728 | L29: 1850.047984 | M29: 7.923219793 | N29: 未降伏
B30: 29 | C30: 174.4388109 | D30: 1841.487249 | E30: 7.798982337 | F30: 未降伏 | J30: 29 | K30: 180.7065088 | L30: 1942.828162 | M30: 8.067100543 | N30: 未降伏
B31: 30 | C31: 179.2562878 | D31: 1938.445929 | E31: 7.963832941 | F31: 未降伏 | J31: 30 | K31: 184.7293513 | L31: 2035.60834 | M31: 8.2138385 | N31: 未降伏
B32: 31 | C32: 183.476758 | D32: 2035.404608 | E32: 8.105264657 | F32: 未降伏 | J32: 31 | K32: 188.9145155 | L32: 2128.388518 | M32: 8.381291202 | N32: 未降伏
B33: 32 | C33: 187.580684 | D33: 2132.363287 | E33: 8.248788256 | F33: 未降伏 | J33: 32 | K33: 192.5156441 | L33: 2221.168697 | M33: 8.523998457 | N33: 未降伏
B34: 33 | C34: 191.8177015 | D34: 2229.321966 | E34: 8.4089959 | F34: 未降伏 | J34: 33 | K34: 196.0006911 | L34: 2313.948875 | M34: 8.669664961 | N34: 未降伏
B35: 34 | C35: 195.5237142 | D35: 2326.280646 | E35: 8.547519388 | F35: 未降伏 | J35: 34 | K35: 199.5947464 | L35: 2406.729053 | M35: 8.833189005 | N35: 未降伏
B36: 35 | C36: 199.1221854 | D36: 2423.239325 | E36: 8.687981694 | F36: 未降伏 | J36: 35 | K36: 202.6736333 | L36: 2499.509231 | M36: 8.974212548 | N36: 未降伏
B37: 36 | C37: 202.8328995 | D37: 2520.198004 | E37: 8.843138205 | F37: 未降伏 | J37: 36 | K37: 205.644585 | L37: 2592.289409 | M37: 9.118246363 | N37: 未降伏
B38: 37 | C38: 206.0569458 | D38: 2617.156684 | E38: 8.977886099 | F38: 未降伏 | J38: 37 | K38: 208.687534 | L38: 2685.069588 | M38: 9.277229489 | N38: 未降伏
B39: 38 | C39: 209.1875127 | D39: 2714.115363 | E39: 9.114317704 | F39: 未降伏 | J39: 38 | L39: 2777.849766 | M39: 9.415803999 | N39: 未降伏
B40: 39 | C40: 212.4348925 | D40: 2811.074042 | E40: 9.264065931 | F40: 未降伏 | J40: 39 | L40: 2870.629944 | M40: 9.557286736 | N40: 未降伏
B41: 40 | D41: 2908.032721 | E41: 9.393915757 | F41: 未降伏 | J41: 40 | L41: 2963.410122 | M41: 9.711320773 | N41: 未降伏
B42: 41 | D42: 3004.991401 | E42: 9.525143165 | F42: 未降伏 | J42: 41 | L42: 3056.1903 | M42: 9.846374796 | N42: 未降伏
B43: 42 | D43: 3101.95008 | E43: 9.669330044 | F43: 未降伏 | J43: 42 | L43: 3148.970479 | M43: 9.984132961 | N43: 未降伏
B44: 43 | D44: 3198.908759 | E44: 9.793006263 | F44: 未降伏 | J44: 43 | L44: 3241.750657 | M44: 10.15755518 | N44: 圧縮降伏
B45: 44 | D45: 3295.867438 | E45: 9.91760087 | F45: 未降伏 | J45: 44 | L45: 3334.530835 | M45: 10.31605361 | N45: 圧縮降伏
B46: 45 | D46: 3392.826118 | E46: 10.07663502 | F46: 圧縮降伏 | J46: 45 | L46: 3427.311013 | M46: 10.49748621 | N46: 圧縮降伏
B47: 46 | D47: 3489.784797 | E47: 10.23921516 | F47: 圧縮降伏 | J47: 46 | L47: 3520.091191 | M47: 10.65197944 | N47: 圧縮降伏
B48: 47 | D48: 3586.743476 | E48: 10.4091169 | F48: 圧縮降伏 | J48: 47 | L48: 3612.87137 | M48: 10.81432999 | N48: 圧縮降伏
B49: 48 | D49: 3683.702155 | E49: 10.59105972 | F49: 圧縮降伏 | J49: 48 | L49: 3705.651548 | M49: 10.98994614 | N49: 圧縮降伏
B50: 49 | D50: 3780.660835 | E50: 10.75738995 | F50: 圧縮降伏 | J50: 49 | L50: 3798.431726 | M50: 11.14790884 | N50: 圧縮降伏
B51: 50 | D51: 3877.619514 | E51: 10.94433288 | F51: 圧縮降伏 | J51: 50 | L51: 3891.211904 | M51: 11.31383089 | N51: 圧縮降伏
B52: 51 | D52: 3974.578193 | E52: 11.10688752 | F52: 圧縮降伏 | J52: 51 | L52: 3983.992082 | M52: 11.48352854 | N52: 圧縮降伏
B53: 52 | D53: 4071.536873 | E53: 11.27893216 | F53: 圧縮降伏 | J53: 52 | L53: 4076.772261 | M53: 11.64649135 | N53: 圧縮降伏
B54: 53 | D54: 4168.495552 | E54: 11.45781369 | F54: 圧縮降伏 | J54: 53 | L54: 4169.552439 | M54: 11.82190341 | N54: 圧縮降伏
B55: 54 | D55: 4265.454231 | E55: 11.62669499 | F55: 圧縮降伏 | J55: 54 | L55: 4262.332617 | M55: 11.97925385 | N55: 圧縮降伏
B56: 55 | D56: 4362.41291 | E56: 11.81078072 | F56: 圧縮降伏 | J56: 55 | L56: 4355.112795 | M56: 12.14568612 | N56: 圧縮降伏
B57: 56 | D57: 4459.37159 | E57: 11.97455987 | F57: 圧縮降伏 | J57: 56 | L57: 4447.892973 | M57: 12.31466947 | N57: 圧縮降伏
B58: 57 | D58: 4556.330269 | E58: 12.14833924 | F58: 圧縮降伏 | J58: 57 | L58: 4540.673152 | M58: 12.47814249 | N58: 圧縮降伏
B59: 58 | D59: 4653.288948 | E59: 12.32415948 | F59: 圧縮降伏 | J59: 58 | L59: 4633.45333 | M59: 12.64447272 | N59: 圧縮降伏
B60: 59 | D60: 4750.247627 | E60: 12.4956939 | F60: 圧縮降伏 | J60: 59 | L60: 4726.233508 | M60: 12.80968048 | N60: 圧縮降伏
B61: 60 | D61: 4847.206307 | E61: 12.67661629 | F61: 圧縮降伏 | J61: 60 | L61: 4819.013686 | M61: 12.97570458 | N61: 圧縮降伏
B62: 61 | D62: 4944.164986 | E62: 12.84253835 | F62: 圧縮降伏 | J62: 61 | L62: 4911.793864 | M62: 13.14254502 | N62: 圧縮降伏
B63: 62 | D63: 5041.123665 | E63: 13.01641977 | F63: 圧縮降伏 | J63: 62 | L63: 5004.574043 | M63: 13.30458944 | N63: 圧縮降伏
B64: 63 | D64: 5138.082344 | E64: 13.18815828 | F64: 圧縮降伏 | J64: 63 | L64: 5097.354221 | M64: 13.46959311 | N64: 圧縮降伏
B65: 64 | D65: 5235.041024 | E65: 13.36142744 | F65: 圧縮降伏 | J65: 64 | L65: 5190.134399 | M65: 13.62867828 | N65: 圧縮降伏
B66: 65 | D66: 5331.999703 | E66: 13.53051283 | F66: 圧縮降伏 | J66: 65 | L66: 5282.914577 | M66: 13.80572303 | N66: 圧縮降伏
B67: 66 | D67: 5428.958382 | E67: 13.69388381 | F67: 圧縮降伏 | J67: 66 | L67: 5375.694755 | M67: 13.9759309 | N67: 圧縮降伏
B68: 67 | D68: 5525.917061 | E68: 13.86164264 | F68: 圧縮降伏 | J68: 67 | L68: 5468.474934 | M68: 999 | N68: 未降伏
B69: 68 | D69: 5622.875741 | E69: 999 | F69: 未降伏 | J69: 68 | L69: 5561.255112 | M69: 999 | N69: 未降伏
B70: 69 | D70: 5719.83442 | E70: 999 | F70: 未降伏 | J70: 69 | L70: 5654.03529 | M70: 999 | N70: 未降伏
B71: 70 | D71: 5816.793099 | E71: 999 | F71: 未降伏 | J71: 70 | L71: 5746.815468 | M71: 999 | N71: 未降伏
B72: 71 | D72: 5913.751779 | E72: 999 | F72: 未降伏 | J72: 71 | L72: 5839.595646 | M72: 999 | N72: 未降伏
B73: 72 | D73: 6010.710458 | E73: 999 | F73: 未降伏 | J73: 72 | L73: 5932.375825 | M73: 999 | N73: 未降伏
B74: 73 | D74: 6107.669137 | E74: 999 | F74: 未降伏 | J74: 73 | L74: 6025.156003 | M74: 999 | N74: 未降伏
B75: 74 | D75: 6204.627816 | E75: 999 | F75: 未降伏 | J75: 74 | L75: 6117.936181 | M75: 999 | N75: 未降伏
B76: 75 | D76: 6301.586496 | E76: 999 | F76: 未降伏 | J76: 75 | L76: 6210.716359 | M76: 999 | N76: 未降伏
B77: 76 | D77: 6398.545175 | E77: 999 | F77: 未降伏 | J77: 76 | L77: 6303.496537 | M77: 999 | N77: 未降伏
B78: 77 | D78: 6495.503854 | E78: 999 | F78: 未降伏 | J78: 77 | L78: 6396.276716 | M78: 999 | N78: 未降伏
B79: 78 | D79: 6592.462533 | E79: 999 | F79: 未降伏 | J79: 78 | L79: 6489.056894 | M79: 999 | N79: 未降伏
B80: 79 | D80: 6689.421213 | E80: 999 | F80: 未降伏 | J80: 79 | L80: 6581.837072 | M80: 999 | N80: 未降伏
B81: 80 | D81: 6786.379892 | E81: 999 | F81: 未降伏 | J81: 80 | L81: 6674.61725 | M81: 999 | N81: 未降伏
B82: 81 | D82: 6883.338571 | E82: 999 | F82: 未降伏 | J82: 81 | L82: 6767.397428 | M82: 999 | N82: 未降伏
B83: 82 | D83: 6980.29725 | E83: 999 | F83: 未降伏 | J83: 82 | L83: 6860.177607 | M83: 999 | N83: 未降伏
B84: 83 | D84: 7077.25593 | E84: 999 | F84: 未降伏 | J84: 83 | L84: 6952.957785 | M84: 999 | N84: 未降伏
B85: 84 | D85: 7174.214609 | E85: 999 | F85: 未降伏 | J85: 84 | L85: 7045.737963 | M85: 999 | N85: 未降伏
B86: 85 | D86: 7271.173288 | E86: 999 | F86: 未降伏 | J86: 85 | L86: 7138.518141 | M86: 999 | N86: 未降伏
B87: 86 | D87: 7368.131968 | E87: 999 | F87: 未降伏 | J87: 86 | L87: 7231.298319 | M87: 999 | N87: 未降伏
B88: 87 | D88: 7465.090647 | E88: 999 | F88: 未降伏 | J88: 87 | L88: 7324.078498 | M88: 999 | N88: 未降伏
B89: 88 | D89: 7562.049326 | E89: 999 | F89: 未降伏 | J89: 88 | L89: 7416.858676 | M89: 999 | N89: 未降伏
B90: 89 | D90: 7659.008005 | E90: 999 | F90: 未降伏 | J90: 89 | L90: 7509.638854 | M90: 999 | N90: 未降伏
B91: 90 | D91: 7755.966685 | E91: 999 | F91: 未降伏 | J91: 90 | L91: 7602.419032 | M91: 999 | N91: 未降伏
B92: 91 | D92: 7852.925364 | E92: 999 | F92: 未降伏 | J92: 91 | L92: 7695.19921 | M92: 999 | N92: 未降伏
B93: 92 | D93: 7949.884043 | E93: 999 | F93: 未降伏 | J93: 92 | L93: 7787.979389 | M93: 999 | N93: 未降伏
B94: 93 | D94: 8046.842722 | E94: 999 | F94: 未降伏 | J94: 93 | L94: 7880.759567 | M94: 999 | N94: 未降伏
B95: 94 | D95: 8143.801402 | E95: 999 | F95: 未降伏 | J95: 94 | L95: 7973.539745 | M95: 999 | N95: 未降伏
B96: 95 | D96: 8240.760081 | E96: 999 | F96: 未降伏 | J96: 95 | L96: 8066.319923 | M96: 999 | N96: 未降伏
B97: 96 | D97: 8337.71876 | E97: 999 | F97: 未降伏 | J97: 96 | L97: 8159.100101 | M97: 999 | N97: 未降伏
B98: 97 | D98: 8434.677439 | E98: 999 | F98: 未降伏 | J98: 97 | L98: 8251.88028 | M98: 999 | N98: 未降伏
B99: 98 | D99: 8531.636119 | E99: 999 | F99: 未降伏 | J99: 98 | L99: 8344.660458 | M99: 999 | N99: 未降伏
B100: 99 | D100: 8628.594798 | E100: 999 | F100: 未降伏 | J100: 99 | L100: 8437.440636 | M100: 999 | N100: 未降伏
B101: 100 | D101: 8725.553477 | E101: 999 | F101: 未降伏 | J101: 100 | L101: 8530.220814 | M101: 999 | N101: 未降伏
B102: 101 | D102: 8822.512157 | E102: 999 | F102: 未降伏 | J102: 101 | L102: 8623.000992 | M102: 999 | N102: 未降伏

Sheet My(-)-N関係
A1: 諸元ケース 1 | B1: 番号 | C1: 曲げモーメント(kNm) | D1: 軸力(kN) | E1: 中立軸位置(cm) | F1: 圧縮鉄筋の降伏判定 | I1: 諸元ケース 2 | J1: 番号 | K1: 曲げモーメント(kNm) | L1: 軸力(kN) | M1: 中立軸位置(cm) | N1: 圧縮鉄筋の降伏判定
B2: 1 | D2: -873.35577 | E2: 999 | F2: 未降伏 | G2: 最小軸力(kN) | H2: -874.23 | J2: 1 | L2: -655.0168275 | M2: 999 | N2: 未降伏 | O2: 最小軸力(kN) | P2: -655.6725
B3: 2 | C3: -3.91338722 | D3: -776.3970907 | E3: -21.74389389 | F3: 未降伏 | G3: 全断面引張時(kN) | H3: -640.1524286 | J3: 2 | K3: 4.711753682 | L3: -562.2366493 | M3: -23.42597211 | N3: 未降伏 | O3: 全断面引張時(kN) | P3: -421.5949286
B4: 3 | C4: -7.79166153 | D4: -679.4384115 | E4: -3.952108012 | F4: 未降伏 | G4: 釣合軸力(kN) | H4: 2896.191919 | J4: 3 | K4: 1.048964317 | L4: -469.4564711 | M4: -4.778835577 | N4: 未降伏 | O4: 釣合軸力(kN) | P4: 3114.749419
B5: 4 | C5: -12.95938083 | D5: -582.4797322 | E5: 1.058657094 | F5: 未降伏 | G5: ほぼ全断面圧縮時(kN) | H5: 5585.000522 | J5: 4 | K5: -3.369733459 | L5: -376.6762929 | M5: 0.9373597539 | N5: 未降伏 | O5: ほぼ全断面圧縮時(kN) | P5: 5803.558022
B6: 5 | C6: -20.88610126 | D6: -485.5210529 | E6: 1.950032142 | F6: 未降伏 | G6: 最大軸力(kN) | H6: 8831.3435 | J6: 5 | K6: -10.92254325 | L6: -283.8961147 | M6: 1.844774699 | N6: 未降伏 | O6: 最大軸力(kN) | P6: 8631.632625
B7: 6 | C7: -28.82025174 | D7: -388.5623737 | E7: 2.58977213 | F7: 未降伏 | J7: 6 | K7: -18.51505329 | L7: -191.1159365 | M7: 2.493309527 | N7: 未降伏
B8: 7 | C8: -36.54270886 | D8: -291.6036944 | E8: 3.057639676 | F8: 未降伏 | J8: 7 | K8: -25.89842038 | L8: -98.33575831 | M8: 2.958096646 | N8: 未降伏
B9: 8 | C9: -44.14668029 | D9: -194.6450151 | E9: 3.463005831 | F9: 未降伏 | J9: 8 | K9: -33.17779081 | L9: -5.555580109 | M9: 3.361345408 | N9: 未降伏
B10: 9 | C10: -51.64297252 | D10: -97.68633588 | E10: 3.823855691 | F10: 未降伏 | J10: 9 | K10: -40.36470666 | L10: 87.22459809 | M10: 3.720766664 | N10: 未降伏
B11: 10 | C11: -59.04788273 | D11: -0.727656615 | E11: 4.152026253 | F11: 未降伏 | J11: 10 | K11: -47.17333543 | L11: 180.0047763 | M11: 4.002456601 | N11: 未降伏
B12: 11 | C12: -66.03670359 | D12: 96.23102265 | E12: 4.41389432 | F12: 未降伏 | J12: 11 | K12: -54.12862579 | L12: 272.7849545 | M12: 4.301289775 | N12: 未降伏
B13: 12 | C13: -73.2003666 | D13: 193.1897019 | E13: 4.693186244 | F13: 未降伏 | J13: 12 | K13: -61.02415796 | L13: 365.5651327 | M13: 4.580709253 | N13: 未降伏
B14: 13 | C14: -79.99071603 | D14: 290.1483812 | E14: 4.925640391 | F14: 未降伏 | J14: 13 | K14: -67.48371833 | L14: 458.3453109 | M14: 4.805484659 | N14: 未降伏
B15: 14 | C15: -86.9194027 | D15: 387.1070604 | E15: 5.170403486 | F15: 未降伏 | J15: 14 | K15: -74.17757856 | L15: 551.1254891 | M15: 5.051127875 | N15: 未降伏
B16: 15 | C16: -93.78779506 | D16: 484.0657397 | E16: 5.403571936 | F16: 未降伏 | J16: 15 | K16: -80.4404086 | L16: 643.9056673 | M16: 5.253313493 | N16: 未降伏
B17: 16 | C17: -100.1920361 | D17: 581.024419 | E17: 5.598117078 | F17: 未降伏 | J17: 16 | K17: -86.91601947 | L17: 736.6858455 | M17: 5.472246932 | N17: 未降伏
B18: 17 | C18: -106.568997 | D18: 677.9830982 | E18: 5.790213185 | F18: 未降伏 | J18: 17 | K18: -92.99992814 | L18: 829.4660237 | M18: 5.658628627 | N18: 未降伏
B19: 18 | C19: -113.0549271 | D19: 774.9417775 | E19: 5.990982955 | F19: 未降伏 | J19: 18 | K19: -99.30060458 | L19: 922.2462019 | M19: 5.860112699 | N19: 未降伏
B20: 19 | C20: -119.2267117 | D20: 871.9004568 | E20: 6.170578785 | F20: 未降伏 | J20: 19 | K20: -105.1870696 | L20: 1015.02638 | M20: 6.033279814 | N20: 未降伏
B21: 20 | C21: -125.5554157 | D21: 968.859136 | E21: 6.361501397 | F21: 未降伏 | J21: 20 | K21: -110.9996627 | L21: 1107.806558 | M21: 6.202059077 | N21: 未降伏
B22: 21 | C22: -131.4577657 | D22: 1065.817815 | E22: 6.528035712 | F22: 未降伏 | J22: 21 | K22: -116.9869174 | L22: 1200.586736 | M22: 6.383848833 | N22: 未降伏
B23: 22 | C23: -137.6112086 | D23: 1162.776495 | E23: 6.711458158 | F23: 未降伏 | J23: 22 | K23: -122.5845716 | L23: 1293.366915 | M23: 6.543342175 | N23: 未降伏
B24: 23 | C24: -143.2040499 | D24: 1259.735174 | E24: 6.86666569 | F24: 未降伏 | J24: 23 | K24: -128.4253774 | L24: 1386.147093 | M24: 6.719162411 | N24: 未降伏
B25: 24 | C25: -148.7298054 | D25: 1356.693853 | E25: 7.02212833 | F25: 未降伏 | J25: 24 | K25: -133.727379 | L25: 1478.927271 | M25: 6.867686121 | N25: 未降伏
B26: 25 | C26: -154.4204908 | D26: 1453.652532 | E26: 7.192030067 | F26: 未降伏 | J26: 25 | K26: -138.9682204 | L26: 1571.707449 | M26: 7.016464939 | N26: 未降伏
B27: 26 | C27: -159.5990057 | D27: 1550.611212 | E27: 7.340349691 | F27: 未降伏 | J27: 26 | K27: -144.3944164 | L27: 1664.487627 | M27: 7.180244091 | N27: 未降伏
B28: 27 | C28: -165.032692 | D28: 1647.569891 | E28: 7.509588148 | F28: 未降伏 | J28: 27 | K28: -149.3108837 | L28: 1757.267806 | M28: 7.322083979 | N28: 未降伏
B29: 28 | C29: -169.7952244 | D29: 1744.52857 | E29: 7.65321379 | F29: 未降伏 | J29: 28 | K29: -154.1298692 | L29: 1850.047984 | M29: 7.46535247 | N29: 未降伏
B30: 29 | C30: -174.4388109 | D30: 1841.487249 | E30: 7.798982337 | F30: 未降伏 | J30: 29 | K30: -159.0538423 | L30: 1942.828162 | M30: 7.623009037 | N30: 未降伏
B31: 30 | C31: -179.2562878 | D31: 1938.445929 | E31: 7.963832941 | F31: 未降伏 | J31: 30 | K31: -163.4781932 | L31: 2035.60834 | M31: 7.76204274 | N31: 未降伏
B32: 31 | C32: -183.476758 | D32: 2035.404608 | E32: 8.105264657 | F32: 未降伏 | J32: 31 | K32: -168.1397184 | L32: 2128.388518 | M32: 7.922505492 | N32: 未降伏
B33: 32 | C33: -187.580684 | D33: 2132.363287 | E33: 8.248788256 | F33: 未降伏 | J33: 32 | K33: -172.1607601 | L33: 2221.168697 | M33: 8.057202364 | N33: 未降伏
B34: 33 | C34: -191.8177015 | D34: 2229.321966 | E34: 8.4089959 | F34: 未降伏 | J34: 33 | K34: -176.081372 | L34: 2313.948875 | M34: 8.193838055 | N34: 未降伏
B35: 34 | C35: -195.5237142 | D35: 2326.280646 | E35: 8.547519388 | F35: 未降伏 | J35: 34 | K35: -180.2207881 | L35: 2406.729053 | M35: 8.35078032 | N35: 未降伏
B36: 35 | C36: -199.1221854 | D36: 2423.239325 | E36: 8.687981694 | F36: 未降伏 | J36: 35 | K36: -183.7604546 | L36: 2499.509231 | M36: 8.482517943 | N36: 未降伏
B37: 36 | C37: -202.8328995 | D37: 2520.198004 | E37: 8.843138205 | F37: 未降伏 | J37: 36 | K37: -187.2040705 | L37: 2592.289409 | M37: 8.615990298 | N37: 未降伏
B38: 37 | C38: -206.0569458 | D38: 2617.156684 | E38: 8.977886099 | F38: 未降伏 | J38: 37 | K38: -190.8666545 | L38: 2685.069588 | M38: 8.769259012 | N38: 未降伏
B39: 38 | C39: -209.1875127 | D39: 2714.115363 | E39: 9.114317704 | F39: 未降伏 | J39: 38 | K39: -193.9543378 | L39: 2777.849766 | M39: 8.897272062 | N39: 未降伏
B40: 39 | C40: -212.4348925 | D40: 2811.074042 | E40: 9.264065931 | F40: 未降伏 | J40: 39 | K40: -196.9565753 | L40: 2870.629944 | M40: 9.026764737 | N40: 未降伏
B41: 40 | D41: 2908.032721 | E41: 9.393915757 | F41: 未降伏 | J41: 40 | K41: -200.2000983 | L41: 2963.410122 | M41: 9.176155814 | N41: 未降伏
B42: 41 | D42: 3004.991401 | E42: 9.525143165 | F42: 未降伏 | J42: 41 | K42: -202.8705736 | L42: 3056.1903 | M42: 9.299525903 | N42: 未降伏
B43: 42 | D43: 3101.95008 | E43: 9.669330044 | F43: 未降伏 | J43: 42 | L43: 3148.970479 | M43: 9.424069489 | N43: 未降伏
B44: 43 | D44: 3198.908759 | E44: 9.793006263 | F44: 未降伏 | J44: 43 | L44: 3241.750657 | M44: 9.549939634 | N44: 未降伏
B45: 44 | D45: 3295.867438 | E45: 9.91760087 | F45: 未降伏 | J45: 44 | L45: 3334.530835 | M45: 9.687136562 | N45: 未降伏
B46: 45 | D46: 3392.826118 | E46: 10.07663502 | F46: 圧縮降伏 | J46: 45 | L46: 3427.311013 | M46: 9.805608584 | N46: 未降伏
B47: 46 | D47: 3489.784797 | E47: 10.23921516 | F47: 圧縮降伏 | J47: 46 | L47: 3520.091191 | M47: 9.92489695 | N47: 未降伏
B48: 47 | D48: 3586.743476 | E48: 10.4091169 | F48: 圧縮降伏 | J48: 47 | L48: 3612.87137 | M48: 10.07908405 | N48: 圧縮降伏
B49: 48 | D49: 3683.702155 | E49: 10.59105972 | F49: 圧縮降伏 | J49: 48 | L49: 3705.651548 | M49: 10.23462322 | N49: 圧縮降伏
B50: 49 | D50: 3780.660835 | E50: 10.75738995 | F50: 圧縮降伏 | J50: 49 | L50: 3798.431726 | M50: 10.39676969 | N50: 圧縮降伏
B51: 50 | D51: 3877.619514 | E51: 10.94433288 | F51: 圧縮降伏 | J51: 50 | L51: 3891.211904 | M51: 10.57258992 | N51: 圧縮降伏
B52: 51 | D52: 3974.578193 | E52: 11.10688752 | F52: 圧縮降伏 | J52: 51 | L52: 3983.992082 | M52: 10.73065466 | N52: 圧縮降伏
B53: 52 | D53: 4071.536873 | E53: 11.27893216 | F53: 圧縮降伏 | J53: 52 | L53: 4076.772261 | M53: 10.91269952 | N53: 圧縮降伏
B54: 53 | D54: 4168.495552 | E54: 11.45781369 | F54: 圧縮降伏 | J54: 53 | L54: 4169.552439 | M54: 11.06647845 | N54: 圧縮降伏
B55: 54 | D55: 4265.454231 | E55: 11.62669499 | F55: 圧縮降伏 | J55: 54 | L55: 4262.332617 | M55: 11.22913513 | N55: 圧縮降伏
B56: 55 | D56: 4362.41291 | E56: 11.81078072 | F56: 圧縮降伏 | J56: 55 | L56: 4355.112795 | M56: 11.40475128 | N56: 圧縮降伏
B57: 56 | D57: 4459.37159 | E57: 11.97455987 | F57: 圧縮降伏 | J57: 56 | L57: 4447.892973 | M57: 11.56240785 | N57: 圧縮降伏
B58: 57 | D58: 4556.330269 | E58: 12.14833924 | F58: 圧縮降伏 | J58: 57 | L58: 4540.673152 | M58: 11.72853399 | N58: 圧縮降伏
B59: 58 | D59: 4653.288948 | E59: 12.32415948 | F59: 圧縮降伏 | J59: 58 | L59: 4633.45333 | M59: 11.89802755 | N59: 圧縮降伏
B60: 59 | D60: 4750.247627 | E60: 12.4956939 | F60: 圧縮降伏 | J60: 59 | L60: 4726.233508 | M60: 12.0610924 | N60: 圧縮降伏
B61: 60 | D61: 4847.206307 | E61: 12.67661629 | F61: 圧縮降伏 | J61: 60 | L61: 4819.013686 | M61: 12.23670855 | N61: 圧縮降伏
B62: 61 | D62: 4944.164986 | E62: 12.84253835 | F62: 圧縮降伏 | J62: 61 | L62: 4911.793864 | M62: 12.3931406 | N62: 圧縮降伏
B63: 62 | D63: 5041.123665 | E63: 13.01641977 | F63: 圧縮降伏 | J63: 62 | L63: 5004.574043 | M63: 12.55947083 | N63: 圧縮降伏
B64: 63 | D64: 5138.082344 | E64: 13.18815828 | F64: 圧縮降伏 | J64: 63 | L64: 5097.354221 | M64: 12.72794397 | N64: 圧縮降伏
B65: 64 | D65: 5235.041024 | E65: 13.36142744 | F65: 圧縮降伏 | J65: 64 | L65: 5190.134399 | M65: 12.89131495 | N65: 圧縮降伏
B66: 65 | D66: 5331.999703 | E66: 13.53051283 | F66: 圧縮降伏 | J66: 65 | L66: 5282.914577 | M66: 13.05754313 | N66: 圧縮降伏
B67: 66 | D67: 5428.958382 | E67: 13.69388381 | F67: 圧縮降伏 | J67: 66 | L67: 5375.694755 | M67: 13.22193454 | N67: 圧縮降伏
B68: 67 | D68: 5525.917061 | E68: 13.86164264 | F68: 圧縮降伏 | J68: 67 | L68: 5468.474934 | M68: 13.38887703 | N68: 圧縮降伏
B69: 68 | D69: 5622.875741 | E69: 999 | F69: 未降伏 | J69: 68 | L69: 5561.255112 | M69: 13.5508194 | N69: 圧縮降伏
B70: 69 | D70: 5719.83442 | E70: 999 | F70: 未降伏 | J70: 69 | L70: 5654.03529 | M70: 13.70725145 | N70: 圧縮降伏
B71: 70 | D71: 5816.793099 | E71: 999 | F71: 未降伏 | J71: 70 | L71: 5746.815468 | M71: 13.86490802 | N71: 圧縮降伏
B72: 71 | D72: 5913.751779 | E72: 999 | F72: 未降伏 | J72: 71 | L72: 5839.595646 | M72: 999 | N72: 未降伏
B73: 72 | D73: 6010.710458 | E73: 999 | F73: 未降伏 | J73: 72 | L73: 5932.375825 | M73: 999 | N73: 未降伏
B74: 73 | D74: 6107.669137 | E74: 999 | F74: 未降伏 | J74: 73 | L74: 6025.156003 | M74: 999 | N74: 未降伏
B75: 74 | D75: 6204.627816 | E75: 999 | F75: 未降伏 | J75: 74 | L75: 6117.936181 | M75: 999 | N75: 未降伏
B76: 75 | D76: 6301.586496 | E76: 999 | F76: 未降伏 | J76: 75 | L76: 6210.716359 | M76: 999 | N76: 未降伏
B77: 76 | D77: 6398.545175 | E77: 999 | F77: 未降伏 | J77: 76 | L77: 6303.496537 | M77: 999 | N77: 未降伏
B78: 77 | D78: 6495.503854 | E78: 999 | F78: 未降伏 | J78: 77 | L78: 6396.276716 | M78: 999 | N78: 未降伏
B79: 78 | D79: 6592.462533 | E79: 999 | F79: 未降伏 | J79: 78 | L79: 6489.056894 | M79: 999 | N79: 未降伏
B80: 79 | D80: 6689.421213 | E80: 999 | F80: 未降伏 | J80: 79 | L80: 6581.837072 | M80: 999 | N80: 未降伏
B81: 80 | D81: 6786.379892 | E81: 999 | F81: 未降伏 | J81: 80 | L81: 6674.61725 | M81: 999 | N81: 未降伏
B82: 81 | D82: 6883.338571 | E82: 999 | F82: 未降伏 | J82: 81 | L82: 6767.397428 | M82: 999 | N82: 未降伏
B83: 82 | D83: 6980.29725 | E83: 999 | F83: 未降伏 | J83: 82 | L83: 6860.177607 | M83: 999 | N83: 未降伏
B84: 83 | D84: 7077.25593 | E84: 999 | F84: 未降伏 | J84: 83 | L84: 6952.957785 | M84: 999 | N84: 未降伏
B85: 84 | D85: 7174.214609 | E85: 999 | F85: 未降伏 | J85: 84 | L85: 7045.737963 | M85: 999 | N85: 未降伏
B86: 85 | D86: 7271.173288 | E86: 999 | F86: 未降伏 | J86: 85 | L86: 7138.518141 | M86: 999 | N86: 未降伏
B87: 86 | D87: 7368.131968 | E87: 999 | F87: 未降伏 | J87: 86 | L87: 7231.298319 | M87: 999 | N87: 未降伏
B88: 87 | D88: 7465.090647 | E88: 999 | F88: 未降伏 | J88: 87 | L88: 7324.078498 | M88: 999 | N88: 未降伏
B89: 88 | D89: 7562.049326 | E89: 999 | F89: 未降伏 | J89: 88 | L89: 7416.858676 | M89: 999 | N89: 未降伏
B90: 89 | D90: 7659.008005 | E90: 999 | F90: 未降伏 | J90: 89 | L90: 7509.638854 | M90: 999 | N90: 未降伏
B91: 90 | D91: 7755.966685 | E91: 999 | F91: 未降伏 | J91: 90 | L91: 7602.419032 | M91: 999 | N91: 未降伏
B92: 91 | D92: 7852.925364 | E92: 999 | F92: 未降伏 | J92: 91 | L92: 7695.19921 | M92: 999 | N92: 未降伏
B93: 92 | D93: 7949.884043 | E93: 999 | F93: 未降伏 | J93: 92 | L93: 7787.979389 | M93: 999 | N93: 未降伏
B94: 93 | D94: 8046.842722 | E94: 999 | F94: 未降伏 | J94: 93 | L94: 7880.759567 | M94: 999 | N94: 未降伏
B95: 94 | D95: 8143.801402 | E95: 999 | F95: 未降伏 | J95: 94 | L95: 7973.539745 | M95: 999 | N95: 未降伏
B96: 95 | D96: 8240.760081 | E96: 999 | F96: 未降伏 | J96: 95 | L96: 8066.319923 | M96: 999 | N96: 未降伏
B97: 96 | D97: 8337.71876 | E97: 999 | F97: 未降伏 | J97: 96 | L97: 8159.100101 | M97: 999 | N97: 未降伏
B98: 97 | D98: 8434.677439 | E98: 999 | F98: 未降伏 | J98: 97 | L98: 8251.88028 | M98: 999 | N98: 未降伏
B99: 98 | D99: 8531.636119 | E99: 999 | F99: 未降伏 | J99: 98 | L99: 8344.660458 | M99: 999 | N99: 未降伏
B100: 99 | D100: 8628.594798 | E100: 999 | F100: 未降伏 | J100: 99 | L100: 8437.440636 | M100: 999 | N100: 未降伏
B101: 100 | D101: 8725.553477 | E101: 999 | F101: 未降伏 | J101: 100 | L101: 8530.220814 | M101: 999 | N101: 未降伏
B102: 101 | D102: 8822.512157 | E102: 999 | F102: 未降伏 | J102: 101 | L102: 8623.000992 | M102: 999 | N102: 未降伏

Sheet Mu(+)-N関係
A1: 諸元ケース 1 | B1: 番号 | C1: 曲げモーメント(kNm) | D1: 軸力(kN) | E1: 中立軸位置(cm) | F1: 圧縮鉄筋の降伏判定 | I1: 諸元ケース 2 | J1: 番号 | K1: 曲げモーメント(kNm) | L1: 軸力(kN) | M1: 中立軸位置(cm) | N1: 圧縮鉄筋の降伏判定
B2: 1 | C2: 0.08741333415 | D2: -873.35577 | E2: 0.002211277905 | F2: 引張降伏 | G2: 最小軸力(kN) | H2: -874.23 | J2: 1 | K2: 8.466449276 | L2: -655.0168275 | M2: 0.00165845923 | N2: 引張降伏 | O2: 最小軸力(kN) | P2: -655.6725
B3: 2 | C3: 9.662242645 | D3: -776.3970907 | E3: 0.2474587584 | F3: 引張降伏 | G3: ほぼ全断面引張時(kN) | H3: -873.8346504 | J3: 2 | K3: 17.68242021 | L3: -562.2366493 | M3: 0.2363365873 | N3: 引張降伏 | O3: ほぼ全断面引張時(kN) | P3: -655.2771504
B4: 3 | C4: 18.99044481 | D4: -679.4384115 | E4: 0.580704426 | F4: 引張降伏 | G4: 釣合軸力(kN) | H4: 2896.191919 | J4: 3 | K4: 26.67635758 | L4: -469.4564711 | M4: 0.5508873515 | N4: 引張降伏 | O4: 釣合軸力(kN) | P4: 2752.704668
B5: 4 | C5: 28.05800735 | D5: -582.4797322 | E5: 0.8705469532 | F5: 引張降伏 | G5: 全断面圧縮時(kN) | H5: 7139.28501 | J5: 4 | K5: 35.41274851 | L5: -376.6762929 | M5: 0.8285497305 | N5: 引張降伏 | O5: 全断面圧縮時(kN) | P5: 6939.574135
B6: 5 | C6: 36.90890189 | D6: -485.5210529 | E6: 1.171542944 | F6: 引張降伏 | G6: 最大軸力(kN) | H6: 8831.3435 | J6: 5 | K6: 43.98189036 | L6: -283.8961147 | M6: 1.119693123 | N6: 引張降伏 | O6: 最大軸力(kN) | P6: 8631.632625
B7: 6 | C7: 45.52285361 | D7: -388.5623737 | E7: 1.47878845 | F7: 引張降伏 | J7: 6 | K7: 52.3162495 | L7: -191.1159365 | M7: 1.412568021 | N7: 引張降伏
B8: 7 | C8: 53.89141579 | D8: -291.6036944 | E8: 1.778657919 | F8: 引張降伏 | J8: 7 | K8: 60.41736648 | L8: -98.33575831 | M8: 1.699992102 | N8: 引張降伏
B9: 8 | C9: 62.01748685 | D9: -194.6450151 | E9: 2.07636971 | F9: 引張降伏 | J9: 8 | K9: 68.30581306 | L9: -5.555580109 | M9: 1.985067772 | N9: 引張降伏
B10: 9 | C10: 69.90055006 | D10: -97.68633588 | E10: 2.377443186 | F10: 引張降伏 | J10: 9 | K10: 75.98815046 | L10: 87.22459809 | M10: 2.273290551 | N10: 引張降伏
B11: 10 | C11: 77.57121766 | D11: -0.727656615 | E11: 2.687355987 | F11: 引張降伏 | J11: 10 | K11: 83.43553392 | L11: 180.0047763 | M11: 2.56068483 | N11: 引張降伏
B12: 11 | C12: 84.96548278 | D12: 96.23102265 | E12: 2.975650292 | F12: 引張降伏 | J12: 11 | K12: 90.66277316 | L12: 272.7849545 | M12: 2.845736657 | N12: 引張降伏
B13: 12 | C13: 92.12713077 | D13: 193.1897019 | E13: 3.274673378 | F13: 引張降伏 | J13: 12 | K13: 97.68402043 | L13: 365.5651327 | M13: 3.134913106 | N13: 引張降伏
B14: 13 | C14: 99.05175066 | D14: 290.1483812 | E14: 3.574077933 | F14: 引張降伏 | J14: 13 | K14: 104.4704916 | L14: 458.3453109 | M14: 3.418987423 | N14: 引張降伏
B15: 14 | C15: 105.7628372 | D15: 387.1070604 | E15: 3.880325067 | F15: 引張降伏 | J15: 14 | K15: 111.0394065 | L15: 551.1254891 | M15: 3.704420718 | N15: 引張降伏
B16: 15 | C16: 111.5599475 | D16: 484.0657397 | E16: 4.095186816 | F16: 未降伏 | J16: 15 | K16: 117.3878522 | L16: 643.9056673 | M16: 3.989806331 | N16: 引張降伏
B17: 16 | C17: 116.6840189 | D17: 581.024419 | E17: 4.254807256 | F17: 未降伏 | J17: 16 | K17: 122.849253 | L17: 736.6858455 | M17: 4.205311807 | N17: 未降伏
B18: 17 | C18: 121.807007 | D18: 677.9830982 | E18: 4.408348054 | F18: 未降伏 | J18: 17 | K18: 128.157567 | L18: 829.4660237 | M18: 4.389727656 | N18: 未降伏
B19: 18 | C19: 126.8991023 | D19: 774.9417775 | E19: 4.573189835 | F19: 未降伏 | J19: 18 | K19: 133.4282521 | L19: 922.2462019 | M19: 4.605686125 | N19: 未降伏
B20: 19 | C20: 131.9473115 | D20: 871.9004568 | E20: 4.743944368 | F20: 未降伏 | J20: 19 | K20: 138.5800848 | L20: 1015.02638 | M20: 4.800938044 | N20: 未降伏
B21: 20 | C21: 136.9530717 | D21: 968.859136 | E21: 4.918477816 | F21: 未降伏 | J21: 20 | K21: 143.6901465 | L21: 1107.806558 | M21: 5.024287452 | N21: 未降伏
B22: 21 | C22: 141.9061746 | D22: 1065.817815 | E22: 5.101630052 | F22: 未降伏 | J22: 21 | K22: 148.6478418 | L22: 1200.586736 | M22: 5.23199668 | N22: 未降伏
B23: 22 | C23: 146.7889037 | D23: 1162.776495 | E23: 5.284829973 | F23: 未降伏 | J23: 22 | K23: 153.5460675 | L23: 1293.366915 | M23: 5.460114436 | N23: 未降伏
B24: 23 | C24: 151.6190828 | D24: 1259.735174 | E24: 5.479140143 | F24: 未降伏 | J24: 23 | K24: 158.2887548 | L24: 1386.147093 | M24: 5.679792216 | N24: 未降伏
B25: 24 | C25: 156.3501416 | D25: 1356.693853 | E25: 5.670684672 | F25: 未降伏 | J25: 24 | K25: 162.9343134 | L25: 1478.927271 | M25: 5.911676967 | N25: 未降伏
B26: 25 | C26: 161.0208965 | D26: 1453.652532 | E26: 5.874626905 | F26: 未降伏 | J26: 25 | K26: 167.5023911 | L26: 1571.707449 | M26: 6.163254993 | N26: 未降伏
B27: 26 | C27: 165.5786061 | D27: 1550.611212 | E27: 6.081525513 | F27: 未降伏 | J27: 26 | K27: 171.8001831 | L27: 1664.487627 | M27: 6.385793782 | N27: 未降伏
B28: 27 | C28: 170.0515704 | D28: 1647.569891 | E28: 6.297340932 | F28: 未降伏 | J28: 27 | K28: 176.0633505 | L28: 1757.267806 | M28: 6.639755983 | N28: 未降伏
B29: 28 | C29: 174.4889003 | D29: 1744.52857 | E29: 6.535758319 | F29: 未降伏 | J29: 28 | K29: 180.2065817 | L29: 1850.047984 | M29: 6.902921095 | N29: 未降伏
B30: 29 | C30: 178.6402728 | D30: 1841.487249 | E30: 6.744230482 | F30: 未降伏 | J30: 29 | K30: 183.994755 | L30: 1942.828162 | M30: 7.129226879 | N30: 未降伏
B31: 30 | C31: 182.791279 | D31: 1938.445929 | E31: 6.982886286 | F31: 未降伏 | J31: 30 | K31: 187.7765316 | L31: 2035.60834 | M31: 7.389769399 | N31: 未降伏
B32: 31 | C32: 186.6824223 | D32: 2035.404608 | E32: 7.202945535 | F32: 未降伏 | J32: 31 | K32: 191.4348177 | L32: 2128.388518 | M32: 7.659514831 | N32: 未降伏
B33: 32 | C33: 190.5270274 | D33: 2132.363287 | E33: 7.442745742 | F33: 未降伏 | J33: 32 | K33: 194.6759355 | L33: 2221.168697 | M33: 7.887871004 | N33: 未降伏
B34: 33 | C34: 194.2800832 | D34: 2229.321966 | E34: 7.694657554 | F34: 未降伏 | J34: 33 | K34: 197.9439102 | L34: 2313.948875 | M34: 8.154707744 | N34: 未降伏
B35: 34 | C35: 197.660096 | D35: 2326.280646 | E35: 7.915050586 | F35: 未降伏 | J35: 34 | K35: 200.8830056 | L35: 2406.729053 | M35: 8.397464327 | N35: 未降伏
B36: 35 | C36: 201.0644738 | D36: 2423.239325 | E36: 8.167200815 | F36: 未降伏 | J36: 35 | K36: 203.7514956 | L36: 2499.509231 | M36: 8.660343338 | N36: 未降伏
B37: 36 | C37: 204.3622216 | D37: 2520.198004 | E37: 8.428744688 | F37: 未降伏 | J37: 36 | K37: 206.4754355 | L37: 2592.289409 | M37: 8.931519274 | N37: 未降伏
B38: 37 | C38: 207.1946259 | D38: 2617.156684 | E38: 8.65118811 | F38: 未降伏 | J38: 37 | K38: 208.8384598 | L38: 2685.069588 | M38: 9.176803082 | N38: 未降伏
B39: 38 | C39: 210.1106236 | D39: 2714.115363 | E39: 8.912255149 | F39: 未降伏 | J39: 38 | K39: 210.7289825 | L39: 2777.849766 | M39: 9.425996935 | N39: 未降伏
B40: 39 | C40: 212.6412814 | D40: 2811.074042 | E40: 9.147048592 | F40: 未降伏 | J40: 39 | K40: 211.2539918 | L40: 2870.629944 | M40: 9.631012046 | N40: 未降伏
B41: 40 | C41: 214.9710722 | D41: 2908.032721 | E41: 9.399341871 | F41: 未降伏 | J41: 40 | K41: 211.6782646 | L41: 2963.410122 | M41: 9.808108481 | N41: 未降伏
B42: 41 | C42: 215.6798238 | D42: 3004.991401 | E42: 9.60268806 | F42: 未降伏 | J42: 41 | K42: 212.0979171 | L42: 3056.1903 | M42: 10.01829725 | N42: 未降伏
B43: 42 | C43: 216.2509639 | D43: 3101.95008 | E43: 9.776923486 | F43: 未降伏 | J43: 42 | K43: 212.3710281 | L43: 3148.970479 | M43: 10.1993991 | N43: 未降伏
B44: 43 | C44: 216.8542628 | D44: 3198.908759 | E44: 9.985967851 | F44: 未降伏 | J44: 43 | K44: 212.665709 | L44: 3241.750657 | M44: 10.41397474 | N44: 未降伏
B45: 44 | C45: 217.2653759 | D45: 3295.867438 | E45: 10.16439942 | F45: 未降伏 | J45: 44 | K45: 212.7699633 | L45: 3334.530835 | M45: 10.59946347 | N45: 未降伏
B46: 45 | C46: 217.742472 | D46: 3392.826118 | E46: 10.37840287 | F46: 未降伏 | J46: 45 | K46: 212.9140629 | L46: 3427.311013 | M46: 10.8178538 | N46: 未降伏
B47: 46 | C47: 217.9770824 | D47: 3489.784797 | E47: 10.56141206 | F47: 未降伏 | J47: 46 | K47: 212.8353424 | L47: 3520.091191 | M47: 11.00801551 | N47: 未降伏
B48: 47 | C48: 218.2996605 | D48: 3586.743476 | E48: 10.77970702 | F48: 未降伏 | J48: 47 | K48: 212.8103495 | L48: 3612.87137 | M48: 11.22964831 | N48: 未降伏
B49: 48 | C49: 218.3434843 | D49: 3683.702155 | E49: 10.96757992 | F49: 未降伏 | J49: 48 | K49: 212.5358403 | L49: 3705.651548 | M49: 11.424483 | N49: 未降伏
B50: 49 | C50: 218.4907365 | D50: 3780.660835 | E50: 11.18968955 | F50: 未降伏 | J50: 49 | K50: 212.3180008 | L50: 3798.431726 | M50: 11.64897681 | N50: 未降伏
B51: 50 | C51: 218.3327929 | D51: 3877.619514 | E51: 11.3826169 | F51: 未降伏 | J51: 50 | K51: 211.8190879 | L51: 3891.211904 | M51: 11.84972425 | N51: 圧縮降伏
B52: 51 | C52: 218.2790815 | D52: 3974.578193 | E52: 11.60796902 | F52: 未降伏 | J52: 51 | K52: 211.1787013 | L52: 3983.992082 | M52: 12.08585283 | N52: 圧縮降伏
B53: 52 | C53: 217.9058802 | D53: 4071.536873 | E53: 11.80633228 | F53: 未降伏 | J53: 52 | K53: 210.2918876 | L53: 4076.772261 | M53: 12.30042848 | N53: 圧縮降伏
B54: 53 | C54: 217.2528607 | D54: 4168.495552 | E54: 12.05123462 | F54: 圧縮降伏 | J54: 53 | K54: 209.4066366 | L54: 4169.552439 | M54: 12.53741536 | N54: 圧縮降伏
B55: 54 | C55: 216.2803193 | D55: 4265.454231 | E55: 12.27363036 | F55: 圧縮降伏 | J55: 54 | K55: 208.4513092 | L55: 4262.332617 | M55: 12.78222233 | N55: 圧縮降伏
B56: 55 | C56: 215.3144815 | D56: 4362.41291 | E56: 12.52129834 | F56: 圧縮降伏 | J56: 55 | K56: 207.1403849 | L56: 4355.112795 | M56: 12.99613041 | N56: 圧縮降伏
B57: 56 | C57: 214.2625455 | D57: 4459.37159 | E57: 12.77592811 | F57: 圧縮降伏 | J57: 56 | K57: 205.9120149 | L57: 4447.892973 | M57: 13.24112812 | N57: 圧縮降伏
B58: 57 | C58: 212.8400622 | D58: 4556.330269 | E58: 12.99946826 | F58: 圧縮降伏 | J58: 57 | K58: 204.3555041 | L58: 4540.673152 | M58: 13.46161652 | N58: 圧縮降伏
B59: 58 | C59: 211.487955 | D59: 4653.288948 | E59: 13.25419339 | F59: 圧縮降伏 | J59: 58 | K59: 202.8372381 | L59: 4633.45333 | M59: 13.70670959 | N59: 圧縮降伏
B60: 59 | C60: 210.0188827 | D60: 4750.247627 | E60: 13.51177954 | F60: 圧縮降伏 | J60: 59 | K60: 201.2148674 | L60: 4726.233508 | M60: 13.95580808 | N60: 圧縮降伏
B61: 60 | C61: 208.1330768 | D61: 4847.206307 | E61: 13.74018339 | F61: 圧縮降伏 | J61: 60 | K61: 199.2335813 | L61: 4819.013686 | M61: 14.18306753 | N61: 圧縮降伏
B62: 61 | C62: 206.3693192 | D62: 4944.164986 | E62: 14.00282399 | F62: 圧縮降伏 | J62: 61 | K62: 197.3446736 | L62: 4911.793864 | M62: 14.43941391 | N62: 圧縮降伏
B63: 62 | C63: 204.2058373 | D63: 5041.123665 | E63: 14.2388572 | F63: 圧縮降伏 | J63: 62 | K63: 195.3575379 | L63: 5004.574043 | M63: 14.7011962 | N63: 圧縮降伏
B64: 63 | C64: 202.1134919 | D64: 5138.082344 | E64: 14.50454954 | F64: 圧縮降伏 | J64: 63 | K64: 192.8443156 | L64: 5097.354221 | M64: 14.92702515 | N64: 圧縮降伏
B65: 64 | C65: 199.8895572 | D65: 5235.041024 | E65: 14.77462875 | F65: 圧縮降伏 | J65: 64 | K65: 190.4997931 | L65: 5190.134399 | M65: 15.18756767 | N65: 圧縮降伏
B66: 65 | C66: 197.2036463 | D66: 5331.999703 | E66: 15.01552568 | F66: 圧縮降伏 | J66: 65 | K66: 187.7096536 | L66: 5282.914577 | M66: 15.4203584 | N66: 圧縮降伏
B67: 66 | C67: 194.5900714 | D67: 5428.958382 | E67: 15.28398366 | F67: 圧縮降伏 | J67: 66 | K67: 185.0017015 | L67: 5375.694755 | M67: 15.67937505 | N67: 圧縮降伏
B68: 67 | C68: 191.8420566 | D68: 5525.917061 | E68: 15.55701925 | F68: 圧縮降伏 | J68: 67 | K68: 182.180463 | L68: 5468.474934 | M68: 15.94325542 | N68: 圧縮降伏
B69: 68 | C69: 188.5958768 | D69: 5622.875741 | E69: 15.80039572 | F69: 圧縮降伏 | J69: 68 | K69: 178.8510857 | L69: 5561.255112 | M69: 16.17661836 | N69: 圧縮降伏
B70: 69 | C70: 185.4408322 | D70: 5719.83442 | E70: 16.07152397 | F70: 圧縮降伏 | J70: 69 | K70: 175.6502593 | L70: 5654.03529 | M70: 16.43897285 | N70: 圧縮降伏
B71: 70 | C71: 182.1448837 | D71: 5816.793099 | E71: 16.34684837 | F71: 圧縮降伏 | J71: 70 | K71: 172.3317327 | L71: 5746.815468 | M71: 16.70561885 | N71: 圧縮降伏
B72: 71 | C72: 178.3257761 | D72: 5913.751779 | E72: 16.59289511 | F72: 圧縮降伏 | J72: 71 | K72: 168.4525303 | L72: 5839.595646 | M72: 16.93993546 | N72: 圧縮降伏
B73: 72 | C73: 174.6099331 | D73: 6010.710458 | E73: 16.86640754 | F73: 圧縮降伏 | J73: 72 | K73: 164.7411838 | L73: 5932.375825 | M73: 17.20496023 | N73: 圧縮降伏
B74: 73 | C74: 170.7458791 | D74: 6107.669137 | E74: 17.14363928 | F74: 圧縮降伏 | J74: 73 | K74: 160.9089867 | L74: 6025.156003 | M74: 17.47408578 | N74: 圧縮降伏
B75: 74 | C75: 166.7330114 | D75: 6204.627816 | E75: 17.42430423 | F75: 圧縮降伏 | J75: 74 | K75: 156.4700999 | L75: 6117.936181 | M75: 17.70954679 | N75: 圧縮降伏
B76: 75 | C76: 162.0470406 | D76: 6301.586496 | E76: 17.66787143 | F76: 圧縮降伏 | J76: 75 | K76: 152.2342075 | L76: 6210.716359 | M76: 17.97686036 | N76: 圧縮降伏
B77: 76 | C77: 157.5978488 | D77: 6398.545175 | E77: 17.94681977 | F77: 圧縮降伏 | J77: 76 | K77: 147.8719514 | L77: 6303.496537 | M77: 18.24808398 | N77: 圧縮降伏
B78: 77 | C78: 152.9932315 | D78: 6495.503854 | E78: 18.22891522 | F78: 圧縮降伏 | J78: 77 | K78: 142.8633671 | L78: 6396.276716 | M78: 18.4846894 | N78: 圧縮降伏
B79: 78 | C79: 147.7097614 | D79: 6592.462533 | E79: 18.4754388 | F79: 圧縮降伏 | J79: 78 | K79: 138.0901575 | L79: 6489.056894 | M79: 18.75410104 | N79: 圧縮降伏
B80: 79 | C80: 142.6580758 | D80: 6689.421213 | E80: 18.75572228 | F80: 圧縮降伏 | J80: 79 | K80: 133.1826278 | L80: 6581.837072 | M80: 19.0269459 | N80: 圧縮降伏
B81: 80 | C81: 137.4476764 | D81: 6786.379892 | E81: 19.0390575 | F81: 圧縮降伏 | J81: 80 | K81: 127.6000663 | L81: 6674.61725 | M81: 19.2650295 | N81: 圧縮降伏
B82: 81 | C82: 131.5608377 | D82: 6883.338571 | E82: 19.28868051 | F82: 圧縮降伏 | J82: 81 | K82: 122.2741891 | L82: 6767.397428 | M82: 19.53606239 | N82: 圧縮降伏
B83: 82 | C83: 125.8941011 | D83: 6980.29725 | E83: 19.57020376 | F83: 圧縮降伏 | J83: 82 | K83: 116.3929891 | L83: 6860.177607 | M83: 19.78058326 | N83: 圧縮降伏
B84: 83 | C84: 119.6950671 | D84: 7077.25593 | E84: 19.82788527 | F84: 圧縮降伏 | J84: 83 | K84: 110.4868943 | L84: 6952.957785 | M84: 20.03788331 | N84: 圧縮降伏
B85: 84 | C85: 113.4670133 | D85: 7174.214609 | E85: 20.09968109 | F85: 圧縮降伏 | J85: 84 | K85: 104.5672885 | L85: 7045.737963 | M85: 20.30967913 | N85: 圧縮降伏
B86: 85 | C86: 107.2243026 | D86: 7271.173288 | E86: 20.3876893 | F86: 圧縮降伏 | J86: 85 | K86: 98.6286434 | L86: 7138.518141 | M86: 20.59730586 | N86: 圧縮降伏
B87: 86 | C87: 100.9616344 | D87: 7368.131968 | E87: 20.69362649 | F87: 圧縮降伏 | J87: 86 | K87: 92.66961722 | L87: 7231.298319 | M87: 20.90267085 | N87: 圧縮降伏
B88: 87 | C88: 94.67739735 | D88: 7465.090647 | E88: 21.01978147 | F88: 圧縮降伏 | J88: 87 | K88: 86.69020902 | L88: 7324.078498 | M88: 21.2280629 | N88: 圧縮降伏
B89: 88 | C89: 88.36943123 | D89: 7562.049326 | E89: 21.36863379 | F89: 圧縮降伏 | J89: 88 | K89: 80.68968099 | L89: 7416.858676 | M89: 21.57596155 | N89: 圧縮降伏
B90: 89 | C90: 82.03759566 | D90: 7659.008005 | E90: 21.74342592 | F90: 圧縮降伏 | J90: 89 | K90: 74.66639688 | L90: 7509.638854 | M90: 21.94960928 | N90: 圧縮降伏
B91: 90 | C91: 75.68257626 | D91: 7755.966685 | E91: 22.14835401 | F91: 圧縮降伏 | J91: 90 | K91: 68.62232712 | L91: 7602.419032 | M91: 22.3530115 | N91: 圧縮降伏
B92: 91 | C92: 69.30193656 | D92: 7852.925364 | E92: 22.58799568 | F92: 圧縮降伏 | J92: 91 | K92: 62.55167604 | L92: 7695.19921 | M92: 22.79055509 | N92: 圧縮降伏
B93: 92 | C93: 62.89167456 | D93: 7949.884043 | E93: 23.06845439 | F93: 圧縮降伏 | J93: 92 | K93: 56.45611048 | L93: 7787.979389 | M93: 23.26853427 | N93: 圧縮降伏
B94: 93 | C94: 56.45221138 | D94: 8046.842722 | E94: 23.59755026 | F94: 圧縮降伏 | J94: 93 | K94: 50.33233898 | L94: 7880.759567 | M94: 23.79438765 | N94: 圧縮降伏
B95: 94 | C95: 49.98377049 | D95: 8143.801402 | E95: 24.18596437 | F95: 圧縮降伏 | J95: 94 | K95: 44.18115735 | L95: 7973.539745 | M95: 24.37841489 | N95: 圧縮降伏
B96: 95 | C96: 43.48297463 | D96: 8240.760081 | E96: 24.84742957 | F96: 圧縮降伏 | J96: 95 | K96: 37.99778612 | L96: 8066.319923 | M96: 25.03396733 | N96: 圧縮降伏
B97: 96 | C97: 36.94935482 | D97: 8337.71876 | E97: 25.60159145 | F97: 圧縮降伏 | J97: 96 | K97: 31.78744675 | L97: 8159.100101 | M97: 25.78049986 | N97: 圧縮降伏
B98: 97 | C98: 30.38128142 | D98: 8434.677439 | E98: 26.47706009 | F98: 圧縮降伏 | J98: 97 | K98: 25.54572393 | L98: 8251.88028 | M98: 26.6452874 | N98: 圧縮降伏
B99: 98 | C99: 23.78365747 | D99: 8531.636119 | E99: 27.51846724 | F99: 圧縮降伏 | J99: 98 | K99: 19.23869359 | L99: 8344.660458 | M99: 27.68707602 | N99: 圧縮降伏
B100: 99 | C100: 16.47844426 | D100: 8628.594798 | E100: 29.16907849 | F100: 圧縮降伏 | J100: 99 | K100: 12.22846378 | L100: 8437.440636 | M100: 29.3485591 | N100: 圧縮降伏
B101: 100 | C101: 8.88555616 | D101: 8725.553477 | E101: 31.76229673 | F101: 圧縮降伏 | J101: 100 | K101: 4.992679613 | L101: 8530.220814 | M101: 31.92175028 | N101: 圧縮降伏
B102: 101 | C102: 0.8113557066 | D102: 8822.512157 | E102: 39.16916201 | F102: 圧縮降伏 | J102: 101 | K102: -2.700434949 | L102: 8623.000992 | M102: 39.21951576 | N102: 圧縮降伏

Sheet Mu(-)-N関係
A1: 諸元ケース 1 | B1: 番号 | C1: 曲げモーメント(kNm) | D1: 軸力(kN) | E1: 中立軸位置(cm) | F1: 圧縮鉄筋の降伏判定 | I1: 諸元ケース 2 | J1: 番号 | K1: 曲げモーメント(kNm) | L1: 軸力(kN) | M1: 中立軸位置(cm) | N1: 圧縮鉄筋の降伏判定
B2: 1 | C2: -0.08741333415 | D2: -873.35577 | E2: 0.002211277905 | F2: 引張降伏 | G2: 最小軸力(kN) | H2: -874.23 | J2: 1 | K2: 8.33532565 | L2: -655.0168275 | M2: 0.00165845923 | N2: 引張降伏 | O2: 最小軸力(kN) | P2: -655.6725
B3: 2 | C3: -9.662242645 | D3: -776.3970907 | E3: 0.2474587584 | F3: 引張降伏 | G3: ほぼ全断面引張時(kN) | H3: -873.8346504 | J3: 2 | K3: -0.783926188 | L3: -562.2366493 | M3: 0.2363365873 | N3: 引張降伏 | O3: ほぼ全断面引張時(kN) | P3: -655.2771504
B4: 3 | C4: -18.99044481 | D4: -679.4384115 | E4: 0.580704426 | F4: 引張降伏 | G4: 釣合軸力(kN) | H4: 2896.191919 | J4: 3 | K4: -9.681144473 | L4: -469.4564711 | M4: 0.5508873515 | N4: 引張降伏 | O4: 釣合軸力(kN) | P4: 3114.749419
B5: 4 | C5: -28.05800735 | D5: -582.4797322 | E5: 0.8705469532 | F5: 引張降伏 | G5: 全断面圧縮時(kN) | H5: 7139.28501 | J5: 4 | K5: -18.32081631 | L5: -376.6762929 | M5: 0.8285497305 | N5: 引張降伏 | O5: 全断面圧縮時(kN) | P5: 7020.838594
B6: 5 | C6: -36.90890189 | D6: -485.5210529 | E6: 1.171542944 | F6: 引張降伏 | G6: 最大軸力(kN) | H6: 8831.3435 | J6: 5 | K6: -26.79323907 | L6: -283.8961147 | M6: 1.119693123 | N6: 引張降伏 | O6: 最大軸力(kN) | P6: 8631.632625
B7: 6 | C7: -45.52285361 | D7: -388.5623737 | E7: 1.47878845 | F7: 引張降伏 | J7: 6 | K7: -35.03087912 | L7: -191.1159365 | M7: 1.412568021 | N7: 引張降伏
B8: 7 | C8: -53.89141579 | D8: -291.6036944 | E8: 1.778657919 | F8: 引張降伏 | J8: 7 | K8: -43.03527701 | L8: -98.33575831 | M8: 1.699992102 | N8: 引張降伏
B9: 8 | C9: -62.01748685 | D9: -194.6450151 | E9: 2.07636971 | F9: 引張降伏 | J9: 8 | K9: -50.8270045 | L9: -5.555580109 | M9: 1.985067772 | N9: 引張降伏
B10: 9 | C10: -69.90055006 | D10: -97.68633588 | E10: 2.377443186 | F10: 引張降伏 | J10: 9 | K10: -58.41262281 | L10: 87.22459809 | M10: 2.273290551 | N10: 引張降伏
B11: 10 | C11: -77.57121766 | D11: -0.727656615 | E11: 2.687355987 | F11: 引張降伏 | J11: 10 | K11: -65.76328718 | L11: 180.0047763 | M11: 2.56068483 | N11: 引張降伏
B12: 11 | C12: -84.96548278 | D12: 96.23102265 | E12: 2.975650292 | F12: 引張降伏 | J12: 11 | K12: -72.89380732 | L12: 272.7849545 | M12: 2.845736657 | N12: 引張降伏
B13: 12 | C13: -92.12713077 | D13: 193.1897019 | E13: 3.274673378 | F13: 引張降伏 | J13: 12 | K13: -79.81833551 | L13: 365.5651327 | M13: 3.134913106 | N13: 引張降伏
B14: 13 | C14: -99.05175066 | D14: 290.1483812 | E14: 3.574077933 | F14: 引張降伏 | J14: 13 | K14: -86.50808763 | L14: 458.3453109 | M14: 3.418987423 | N14: 引張降伏
B15: 14 | C15: -105.7628372 | D15: 387.1070604 | E15: 3.880325067 | F15: 引張降伏 | J15: 14 | K15: -92.98028335 | L15: 551.1254891 | M15: 3.704420718 | N15: 引張降伏
B16: 15 | C16: -111.5599475 | D16: 484.0657397 | E16: 4.095186816 | F16: 未降伏 | J16: 15 | K16: -99.23201003 | L16: 643.9056673 | M16: 3.989806331 | N16: 引張降伏
B17: 16 | C17: -116.6840189 | D17: 581.024419 | E17: 4.254807256 | F17: 未降伏 | J17: 16 | K17: -104.2414732 | L17: 736.6858455 | M17: 4.148687677 | N17: 未降伏
B18: 17 | C18: -121.807007 | D18: 677.9830982 | E18: 4.408348054 | F18: 未降伏 | J18: 17 | K18: -109.0948185 | L18: 829.4660237 | M18: 4.300368819 | N18: 未降伏
B19: 18 | C19: -126.8991023 | D19: 774.9417775 | E19: 4.573189835 | F19: 未降伏 | J19: 18 | K19: -113.9374091 | L19: 922.2462019 | M19: 4.451549284 | N19: 未降伏
B20: 19 | C20: -131.9473115 | D20: 871.9004568 | E20: 4.743944368 | F20: 未降伏 | J20: 19 | K20: -118.7494421 | L20: 1015.02638 | M20: 4.619085182 | N20: 未降伏
B21: 20 | C21: -136.9530717 | D21: 968.859136 | E21: 4.918477816 | F21: 未降伏 | J21: 20 | K21: -123.5253399 | L21: 1107.806558 | M21: 4.774187613 | N21: 未降伏
B22: 21 | C22: -141.9061746 | D22: 1065.817815 | E22: 5.101630052 | F22: 未降伏 | J22: 21 | K22: -128.261317 | L22: 1200.586736 | M22: 4.942701022 | N22: 未降伏
B23: 22 | C23: -146.7889037 | D23: 1162.776495 | E23: 5.284829973 | F23: 未降伏 | J23: 22 | K23: -132.9442804 | L23: 1293.366915 | M23: 5.117890118 | N23: 未降伏
B24: 23 | C24: -151.6190828 | D24: 1259.735174 | E24: 5.479140143 | F24: 未降伏 | J24: 23 | K24: -137.5652902 | L24: 1386.147093 | M24: 5.294175934 | N24: 未降伏
B25: 24 | C25: -156.3501416 | D25: 1356.693853 | E25: 5.670684672 | F25: 未降伏 | J25: 24 | K25: -142.1370378 | L25: 1478.927271 | M25: 5.48033223 | N25: 未降伏
B26: 25 | C26: -161.0208965 | D26: 1453.652532 | E26: 5.874626905 | F26: 未降伏 | J26: 25 | K26: -146.6164843 | L26: 1571.707449 | M26: 5.663436783 | N26: 未降伏
B27: 26 | C27: -165.5786061 | D27: 1550.611212 | E27: 6.081525513 | F27: 未降伏 | J27: 26 | K27: -151.0472206 | L27: 1664.487627 | M27: 5.859558926 | N27: 未降伏
B28: 27 | C28: -170.0515704 | D28: 1647.569891 | E28: 6.297340932 | F28: 未降伏 | J28: 27 | K28: -155.3647616 | L28: 1757.267806 | M28: 6.055633385 | N28: 未降伏
B29: 28 | C29: -174.4889003 | D29: 1744.52857 | E29: 6.535758319 | F29: 未降伏 | J29: 28 | K29: -159.6213936 | L29: 1850.047984 | M29: 6.26372408 | N29: 未降伏
B30: 29 | C30: -178.6402728 | D30: 1841.487249 | E30: 6.744230482 | F30: 未降伏 | J30: 29 | K30: -163.7504613 | L30: 1942.828162 | M30: 6.471957826 | N30: 未降伏
B31: 30 | C31: -182.791279 | D31: 1938.445929 | E31: 6.982886286 | F31: 未降伏 | J31: 30 | K31: -167.7950139 | L31: 2035.60834 | M31: 6.68948985 | N31: 未降伏
B32: 31 | C32: -186.6824223 | D32: 2035.404608 | E32: 7.202945535 | F32: 未降伏 | J32: 31 | K32: -171.7836698 | L32: 2128.388518 | M32: 6.922375954 | N32: 未降伏
B33: 32 | C33: -190.5270274 | D33: 2132.363287 | E33: 7.442745742 | F33: 未降伏 | J33: 32 | K33: -175.4705714 | L33: 2221.168697 | M33: 7.125745985 | N33: 未降伏
B34: 33 | C34: -194.2800832 | D34: 2229.321966 | E34: 7.694657554 | F34: 未降伏 | J34: 33 | K34: -179.1867873 | L34: 2313.948875 | M34: 7.360634794 | N34: 未降伏
B35: 34 | C35: -197.660096 | D35: 2326.280646 | E35: 7.915050586 | F35: 未降伏 | J35: 34 | K35: -182.6202807 | L35: 2406.729053 | M35: 7.573160053 | N35: 未降伏
B36: 35 | C36: -201.0644738 | D36: 2423.239325 | E36: 8.167200815 | F36: 未降伏 | J36: 35 | K36: -186.039538 | L36: 2499.509231 | M36: 7.809193266 | N36: 未降伏
B37: 36 | C37: -204.3622216 | D37: 2520.198004 | E37: 8.428744688 | F37: 未降伏 | J37: 36 | K37: -189.3785198 | L37: 2592.289409 | M37: 8.057051982 | N37: 未降伏
B38: 37 | C38: -207.1946259 | D38: 2617.156684 | E38: 8.65118811 | F38: 未降伏 | J38: 37 | K38: -192.3072252 | L38: 2685.069588 | M38: 8.268051369 | N38: 未降伏
B39: 38 | C39: -210.1106236 | D39: 2714.115363 | E39: 8.912255149 | F39: 未降伏 | J39: 38 | K39: -195.3181664 | L39: 2777.849766 | M39: 8.515910085 | N39: 未降伏
B40: 39 | C40: -212.6412814 | D40: 2811.074042 | E40: 9.147048592 | F40: 未降伏 | J40: 39 | K40: -197.9678717 | L40: 2870.629944 | M40: 8.736827636 | N40: 未降伏
B41: 40 | C41: -214.9710722 | D41: 2908.032721 | E41: 9.399341871 | F41: 未降伏 | J41: 40 | K41: -200.6292381 | L41: 2963.410122 | M41: 8.9842572 | N41: 未降伏
B42: 41 | C42: -215.6798238 | D42: 3004.991401 | E42: 9.60268806 | F42: 未降伏 | J42: 41 | K42: -203.1898361 | L42: 3056.1903 | M42: 9.240889675 | N42: 未降伏
B43: 42 | C43: -216.2509639 | D43: 3101.95008 | E43: 9.776923486 | F43: 未降伏 | J43: 42 | K43: -204.9787499 | L43: 3148.970479 | M43: 9.449314155 | N43: 未降伏
B44: 43 | C44: -216.8542628 | D44: 3198.908759 | E44: 9.985967851 | F44: 未降伏 | J44: 43 | K44: -206.278536 | L44: 3241.750657 | M44: 9.67001713 | N44: 未降伏
B45: 44 | C45: -217.2653759 | D45: 3295.867438 | E45: 10.16439942 | F45: 未降伏 | J45: 44 | K45: -207.3333439 | L45: 3334.530835 | M45: 9.864661085 | N45: 未降伏
B46: 45 | C46: -217.742472 | D46: 3392.826118 | E46: 10.37840287 | F46: 未降伏 | J46: 45 | K46: -208.4351808 | L46: 3427.311013 | M46: 10.08858269 | N46: 未降伏
B47: 46 | C47: -217.9770824 | D47: 3489.784797 | E47: 10.56141206 | F47: 未降伏 | J47: 46 | K47: -209.2796675 | L47: 3520.091191 | M47: 10.2888533 | N47: 未降伏
B48: 47 | C48: -218.2996605 | D48: 3586.743476 | E48: 10.77970702 | F48: 未降伏 | J48: 47 | K48: -210.1617959 | L48: 3612.87137 | M48: 10.51534982 | N48: 未降伏
B49: 48 | C49: -218.3434843 | D49: 3683.702155 | E49: 10.96757992 | F49: 未降伏 | J49: 48 | K49: -210.7822477 | L49: 3705.651548 | M49: 10.72162854 | N49: 未降伏
B50: 49 | C50: -218.4907365 | D50: 3780.660835 | E50: 11.18968955 | F50: 未降伏 | J50: 49 | K50: -211.420909 | L50: 3798.431726 | M50: 10.95012776 | N50: 未降伏
B51: 50 | C51: -218.3327929 | D51: 3877.619514 | E51: 11.3826169 | F51: 未降伏 | J51: 50 | K51: -212.0051947 | L51: 3891.211904 | M51: 11.18787758 | N51: 未降伏
B52: 51 | C52: -218.2790815 | D52: 3974.578193 | E52: 11.60796902 | F52: 未降伏 | J52: 51 | K52: -212.1875575 | L52: 3983.992082 | M52: 11.39263043 | N52: 未降伏
B53: 52 | C53: -217.9058802 | D53: 4071.536873 | E53: 11.80633228 | F53: 未降伏 | J53: 52 | K53: -212.4989568 | L53: 4076.772261 | M53: 11.63171539 | N53: 未降伏
B54: 53 | C54: -217.2528607 | D54: 4168.495552 | E54: 12.05123462 | F54: 圧縮降伏 | J54: 53 | K54: -212.4110721 | L54: 4169.552439 | M54: 11.84400223 | N54: 圧縮降伏
B55: 54 | C55: -216.2803193 | D55: 4265.454231 | E55: 12.27363036 | F55: 圧縮降伏 | J55: 54 | K55: -212.0161057 | L55: 4262.332617 | M55: 12.10597526 | N55: 圧縮降伏
B56: 55 | C56: -215.3144815 | D56: 4362.41291 | E56: 12.52129834 | F56: 圧縮降伏 | J56: 55 | K56: -211.5102234 | L56: 4355.112795 | M56: 12.37386103 | N56: 圧縮降伏
B57: 56 | C57: -214.2625455 | D57: 4459.37159 | E57: 12.77592811 | F57: 圧縮降伏 | J57: 56 | K57: -210.5824706 | L57: 4447.892973 | M57: 12.60607957 | N57: 圧縮降伏
B58: 57 | C58: -212.8400622 | D58: 4556.330269 | E58: 12.99946826 | F58: 圧縮降伏 | J58: 57 | K58: -209.7238746 | L58: 4540.673152 | M58: 12.872058 | N58: 圧縮降伏
B59: 58 | C59: -211.487955 | D59: 4653.288948 | E59: 13.25419339 | F59: 圧縮降伏 | J59: 58 | K59: -208.7487119 | L59: 4633.45333 | M59: 13.14318626 | N59: 圧縮降伏
B60: 59 | C60: -210.0188827 | D60: 4750.247627 | E60: 13.51177954 | F60: 圧縮降伏 | J60: 59 | K60: -207.2971055 | L60: 4726.233508 | M60: 13.37721676 | N60: 圧縮降伏
B61: 60 | C61: -208.1330768 | D61: 4847.206307 | E61: 13.74018339 | F61: 圧縮降伏 | J61: 60 | K61: -205.9467388 | L61: 4819.013686 | M61: 13.64634231 | N61: 圧縮降伏
B62: 61 | C62: -206.3693192 | D62: 4944.164986 | E62: 14.00282399 | F62: 圧縮降伏 | J62: 61 | K62: -204.4587286 | L62: 4911.793864 | M62: 13.91842423 | N62: 圧縮降伏
B63: 62 | C63: -204.2058373 | D63: 5041.123665 | E63: 14.2388572 | F63: 圧縮降伏 | J63: 62 | K63: -202.4934933 | L63: 5004.574043 | M63: 14.15836749 | N63: 圧縮降伏
B64: 63 | C64: -202.1134919 | D64: 5138.082344 | E64: 14.50454954 | F64: 圧縮降伏 | J64: 63 | K64: -200.6411949 | L64: 5097.354221 | M64: 14.43264285 | N64: 圧縮降伏
B65: 64 | C65: -199.8895572 | D65: 5235.041024 | E65: 14.77462875 | F65: 圧縮降伏 | J65: 64 | K65: -198.653341 | L65: 5190.134399 | M65: 14.71130509 | N65: 圧縮降伏
B66: 65 | C66: -197.2036463 | D66: 5331.999703 | E66: 15.01552568 | F66: 圧縮降伏 | J66: 65 | K66: -196.1136937 | L66: 5282.914577 | M66: 14.95248812 | N66: 圧縮降伏
B67: 66 | C67: -194.5900714 | D67: 5428.958382 | E67: 15.28398366 | F67: 圧縮降伏 | J67: 66 | K67: -193.7071551 | L67: 5375.694755 | M67: 15.22838472 | N67: 圧縮降伏
B68: 67 | C68: -191.8420566 | D68: 5525.917061 | E68: 15.55701925 | F68: 圧縮降伏 | J68: 67 | K68: -191.1567791 | L68: 5468.474934 | M68: 15.508096 | N68: 圧縮降伏
B69: 68 | C69: -188.5958768 | D69: 5622.875741 | E69: 15.80039572 | F69: 圧縮降伏 | J69: 68 | K69: -188.0425898 | L69: 5561.255112 | M69: 15.75175857 | N69: 圧縮降伏
B70: 69 | C70: -185.4408322 | D70: 5719.83442 | E70: 16.07152397 | F70: 圧縮降伏 | J70: 69 | K70: -185.0643898 | L70: 5654.03529 | M70: 16.02860884 | N70: 圧縮降伏
B71: 70 | C71: -182.1448837 | D71: 5816.793099 | E71: 16.34684837 | F71: 圧縮降伏 | J71: 70 | K71: -181.9395189 | L71: 5746.815468 | M71: 16.30917842 | N71: 圧縮降伏
B72: 71 | C72: -178.3257761 | D72: 5913.751779 | E72: 16.59289511 | F72: 圧縮降伏 | J72: 71 | K72: -178.2421559 | L72: 5839.595646 | M72: 16.5551298 | N72: 圧縮降伏
B73: 72 | C73: -174.6099331 | D73: 6010.710458 | E73: 16.86640754 | F73: 圧縮降伏 | J73: 72 | K73: -174.6824377 | L73: 5932.375825 | M73: 16.83293374 | N73: 圧縮降伏
B74: 73 | C74: -170.7458791 | D74: 6107.669137 | E74: 17.14363928 | F74: 圧縮降伏 | J74: 73 | K74: -170.9708266 | L74: 6025.156003 | M74: 17.11407552 | N74: 圧縮降伏
B75: 74 | C75: -166.7330114 | D75: 6204.627816 | E75: 17.42430423 | F75: 圧縮降伏 | J75: 74 | K75: -166.6870266 | L75: 6117.936181 | M75: 17.36250644 | N75: 圧縮降伏
B76: 75 | C76: -162.0470406 | D76: 6301.586496 | E76: 17.66787143 | F76: 圧縮降伏 | J76: 75 | K76: -162.5336741 | L76: 6210.716359 | M76: 17.64088258 | N76: 圧縮降伏
B77: 76 | C77: -157.5978488 | D77: 6398.545175 | E77: 17.94681977 | F77: 圧縮降伏 | J77: 76 | K77: -158.2248126 | L77: 6303.496537 | M77: 17.92240583 | N77: 圧縮降伏
B78: 77 | C78: -152.9932315 | D78: 6495.503854 | E78: 18.22891522 | F78: 圧縮降伏 | J78: 77 | K78: -153.7573115 | L78: 6396.276716 | M78: 18.20688546 | N78: 圧縮降伏
B79: 78 | C79: -147.7097614 | D79: 6592.462533 | E79: 18.4754388 | F79: 圧縮降伏 | J79: 78 | K79: -148.5954381 | L79: 6489.056894 | M79: 18.45216926 | N79: 圧縮降伏
B80: 79 | C80: -142.6580758 | D80: 6689.421213 | E80: 18.75572228 | F80: 圧縮降伏 | J80: 79 | K80: -143.6819552 | L80: 6581.837072 | M80: 18.73407398 | N80: 圧縮降伏
B81: 80 | C81: -137.4476764 | D81: 6786.379892 | E81: 19.0390575 | F81: 圧縮降伏 | J81: 80 | K81: -138.6064923 | L81: 6674.61725 | M81: 19.01864898 | N81: 圧縮降伏
B82: 81 | C82: -131.5608377 | D82: 6883.338571 | E82: 19.28868051 | F82: 圧縮降伏 | J82: 81 | K82: -132.8483321 | L82: 6767.397428 | M82: 19.26655537 | N82: 圧縮降伏
B83: 82 | C83: -125.8941011 | D83: 6980.29725 | E83: 19.57020376 | F83: 圧縮降伏 | J83: 82 | K83: -127.3218222 | L83: 6860.177607 | M83: 19.54865083 | N83: 圧縮降伏
B84: 83 | C84: -119.6950671 | D84: 7077.25593 | E84: 19.82788527 | F84: 圧縮降伏 | J84: 83 | K84: -121.251131 | L84: 6952.957785 | M84: 19.80404353 | N84: 圧縮降伏
B85: 84 | C85: -113.4670133 | D85: 7174.214609 | E85: 20.09968109 | F85: 圧縮降伏 | J85: 84 | K85: -115.1526501 | L85: 7045.737963 | M85: 20.07393201 | N85: 圧縮降伏
B86: 85 | C86: -107.2243026 | D86: 7271.173288 | E86: 20.3876893 | F86: 圧縮降伏 | J86: 85 | K86: -109.0320205 | L86: 7138.518141 | M86: 20.35984214 | N86: 圧縮降伏
B87: 86 | C87: -100.9616344 | D87: 7368.131968 | E87: 20.69362649 | F87: 圧縮降伏 | J87: 86 | K87: -102.8898604 | L87: 7231.298319 | M87: 20.66406273 | N87: 圧縮降伏
B88: 87 | C88: -94.67739735 | D88: 7465.090647 | E88: 21.01978147 | F88: 圧縮降伏 | J88: 87 | K88: -96.72286684 | L88: 7324.078498 | M88: 20.98888258 | N88: 圧縮降伏
B89: 88 | C89: -88.36943123 | D89: 7562.049326 | E89: 21.36863379 | F89: 圧縮降伏 | J89: 88 | K89: -90.52629882 | L89: 7416.858676 | M89: 21.33678123 | N89: 圧縮降伏
B90: 89 | C90: -82.03759566 | D90: 7659.008005 | E90: 21.74342592 | F90: 圧縮降伏 | J90: 89 | K90: -84.30205136 | L90: 7509.638854 | M90: 21.71138263 | N90: 圧縮降伏
B91: 90 | C91: -75.68257626 | D91: 7755.966685 | E91: 22.14835401 | F91: 圧縮降伏 | J91: 90 | K91: -78.04838974 | L91: 7602.419032 | M91: 22.11707365 | N91: 圧縮降伏
B92: 91 | C92: -69.30193656 | D92: 7852.925364 | E92: 22.58799568 | F92: 圧縮降伏 | J92: 91 | K92: -71.7596292 | L92: 7695.19921 | M92: 22.55862265 | N92: 圧縮降伏
B93: 92 | C93: -62.89167456 | D93: 7949.884043 | E93: 23.06845439 | F93: 圧縮降伏 | J93: 92 | K93: -65.43702479 | L93: 7787.979389 | M93: 23.04327752 | N93: 圧縮降伏
B94: 93 | C94: -56.45221138 | D94: 8046.842722 | E94: 23.59755026 | F94: 圧縮降伏 | J94: 93 | K94: -59.0732084 | L94: 7880.759567 | M94: 23.5792398 | N94: 圧縮降伏
B95: 94 | C95: -49.98377049 | D95: 8143.801402 | E95: 24.18596437 | F95: 圧縮降伏 | J95: 94 | K95: -52.66731641 | L95: 7973.539745 | M95: 24.17871648 | N95: 圧縮降伏
B96: 95 | C96: -43.48297463 | D96: 8240.760081 | E96: 24.84742957 | F96: 圧縮降伏 | J96: 95 | K96: -46.21516796 | L96: 8066.319923 | M96: 24.85791993 | N96: 圧縮降伏
B97: 96 | C97: -36.94935482 | D97: 8337.71876 | E97: 25.60159145 | F97: 圧縮降伏 | J97: 96 | K97: -39.71229484 | L97: 8159.100101 | M97: 25.64050117 | N97: 圧縮降伏
B98: 97 | C98: -30.38128142 | D98: 8434.677439 | E98: 26.47706009 | F98: 圧縮降伏 | J98: 97 | K98: -33.1523146 | L98: 8251.88028 | M98: 26.56250888 | N98: 圧縮降伏
B99: 98 | C99: -23.78365747 | D99: 8531.636119 | E99: 27.51846724 | F99: 圧縮降伏 | J99: 98 | K99: -26.505334 | L99: 8344.660458 | M99: 27.69241657 | N99: 圧縮降伏
B100: 99 | C100: -16.47844426 | D100: 8628.594798 | E100: 29.16907849 | F100: 圧縮降伏 | J100: 99 | K100: -19.40519624 | L100: 8437.440636 | M100: 29.35161085 | N100: 圧縮降伏
B101: 100 | C101: -8.88555616 | D101: 8725.553477 | E101: 31.76229673 | F101: 圧縮降伏 | J101: 100 | K101: -12.07719032 | L101: 8530.220814 | M101: 31.92213174 | N101: 圧縮降伏
B102: 101 | C102: -0.8113557066 | D102: 8822.512157 | E102: 39.16916201 | F102: 圧縮降伏 | J102: 101 | K102: -4.287351044 | L102: 8623.000992 | M102: 39.21951576 | N102: 圧縮降伏

Sheet Mc(+)-N関係
A1: 諸元ケース 1 | B1: 番号 | C1: 曲げモーメント(kNm) | D1: 軸力(kN) | E1: 中立軸位置(cm) | F1: 圧縮鉄筋の降伏判定 | I1: 諸元ケース 2 | J1: 番号 | K1: 曲げモーメント(kNm) | L1: 軸力(kN) | M1: 中立軸位置(cm) | N1: 圧縮鉄筋の降伏判定
B2: 1 | D2: -873.35577 | E2: 999 | F2: 未降伏 | G2: 最小軸力(kN) | H2: -874.23 | J2: 1 | K2: 1.187711495 | L2: -655.0168275 | M2: -169.9260985 | N2: 未降伏 | O2: 最小軸力(kN) | P2: -655.6725
B3: 2 | D3: -776.3970907 | E3: 999 | F3: 未降伏 | G3: 全断面引張時(kN) | H3: -350.1141631 | J3: 2 | K3: 4.232031951 | L3: -562.2366493 | M3: -33.31004038 | N3: 未降伏 | O3: 全断面引張時(kN) | P3: -347.4120386
B4: 3 | D4: -679.4384115 | E4: 999 | F4: 未降伏 | G4: 釣合軸力(kN) | H4: 2896.191919 | J4: 3 | K4: 7.276301967 | L4: -469.4564711 | M4: -11.00664631 | N4: 未降伏 | O4: 釣合軸力(kN) | P4: 2752.704668
B5: 4 | C5: 3.818441919 | D5: -582.4797322 | E5: -39.46811965 | F5: 未降伏 | G5: ほぼ全断面圧縮時(kN) | H5: 8831.259854 | J5: 4 | K5: 10.32052008 | L5: -376.6762929 | M5: -1.860734941 | N5: 未降伏 | O5: ほぼ全断面圧縮時(kN) | P5: 8631.548979
B6: 5 | C6: 6.962613139 | D6: -485.5210529 | E6: -12.61314738 | F6: 未降伏 | G6: 最大軸力(kN) | H6: 8831.3435 | J6: 5 | K6: 13.36794838 | L6: -283.8961147 | M6: 3.11634076 | N6: 未降伏 | O6: 最大軸力(kN) | P6: 8631.632625
B7: 6 | C7: 10.10684829 | D7: -388.5623737 | E7: -2.467264102 | F7: 未降伏 | J7: 6 | K7: 16.41214207 | L7: -191.1159365 | M7: 6.247740644 | N7: 未降伏
B8: 7 | C8: 13.2538949 | D8: -291.6036944 | E8: 2.861738559 | F8: 未降伏 | J8: 7 | K8: 19.43918976 | L8: -98.33575831 | M8: 8.405512654 | N8: 未降伏
B9: 8 | C9: 16.39873543 | D9: -194.6450151 | E9: 6.147452344 | F9: 未降伏 | J9: 8 | K9: 22.44694271 | L9: -5.555580109 | M9: 9.984791118 | N9: 未降伏
B10: 9 | C10: 19.52594464 | D10: -97.68633588 | E10: 8.381961689 | F10: 未降伏 | J10: 9 | K10: 25.4355825 | L10: 87.22459809 | M10: 11.19168633 | N10: 未降伏
B11: 10 | C11: 22.63287161 | D11: -0.727656615 | E11: 10.00278217 | F11: 未降伏 | J11: 10 | K11: 28.40568393 | L11: 180.0047763 | M11: 12.14442518 | N11: 未降伏
B12: 11 | C12: 25.71987641 | D12: 96.23102265 | E12: 11.23312344 | F12: 未降伏 | J12: 11 | K12: 31.35820185 | L12: 272.7849545 | M12: 12.91599468 | N12: 未降伏
B13: 12 | C13: 28.78771073 | D13: 193.1897019 | E13: 12.19939491 | F13: 未降伏 | J13: 12 | K13: 34.29342968 | L13: 365.5651327 | M13: 13.55370658 | N13: 未降伏
B14: 13 | C14: 31.83672298 | D14: 290.1483812 | E14: 12.97862242 | F14: 未降伏 | J14: 13 | K14: 37.21393129 | L14: 458.3453109 | M14: 14.08987133 | N14: 未降伏
B15: 14 | C15: 34.8714052 | D15: 387.1070604 | E15: 13.62084519 | F15: 未降伏 | J15: 14 | K15: 40.11316266 | L15: 551.1254891 | M15: 14.54662369 | N15: 未降伏
B16: 15 | C16: 37.88332661 | D16: 484.0657397 | E16: 14.1586884 | F16: 未降伏 | J16: 15 | K16: 42.99862771 | L16: 643.9056673 | M16: 14.94085322 | N16: 未降伏
B17: 16 | C17: 40.87847034 | D17: 581.024419 | E17: 14.6161751 | F17: 未降伏 | J17: 16 | K17: 45.86820867 | L17: 736.6858455 | M17: 15.28451899 | N17: 未降伏
B18: 17 | C18: 43.85652001 | D18: 677.9830982 | E18: 15.01008991 | F18: 未降伏 | J18: 17 | K18: 48.71735557 | L18: 829.4660237 | M18: 15.58664273 | N18: 未降伏
B19: 18 | C19: 46.81867424 | D19: 774.9417775 | E19: 15.35291645 | F19: 未降伏 | J19: 18 | K19: 51.55276588 | L19: 922.2462019 | M19: 15.85456775 | N19: 未降伏
B20: 19 | C20: 49.76378212 | D20: 871.9004568 | E20: 15.65399115 | F20: 未降伏 | J20: 19 | K20: 54.37110929 | L20: 1015.02638 | M20: 16.09374905 | N20: 未降伏
B21: 20 | C21: 52.68891742 | D21: 968.859136 | E21: 15.92044751 | F21: 未降伏 | J21: 20 | K21: 57.17203665 | L21: 1107.806558 | M21: 16.30859261 | N21: 未降伏
B22: 21 | C22: 55.59719858 | D22: 1065.817815 | E22: 16.15805525 | F22: 未降伏 | J22: 21 | K22: 59.95055341 | L22: 1200.586736 | M22: 16.50256025 | N22: 未降伏
B23: 22 | C23: 58.48976747 | D23: 1162.776495 | E23: 16.37132525 | F23: 未降伏 | J23: 22 | K23: 62.71785473 | L23: 1293.366915 | M23: 16.67879911 | N23: 未降伏
B24: 23 | C24: 61.36127791 | D24: 1259.735174 | E24: 16.56371933 | F24: 未降伏 | J24: 23 | K24: 65.45908047 | L24: 1386.147093 | M24: 16.83940725 | N24: 未降伏
B25: 24 | C25: 64.20982019 | D25: 1356.693853 | E25: 16.73817481 | F25: 未降伏 | J25: 24 | K25: 68.18669093 | L25: 1478.927271 | M25: 16.98658767 | N25: 未降伏
B26: 25 | C26: 67.0417634 | D26: 1453.652532 | E26: 16.8972094 | F26: 未降伏 | J26: 25 | K26: 70.89510545 | L26: 1571.707449 | M26: 17.12191394 | N26: 未降伏
B27: 26 | C27: 69.85757715 | D27: 1550.611212 | E27: 17.04281626 | F27: 未降伏 | J27: 26 | K27: 73.57376622 | L27: 1664.487627 | M27: 17.24664489 | N27: 未降伏
B28: 27 | C28: 72.65061898 | D28: 1647.569891 | E28: 17.17656896 | F28: 未降伏 | J28: 27 | K28: 76.24375554 | L28: 1757.267806 | M28: 17.36224918 | N28: 未降伏
B29: 28 | C29: 75.41758758 | D29: 1744.52857 | E29: 17.29983126 | F29: 未降伏 | J29: 28 | K29: 78.89093393 | L29: 1850.047984 | M29: 17.46956606 | N29: 未降伏
B30: 29 | C30: 78.17143996 | D30: 1841.487249 | E30: 17.41396689 | F30: 未降伏 | J30: 29 | K30: 81.5110046 | L30: 1942.828162 | M30: 17.56943474 | N30: 未降伏
B31: 30 | C31: 80.89645622 | D31: 1938.445929 | E31: 17.51981511 | F31: 未降伏 | J31: 30 | K31: 84.11192286 | L31: 2035.60834 | M31: 17.66269447 | N31: 未降伏
B32: 31 | C32: 83.59816063 | D32: 2035.404608 | E32: 17.61832004 | F32: 未降伏 | J32: 31 | K32: 86.6903381 | L32: 2128.388518 | M32: 17.74997466 | N32: 未降伏
B33: 32 | C33: 86.28630141 | D33: 2132.363287 | E33: 17.71032092 | F33: 未降伏 | J33: 32 | K33: 89.23937661 | L33: 2221.168697 | M33: 17.83179984 | N33: 未降伏
B34: 33 | C34: 88.94550626 | D34: 2229.321966 | E34: 17.79634226 | F34: 未降伏 | J34: 33 | K34: 91.76006947 | L34: 2313.948875 | M34: 17.90869453 | N34: 未降伏
B35: 34 | C35: 91.5677585 | D35: 2326.280646 | E35: 17.8769086 | F35: 未降伏 | J35: 34 | K35: 94.26244112 | L35: 2406.729053 | M35: 17.98118325 | N35: 未降伏
B36: 35 | C36: 94.18253672 | D36: 2423.239325 | E36: 17.95275425 | F36: 未降伏 | J36: 35 | K36: 96.73637162 | L36: 2499.509231 | M36: 18.04958071 | N36: 未降伏
B37: 36 | C37: 96.75860929 | D37: 2520.198004 | E37: 18.02408902 | F37: 未降伏 | J37: 36 | K37: 99.19133853 | L37: 2592.289409 | M37: 18.11430653 | N37: 未降伏
B38: 37 | C38: 99.31424148 | D38: 2617.156684 | E38: 18.09143744 | F38: 未降伏 | J38: 37 | K38: 101.6108531 | L38: 2685.069588 | M38: 18.17557051 | N38: 未降伏
B39: 38 | C39: 101.8261818 | D39: 2714.115363 | E39: 18.15500931 | F39: 未降伏 | J39: 38 | K39: 103.9991588 | L39: 2777.849766 | M39: 18.23368737 | N39: 未降伏
B40: 39 | C40: 104.3292114 | D40: 2811.074042 | E40: 18.21532916 | F40: 未降伏 | J40: 39 | K40: 106.3670679 | L40: 2870.629944 | M40: 18.28897182 | N40: 未降伏
B41: 40 | C41: 106.7938164 | D41: 2908.032721 | E41: 18.27250188 | F41: 未降伏 | J41: 40 | K41: 108.6917682 | L41: 2963.410122 | M41: 18.34152876 | N41: 未降伏
B42: 41 | C42: 109.2100423 | D42: 3004.991401 | E42: 18.32673729 | F42: 未降伏 | J42: 41 | K42: 110.9717031 | L42: 3056.1903 | M42: 18.39156801 | N42: 未降伏
B43: 42 | C43: 111.615135 | D43: 3101.95008 | E43: 18.378455 | F43: 未降伏 | J43: 42 | K43: 113.2327316 | L43: 3148.970479 | M43: 18.43940427 | N43: 未降伏
B44: 43 | C44: 113.967826 | D44: 3198.908759 | E44: 18.42765501 | F44: 未降伏 | J44: 43 | K44: 115.4612995 | L44: 3241.750657 | M44: 18.48514245 | N44: 未降伏
B45: 44 | C45: 116.2943104 | D45: 3295.867438 | E45: 18.47465204 | F45: 未降伏 | J45: 44 | K45: 117.6451851 | L45: 3334.530835 | M45: 18.52888745 | N45: 未降伏
B46: 45 | C46: 118.5797172 | D46: 3392.826118 | E46: 18.51955099 | F46: 未降伏 | J46: 45 | K46: 119.7991487 | L46: 3427.311013 | M46: 18.57084908 | N46: 未降伏
B47: 46 | C47: 120.8368372 | D47: 3489.784797 | E47: 18.56256166 | F47: 未降伏 | J47: 46 | K47: 121.8902736 | L47: 3520.091191 | M47: 18.61102734 | N47: 未降伏
B48: 47 | C48: 123.0295041 | D48: 3586.743476 | E48: 18.60368406 | F48: 未降伏 | J48: 47 | K48: 123.9385882 | L48: 3612.87137 | M48: 18.64963205 | N48: 未降伏
B49: 48 | C49: 125.2042123 | D49: 3683.702155 | E49: 18.6432329 | F49: 未降伏 | J49: 48 | K49: 125.9701938 | L49: 3705.651548 | M49: 18.68687299 | N49: 未降伏
B50: 49 | C50: 127.2997427 | D50: 3780.660835 | E50: 18.68110327 | F50: 未降伏 | J50: 49 | K50: 127.9279563 | L50: 3798.431726 | M50: 18.72264528 | N50: 未降伏
B51: 50 | C51: 129.3709629 | D51: 3877.619514 | E51: 18.71760989 | F51: 未降伏 | J51: 50 | K51: 129.8410902 | L51: 3891.211904 | M51: 18.75715873 | N51: 未降伏
B52: 51 | C52: 131.38827 | D52: 3974.578193 | E52: 18.75275276 | F52: 未降伏 | J52: 51 | K52: 131.7132807 | L52: 3983.992082 | M52: 18.79051822 | N52: 未降伏
B53: 52 | C53: 133.3528793 | D53: 4071.536873 | E53: 18.78663677 | F53: 未降伏 | J53: 52 | K53: 133.5180943 | L53: 4076.772261 | M53: 18.82272378 | N53: 未降伏
B54: 53 | C54: 135.2688159 | D54: 4168.495552 | E54: 18.81936685 | F54: 未降伏 | J54: 53 | K54: 135.2603723 | L54: 4169.552439 | M54: 18.85388029 | N54: 未降伏
B55: 54 | C55: 137.1068266 | D55: 4265.454231 | E55: 18.85094297 | F55: 未降伏 | J55: 54 | K55: 136.912506 | L55: 4262.332617 | M55: 18.88398776 | N55: 未降伏
B56: 55 | C56: 138.8718284 | D56: 4362.41291 | E56: 18.88147006 | F56: 未降伏 | J56: 55 | K56: 138.5167835 | L56: 4355.112795 | M56: 18.913256 | N56: 未降伏
B57: 56 | C57: 140.608523 | D57: 4459.37159 | E57: 18.91115792 | F57: 未降伏 | J57: 56 | K57: 140.0479816 | L57: 4447.892973 | M57: 18.941685 | N57: 未降伏
B58: 57 | C58: 142.215372 | D58: 4556.330269 | E58: 18.93979673 | F58: 未降伏 | J58: 57 | K58: 141.516354 | L58: 4540.673152 | M58: 18.96937968 | N58: 未降伏
B59: 58 | C59: 143.7764609 | D59: 4653.288948 | E59: 18.96770121 | F59: 未降伏 | J59: 58 | K59: 142.8574542 | L59: 4633.45333 | M59: 18.99623512 | N59: 未降伏
B60: 59 | C60: 145.2653643 | D60: 4750.247627 | E60: 18.99487137 | F60: 未降伏 | J60: 59 | K60: 144.1567016 | L60: 4726.233508 | M60: 19.02256605 | N60: 未降伏
B61: 60 | C61: 146.6535388 | D61: 4847.206307 | E61: 19.0213072 | F61: 未降伏 | J61: 60 | K61: 145.3089892 | L61: 4819.013686 | M61: 19.04816264 | N61: 未降伏
B62: 61 | C62: 147.9103756 | D62: 4944.164986 | E62: 19.0470087 | F62: 未降伏 | J62: 61 | K62: 146.361 | L62: 4911.793864 | M62: 19.07323472 | N62: 未降伏
B63: 62 | C63: 149.0868478 | D63: 5041.123665 | E63: 19.07218568 | F63: 未降伏 | J63: 62 | K63: 147.2803918 | L63: 5004.574043 | M63: 19.09778227 | N63: 未降伏
B64: 63 | C64: 150.151209 | D64: 5138.082344 | E64: 19.09683814 | F64: 未降伏 | J64: 63 | K64: 148.071582 | L64: 5097.354221 | M64: 19.12191021 | N64: 未降伏
B65: 64 | C65: 151.0683735 | D65: 5235.041024 | E65: 19.12096607 | F65: 未降伏 | J65: 64 | K65: 148.7354206 | L65: 5190.134399 | M65: 19.14572344 | N65: 未降伏
B66: 65 | C66: 151.8423842 | D66: 5331.999703 | E66: 19.1446744 | F66: 未降伏 | J66: 65 | K66: 149.1873544 | L66: 5282.914577 | M66: 19.16911705 | N66: 未降伏
B67: 66 | C67: 152.4307116 | D67: 5428.958382 | E67: 19.1679631 | F67: 未降伏 | J67: 66 | K67: 149.4557086 | L67: 5375.694755 | M67: 19.19230085 | N67: 未降伏
B68: 67 | C68: 152.8700969 | D68: 5525.917061 | E68: 19.191042 | F68: 未降伏 | J68: 67 | K68: 149.5216253 | L68: 5468.474934 | M68: 19.21537975 | N68: 未降伏
B69: 68 | C69: 153.0642657 | D69: 5622.875741 | E69: 19.21380618 | F69: 未降伏 | J69: 68 | K69: 149.3280076 | L69: 5561.255112 | M69: 19.23824884 | N69: 未降伏
B70: 69 | C70: 153.0804385 | D70: 5719.83442 | E70: 19.23646547 | F70: 未降伏 | J70: 69 | K70: 148.8842581 | L70: 5654.03529 | M70: 19.26090812 | N70: 未降伏
B71: 70 | C71: 152.8469229 | D71: 5816.793099 | E71: 19.25881003 | F71: 未降伏 | J71: 70 | K71: 148.2386489 | L71: 5746.815468 | M71: 19.28346249 | N71: 未降伏
B72: 71 | C72: 152.4205636 | D72: 5913.751779 | E72: 19.2809448 | F72: 未降伏 | J72: 71 | K72: 147.3988033 | L72: 5839.595646 | M72: 19.30591197 | N72: 未降伏
B73: 72 | C73: 151.8145181 | D73: 6010.710458 | E73: 19.30286975 | F73: 未降伏 | J73: 72 | K73: 146.3057798 | L73: 5932.375825 | M73: 19.32804673 | N73: 未降伏
B74: 73 | C74: 151.004215 | D74: 6107.669137 | E74: 19.32447999 | F74: 未降伏 | J74: 73 | K74: 145.0423313 | L74: 6025.156003 | M74: 19.35007658 | N74: 未降伏
B75: 74 | C75: 150.0470285 | D75: 6204.627816 | E75: 19.34588042 | F75: 未降伏 | J75: 74 | K75: 143.139071 | L75: 6117.936181 | M75: 19.37336529 | N75: 圧縮降伏
B76: 75 | C76: 148.3449751 | D76: 6301.586496 | E76: 19.36927403 | F76: 圧縮降伏 | J76: 75 | K76: 140.9306771 | L76: 6210.716359 | M76: 19.39707361 | N76: 圧縮降伏
B77: 76 | C77: 145.9692146 | D77: 6398.545175 | E77: 19.39392649 | F77: 圧縮降伏 | J77: 76 | K77: 138.4241182 | L77: 6303.496537 | M77: 19.42046722 | N77: 圧縮降伏
B78: 77 | C78: 143.3650963 | D78: 6495.503854 | E78: 19.41857895 | F78: 圧縮降伏 | J78: 77 | K78: 135.6876749 | L78: 6396.276716 | M78: 19.44375593 | N78: 圧縮降伏
B79: 78 | C79: 140.4632829 | D79: 6592.462533 | E79: 19.44291669 | F79: 圧縮降伏 | J79: 78 | K79: 132.697531 | L79: 6489.056894 | M79: 19.46683482 | N79: 圧縮降伏
B80: 79 | C80: 137.2931594 | D80: 6689.421213 | E80: 19.46704463 | F80: 圧縮降伏 | J80: 79 | K80: 129.4638057 | L80: 6581.837072 | M80: 19.48970391 | N80: 圧縮降伏
B81: 80 | C81: 133.8368294 | D81: 6786.379892 | E81: 19.49085786 | F81: 圧縮降伏 | J81: 80 | K81: 125.9962995 | L81: 6674.61725 | M81: 19.51236319 | N81: 圧縮降伏
B82: 81 | C82: 130.1552959 | D82: 6883.338571 | E82: 19.51456618 | F82: 圧縮降伏 | J82: 81 | L82: 6767.397428 | M82: 19.53470776 | N82: 圧縮降伏
B83: 82 | D83: 6980.29725 | E83: 19.53785489 | F83: 圧縮降伏 | J83: 82 | L83: 6860.177607 | M83: 19.55684252 | N83: 圧縮降伏
B84: 83 | D84: 7077.25593 | E84: 19.56093378 | F84: 圧縮降伏 | J84: 83 | L84: 6952.957785 | M84: 19.57855767 | N84: 圧縮降伏
B85: 84 | D85: 7174.214609 | E85: 19.58359306 | F85: 圧縮降伏 | J85: 84 | L85: 7045.737963 | M85: 19.5999581 | N85: 圧縮降伏
B86: 85 | D86: 7271.173288 | E86: 19.60583273 | F86: 圧縮降伏 | J86: 85 | L86: 7138.518141 | M86: 19.62093892 | N86: 圧縮降伏
B87: 86 | D87: 7368.131968 | E87: 19.62765278 | F87: 圧縮降伏 | J87: 86 | L87: 7231.298319 | M87: 19.64150012 | N87: 圧縮降伏
B88: 87 | D88: 7465.090647 | E88: 19.64894831 | F88: 圧縮降伏 | J88: 87 | L88: 7324.078498 | M88: 19.6616417 | N88: 圧縮降伏
B89: 88 | D89: 7562.049326 | E89: 19.66971931 | F89: 圧縮降伏 | J89: 88 | L89: 7416.858676 | M89: 19.68104895 | N89: 圧縮降伏
B90: 89 | D90: 7659.008005 | E90: 19.6898609 | F90: 圧縮降伏 | J90: 89 | L90: 7509.638854 | M90: 19.70003659 | N90: 圧縮降伏
B91: 90 | D91: 7755.966685 | E91: 19.70926815 | F91: 圧縮降伏 | J91: 90 | L91: 7602.419032 | M91: 19.718185 | N91: 圧縮降伏
B92: 91 | D92: 7852.925364 | E92: 19.73003916 | F92: 圧縮降伏 | J92: 91 | L92: 7695.19921 | M92: 19.74168351 | N92: 圧縮降伏
B93: 92 | D93: 7949.884043 | E93: 19.7568946 | F93: 圧縮降伏 | J93: 92 | L93: 7787.979389 | M93: 19.76728011 | N93: 圧縮降伏
B94: 93 | D94: 8046.842722 | E94: 19.78354024 | F94: 圧縮降伏 | J94: 93 | L94: 7880.759567 | M94: 19.7927718 | N94: 圧縮降伏
B95: 94 | D95: 8143.801402 | E95: 19.81018588 | F95: 圧縮降伏 | J95: 94 | L95: 7973.539745 | M95: 19.81836839 | N95: 圧縮降伏
B96: 95 | D96: 8240.760081 | E96: 19.83693642 | F96: 圧縮降伏 | J96: 95 | L96: 8066.319923 | M96: 19.84386009 | N96: 圧縮降伏
B97: 96 | D97: 8337.71876 | E97: 19.86358205 | F97: 圧縮降伏 | J97: 96 | L97: 8159.100101 | M97: 19.86935178 | N97: 圧縮降伏
B98: 97 | D98: 8434.677439 | E98: 19.89012278 | F98: 圧縮降伏 | J98: 97 | L98: 8251.88028 | M98: 19.89484347 | N98: 圧縮降伏
B99: 98 | D99: 8531.636119 | E99: 19.91676842 | F99: 圧縮降伏 | J99: 98 | L99: 8344.660458 | M99: 19.92023026 | N99: 圧縮降伏
B100: 99 | D100: 8628.594798 | E100: 19.94309935 | F100: 圧縮降伏 | J100: 99 | L100: 8437.440636 | M100: 19.94551214 | N100: 圧縮降伏
B101: 100 | D101: 8725.553477 | E101: 19.96890575 | F101: 圧縮降伏 | J101: 100 | L101: 8530.220814 | M101: 19.97005969 | N101: 圧縮降伏
B102: 101 | D102: 8822.512157 | E102: 19.99020128 | F102: 圧縮降伏 | J102: 101 | L102: 8623.000992 | M102: 19.99020128 | N102: 圧縮降伏

Sheet Mc(-)-N関係
A1: 諸元ケース 1 | B1: 番号 | C1: 曲げモーメント(kNm) | D1: 軸力(kN) | E1: 中立軸位置(cm) | F1: 圧縮鉄筋の降伏判定 | I1: 諸元ケース 2 | J1: 番号 | K1: 曲げモーメント(kNm) | L1: 軸力(kN) | M1: 中立軸位置(cm) | N1: 圧縮鉄筋の降伏判定
B2: 1 | D2: -873.35577 | E2: 999 | F2: 未降伏 | G2: 最小軸力(kN) | H2: -874.23 | J2: 1 | K2: -1.175522841 | L2: -655.0168275 | M2: -171.9167583 | N2: 未降伏 | O2: 最小軸力(kN) | P2: -655.6725
B3: 2 | D3: -776.3970907 | E3: 999 | F3: 未降伏 | G3: 全断面引張時(kN) | H3: -350.1141631 | J3: 2 | K3: -4.188214401 | L3: -562.2366493 | M3: -33.8687595 | N3: 未降伏 | O3: 全断面引張時(kN) | P3: -343.809206
B4: 3 | D4: -679.4384115 | E4: 999 | F4: 未降伏 | G4: 釣合軸力(kN) | H4: 2896.191919 | J4: 3 | K4: -7.200797206 | L4: -469.4564711 | M4: -11.33153424 | N4: 未降伏 | O4: 釣合軸力(kN) | P4: 3114.749419
B5: 4 | C5: -3.818441919 | D5: -582.4797322 | E5: -39.46811965 | F5: 未降伏 | G5: ほぼ全断面圧縮時(kN) | H5: 8831.259854 | J5: 4 | K5: -10.21349382 | L5: -376.6762929 | M5: -2.089819225 | N5: 未降伏 | O5: ほぼ全断面圧縮時(kN) | P5: 8631.548979
B6: 5 | C6: -6.962613139 | D6: -485.5210529 | E6: -12.61314738 | F6: 未降伏 | G6: 最大軸力(kN) | H6: 8831.3435 | J6: 5 | K6: -13.22905612 | L6: -283.8961147 | M6: 2.939656064 | N6: 未降伏 | O6: 最大軸力(kN) | P6: 8631.632625
B7: 6 | C7: -10.10684829 | D7: -388.5623737 | E7: -2.467264102 | F7: 未降伏 | J7: 6 | K7: -16.24221895 | L7: -191.1159365 | M7: 6.103864699 | N7: 未降伏
B8: 7 | C8: -13.2538949 | D8: -291.6036944 | E8: 2.861738559 | F8: 未降伏 | J8: 7 | K8: -19.23938252 | L8: -98.33575831 | M8: 8.283456758 | N8: 未降伏
B9: 8 | C9: -16.39873543 | D9: -194.6450151 | E9: 6.147452344 | F9: 未降伏 | J9: 8 | K9: -22.21779508 | L9: -5.555580109 | M9: 9.878733094 | N9: 未降伏
B10: 9 | C10: -19.52594464 | D10: -97.68633588 | E10: 8.381961689 | F10: 未降伏 | J10: 9 | K10: -25.17789865 | L10: 87.22459809 | M10: 11.09779718 | N10: 未降伏
B11: 10 | C11: -22.63287161 | D11: -0.727656615 | E11: 10.00278217 | F11: 未降伏 | J11: 10 | K11: -28.12002973 | L11: 180.0047763 | M11: 12.0600823 | N11: 未降伏
B12: 11 | C12: -25.71987641 | D12: 96.23102265 | E12: 11.23312344 | F12: 未降伏 | J12: 11 | K12: -31.04522712 | L12: 272.7849545 | M12: 12.8393098 | N12: 未降伏
B13: 12 | C13: -28.78771073 | D13: 193.1897019 | E13: 12.19939491 | F13: 未降伏 | J13: 12 | K13: -33.95502916 | L13: 365.5651327 | M13: 13.48342085 | N13: 未降伏
B14: 13 | C14: -31.83672298 | D14: 290.1483812 | E14: 12.97862242 | F14: 未降伏 | J14: 13 | K14: -36.84929215 | L14: 458.3453109 | M14: 14.0248308 | N14: 未降伏
B15: 14 | C15: -34.8714052 | D15: 387.1070604 | E15: 13.62084519 | F15: 未降伏 | J15: 14 | K15: -39.72586535 | L15: 551.1254891 | M15: 14.48619894 | N15: 未降伏
B16: 15 | C16: -37.88332661 | D16: 484.0657397 | E16: 14.1586884 | F16: 未降伏 | J16: 15 | K16: -42.58614192 | L16: 643.9056673 | M16: 14.88420502 | N16: 未降伏
B17: 16 | C17: -40.87847034 | D17: 581.024419 | E17: 14.6161751 | F17: 未降伏 | J17: 16 | K17: -45.43286688 | L17: 736.6858455 | M17: 15.23122771 | N17: 未降伏
B18: 17 | C18: -43.85652001 | D18: 677.9830982 | E18: 15.01008991 | F18: 未降伏 | J18: 17 | K18: -48.26319923 | L18: 829.4660237 | M18: 15.53639368 | N18: 未降伏
B19: 18 | C19: -46.81867424 | D19: 774.9417775 | E19: 15.35291645 | F19: 未降伏 | J19: 18 | K19: -51.07547089 | L19: 922.2462019 | M19: 15.8068364 | N19: 未降伏
B20: 19 | C20: -49.76378212 | D20: 871.9004568 | E20: 15.65399115 | F20: 未降伏 | J20: 19 | K20: -53.87384186 | L20: 1015.02638 | M20: 16.04832559 | N20: 未降伏
B21: 20 | C21: -52.68891742 | D21: 968.859136 | E21: 15.92044751 | F21: 未降伏 | J21: 20 | K21: -56.65755216 | L21: 1107.806558 | M21: 16.26526722 | N21: 未降伏
B22: 21 | C22: -55.59719858 | D22: 1065.817815 | E22: 16.15805525 | F22: 未降伏 | J22: 21 | K22: -59.41991386 | L22: 1200.586736 | M22: 16.46112314 | N22: 未降伏
B23: 22 | C23: -58.48976747 | D23: 1162.776495 | E23: 16.37132525 | F23: 未降伏 | J23: 22 | K23: -62.17121195 | L23: 1293.366915 | M23: 16.63904046 | N23: 未降伏
B24: 23 | C24: -61.36127791 | D24: 1259.735174 | E24: 16.56371933 | F24: 未降伏 | J24: 23 | K24: -64.90032364 | L24: 1386.147093 | M24: 16.80122217 | N24: 未降伏
B25: 24 | C25: -64.20982019 | D25: 1356.693853 | E25: 16.73817481 | F25: 未降伏 | J25: 24 | K25: -67.61320675 | L25: 1478.927271 | M25: 16.94976634 | N25: 未降伏
B26: 25 | C26: -67.0417634 | D26: 1453.652532 | E26: 16.8972094 | F26: 未降伏 | J26: 25 | K26: -70.30896628 | L26: 1571.707449 | M26: 17.08635145 | N26: 未降伏
B27: 26 | C27: -69.85757715 | D27: 1550.611212 | E27: 17.04281626 | F27: 未降伏 | J27: 26 | K27: -72.98415093 | L27: 1664.487627 | M27: 17.21234125 | N27: 未降伏
B28: 27 | C28: -72.65061898 | D28: 1647.569891 | E28: 17.17656896 | F28: 未降伏 | J28: 27 | K28: -75.63506111 | L28: 1757.267806 | M28: 17.32888969 | N28: 未降伏
B29: 28 | C29: -75.41758758 | D29: 1744.52857 | E29: 17.29983126 | F29: 未降伏 | J29: 28 | K29: -78.28026032 | L29: 1850.047984 | M29: 17.4372556 | N29: 未降伏
B30: 29 | C30: -78.17143996 | D30: 1841.487249 | E30: 17.41396689 | F30: 未降伏 | J30: 29 | K30: -80.88759256 | L30: 1942.828162 | M30: 17.53796352 | N30: 未降伏
B31: 30 | C31: -80.89645622 | D31: 1938.445929 | E31: 17.51981511 | F31: 未降伏 | J31: 30 | K31: -83.48329358 | L31: 2035.60834 | M31: 17.63206248 | N31: 未降伏
B32: 31 | C32: -83.59816063 | D32: 2035.404608 | E32: 17.61832004 | F32: 未降伏 | J32: 31 | K32: -86.06562389 | L32: 2128.388518 | M32: 17.7201819 | N32: 未降伏
B33: 32 | C33: -86.28630141 | D33: 2132.363287 | E33: 17.71032092 | F33: 未降伏 | J33: 32 | K33: -88.61541119 | L33: 2221.168697 | M33: 17.80274141 | N33: 未降伏
B34: 33 | C34: -88.94550626 | D34: 2229.321966 | E34: 17.79634226 | F34: 未降伏 | J34: 33 | K34: -91.14572067 | L34: 2313.948875 | M34: 17.88037043 | N34: 未降伏
B35: 34 | C35: -91.5677585 | D35: 2326.280646 | E35: 17.8769086 | F35: 未降伏 | J35: 34 | K35: -93.65274245 | L35: 2406.729053 | M35: 17.95348857 | N35: 未降伏
B36: 35 | C36: -94.18253672 | D36: 2423.239325 | E36: 17.95275425 | F36: 未降伏 | J36: 35 | K36: -96.1396549 | L36: 2499.509231 | M36: 18.02251546 | N36: 未降伏
B37: 36 | C37: -96.75860929 | D37: 2520.198004 | E37: 18.02408902 | F37: 未降伏 | J37: 36 | K37: -98.58438724 | L37: 2592.289409 | M37: 18.08766089 | N37: 未降伏
B38: 37 | C38: -99.31424148 | D38: 2617.156684 | E38: 18.09143744 | F38: 未降伏 | J38: 37 | K38: -101.0175762 | L38: 2685.069588 | M38: 18.14944939 | N38: 未降伏
B39: 38 | C39: -101.8261818 | D39: 2714.115363 | E39: 18.15500931 | F39: 未降伏 | J39: 38 | K39: -103.4286107 | L39: 2777.849766 | M39: 18.20809078 | N39: 未降伏
B40: 39 | C40: -104.3292114 | D40: 2811.074042 | E40: 18.21532916 | F40: 未降伏 | J40: 39 | K40: -105.7901203 | L40: 2870.629944 | M40: 18.26368994 | N40: 未降伏
B41: 40 | C41: -106.7938164 | D41: 2908.032721 | E41: 18.27250188 | F41: 未降伏 | J41: 40 | K41: -108.1558777 | L41: 2963.410122 | M41: 18.3167714 | N41: 未降伏
B42: 41 | C42: -109.2100423 | D42: 3004.991401 | E42: 18.32673729 | F42: 未降伏 | J42: 41 | K42: -110.4666227 | L42: 3056.1903 | M42: 18.36723026 | N42: 未降伏
B43: 42 | C43: -111.615135 | D43: 3101.95008 | E43: 18.378455 | F43: 未降伏 | J43: 42 | K43: -112.7455165 | L43: 3148.970479 | M43: 18.41538124 | N43: 未降伏
B44: 43 | C44: -113.967826 | D44: 3198.908759 | E44: 18.42765501 | F44: 未降伏 | J44: 43 | K44: -115.0010165 | L44: 3241.750657 | M44: 18.46143413 | N44: 未降伏
B45: 44 | C45: -116.2943104 | D45: 3295.867438 | E45: 18.47465204 | F45: 未降伏 | J45: 44 | K45: -117.2212353 | L45: 3334.530835 | M45: 18.50549384 | N45: 未降伏
B46: 45 | C46: -118.5797172 | D46: 3392.826118 | E46: 18.51955099 | F46: 未降伏 | J46: 45 | K46: -119.3960525 | L46: 3427.311013 | M46: 18.54766528 | N46: 未降伏
B47: 46 | C47: -120.8368372 | D47: 3489.784797 | E47: 18.56256166 | F47: 未降伏 | J47: 46 | K47: -121.5436625 | L47: 3520.091191 | M47: 18.58815826 | N47: 未降伏
B48: 47 | C48: -123.0295041 | D48: 3586.743476 | E48: 18.60368406 | F48: 未降伏 | J48: 47 | K48: -123.6603972 | L48: 3612.87137 | M48: 18.62707767 | N48: 未降伏
B49: 48 | C49: -125.2042123 | D49: 3683.702155 | E49: 18.6432329 | F49: 未降伏 | J49: 48 | K49: -125.715546 | L49: 3705.651548 | M49: 18.66442352 | N49: 未降伏
B50: 49 | C50: -127.2997427 | D50: 3780.660835 | E50: 18.68110327 | F50: 未降伏 | J50: 49 | K50: -127.7363191 | L50: 3798.431726 | M50: 18.70040562 | N50: 未降伏
B51: 50 | C51: -129.3709629 | D51: 3877.619514 | E51: 18.71760989 | F51: 未降伏 | J51: 50 | K51: -129.7253443 | L51: 3891.211904 | M51: 18.73512887 | N51: 未降伏
B52: 51 | C52: -131.38827 | D52: 3974.578193 | E52: 18.75275276 | F52: 未降伏 | J52: 51 | K52: -131.655395 | L52: 3983.992082 | M52: 18.76859327 | N52: 未降伏
B53: 52 | C53: -133.3528793 | D53: 4071.536873 | E53: 18.78663677 | F53: 未降伏 | J53: 52 | K53: -133.5306938 | L53: 4076.772261 | M53: 18.80090373 | N53: 未降伏
B54: 53 | C54: -135.2688159 | D54: 4168.495552 | E54: 18.81936685 | F54: 未降伏 | J54: 53 | K54: -135.3243304 | L54: 4169.552439 | M54: 18.83206024 | N54: 未降伏
B55: 54 | C55: -137.1068266 | D55: 4265.454231 | E55: 18.85094297 | F55: 未降伏 | J55: 54 | K55: -137.1122584 | L55: 4262.332617 | M55: 18.86237752 | N55: 未降伏
B56: 55 | C56: -138.8718284 | D56: 4362.41291 | E56: 18.88147006 | F56: 未降伏 | J56: 55 | K56: -138.8002476 | L56: 4355.112795 | M56: 18.89164576 | N56: 未降伏
B57: 56 | C57: -140.608523 | D57: 4459.37159 | E57: 18.91115792 | F57: 未降伏 | J57: 56 | K57: -140.4706237 | L57: 4447.892973 | M57: 18.92017967 | N57: 未降伏
B58: 57 | C58: -142.215372 | D58: 4556.330269 | E58: 18.93979673 | F58: 未降伏 | J58: 57 | K58: -142.0249386 | L58: 4540.673152 | M58: 18.94776944 | N58: 未降伏
B59: 58 | C59: -143.7764609 | D59: 4653.288948 | E59: 18.96770121 | F59: 未降伏 | J59: 58 | K59: -143.5117376 | L59: 4633.45333 | M59: 18.97462488 | N59: 未降伏
B60: 59 | C60: -145.2653643 | D60: 4750.247627 | E60: 18.99487137 | F60: 未降伏 | J60: 59 | K60: -144.9450126 | L60: 4726.233508 | M60: 19.0008509 | N60: 未降伏
B61: 60 | C61: -146.6535388 | D61: 4847.206307 | E61: 19.0213072 | F61: 未降伏 | J61: 60 | K61: -146.2995115 | L61: 4819.013686 | M61: 19.0264475 | N61: 未降伏
B62: 61 | C62: -147.9103756 | D62: 4944.164986 | E62: 19.0470087 | F62: 未降伏 | J62: 61 | K62: -147.506895 | L62: 4911.793864 | M62: 19.05130977 | N62: 未降伏
B63: 62 | C63: -149.0868478 | D63: 5041.123665 | E63: 19.07218568 | F63: 未降伏 | J63: 62 | K63: -148.6606681 | L63: 5004.574043 | M63: 19.07575242 | N63: 未降伏
B64: 63 | C64: -150.151209 | D64: 5138.082344 | E64: 19.09683814 | F64: 未降伏 | J64: 63 | K64: -149.6901464 | L64: 5097.354221 | M64: 19.09967055 | N64: 未降伏
B65: 64 | C65: -151.0683735 | D65: 5235.041024 | E65: 19.12096607 | F65: 未降伏 | J65: 64 | K65: -150.6043315 | L65: 5190.134399 | M65: 19.12316906 | N65: 未降伏
B66: 65 | C66: -151.8423842 | D66: 5331.999703 | E66: 19.1446744 | F66: 未降伏 | J66: 65 | K66: -151.3674037 | L66: 5282.914577 | M66: 19.14624796 | N66: 未降伏
B67: 66 | C67: -152.4307116 | D67: 5428.958382 | E67: 19.1679631 | F67: 未降伏 | J67: 66 | K67: -151.9393568 | L67: 5375.694755 | M67: 19.16890724 | N67: 未降伏
B68: 67 | C68: -152.8700969 | D68: 5525.917061 | E68: 19.191042 | F68: 未降伏 | J68: 67 | K68: -152.4010204 | L68: 5468.474934 | M68: 19.19146162 | N68: 未降伏
B69: 68 | C69: -153.0642657 | D69: 5622.875741 | E69: 19.21380618 | F69: 未降伏 | J69: 68 | K69: -152.617524 | L69: 5561.255112 | M69: 19.21370128 | N69: 未降伏
B70: 69 | C70: -153.0804385 | D70: 5719.83442 | E70: 19.23646547 | F70: 未降伏 | J70: 69 | K70: -152.6565012 | L70: 5654.03529 | M70: 19.23583604 | N70: 未降伏
B71: 70 | C71: -152.8469229 | D71: 5816.793099 | E71: 19.25881003 | F71: 未降伏 | J71: 70 | K71: -152.4863921 | L71: 5746.815468 | M71: 19.25776099 | N71: 未降伏
B72: 71 | C72: -152.4205636 | D72: 5913.751779 | E72: 19.2809448 | F72: 未降伏 | J72: 71 | K72: -152.1209453 | L72: 5839.595646 | M72: 19.27947614 | N72: 未降伏
B73: 72 | C73: -151.8145181 | D73: 6010.710458 | E73: 19.30286975 | F73: 未降伏 | J73: 72 | K73: -151.6119638 | L73: 5932.375825 | M73: 19.30108638 | N73: 未降伏
B74: 73 | C74: -151.004215 | D74: 6107.669137 | E74: 19.32447999 | F74: 未降伏 | J74: 73 | K74: -150.8932346 | L74: 6025.156003 | M74: 19.32238191 | N74: 未降伏
B75: 74 | C75: -150.0470285 | D75: 6204.627816 | E75: 19.34588042 | F75: 未降伏 | J75: 74 | K75: -149.9816568 | L75: 6117.936181 | M75: 19.34336272 | N75: 未降伏
B76: 75 | C76: -148.3449751 | D76: 6301.586496 | E76: 19.36927403 | F76: 圧縮降伏 | J76: 75 | K76: -148.5068617 | L76: 6210.716359 | M76: 19.366022 | N76: 圧縮降伏
B77: 76 | C77: -145.9692146 | D77: 6398.545175 | E77: 19.39392649 | F77: 圧縮降伏 | J77: 76 | K77: -146.3075998 | L77: 6303.496537 | M77: 19.39067446 | N77: 圧縮降伏
B78: 77 | C78: -143.3650963 | D78: 6495.503854 | E78: 19.41857895 | F78: 圧縮降伏 | J78: 77 | K78: -143.8366975 | L78: 6396.276716 | M78: 19.41522202 | N78: 圧縮降伏
B79: 78 | C79: -140.4632829 | D79: 6592.462533 | E79: 19.44291669 | F79: 圧縮降伏 | J79: 78 | K79: -141.1021329 | L79: 6489.056894 | M79: 19.43966467 | N79: 圧縮降伏
B80: 79 | C80: -137.2931594 | D80: 6689.421213 | E80: 19.46704463 | F80: 圧縮降伏 | J80: 79 | K80: -138.0792279 | L80: 6581.837072 | M80: 19.46389751 | N80: 圧縮降伏
B81: 80 | C81: -133.8368294 | D81: 6786.379892 | E81: 19.49085786 | F81: 圧縮降伏 | J81: 80 | K81: -134.7921452 | L81: 6674.61725 | M81: 19.48802545 | N81: 圧縮降伏
B82: 81 | C82: -130.1552959 | D82: 6883.338571 | E82: 19.51456618 | F82: 圧縮降伏 | J82: 81 | K82: -131.2470281 | L82: 6767.397428 | M82: 19.51204848 | N82: 圧縮降伏
B83: 82 | D83: 6980.29725 | E83: 19.53785489 | F83: 圧縮降伏 | J83: 82 | L83: 6860.177607 | M83: 19.53596661 | N83: 圧縮降伏
B84: 83 | D84: 7077.25593 | E84: 19.56093378 | F84: 圧縮降伏 | J84: 83 | L84: 6952.957785 | M84: 19.55957003 | N84: 圧縮降伏
B85: 84 | D85: 7174.214609 | E85: 19.58359306 | F85: 圧縮降伏 | J85: 84 | L85: 7045.737963 | M85: 19.58306854 | N85: 圧縮降伏
B86: 85 | D86: 7271.173288 | E86: 19.60583273 | F86: 圧縮降伏 | J86: 85 | L86: 7138.518141 | M86: 19.60635725 | N86: 圧縮降伏
B87: 86 | D87: 7368.131968 | E87: 19.62765278 | F87: 圧縮降伏 | J87: 86 | L87: 7231.298319 | M87: 19.62933124 | N87: 圧縮降伏
B88: 87 | D88: 7465.090647 | E88: 19.64894831 | F88: 圧縮降伏 | J88: 87 | L88: 7324.078498 | M88: 19.65188562 | N88: 圧縮降伏
B89: 88 | D89: 7562.049326 | E89: 19.66971931 | F89: 圧縮降伏 | J89: 88 | L89: 7416.858676 | M89: 19.67423019 | N89: 圧縮降伏
B90: 89 | D90: 7659.008005 | E90: 19.6898609 | F90: 圧縮降伏 | J90: 89 | L90: 7509.638854 | M90: 19.69605024 | N90: 圧縮降伏
B91: 90 | D91: 7755.966685 | E91: 19.70926815 | F91: 圧縮降伏 | J91: 90 | L91: 7602.419032 | M91: 19.71734577 | N91: 圧縮降伏
B92: 91 | D92: 7852.925364 | E92: 19.73003916 | F92: 圧縮降伏 | J92: 91 | L92: 7695.19921 | M92: 19.74168351 | N92: 圧縮降伏
B93: 92 | D93: 7949.884043 | E93: 19.7568946 | F93: 圧縮降伏 | J93: 92 | L93: 7787.979389 | M93: 19.76728011 | N93: 圧縮降伏
B94: 93 | D94: 8046.842722 | E94: 19.78354024 | F94: 圧縮降伏 | J94: 93 | L94: 7880.759567 | M94: 19.7927718 | N94: 圧縮降伏
B95: 94 | D95: 8143.801402 | E95: 19.81018588 | F95: 圧縮降伏 | J95: 94 | L95: 7973.539745 | M95: 19.81836839 | N95: 圧縮降伏
B96: 95 | D96: 8240.760081 | E96: 19.83693642 | F96: 圧縮降伏 | J96: 95 | L96: 8066.319923 | M96: 19.84386009 | N96: 圧縮降伏
B97: 96 | D97: 8337.71876 | E97: 19.86358205 | F97: 圧縮降伏 | J97: 96 | L97: 8159.100101 | M97: 19.86935178 | N97: 圧縮降伏
B98: 97 | D98: 8434.677439 | E98: 19.89012278 | F98: 圧縮降伏 | J98: 97 | L98: 8251.88028 | M98: 19.89484347 | N98: 圧縮降伏
B99: 98 | D99: 8531.636119 | E99: 19.91676842 | F99: 圧縮降伏 | J99: 98 | L99: 8344.660458 | M99: 19.92023026 | N99: 圧縮降伏
B100: 99 | D100: 8628.594798 | E100: 19.94309935 | F100: 圧縮降伏 | J100: 99 | L100: 8437.440636 | M100: 19.94551214 | N100: 圧縮降伏
B101: 100 | D101: 8725.553477 | E101: 19.96890575 | F101: 圧縮降伏 | J101: 100 | L101: 8530.220814 | M101: 19.97005969 | N101: 圧縮降伏
B102: 101 | D102: 8822.512157 | E102: 19.99020128 | F102: 圧縮降伏 | J102: 101 | L102: 8623.000992 | M102: 19.99020128 | N102: 圧縮降伏

Sheet 断面分割データ
A1: 1 | B1: 番号 | C1: 分割断面中心座標(cm)引張縁からの距離 | D1: 分割断面断面積(cm2)コンクリートのみ | F1: 番号 | G1: 鉄筋位置座標(cm)引張縁からの距離 | H1: 鉄筋断面積(cm2) | J1: 断面積(cm2) | K1: 図心位置(m)圧縮縁からの距離 | L1: 2 | M1: 番号 | N1: 分割断面中心座標(cm)引張縁からの距離 | O1: 分割断面断面積(cm2)コンクリートのみ | Q1: 番号 | R1: 鉄筋位置座標(cm)引張縁からの距離 | S1: 鉄筋断面積(cm2) | U1: 断面積(cm2) | V1: 図心位置(m)圧縮縁からの距離
B2: 1 | C2: 0.2 | D2: 54 | F2: 1 | G2: 6 | H2: 12.67 | J2: 2700 | K2: 0.1 | M2: 1 | N2: 0.2 | O2: 54 | Q2: 1 | R2: 6 | S2: 12.67 | U2: 2700 | V2: 0.1005212271
B3: 2 | C3: 0.6 | D3: 54 | F3: 2 | G3: 14 | H3: 12.67 | K3: 0.1 | M3: 2 | N3: 0.6 | O3: 54 | Q3: 2 | R3: 14 | S3: 6.335 | V3: 0.09947877288
B4: 3 | C4: 1 | D4: 54 | M4: 3 | N4: 1 | O4: 54
B5: 4 | C5: 1.4 | D5: 54 | M5: 4 | N5: 1.4 | O5: 54
B6: 5 | C6: 1.8 | D6: 54 | M6: 5 | N6: 1.8 | O6: 54
B7: 6 | C7: 2.2 | D7: 54 | M7: 6 | N7: 2.2 | O7: 54
B8: 7 | C8: 2.6 | D8: 54 | M8: 7 | N8: 2.6 | O8: 54
B9: 8 | C9: 3 | D9: 54 | M9: 8 | N9: 3 | O9: 54
B10: 9 | C10: 3.4 | D10: 54 | M10: 9 | N10: 3.4 | O10: 54
B11: 10 | C11: 3.8 | D11: 54 | M11: 10 | N11: 3.8 | O11: 54
B12: 11 | C12: 4.2 | D12: 54 | M12: 11 | N12: 4.2 | O12: 54
B13: 12 | C13: 4.6 | D13: 54 | M13: 12 | N13: 4.6 | O13: 54
B14: 13 | C14: 5 | D14: 54 | M14: 13 | N14: 5 | O14: 54
B15: 14 | C15: 5.4 | D15: 54 | M15: 14 | N15: 5.4 | O15: 54
B16: 15 | C16: 5.8 | D16: 47.665 | M16: 15 | N16: 5.8 | O16: 47.665
B17: 16 | C17: 6.2 | D17: 47.665 | M17: 16 | N17: 6.2 | O17: 47.665
B18: 17 | C18: 6.6 | D18: 54 | M18: 17 | N18: 6.6 | O18: 54
B19: 18 | C19: 7 | D19: 54 | M19: 18 | N19: 7 | O19: 54
B20: 19 | C20: 7.4 | D20: 54 | M20: 19 | N20: 7.4 | O20: 54
B21: 20 | C21: 7.8 | D21: 54 | M21: 20 | N21: 7.8 | O21: 54
B22: 21 | C22: 8.2 | D22: 54 | M22: 21 | N22: 8.2 | O22: 54
B23: 22 | C23: 8.6 | D23: 54 | M23: 22 | N23: 8.6 | O23: 54
B24: 23 | C24: 9 | D24: 54 | M24: 23 | N24: 9 | O24: 54
B25: 24 | C25: 9.4 | D25: 54 | M25: 24 | N25: 9.4 | O25: 54
B26: 25 | C26: 9.8 | D26: 54 | M26: 25 | N26: 9.8 | O26: 54
B27: 26 | C27: 10.2 | D27: 54 | M27: 26 | N27: 10.2 | O27: 54
B28: 27 | C28: 10.6 | D28: 54 | M28: 27 | N28: 10.6 | O28: 54
B29: 28 | C29: 11 | D29: 54 | M29: 28 | N29: 11 | O29: 54
B30: 29 | C30: 11.4 | D30: 54 | M30: 29 | N30: 11.4 | O30: 54
B31: 30 | C31: 11.8 | D31: 54 | M31: 30 | N31: 11.8 | O31: 54
B32: 31 | C32: 12.2 | D32: 54 | M32: 31 | N32: 12.2 | O32: 54
B33: 32 | C33: 12.6 | D33: 54 | M33: 32 | N33: 12.6 | O33: 54
B34: 33 | C34: 13 | D34: 54 | M34: 33 | N34: 13 | O34: 54
B35: 34 | C35: 13.4 | D35: 54 | M35: 34 | N35: 13.4 | O35: 54
B36: 35 | C36: 13.8 | D36: 47.665 | M36: 35 | N36: 13.8 | O36: 50.8325
B37: 36 | C37: 14.2 | D37: 47.665 | M37: 36 | N37: 14.2 | O37: 50.8325
B38: 37 | C38: 14.6 | D38: 54 | M38: 37 | N38: 14.6 | O38: 54
B39: 38 | C39: 15 | D39: 54 | M39: 38 | N39: 15 | O39: 54
B40: 39 | C40: 15.4 | D40: 54 | M40: 39 | N40: 15.4 | O40: 54
B41: 40 | C41: 15.8 | D41: 54 | M41: 40 | N41: 15.8 | O41: 54
B42: 41 | C42: 16.2 | D42: 54 | M42: 41 | N42: 16.2 | O42: 54
B43: 42 | C43: 16.6 | D43: 54 | M43: 42 | N43: 16.6 | O43: 54
B44: 43 | C44: 17 | D44: 54 | M44: 43 | N44: 17 | O44: 54
B45: 44 | C45: 17.4 | D45: 54 | M45: 44 | N45: 17.4 | O45: 54
B46: 45 | C46: 17.8 | D46: 54 | M46: 45 | N46: 17.8 | O46: 54
B47: 46 | C47: 18.2 | D47: 54 | M47: 46 | N47: 18.2 | O47: 54
B48: 47 | C48: 18.6 | D48: 54 | M48: 47 | N48: 18.6 | O48: 54
B49: 48 | C49: 19 | D49: 54 | M49: 48 | N49: 19 | O49: 54
B50: 49 | C50: 19.4 | D50: 54 | M50: 49 | N50: 19.4 | O50: 54
B51: 50 | C51: 19.8 | D51: 54 | M51: 50 | N51: 19.8 | O51: 54

Sheet 中立軸計算1
A1: ケース 1 | B1: ステップ | C1: 収束回数 | D1: 収束状況
A2: 降伏時 | B2: 1 | C2: 0
B3: 2 | C3: 20 | D3: -0.9300007 | E3: -0.39500105 | F3: -0.127501225 | G3: -0.2612511375 | H3: -0.1943761812 | I3: -0.2278136594 | J3: -0.2110949203 | K3: -0.2194542898 | L3: -0.2152746051 | M3: -0.2173644475 | N3: -0.2184093687 | O3: -0.2178869081 | P3: -0.2176256778 | Q3: -0.2174950626 | R3: -0.217429755 | S3: -0.2174624088 | T3: -0.2174460819 | U3: -0.2174379185 | V3: -0.2174420002 | W3: -0.2174399593
B4: 3 | C4: 23 | D4: -0.9300007 | E4: -0.39500105 | F4: -0.127501225 | G4: 0.0062486875 | H4: -0.06062626875 | I4: -0.02718879062 | J4: -0.04390752969 | K4: -0.03554816016 | L4: -0.03972784492 | M4: -0.03763800254 | N4: -0.03868292373 | O4: -0.03920538433 | P4: -0.03946661462 | Q4: -0.03959722977 | R4: -0.0395319222 | S4: -0.03949926841 | T4: -0.0395155953 | U4: -0.03952375875 | V4: -0.03951967703 | W4: -0.03952171789 | X4: -0.03952069746 | Y4: -0.03952120767 | Z4: -0.03952095257
B5: 4 | C5: 25 | D5: -0.9300007 | E5: -0.39500105 | F5: -0.127501225 | G5: 0.0062486875 | H5: 0.07312364375 | I5: 0.03968616563 | J5: 0.02296742656 | K5: 0.01460805703 | L5: 0.01042837227 | M5: 0.01251821465 | N5: 0.01147329346 | O5: 0.01095083286 | P5: 0.01068960256 | Q5: 0.01055898741 | R5: 0.01062429499 | S5: 0.0105916412 | T5: 0.01057531431 | U5: 0.01058347775 | V5: 0.01058755948 | W5: 0.01058551862 | X5: 0.01058653905 | Y5: 0.01058704926 | Z5: 0.01058679416 | AA5: 0.0105866666 | AB5: 0.01058660282
B6: 5 | C6: 24 | D6: -0.9300007 | E6: -0.39500105 | F6: -0.127501225 | G6: 0.0062486875 | H6: 0.07312364375 | I6: 0.03968616563 | J6: 0.02296742656 | K6: 0.01460805703 | L6: 0.0187877418 | M6: 0.02087758418 | N6: 0.01983266299 | O6: 0.01931020239 | P6: 0.01957143269 | Q6: 0.01944081754 | R6: 0.01950612512 | S6: 0.01947347133 | T6: 0.01948979822 | U6: 0.01949796167 | V6: 0.01950204339 | W6: 0.01950000253 | X6: 0.01950102296 | Y6: 0.01950051275 | Z6: 0.01950025764 | AA6: 0.01950038519
B7: 6 | C7: 23 | D7: -0.9300007 | E7: -0.39500105 | F7: -0.127501225 | G7: 0.0062486875 | H7: 0.07312364375 | I7: 0.03968616563 | J7: 0.02296742656 | K7: 0.03132679609 | L7: 0.02714711133 | M7: 0.02505726895 | N7: 0.02610219014 | O7: 0.02557972954 | P7: 0.02584095984 | Q7: 0.02597157499 | R7: 0.02590626741 | S7: 0.02587361363 | T7: 0.02588994052 | U7: 0.02589810397 | V7: 0.02589402224 | W7: 0.0258960631 | X7: 0.02589708354 | Y7: 0.02589759375 | Z7: 0.02589784886
B8: 7 | C8: 23 | D8: -0.9300007 | E8: -0.39500105 | F8: -0.127501225 | G8: 0.0062486875 | H8: 0.07312364375 | I8: 0.03968616563 | J8: 0.02296742656 | K8: 0.03132679609 | L8: 0.02714711133 | M8: 0.02923695371 | N8: 0.0302818749 | O8: 0.0308043355 | P8: 0.0305431052 | Q8: 0.03067372035 | R8: 0.03060841277 | S8: 0.03057575899 | T8: 0.03059208588 | U8: 0.03058392243 | V8: 0.03057984071 | W8: 0.03057779985 | X8: 0.03057677942 | Y8: 0.0305762692 | Z8: 0.03057652431
B9: 8 | C9: 23 | D9: -0.9300007 | E9: -0.39500105 | F9: -0.127501225 | G9: 0.0062486875 | H9: 0.07312364375 | I9: 0.03968616563 | J9: 0.02296742656 | K9: 0.03132679609 | L9: 0.03550648086 | M9: 0.03341663848 | N9: 0.03446155967 | O9: 0.03498402026 | P9: 0.03472278997 | Q9: 0.03459217482 | R9: 0.03465748239 | S9: 0.0346248286 | T9: 0.0346411555 | U9: 0.03463299205 | V9: 0.03462891033 | W9: 0.03463095119 | X9: 0.03462993076 | Y9: 0.03463044097 | Z9: 0.03463018587
B10: 9 | C10: 23 | D10: -0.9300007 | E10: -0.39500105 | F10: -0.127501225 | G10: 0.0062486875 | H10: 0.07312364375 | I10: 0.03968616563 | J10: 0.02296742656 | K10: 0.03132679609 | L10: 0.03550648086 | M10: 0.03759632324 | N10: 0.03864124443 | O10: 0.03811878384 | P10: 0.03838001414 | Q10: 0.03824939899 | R10: 0.03818409141 | S10: 0.0382167452 | T10: 0.03823307209 | U10: 0.03824123554 | V10: 0.03823715382 | W10: 0.03823919468 | X10: 0.03823817425 | Y10: 0.03823868446 | Z10: 0.03823842936
B11: 10 | C11: 23 | D11: -0.9300007 | E11: -0.39500105 | F11: -0.127501225 | G11: 0.0062486875 | H11: 0.07312364375 | I11: 0.03968616563 | J11: 0.05640490469 | K11: 0.04804553516 | L11: 0.04386585039 | M11: 0.04177600801 | N11: 0.04073108682 | O11: 0.04125354741 | P11: 0.04151477771 | Q11: 0.04164539286 | R11: 0.04158008528 | S11: 0.0415474315 | T11: 0.0415311046 | U11: 0.04152294116 | V11: 0.04151885943 | W11: 0.0415209003 | X11: 0.04151987986 | Y11: 0.04152039008 | Z11: 0.04152013497
B12: 11 | C12: 23 | D12: -0.9300007 | E12: -0.39500105 | F12: -0.127501225 | G12: 0.0062486875 | H12: 0.07312364375 | I12: 0.03968616563 | J12: 0.05640490469 | K12: 0.04804553516 | L12: 0.04386585039 | M12: 0.04595569277 | N12: 0.04491077158 | O12: 0.04438831099 | P12: 0.04412708069 | Q12: 0.04425769584 | R12: 0.04419238826 | S12: 0.04415973448 | T12: 0.04414340758 | U12: 0.04413524414 | V12: 0.04413932586 | W12: 0.044137285 | X12: 0.04413830543 | Y12: 0.04413881564 | Z12: 0.04413907075
B13: 12 | C13: 23 | D13: -0.9300007 | E13: -0.39500105 | F13: -0.127501225 | G13: 0.0062486875 | H13: 0.07312364375 | I13: 0.03968616563 | J13: 0.05640490469 | K13: 0.04804553516 | L13: 0.04386585039 | M13: 0.04595569277 | N13: 0.04700061396 | O13: 0.04647815337 | P13: 0.04673938367 | Q13: 0.04686999882 | R13: 0.04693530639 | S13: 0.0469026526 | T13: 0.0469189795 | U13: 0.04692714294 | V13: 0.04693122467 | W13: 0.04693326553 | X13: 0.0469322451 | Y13: 0.04693173488 | Z13: 0.04693198999
B14: 13 | C14: 23 | D14: -0.9300007 | E14: -0.39500105 | F14: -0.127501225 | G14: 0.0062486875 | H14: 0.07312364375 | I14: 0.03968616563 | J14: 0.05640490469 | K14: 0.04804553516 | L14: 0.05222521992 | M14: 0.05013537754 | N14: 0.04909045635 | O14: 0.04961291694 | P14: 0.04935168665 | Q14: 0.0492210715 | R14: 0.04928637907 | S14: 0.04925372528 | T14: 0.04927005218 | U14: 0.04926188873 | V14: 0.04925780701 | W14: 0.04925576615 | X14: 0.04925678658 | Y14: 0.04925627636 | Z14: 0.04925653147
B15: 14 | C15: 22 | D15: -0.9300007 | E15: -0.39500105 | F15: -0.127501225 | G15: 0.0062486875 | H15: 0.07312364375 | I15: 0.03968616563 | J15: 0.05640490469 | K15: 0.04804553516 | L15: 0.05222521992 | M15: 0.05013537754 | N15: 0.05118029873 | O15: 0.05170275933 | P15: 0.05196398962 | Q15: 0.05183337448 | R15: 0.0517680669 | S15: 0.05173541311 | T15: 0.05171908622 | U15: 0.05171092277 | V15: 0.05170684105 | W15: 0.05170480019 | X15: 0.05170377976 | Y15: 0.05170428997
B16: 15 | C16: 22 | D16: -0.9300007 | E16: -0.39500105 | F16: -0.127501225 | G16: 0.0062486875 | H16: 0.07312364375 | I16: 0.03968616563 | J16: 0.05640490469 | K16: 0.04804553516 | L16: 0.05222521992 | M16: 0.0543150623 | N16: 0.05327014111 | O16: 0.05379260171 | P16: 0.05405383201 | Q16: 0.05392321686 | R16: 0.05398852443 | S16: 0.05402117822 | T16: 0.05403750511 | U16: 0.05402934167 | V16: 0.05403342339 | W16: 0.05403546425 | X16: 0.05403648468 | Y16: 0.05403597447
B17: 16 | C17: 22 | D17: -0.9300007 | E17: -0.39500105 | F17: -0.127501225 | G17: 0.0062486875 | H17: 0.07312364375 | I17: 0.03968616563 | J17: 0.05640490469 | K17: 0.04804553516 | L17: 0.05222521992 | M17: 0.0543150623 | N17: 0.0553599835 | O17: 0.05588244409 | P17: 0.05614367439 | Q17: 0.05601305924 | R17: 0.05594775167 | S17: 0.05598040545 | T17: 0.05599673235 | U17: 0.0559885689 | V17: 0.05598448718 | W17: 0.05598244632 | X17: 0.05598142588 | Y17: 0.05598091567
B18: 17 | C18: 22 | D18: -0.9300007 | E18: -0.39500105 | F18: -0.127501225 | G18: 0.0062486875 | H18: 0.07312364375 | I18: 0.03968616563 | J18: 0.05640490469 | K18: 0.06476427422 | L18: 0.06058458945 | M18: 0.05849474707 | N18: 0.05744982588 | O18: 0.05797228647 | P18: 0.05771105618 | Q18: 0.05784167133 | R18: 0.0579069789 | S18: 0.05787432511 | T18: 0.05789065201 | U18: 0.05789881545 | V18: 0.05790289718 | W18: 0.05790085632 | X18: 0.05790187675 | Y18: 0.05790238696
B19: 18 | C19: 22 | D19: -0.9300007 | E19: -0.39500105 | F19: -0.127501225 | G19: 0.0062486875 | H19: 0.07312364375 | I19: 0.03968616563 | J19: 0.05640490469 | K19: 0.06476427422 | L19: 0.06058458945 | M19: 0.05849474707 | N19: 0.05953966826 | O19: 0.06006212886 | P19: 0.05980089856 | Q19: 0.05993151371 | R19: 0.05986620613 | S19: 0.05989885992 | T19: 0.05991518681 | U19: 0.05990702337 | V19: 0.05991110509 | W19: 0.05990906423 | X19: 0.05991008466 | Y19: 0.05990957445
B20: 19 | C20: 22 | D20: -0.9300007 | E20: -0.39500105 | F20: -0.127501225 | G20: 0.0062486875 | H20: 0.07312364375 | I20: 0.03968616563 | J20: 0.05640490469 | K20: 0.06476427422 | L20: 0.06058458945 | M20: 0.06267443184 | N20: 0.06162951064 | O20: 0.06215197124 | P20: 0.06189074094 | Q20: 0.06176012579 | R20: 0.06169481822 | S20: 0.06172747201 | T20: 0.06171114511 | U20: 0.06170298167 | V20: 0.06170706339 | W20: 0.06170502253 | X20: 0.06170604296 | Y20: 0.06170553274
B21: 20 | C21: 22 | D21: -0.9300007 | E21: -0.39500105 | F21: -0.127501225 | G21: 0.0062486875 | H21: 0.07312364375 | I21: 0.03968616563 | J21: 0.05640490469 | K21: 0.06476427422 | L21: 0.06058458945 | M21: 0.06267443184 | N21: 0.06371935303 | O21: 0.06319689243 | P21: 0.06345812273 | Q21: 0.06358873788 | R21: 0.06365404545 | S21: 0.06362139167 | T21: 0.06360506477 | U21: 0.06361322822 | V21: 0.06361730994 | W21: 0.06361526908 | X21: 0.06361424865 | Y21: 0.06361475887
B22: 21 | C22: 22 | D22: -0.9300007 | E22: -0.39500105 | F22: -0.127501225 | G22: 0.0062486875 | H22: 0.07312364375 | I22: 0.03968616563 | J22: 0.05640490469 | K22: 0.06476427422 | L22: 0.06894395898 | M22: 0.0668541166 | N22: 0.06580919541 | O22: 0.06528673481 | P22: 0.06502550452 | Q22: 0.06515611967 | R22: 0.06522142724 | S22: 0.06525408103 | T22: 0.06527040792 | U22: 0.06527857137 | V22: 0.06528265309 | W22: 0.06528061223 | X22: 0.0652795918 | Y22: 0.06528010201
B23: 22 | C23: 22 | D23: -0.9300007 | E23: -0.39500105 | F23: -0.127501225 | G23: 0.0062486875 | H23: 0.07312364375 | I23: 0.03968616563 | J23: 0.05640490469 | K23: 0.06476427422 | L23: 0.06894395898 | M23: 0.0668541166 | N23: 0.06789903779 | O23: 0.0673765772 | P23: 0.0671153469 | Q23: 0.06698473175 | R23: 0.06705003932 | S23: 0.06708269311 | T23: 0.06709902001 | U23: 0.06710718345 | V23: 0.06711126518 | W23: 0.06711330604 | X23: 0.06711432647 | Y23: 0.06711483668
B24: 23 | C24: 22 | D24: -0.9300007 | E24: -0.39500105 | F24: -0.127501225 | G24: 0.0062486875 | H24: 0.07312364375 | I24: 0.03968616563 | J24: 0.05640490469 | K24: 0.06476427422 | L24: 0.06894395898 | M24: 0.0668541166 | N24: 0.06789903779 | O24: 0.06842149839 | P24: 0.06868272869 | Q24: 0.06855211354 | R24: 0.06861742111 | S24: 0.0686500749 | T24: 0.06866640179 | U24: 0.06867456524 | V24: 0.06867048352 | W24: 0.06866844265 | X24: 0.06866742222 | Y24: 0.06866691201
B25: 24 | C25: 22 | D25: -0.9300007 | E25: -0.39500105 | F25: -0.127501225 | G25: 0.0062486875 | H25: 0.07312364375 | I25: 0.03968616563 | J25: 0.05640490469 | K25: 0.06476427422 | L25: 0.06894395898 | M25: 0.07103380137 | N25: 0.06998888018 | O25: 0.07051134077 | P25: 0.07025011047 | Q25: 0.07011949532 | R25: 0.0701848029 | S25: 0.07021745669 | T25: 0.07023378358 | U25: 0.07022562013 | V25: 0.07022153841 | W25: 0.07021949755 | X25: 0.07022051798 | Y25: 0.07022102819
B26: 25 | C26: 22 | D26: -0.9300007 | E26: -0.39500105 | F26: -0.127501225 | G26: 0.0062486875 | H26: 0.07312364375 | I26: 0.03968616563 | J26: 0.05640490469 | K26: 0.06476427422 | L26: 0.06894395898 | M26: 0.07103380137 | N26: 0.07207872256 | O26: 0.07155626196 | P26: 0.07181749226 | Q26: 0.07194810741 | R26: 0.07188279984 | S26: 0.07191545362 | T26: 0.07193178052 | U26: 0.07192361707 | V26: 0.07191953535 | W26: 0.07192157621 | X26: 0.07192055578 | Y26: 0.07192004556
B27: 26 | C27: 22 | D27: -0.9300007 | E27: -0.39500105 | F27: -0.127501225 | G27: 0.0062486875 | H27: 0.07312364375 | I27: 0.1065611219 | J27: 0.08984238281 | K27: 0.08148301328 | L27: 0.07730332852 | M27: 0.07521348613 | N27: 0.07416856494 | O27: 0.07364610435 | P27: 0.07338487405 | Q27: 0.0735154892 | R27: 0.07345018162 | S27: 0.07341752784 | T27: 0.07340120094 | U27: 0.07340936439 | V27: 0.07340528266 | W27: 0.0734032418 | X27: 0.07340426223 | Y27: 0.07340375202
B28: 27 | C28: 22 | D28: -0.9300007 | E28: -0.39500105 | F28: -0.127501225 | G28: 0.0062486875 | H28: 0.07312364375 | I28: 0.1065611219 | J28: 0.08984238281 | K28: 0.08148301328 | L28: 0.07730332852 | M28: 0.07521348613 | N28: 0.07416856494 | O28: 0.07469102554 | P28: 0.07495225583 | Q28: 0.07508287098 | R28: 0.07514817856 | S28: 0.07511552477 | T28: 0.07509919788 | U28: 0.07509103443 | V28: 0.07509511615 | W28: 0.07509715702 | X28: 0.07509613658 | Y28: 0.07509562637
B29: 28 | C29: 22 | D29: -0.9300007 | E29: -0.39500105 | F29: -0.127501225 | G29: 0.0062486875 | H29: 0.07312364375 | I29: 0.1065611219 | J29: 0.08984238281 | K29: 0.08148301328 | L29: 0.07730332852 | M29: 0.07521348613 | N29: 0.07625840732 | O29: 0.07678086792 | P29: 0.07651963762 | Q29: 0.07665025277 | R29: 0.0765849452 | S29: 0.07655229141 | T29: 0.07653596452 | U29: 0.07652780107 | V29: 0.07653188279 | W29: 0.07653392365 | X29: 0.07653290322 | Y29: 0.07653239301
B30: 29 | C30: 22 | D30: -0.9300007 | E30: -0.39500105 | F30: -0.127501225 | G30: 0.0062486875 | H30: 0.07312364375 | I30: 0.1065611219 | J30: 0.08984238281 | K30: 0.08148301328 | L30: 0.07730332852 | M30: 0.0793931709 | N30: 0.07834824971 | O30: 0.07782578911 | P30: 0.07808701941 | Q30: 0.07795640426 | R30: 0.07802171183 | S30: 0.07798905805 | T30: 0.07800538494 | U30: 0.07799722149 | V30: 0.07799313977 | W30: 0.07799109891 | X30: 0.07799007848 | Y30: 0.07798956826
B31: 30 | C31: 22 | D31: -0.9300007 | E31: -0.39500105 | F31: -0.127501225 | G31: 0.0062486875 | H31: 0.07312364375 | I31: 0.1065611219 | J31: 0.08984238281 | K31: 0.08148301328 | L31: 0.07730332852 | M31: 0.0793931709 | N31: 0.08043809209 | O31: 0.07991563149 | P31: 0.0796544012 | Q31: 0.07952378605 | R31: 0.07958909362 | S31: 0.07962174741 | T31: 0.0796380743 | U31: 0.07964623775 | V31: 0.07964215603 | W31: 0.07964011516 | X31: 0.07963909473 | Y31: 0.07963858452
B32: 31 | C32: 22 | D32: -0.9300007 | E32: -0.39500105 | F32: -0.127501225 | G32: 0.0062486875 | H32: 0.07312364375 | I32: 0.1065611219 | J32: 0.08984238281 | K32: 0.08148301328 | L32: 0.07730332852 | M32: 0.0793931709 | N32: 0.08043809209 | O32: 0.08096055269 | P32: 0.08122178298 | Q32: 0.08109116783 | R32: 0.08102586026 | S32: 0.08105851405 | T32: 0.08104218715 | U32: 0.0810503506 | V32: 0.08105443232 | W32: 0.08105239146 | X32: 0.08105341189 | Y32: 0.08105290168
B33: 32 | C33: 22 | D33: -0.9300007 | E33: -0.39500105 | F33: -0.127501225 | G33: 0.0062486875 | H33: 0.07312364375 | I33: 0.1065611219 | J33: 0.08984238281 | K33: 0.08148301328 | L33: 0.08566269805 | M33: 0.08357285566 | N33: 0.08252793447 | O33: 0.08200547388 | P33: 0.08226670417 | Q33: 0.08239731932 | R33: 0.0824626269 | S33: 0.08249528069 | T33: 0.08247895379 | U33: 0.08248711724 | V33: 0.08249119896 | W33: 0.0824891581 | X33: 0.08248813767 | Y33: 0.08248762745
B34: 33 | C34: 22 | D34: -0.9300007 | E34: -0.39500105 | F34: -0.127501225 | G34: 0.0062486875 | H34: 0.07312364375 | I34: 0.1065611219 | J34: 0.08984238281 | K34: 0.08148301328 | L34: 0.08566269805 | M34: 0.08357285566 | N34: 0.08461777686 | O34: 0.08409531626 | P34: 0.08383408596 | Q34: 0.08396470111 | R34: 0.08403000869 | S34: 0.08406266247 | T34: 0.08407898937 | U34: 0.08408715281 | V34: 0.08409123454 | W34: 0.08408919367 | X34: 0.08409021411 | Y34: 0.08408970389
B35: 34 | C35: 22 | D35: -0.9300007 | E35: -0.39500105 | F35: -0.127501225 | G35: 0.0062486875 | H35: 0.07312364375 | I35: 0.1065611219 | J35: 0.08984238281 | K35: 0.08148301328 | L35: 0.08566269805 | M35: 0.08357285566 | N35: 0.08461777686 | O35: 0.08514023745 | P35: 0.08540146775 | Q35: 0.0855320829 | R35: 0.08546677532 | S35: 0.08549942911 | T35: 0.08548310222 | U35: 0.08547493877 | V35: 0.08547902049 | W35: 0.08547697963 | X35: 0.0854759592 | Y35: 0.08547544899
B36: 35 | C36: 22 | D36: -0.9300007 | E36: -0.39500105 | F36: -0.127501225 | G36: 0.0062486875 | H36: 0.07312364375 | I36: 0.1065611219 | J36: 0.08984238281 | K36: 0.08148301328 | L36: 0.08566269805 | M36: 0.08775254043 | N36: 0.08670761924 | O36: 0.08723007983 | P36: 0.08696884954 | Q36: 0.08683823439 | R36: 0.08690354196 | S36: 0.08687088817 | T36: 0.08688721507 | U36: 0.08687905162 | V36: 0.08688313334 | W36: 0.08688109248 | X36: 0.08688007205 | Y36: 0.08687956184
B37: 36 | C37: 22 | D37: -0.9300007 | E37: -0.39500105 | F37: -0.127501225 | G37: 0.0062486875 | H37: 0.07312364375 | I37: 0.1065611219 | J37: 0.08984238281 | K37: 0.08148301328 | L37: 0.08566269805 | M37: 0.08775254043 | N37: 0.08879746162 | O37: 0.08827500103 | P37: 0.08853623132 | Q37: 0.08840561617 | R37: 0.08847092375 | S37: 0.08843826996 | T37: 0.08842194307 | U37: 0.08843010651 | V37: 0.08843418824 | W37: 0.08843214738 | X37: 0.08843112695 | Y37: 0.08843163716
B38: 37 | C38: 22 | D38: -0.9300007 | E38: -0.39500105 | F38: -0.127501225 | G38: 0.0062486875 | H38: 0.07312364375 | I38: 0.1065611219 | J38: 0.08984238281 | K38: 0.08148301328 | L38: 0.08566269805 | M38: 0.08775254043 | N38: 0.08879746162 | O38: 0.08931992222 | P38: 0.08958115251 | Q38: 0.08971176766 | R38: 0.08977707524 | S38: 0.08980972903 | T38: 0.08979340213 | U38: 0.08978523868 | V38: 0.08978115696 | W38: 0.0897791161 | X38: 0.08977809567 | Y38: 0.08977860588
B39: 38 | C39: 22 | D39: -0.9300007 | E39: -0.39500105 | F39: -0.127501225 | G39: 0.0062486875 | H39: 0.07312364375 | I39: 0.1065611219 | J39: 0.08984238281 | K39: 0.09820175234 | L39: 0.09402206758 | M39: 0.0919322252 | N39: 0.090887304 | O39: 0.0914097646 | P39: 0.0911485343 | Q39: 0.09101791915 | R39: 0.09108322673 | S39: 0.09111588051 | T39: 0.09113220741 | U39: 0.09114037085 | V39: 0.09114445258 | W39: 0.09114241172 | X39: 0.09114343215 | Y39: 0.09114292193
B40: 39 | C40: 22 | D40: -0.9300007 | E40: -0.39500105 | F40: -0.127501225 | G40: 0.0062486875 | H40: 0.07312364375 | I40: 0.1065611219 | J40: 0.08984238281 | K40: 0.09820175234 | L40: 0.09402206758 | M40: 0.0919322252 | N40: 0.09297714639 | O40: 0.09245468579 | P40: 0.09271591609 | Q40: 0.09258530094 | R40: 0.09265060851 | S40: 0.09261795473 | T40: 0.09263428162 | U40: 0.09264244507 | V40: 0.09263836334 | W40: 0.09264040421 | X40: 0.09264142464 | Y40: 0.09264091442
B41: 40 | C41: 22 | D41: -0.9300007 | E41: -0.39500105 | F41: -0.127501225 | G41: 0.0062486875 | H41: 0.07312364375 | I41: 0.1065611219 | J41: 0.08984238281 | K41: 0.09820175234 | L41: 0.09402206758 | M41: 0.0919322252 | N41: 0.09297714639 | O41: 0.09349960698 | P41: 0.09376083728 | Q41: 0.09389145243 | R41: 0.09395676 | S41: 0.09392410622 | T41: 0.09394043311 | U41: 0.09393226966 | V41: 0.09393635139 | W41: 0.09393839225 | X41: 0.09393941268 | Y41: 0.09393890246
B42: 41 | C42: 22 | D42: -0.9300007 | E42: -0.39500105 | F42: -0.127501225 | G42: 0.0062486875 | H42: 0.07312364375 | I42: 0.1065611219 | J42: 0.08984238281 | K42: 0.09820175234 | L42: 0.09402206758 | M42: 0.09611190996 | N42: 0.09506698877 | O42: 0.09558944937 | P42: 0.09532821907 | Q42: 0.09519760392 | R42: 0.09526291149 | S42: 0.09523025771 | T42: 0.0952465846 | U42: 0.09525474805 | V42: 0.09525066632 | W42: 0.09525270718 | X42: 0.09525168675 | Y42: 0.09525117654
B43: 42 | C43: 22 | D43: -0.9300007 | E43: -0.39500105 | F43: -0.127501225 | G43: 0.0062486875 | H43: 0.07312364375 | I43: 0.1065611219 | J43: 0.08984238281 | K43: 0.09820175234 | L43: 0.09402206758 | M43: 0.09611190996 | N43: 0.09715683115 | O43: 0.09663437056 | P43: 0.09689560085 | Q43: 0.09676498571 | R43: 0.09669967813 | S43: 0.09666702434 | T43: 0.09668335124 | U43: 0.09669151468 | V43: 0.09669559641 | W43: 0.09669355555 | X43: 0.09669253512 | Y43: 0.09669304533
B44: 43 | C44: 22 | D44: -0.9300007 | E44: -0.39500105 | F44: -0.127501225 | G44: 0.0062486875 | H44: 0.07312364375 | I44: 0.1065611219 | J44: 0.08984238281 | K44: 0.09820175234 | L44: 0.09402206758 | M44: 0.09611190996 | N44: 0.09715683115 | O44: 0.09767929175 | P44: 0.09794052205 | Q44: 0.0978099069 | R44: 0.09787521447 | S44: 0.09790786826 | T44: 0.09792419515 | U44: 0.0979323586 | V44: 0.09792827688 | W44: 0.09793031774 | X44: 0.09792929731 | Y44: 0.09792980752
B45: 44 | C45: 22 | D45: -0.9300007 | E45: -0.39500105 | F45: -0.127501225 | G45: 0.0062486875 | H45: 0.07312364375 | I45: 0.1065611219 | J45: 0.08984238281 | K45: 0.09820175234 | L45: 0.1023814371 | M45: 0.1002915947 | N45: 0.09924667354 | O45: 0.09872421294 | P45: 0.09898544324 | Q45: 0.09911605839 | R45: 0.09918136596 | S45: 0.09914871217 | T45: 0.09916503907 | U45: 0.09917320251 | V45: 0.09917728424 | W45: 0.09917524338 | X45: 0.09917626381 | Y45: 0.09917575359
B46: 45 | C46: 22 | D46: -0.9300007 | E46: -0.39500105 | F46: -0.127501225 | G46: 0.0062486875 | H46: 0.07312364375 | I46: 0.1065611219 | J46: 0.08984238281 | K46: 0.09820175234 | L46: 0.1023814371 | M46: 0.1002915947 | N46: 0.1013365159 | O46: 0.1008140553 | P46: 0.100552825 | Q46: 0.1006834402 | R46: 0.1007487477 | S46: 0.1007814015 | T46: 0.1007650746 | U46: 0.1007732381 | V46: 0.1007691564 | W46: 0.1007671155 | X46: 0.1007660951 | Y46: 0.1007666053
B47: 46 | C47: 21 | D47: -0.9300007 | E47: -0.39500105 | F47: -0.127501225 | G47: 0.0062486875 | H47: 0.07312364375 | I47: 0.1065611219 | J47: 0.08984238281 | K47: 0.09820175234 | L47: 0.1023814371 | M47: 0.1044712795 | N47: 0.1034263583 | O47: 0.1029038977 | P47: 0.1026426674 | Q47: 0.1025120523 | R47: 0.1024467447 | S47: 0.1024140909 | T47: 0.102397764 | U47: 0.1023896006 | V47: 0.1023936823 | W47: 0.1023916414 | X47: 0.1023926618
B48: 47 | C48: 21 | D48: -0.9300007 | E48: -0.39500105 | F48: -0.127501225 | G48: 0.0062486875 | H48: 0.07312364375 | I48: 0.1065611219 | J48: 0.08984238281 | K48: 0.09820175234 | L48: 0.1023814371 | M48: 0.1044712795 | N48: 0.1034263583 | O48: 0.1039488189 | P48: 0.1042100492 | Q48: 0.104079434 | R48: 0.1041447416 | S48: 0.1041120878 | T48: 0.1040957609 | U48: 0.1040875975 | V48: 0.1040916792 | W48: 0.1040896384 | X48: 0.1040906588
B49: 48 | C49: 21 | D49: -0.9300007 | E49: -0.39500105 | F49: -0.127501225 | G49: 0.0062486875 | H49: 0.07312364375 | I49: 0.1065611219 | J49: 0.08984238281 | K49: 0.09820175234 | L49: 0.1023814371 | M49: 0.1044712795 | N49: 0.1055162007 | O49: 0.1060386613 | P49: 0.105777431 | Q49: 0.1059080461 | R49: 0.1059733537 | S49: 0.1059406999 | T49: 0.105924373 | U49: 0.1059162096 | V49: 0.1059121279 | W49: 0.105910087 | X49: 0.1059111074
B50: 49 | C50: 21 | D50: -0.9300007 | E50: -0.39500105 | F50: -0.127501225 | G50: 0.0062486875 | H50: 0.07312364375 | I50: 0.1065611219 | J50: 0.1232798609 | K50: 0.1149204914 | L50: 0.1107408066 | M50: 0.1086509643 | N50: 0.1076060431 | O50: 0.1070835825 | P50: 0.1073448128 | Q50: 0.1074754279 | R50: 0.1075407355 | S50: 0.1075733893 | T50: 0.1075897162 | U50: 0.1075815527 | V50: 0.107577471 | W50: 0.1075754301 | X50: 0.1075744097
B51: 50 | C51: 21 | D51: -0.9300007 | E51: -0.39500105 | F51: -0.127501225 | G51: 0.0062486875 | H51: 0.07312364375 | I51: 0.1065611219 | J51: 0.1232798609 | K51: 0.1149204914 | L51: 0.1107408066 | M51: 0.1086509643 | N51: 0.1096958854 | O51: 0.1091734249 | P51: 0.1094346552 | Q51: 0.1095652703 | R51: 0.1094999627 | S51: 0.1094673089 | T51: 0.109450982 | U51: 0.1094428186 | V51: 0.1094469003 | W51: 0.1094448595 | X51: 0.109443839
B52: 51 | C52: 21 | D52: -0.9300007 | E52: -0.39500105 | F52: -0.127501225 | G52: 0.0062486875 | H52: 0.07312364375 | I52: 0.1065611219 | J52: 0.1232798609 | K52: 0.1149204914 | L52: 0.1107408066 | M52: 0.112830649 | N52: 0.1117857278 | O52: 0.1112632672 | P52: 0.1110020369 | Q52: 0.1111326521 | R52: 0.1110673445 | S52: 0.1110999983 | T52: 0.1110836714 | U52: 0.111075508 | V52: 0.1110714262 | W52: 0.1110693854 | X52: 0.1110683649
B53: 52 | C53: 21 | D53: -0.9300007 | E53: -0.39500105 | F53: -0.127501225 | G53: 0.0062486875 | H53: 0.07312364375 | I53: 0.1065611219 | J53: 0.1232798609 | K53: 0.1149204914 | L53: 0.1107408066 | M53: 0.112830649 | N53: 0.1117857278 | O53: 0.1123081884 | P53: 0.1125694187 | Q53: 0.1127000339 | R53: 0.1127653414 | S53: 0.1127979952 | T53: 0.1127816683 | U53: 0.1127898318 | V53: 0.1127857501 | W53: 0.1127877909 | X53: 0.1127888114
B54: 53 | C54: 21 | D54: -0.9300007 | E54: -0.39500105 | F54: -0.127501225 | G54: 0.0062486875 | H54: 0.07312364375 | I54: 0.1065611219 | J54: 0.1232798609 | K54: 0.1149204914 | L54: 0.1107408066 | M54: 0.112830649 | N54: 0.1138755702 | O54: 0.1143980308 | P54: 0.1146592611 | Q54: 0.114528646 | R54: 0.1145939535 | S54: 0.1145612997 | T54: 0.1145776266 | U54: 0.1145857901 | V54: 0.1145817084 | W54: 0.1145796675 | X54: 0.1145786471
B55: 54 | C55: 21 | D55: -0.9300007 | E55: -0.39500105 | F55: -0.127501225 | G55: 0.0062486875 | H55: 0.07312364375 | I55: 0.1065611219 | J55: 0.1232798609 | K55: 0.1149204914 | L55: 0.1191001762 | M55: 0.1170103338 | N55: 0.1159654126 | O55: 0.1164878732 | P55: 0.1162266429 | Q55: 0.116357258 | R55: 0.1162919505 | S55: 0.1162592967 | T55: 0.1162756236 | U55: 0.1162674601 | V55: 0.1162633784 | W55: 0.1162654193 | X55: 0.1162664397
B56: 55 | C56: 21 | D56: -0.9300007 | E56: -0.39500105 | F56: -0.127501225 | G56: 0.0062486875 | H56: 0.07312364375 | I56: 0.1065611219 | J56: 0.1232798609 | K56: 0.1149204914 | L56: 0.1191001762 | M56: 0.1170103338 | N56: 0.118055255 | O56: 0.1185777156 | P56: 0.1183164853 | Q56: 0.1181858701 | R56: 0.1181205626 | S56: 0.1180879088 | T56: 0.1181042357 | U56: 0.1181123991 | V56: 0.1181083174 | W56: 0.1181062765 | X56: 0.118107297
B57: 56 | C57: 21 | D57: -0.9300007 | E57: -0.39500105 | F57: -0.127501225 | G57: 0.0062486875 | H57: 0.07312364375 | I57: 0.1065611219 | J57: 0.1232798609 | K57: 0.1149204914 | L57: 0.1191001762 | M57: 0.1211900186 | N57: 0.1201450974 | O57: 0.1196226368 | P57: 0.1198838671 | Q57: 0.1197532519 | R57: 0.1196879443 | S57: 0.1197205981 | T57: 0.119736925 | U57: 0.1197450885 | V57: 0.1197491702 | W57: 0.1197471293 | X57: 0.1197461089
B58: 57 | C58: 21 | D58: -0.9300007 | E58: -0.39500105 | F58: -0.127501225 | G58: 0.0062486875 | H58: 0.07312364375 | I58: 0.1065611219 | J58: 0.1232798609 | K58: 0.1149204914 | L58: 0.1191001762 | M58: 0.1211900186 | N58: 0.1222349397 | O58: 0.1217124792 | P58: 0.1214512489 | Q58: 0.121581864 | R58: 0.1215165564 | S58: 0.1214839026 | T58: 0.1214675757 | U58: 0.1214757392 | V58: 0.1214798209 | W58: 0.1214818618 | X58: 0.1214828822
B59: 58 | C59: 21 | D59: -0.9300007 | E59: -0.39500105 | F59: -0.127501225 | G59: 0.0062486875 | H59: 0.07312364375 | I59: 0.1065611219 | J59: 0.1232798609 | K59: 0.1149204914 | L59: 0.1191001762 | M59: 0.1211900186 | N59: 0.1222349397 | O59: 0.1227574003 | P59: 0.1230186306 | Q59: 0.1231492458 | R59: 0.1232145534 | S59: 0.1232472072 | T59: 0.1232308803 | U59: 0.1232390437 | V59: 0.1232431254 | W59: 0.1232410846 | X59: 0.123242105
B60: 59 | C60: 21 | D60: -0.9300007 | E60: -0.39500105 | F60: -0.127501225 | G60: 0.0062486875 | H60: 0.07312364375 | I60: 0.1065611219 | J60: 0.1232798609 | K60: 0.1316392305 | L60: 0.1274595457 | M60: 0.1253697033 | N60: 0.1243247821 | O60: 0.1248472427 | P60: 0.125108473 | Q60: 0.1249778579 | R60: 0.1249125503 | S60: 0.1249452041 | T60: 0.124961531 | U60: 0.1249533675 | V60: 0.1249574493 | W60: 0.1249554084 | X60: 0.1249564288
B61: 60 | C61: 21 | D61: -0.9300007 | E61: -0.39500105 | F61: -0.127501225 | G61: 0.0062486875 | H61: 0.07312364375 | I61: 0.1065611219 | J61: 0.1232798609 | K61: 0.1316392305 | L61: 0.1274595457 | M61: 0.1253697033 | N61: 0.1264146245 | O61: 0.1269370851 | P61: 0.1266758548 | Q61: 0.12680647 | R61: 0.1267411624 | S61: 0.1267738162 | T61: 0.1267574893 | U61: 0.1267656527 | V61: 0.1267697344 | W61: 0.1267676936 | X61: 0.1267666732
B62: 61 | C62: 21 | D62: -0.9300007 | E62: -0.39500105 | F62: -0.127501225 | G62: 0.0062486875 | H62: 0.07312364375 | I62: 0.1065611219 | J62: 0.1232798609 | K62: 0.1316392305 | L62: 0.1274595457 | M62: 0.1295493881 | N62: 0.1285044669 | O62: 0.1279820063 | P62: 0.1282432366 | Q62: 0.1283738517 | R62: 0.1284391593 | S62: 0.1284065055 | T62: 0.1284228324 | U62: 0.1284309959 | V62: 0.1284269141 | W62: 0.1284248733 | X62: 0.1284258937
B63: 62 | C63: 21 | D63: -0.9300007 | E63: -0.39500105 | F63: -0.127501225 | G63: 0.0062486875 | H63: 0.07312364375 | I63: 0.1065611219 | J63: 0.1232798609 | K63: 0.1316392305 | L63: 0.1274595457 | M63: 0.1295493881 | N63: 0.1305943093 | O63: 0.1300718487 | P63: 0.130333079 | Q63: 0.1302024638 | R63: 0.1301371563 | S63: 0.13016981 | T63: 0.1301534831 | U63: 0.1301616466 | V63: 0.1301657283 | W63: 0.1301636875 | X63: 0.1301647079
B64: 63 | C64: 21 | D64: -0.9300007 | E64: -0.39500105 | F64: -0.127501225 | G64: 0.0062486875 | H64: 0.07312364375 | I64: 0.1065611219 | J64: 0.1232798609 | K64: 0.1316392305 | L64: 0.1358189152 | M64: 0.1337290729 | N64: 0.1326841517 | O64: 0.1321616911 | P64: 0.1319004608 | Q64: 0.1317698456 | R64: 0.1318351532 | S64: 0.131867807 | T64: 0.1318841339 | U64: 0.1318759704 | V64: 0.1318800521 | W64: 0.131882093 | X64: 0.1318810726
B65: 64 | C65: 21 | D65: -0.9300007 | E65: -0.39500105 | F65: -0.127501225 | G65: 0.0062486875 | H65: 0.07312364375 | I65: 0.1065611219 | J65: 0.1232798609 | K65: 0.1316392305 | L65: 0.1358189152 | M65: 0.1337290729 | N65: 0.1326841517 | O65: 0.1332066123 | P65: 0.1334678426 | Q65: 0.1335984577 | R65: 0.1336637653 | S65: 0.1336311115 | T65: 0.1336147846 | U65: 0.1336066211 | V65: 0.1336107029 | W65: 0.1336127437 | X65: 0.1336137642
B66: 65 | C66: 21 | D66: -0.9300007 | E66: -0.39500105 | F66: -0.127501225 | G66: 0.0062486875 | H66: 0.07312364375 | I66: 0.1065611219 | J66: 0.1232798609 | K66: 0.1316392305 | L66: 0.1358189152 | M66: 0.1337290729 | N66: 0.134773994 | O66: 0.1352964546 | P66: 0.1355576849 | Q66: 0.1354270698 | R66: 0.1353617622 | S66: 0.1353291084 | T66: 0.1353127815 | U66: 0.1353046181 | V66: 0.1353086998 | W66: 0.1353066589 | X66: 0.1353056385
B67: 66 | C67: 21 | D67: -0.9300007 | E67: -0.39500105 | F67: -0.127501225 | G67: 0.0062486875 | H67: 0.07312364375 | I67: 0.1065611219 | J67: 0.1232798609 | K67: 0.1316392305 | L67: 0.1358189152 | M67: 0.1379087576 | N67: 0.1368638364 | O67: 0.137386297 | P67: 0.1371250667 | Q67: 0.1369944516 | R67: 0.136929144 | S67: 0.1369617978 | T67: 0.1369454709 | U67: 0.1369373074 | V67: 0.1369413892 | W67: 0.1369393483 | X67: 0.1369383279
B68: 67 | C68: 21 | D68: -0.9300007 | E68: -0.39500105 | F68: -0.127501225 | G68: 0.0062486875 | H68: 0.07312364375 | I68: 0.1065611219 | J68: 0.1232798609 | K68: 0.1316392305 | L68: 0.1358189152 | M68: 0.1379087576 | N68: 0.1389536788 | O68: 0.1384312182 | P68: 0.1386924485 | Q68: 0.1385618334 | R68: 0.1386271409 | S68: 0.1385944871 | T68: 0.138610814 | U68: 0.1386189775 | V68: 0.1386148958 | W68: 0.1386169366 | X68: 0.1386159162
B69: 68 | C69: 0
B70: 69 | C70: 0
B71: 70 | C71: 0
B72: 71 | C72: 0
B73: 72 | C73: 0
B74: 73 | C74: 0
B75: 74 | C75: 0
B76: 75 | C76: 0
B77: 76 | C77: 0
B78: 77 | C78: 0
B79: 78 | C79: 0
B80: 79 | C80: 0
B81: 80 | C81: 0
B82: 81 | C82: 0
B83: 82 | C83: 0
B84: 83 | C84: 0
B85: 84 | C85: 0
B86: 85 | C86: 0
B87: 86 | C87: 0
B88: 87 | C88: 0
B89: 88 | C89: 0
B90: 89 | C90: 0
B91: 90 | C91: 0
B92: 91 | C92: 0
B93: 92 | C93: 0
B94: 93 | C94: 0
B95: 94 | C95: 0
B96: 95 | C96: 0
B97: 96 | C97: 0
B98: 97 | C98: 0
B99: 98 | C99: 0
B100: 99 | C100: 0
B101: 100 | C101: 0
B102: 101 | C102: 0
A103: 終局時 | B103: 1 | C103: 34 | D103: 1.000005 | E103: 0.5000075 | F103: 0.25000875 | G103: 0.125009375 | H103: 0.0625096875 | I103: 0.03125984375 | J103: 0.01563492188 | K103: 0.007822460938 | L103: 0.003916230469 | M103: 0.001963115234 | N103: 0.0009865576172 | O103: 0.0004982788086 | P103: 0.0002541394043 | Q103: 0.0001320697021 | R103: 7.103485107e-05 | S103: 4.051742554e-05 | T103: 2.525871277e-05 | U103: 1.762935638e-05 | V103: 2.144403458e-05 | W103: 2.335137367e-05 | X103: 2.239770412e-05 | Y103: 2.192086935e-05 | Z103: 2.215928674e-05 | AA103: 2.204007804e-05 | AB103: 2.209968239e-05 | AC103: 2.212948456e-05 | AD103: 2.211458348e-05 | AE103: 2.210713293e-05 | AF103: 2.211085821e-05 | AG103: 2.211272084e-05 | AH103: 2.211365216e-05 | AI103: 2.21131865e-05 | AJ103: 2.211295367e-05 | AK103: 2.211283726e-05
B104: 2 | C104: 27 | D104: 1.000005 | E104: 0.5000075 | F104: 0.25000875 | G104: 0.125009375 | H104: 0.0625096875 | I104: 0.03125984375 | J104: 0.01563492188 | K104: 0.007822460938 | L104: 0.003916230469 | M104: 0.001963115234 | N104: 0.002939672852 | O104: 0.002451394043 | P104: 0.002695533447 | Q104: 0.002573463745 | R104: 0.002512428894 | S104: 0.002481911469 | T104: 0.002466652756 | U104: 0.002474282112 | V104: 0.00247809679 | W104: 0.002476189451 | X104: 0.002475235782 | Y104: 0.002474758947 | Z104: 0.00247452053 | AA104: 0.002474639738 | AB104: 0.002474580134 | AC104: 0.002474609936 | AD104: 0.002474595035
B105: 3 | C105: 26 | D105: 1.000005 | E105: 0.5000075 | F105: 0.25000875 | G105: 0.125009375 | H105: 0.0625096875 | I105: 0.03125984375 | J105: 0.01563492188 | K105: 0.007822460938 | L105: 0.003916230469 | M105: 0.005869345703 | N105: 0.004892788086 | O105: 0.005381066895 | P105: 0.005625206299 | Q105: 0.005747276001 | R105: 0.005808310852 | S105: 0.005777793427 | T105: 0.005793052139 | U105: 0.005800681496 | V105: 0.005804496174 | W105: 0.005806403513 | X105: 0.005807357183 | Y105: 0.005806880348 | Z105: 0.005807118765 | AA105: 0.005806999556 | AB105: 0.005807059161 | AC105: 0.005807029359
B106: 4 | C106: 25 | D106: 1.000005 | E106: 0.5000075 | F106: 0.25000875 | G106: 0.125009375 | H106: 0.0625096875 | I106: 0.03125984375 | J106: 0.01563492188 | K106: 0.007822460938 | L106: 0.01172869141 | M106: 0.009775576172 | N106: 0.008799018555 | O106: 0.008310739746 | P106: 0.00855487915 | Q106: 0.008676948853 | R106: 0.008737983704 | S106: 0.008707466278 | T106: 0.008692207565 | U106: 0.008699836922 | V106: 0.0087036516 | W106: 0.008705558939 | X106: 0.008704605269 | Y106: 0.008705082104 | Z106: 0.008705320522 | AA106: 0.00870543973 | AB106: 0.008705499335
B107: 5 | C107: 25 | D107: 1.000005 | E107: 0.5000075 | F107: 0.25000875 | G107: 0.125009375 | H107: 0.0625096875 | I107: 0.03125984375 | J107: 0.01563492188 | K107: 0.007822460938 | L107: 0.01172869141 | M107: 0.009775576172 | N107: 0.01075213379 | O107: 0.0112404126 | P107: 0.011484552 | Q107: 0.0116066217 | R107: 0.01166765656 | S107: 0.01169817398 | T107: 0.01171343269 | U107: 0.01172106205 | V107: 0.01171724737 | W107: 0.01171534003 | X107: 0.0117162937 | Y107: 0.01171581687 | Z107: 0.01171557845 | AA107: 0.01171545924 | AB107: 0.01171539964
B108: 6 | C108: 24 | D108: 1.000005 | E108: 0.5000075 | F108: 0.25000875 | G108: 0.125009375 | H108: 0.0625096875 | I108: 0.03125984375 | J108: 0.01563492188 | K108: 0.007822460938 | L108: 0.01172869141 | M108: 0.01368180664 | N108: 0.01465836426 | O108: 0.01514664307 | P108: 0.01490250366 | Q108: 0.01478043396 | R108: 0.01484146881 | S108: 0.01481095139 | T108: 0.01479569267 | U108: 0.01478806332 | V108: 0.01478424864 | W108: 0.01478615598 | X108: 0.01478710965 | Y108: 0.01478758648 | Z108: 0.0147878249 | AA108: 0.01478794411
B109: 7 | C109: 24 | D109: 1.000005 | E109: 0.5000075 | F109: 0.25000875 | G109: 0.125009375 | H109: 0.0625096875 | I109: 0.03125984375 | J109: 0.01563492188 | K109: 0.02344738281 | L109: 0.01954115234 | M109: 0.01758803711 | N109: 0.01856459473 | O109: 0.01807631592 | P109: 0.01783217651 | Q109: 0.01771010681 | R109: 0.01777114166 | S109: 0.01780165909 | T109: 0.01778640038 | U109: 0.01779402973 | V109: 0.01779021505 | W109: 0.01778830771 | X109: 0.01778735404 | Y109: 0.01778687721 | Z109: 0.01778663879 | AA109: 0.01778651958
B110: 8 | C110: 24 | D110: 1.000005 | E110: 0.5000075 | F110: 0.25000875 | G110: 0.125009375 | H110: 0.0625096875 | I110: 0.03125984375 | J110: 0.01563492188 | K110: 0.02344738281 | L110: 0.01954115234 | M110: 0.02149426758 | N110: 0.02051770996 | O110: 0.02100598877 | P110: 0.02076184937 | Q110: 0.02088391907 | R110: 0.02082288422 | S110: 0.02079236679 | T110: 0.02077710808 | U110: 0.02076947872 | V110: 0.02076566404 | W110: 0.0207637567 | X110: 0.02076280303 | Y110: 0.02076327987 | Z110: 0.02076351829 | AA110: 0.0207636375
B111: 9 | C111: 24 | D111: 1.000005 | E111: 0.5000075 | F111: 0.25000875 | G111: 0.125009375 | H111: 0.0625096875 | I111: 0.03125984375 | J111: 0.01563492188 | K111: 0.02344738281 | L111: 0.02735361328 | M111: 0.02540049805 | N111: 0.02442394043 | O111: 0.02393566162 | P111: 0.02369152222 | Q111: 0.02381359192 | R111: 0.02375255707 | S111: 0.02378307449 | T111: 0.02376781578 | U111: 0.02377544514 | V111: 0.02377163046 | W111: 0.0237735378 | X111: 0.02377449147 | Y111: 0.02377401463 | Z111: 0.02377425305 | AA111: 0.02377437226
B112: 10 | C112: 23 | D112: 1.000005 | E112: 0.5000075 | F112: 0.25000875 | G112: 0.125009375 | H112: 0.0625096875 | I112: 0.03125984375 | J112: 0.01563492188 | K112: 0.02344738281 | L112: 0.02735361328 | M112: 0.02540049805 | N112: 0.02637705566 | O112: 0.02686533447 | P112: 0.02710947388 | Q112: 0.02698740417 | R112: 0.02692636932 | S112: 0.0268958519 | T112: 0.02688059319 | U112: 0.02687296383 | V112: 0.02687677851 | W112: 0.02687487117 | X112: 0.0268739175 | Y112: 0.02687344066 | Z112: 0.02687367908
B113: 11 | C113: 23 | D113: 1.000005 | E113: 0.5000075 | F113: 0.25000875 | G113: 0.125009375 | H113: 0.0625096875 | I113: 0.03125984375 | J113: 0.01563492188 | K113: 0.02344738281 | L113: 0.02735361328 | M113: 0.02930672852 | N113: 0.03028328613 | O113: 0.02979500732 | P113: 0.02955086792 | Q113: 0.02967293762 | R113: 0.02973397247 | S113: 0.0297644899 | T113: 0.02974923119 | U113: 0.02975686054 | V113: 0.02975304586 | W113: 0.0297549532 | X113: 0.02975590687 | Y113: 0.02975638371 | Z113: 0.02975662212
B114: 12 | C114: 23 | D114: 1.000005 | E114: 0.5000075 | F114: 0.25000875 | G114: 0.125009375 | H114: 0.0625096875 | I114: 0.03125984375 | J114: 0.04688476563 | K114: 0.03907230469 | L114: 0.03516607422 | M114: 0.03321295898 | N114: 0.03223640137 | O114: 0.03272468018 | P114: 0.03296881958 | Q114: 0.03284674988 | R114: 0.03278571503 | S114: 0.0327551976 | T114: 0.03273993889 | U114: 0.03274756824 | V114: 0.03274375357 | W114: 0.03274566091 | X114: 0.03274661458 | Y114: 0.03274709141 | Z114: 0.03274685299
B115: 13 | C115: 23 | D115: 1.000005 | E115: 0.5000075 | F115: 0.25000875 | G115: 0.125009375 | H115: 0.0625096875 | I115: 0.03125984375 | J115: 0.04688476563 | K115: 0.03907230469 | L115: 0.03516607422 | M115: 0.03711918945 | N115: 0.03614263184 | O115: 0.03565435303 | P115: 0.03589849243 | Q115: 0.03577642273 | R115: 0.03571538788 | S115: 0.0357459053 | T115: 0.03573064659 | U115: 0.03573827595 | V115: 0.03574209063 | W115: 0.03574018329 | X115: 0.03574113696 | Y115: 0.03574066012 | Z115: 0.03574089854
B116: 14 | C116: 23 | D116: 1.000005 | E116: 0.5000075 | F116: 0.25000875 | G116: 0.125009375 | H116: 0.0625096875 | I116: 0.03125984375 | J116: 0.04688476563 | K116: 0.03907230469 | L116: 0.03516607422 | M116: 0.03711918945 | N116: 0.03809574707 | O116: 0.03858402588 | P116: 0.03882816528 | Q116: 0.03870609558 | R116: 0.03876713043 | S116: 0.03879764786 | T116: 0.03881290657 | U116: 0.03880527721 | V116: 0.03880146254 | W116: 0.03880336987 | X116: 0.03880241621 | Y116: 0.03880289304 | Z116: 0.03880313146
B117: 15 | C117: 23 | D117: 1.000005 | E117: 0.5000075 | F117: 0.25000875 | G117: 0.125009375 | H117: 0.0625096875 | I117: 0.03125984375 | J117: 0.04688476563 | K117: 0.03907230469 | L117: 0.04297853516 | M117: 0.04102541992 | N117: 0.0400488623 | O117: 0.04053714111 | P117: 0.04078128052 | Q117: 0.04090335022 | R117: 0.04096438507 | S117: 0.04093386765 | T117: 0.04094912636 | U117: 0.04095675571 | V117: 0.04095294104 | W117: 0.0409510337 | X117: 0.04095198737 | Y117: 0.04095151053 | Z117: 0.04095174895
B118: 16 | C118: 23 | D118: 1.000005 | E118: 0.5000075 | F118: 0.25000875 | G118: 0.125009375 | H118: 0.0625096875 | I118: 0.03125984375 | J118: 0.04688476563 | K118: 0.03907230469 | L118: 0.04297853516 | M118: 0.04102541992 | N118: 0.04200197754 | O118: 0.04249025635 | P118: 0.04273439575 | Q118: 0.04261232605 | R118: 0.0425512912 | S118: 0.04252077377 | T118: 0.04253603249 | U118: 0.04254366184 | V118: 0.04254747652 | W118: 0.04254938386 | X118: 0.04254843019 | Y118: 0.04254795336 | Z118: 0.04254819177
B119: 17 | C119: 23 | D119: 1.000005 | E119: 0.5000075 | F119: 0.25000875 | G119: 0.125009375 | H119: 0.0625096875 | I119: 0.03125984375 | J119: 0.04688476563 | K119: 0.03907230469 | L119: 0.04297853516 | M119: 0.04493165039 | N119: 0.04395509277 | O119: 0.04444337158 | P119: 0.04419923218 | Q119: 0.04407716248 | R119: 0.04413819733 | S119: 0.0441076799 | T119: 0.04409242119 | U119: 0.04408479183 | V119: 0.04408097715 | W119: 0.04408288449 | X119: 0.04408383816 | Y119: 0.04408336133 | Z119: 0.04408359975
B120: 18 | C120: 23 | D120: 1.000005 | E120: 0.5000075 | F120: 0.25000875 | G120: 0.125009375 | H120: 0.0625096875 | I120: 0.03125984375 | J120: 0.04688476563 | K120: 0.03907230469 | L120: 0.04297853516 | M120: 0.04493165039 | N120: 0.04590820801 | O120: 0.0454199292 | P120: 0.0456640686 | Q120: 0.04578613831 | R120: 0.04572510345 | S120: 0.04575562088 | T120: 0.04574036217 | U120: 0.04573273281 | V120: 0.04572891813 | W120: 0.04573082547 | X120: 0.04573177914 | Y120: 0.04573225598 | Z120: 0.04573201756
B121: 19 | C121: 23 | D121: 1.000005 | E121: 0.5000075 | F121: 0.25000875 | G121: 0.125009375 | H121: 0.0625096875 | I121: 0.03125984375 | J121: 0.04688476563 | K121: 0.05469722656 | L121: 0.05079099609 | M121: 0.04883788086 | N121: 0.04786132324 | O121: 0.04737304443 | P121: 0.04761718384 | Q121: 0.04749511414 | R121: 0.04743407928 | S121: 0.04746459671 | T121: 0.047449338 | U121: 0.04744170864 | V121: 0.04743789396 | W121: 0.0474398013 | X121: 0.04743884763 | Y121: 0.04743932447 | Z121: 0.04743956288
B122: 20 | C122: 22 | D122: 1.000005 | E122: 0.5000075 | F122: 0.25000875 | G122: 0.125009375 | H122: 0.0625096875 | I122: 0.03125984375 | J122: 0.04688476563 | K122: 0.05469722656 | L122: 0.05079099609 | M122: 0.04883788086 | N122: 0.04981443848 | O122: 0.04932615967 | P122: 0.04908202026 | Q122: 0.04920408997 | R122: 0.04914305511 | S122: 0.04917357254 | T122: 0.04918883125 | U122: 0.0491812019 | V122: 0.04918501657 | W122: 0.04918310924 | X122: 0.04918406291 | Y122: 0.04918453974
B123: 21 | C123: 22 | D123: 1.000005 | E123: 0.5000075 | F123: 0.25000875 | G123: 0.125009375 | H123: 0.0625096875 | I123: 0.03125984375 | J123: 0.04688476563 | K123: 0.05469722656 | L123: 0.05079099609 | M123: 0.05274411133 | N123: 0.05176755371 | O123: 0.0512792749 | P123: 0.0510351355 | Q123: 0.0509130658 | R123: 0.05097410065 | S123: 0.05100461807 | T123: 0.05101987679 | U123: 0.05101224743 | V123: 0.05101606211 | W123: 0.05101796945 | X123: 0.05101701578 | Y123: 0.05101653894
B124: 22 | C124: 22 | D124: 1.000005 | E124: 0.5000075 | F124: 0.25000875 | G124: 0.125009375 | H124: 0.0625096875 | I124: 0.03125984375 | J124: 0.04688476563 | K124: 0.05469722656 | L124: 0.05079099609 | M124: 0.05274411133 | N124: 0.05372066895 | O124: 0.05323239014 | P124: 0.05298825073 | Q124: 0.05286618103 | R124: 0.05280514618 | S124: 0.0528356636 | T124: 0.05285092232 | U124: 0.05284329296 | V124: 0.05284710764 | W124: 0.05284901498 | X124: 0.05284806131 | Y124: 0.05284853814
B125: 23 | C125: 22 | D125: 1.000005 | E125: 0.5000075 | F125: 0.25000875 | G125: 0.125009375 | H125: 0.0625096875 | I125: 0.03125984375 | J125: 0.04688476563 | K125: 0.05469722656 | L125: 0.05860345703 | M125: 0.0566503418 | N125: 0.05567378418 | O125: 0.05518550537 | P125: 0.05494136597 | Q125: 0.05481929626 | R125: 0.05475826141 | S125: 0.05478877884 | T125: 0.05480403755 | U125: 0.0547964082 | V125: 0.05479259352 | W125: 0.05479068618 | X125: 0.05479163985 | Y125: 0.05479116301
B126: 24 | C126: 22 | D126: 1.000005 | E126: 0.5000075 | F126: 0.25000875 | G126: 0.125009375 | H126: 0.0625096875 | I126: 0.03125984375 | J126: 0.04688476563 | K126: 0.05469722656 | L126: 0.05860345703 | M126: 0.0566503418 | N126: 0.05762689941 | O126: 0.05713862061 | P126: 0.0568944812 | Q126: 0.0567724115 | R126: 0.05671137665 | S126: 0.05668085922 | T126: 0.05669611794 | U126: 0.05670374729 | V126: 0.05670756197 | W126: 0.05670565463 | X126: 0.0567066083 | Y126: 0.05670708513
B127: 25 | C127: 22 | D127: 1.000005 | E127: 0.5000075 | F127: 0.25000875 | G127: 0.125009375 | H127: 0.0625096875 | I127: 0.03125984375 | J127: 0.04688476563 | K127: 0.05469722656 | L127: 0.05860345703 | M127: 0.06055657227 | N127: 0.05958001465 | O127: 0.05909173584 | P127: 0.05884759644 | Q127: 0.05872552673 | R127: 0.05878656158 | S127: 0.05875604416 | T127: 0.05874078545 | U127: 0.0587484148 | V127: 0.05874460012 | W127: 0.05874650746 | X127: 0.05874555379 | Y127: 0.05874603063
B128: 26 | C128: 22 | D128: 1.000005 | E128: 0.5000075 | F128: 0.25000875 | G128: 0.125009375 | H128: 0.0625096875 | I128: 0.03125984375 | J128: 0.04688476563 | K128: 0.05469722656 | L128: 0.05860345703 | M128: 0.06055657227 | N128: 0.06153312988 | O128: 0.06104485107 | P128: 0.06080071167 | Q128: 0.06092278137 | R128: 0.06086174652 | S128: 0.0608312291 | T128: 0.06081597038 | U128: 0.06080834103 | V128: 0.0608121557 | W128: 0.06081406304 | X128: 0.06081501671 | Y128: 0.06081549355
B129: 27 | C129: 22 | D129: 1.000005 | E129: 0.5000075 | F129: 0.25000875 | G129: 0.125009375 | H129: 0.0625096875 | I129: 0.09375953125 | J129: 0.07813460937 | K129: 0.07032214844 | L129: 0.06641591797 | M129: 0.06446280273 | N129: 0.06348624512 | O129: 0.06299796631 | P129: 0.0627538269 | Q129: 0.06287589661 | R129: 0.06293693146 | S129: 0.06296744888 | T129: 0.0629827076 | U129: 0.06297507824 | V129: 0.06297126356 | W129: 0.0629731709 | X129: 0.06297412457 | Y129: 0.06297364774
B130: 28 | C130: 22 | D130: 1.000005 | E130: 0.5000075 | F130: 0.25000875 | G130: 0.125009375 | H130: 0.0625096875 | I130: 0.09375953125 | J130: 0.07813460937 | K130: 0.07032214844 | L130: 0.06641591797 | M130: 0.06446280273 | N130: 0.06543936035 | O130: 0.06495108154 | P130: 0.06519522095 | Q130: 0.06531729065 | R130: 0.0653783255 | S130: 0.06534780807 | T130: 0.06536306679 | U130: 0.06535543743 | V130: 0.06535925211 | W130: 0.06535734477 | X130: 0.06535829844 | Y130: 0.06535782161
B131: 29 | C131: 22 | D131: 1.000005 | E131: 0.5000075 | F131: 0.25000875 | G131: 0.125009375 | H131: 0.0625096875 | I131: 0.09375953125 | J131: 0.07813460937 | K131: 0.07032214844 | L131: 0.06641591797 | M131: 0.0683690332 | N131: 0.06739247559 | O131: 0.06788075439 | P131: 0.06763661499 | Q131: 0.06751454529 | R131: 0.06745351044 | S131: 0.06742299301 | T131: 0.06743825172 | U131: 0.06744588108 | V131: 0.0674420664 | W131: 0.06744397374 | X131: 0.06744302007 | Y131: 0.06744254324
B132: 30 | C132: 22 | D132: 1.000005 | E132: 0.5000075 | F132: 0.25000875 | G132: 0.125009375 | H132: 0.0625096875 | I132: 0.09375953125 | J132: 0.07813460937 | K132: 0.07032214844 | L132: 0.06641591797 | M132: 0.0683690332 | N132: 0.06934559082 | O132: 0.06983386963 | P132: 0.06958973022 | Q132: 0.06971179993 | R132: 0.06977283478 | S132: 0.0698033522 | T132: 0.06981861092 | U132: 0.06982624027 | V132: 0.06983005495 | W132: 0.06982814761 | X132: 0.06982910128 | Y132: 0.06982862445
B133: 31 | C133: 22 | D133: 1.000005 | E133: 0.5000075 | F133: 0.25000875 | G133: 0.125009375 | H133: 0.0625096875 | I133: 0.09375953125 | J133: 0.07813460937 | K133: 0.07032214844 | L133: 0.07422837891 | M133: 0.07227526367 | N133: 0.07129870605 | O133: 0.07178698486 | P133: 0.07203112427 | Q133: 0.07190905457 | R133: 0.07197008942 | S133: 0.07200060684 | T133: 0.07201586555 | U133: 0.07202349491 | V133: 0.07202730959 | W133: 0.07202921693 | X133: 0.0720301706 | Y133: 0.07202969376
B134: 32 | C134: 22 | D134: 1.000005 | E134: 0.5000075 | F134: 0.25000875 | G134: 0.125009375 | H134: 0.0625096875 | I134: 0.09375953125 | J134: 0.07813460937 | K134: 0.07032214844 | L134: 0.07422837891 | M134: 0.07618149414 | N134: 0.07520493652 | O134: 0.07471665771 | P134: 0.07447251831 | Q134: 0.07435044861 | R134: 0.07441148346 | S134: 0.07444200089 | T134: 0.07442674217 | U134: 0.07443437153 | V134: 0.07443055685 | W134: 0.07442864951 | X134: 0.07442769584 | Y134: 0.07442721901
B135: 33 | C135: 22 | D135: 1.000005 | E135: 0.5000075 | F135: 0.25000875 | G135: 0.125009375 | H135: 0.0625096875 | I135: 0.09375953125 | J135: 0.07813460937 | K135: 0.07032214844 | L135: 0.07422837891 | M135: 0.07618149414 | N135: 0.07715805176 | O135: 0.07666977295 | P135: 0.07691391235 | Q135: 0.07703598206 | R135: 0.0769749472 | S135: 0.07694442978 | T135: 0.07695968849 | U135: 0.07695205914 | V135: 0.07694824446 | W135: 0.07694633712 | X135: 0.07694729079 | Y135: 0.07694681395
B136: 34 | C136: 22 | D136: 1.000005 | E136: 0.5000075 | F136: 0.25000875 | G136: 0.125009375 | H136: 0.0625096875 | I136: 0.09375953125 | J136: 0.07813460937 | K136: 0.08594707031 | L136: 0.08204083984 | M136: 0.08008772461 | N136: 0.07911116699 | O136: 0.0795994458 | P136: 0.0793553064 | Q136: 0.07923323669 | R136: 0.07917220184 | S136: 0.07914168442 | T136: 0.07915694313 | U136: 0.07914931377 | V136: 0.07915312845 | W136: 0.07915122111 | X136: 0.07915026744 | Y136: 0.07915074428
B137: 35 | C137: 22 | D137: 1.000005 | E137: 0.5000075 | F137: 0.25000875 | G137: 0.125009375 | H137: 0.0625096875 | I137: 0.09375953125 | J137: 0.07813460937 | K137: 0.08594707031 | L137: 0.08204083984 | M137: 0.08008772461 | N137: 0.08106428223 | O137: 0.08155256104 | P137: 0.08179670044 | Q137: 0.08167463074 | R137: 0.08161359589 | S137: 0.08164411331 | T137: 0.08165937202 | U137: 0.08166700138 | V137: 0.08167081606 | W137: 0.0816727234 | X137: 0.08167176973 | Y137: 0.08167224656
B138: 36 | C138: 22 | D138: 1.000005 | E138: 0.5000075 | F138: 0.25000875 | G138: 0.125009375 | H138: 0.0625096875 | I138: 0.09375953125 | J138: 0.07813460937 | K138: 0.08594707031 | L138: 0.08204083984 | M138: 0.08399395508 | N138: 0.0849705127 | O138: 0.08448223389 | P138: 0.08423809448 | Q138: 0.08436016418 | R138: 0.08429912933 | S138: 0.08426861191 | T138: 0.08428387062 | U138: 0.08429149998 | V138: 0.0842876853 | W138: 0.08428577796 | X138: 0.08428673163 | Y138: 0.08428720846
B139: 37 | C139: 22 | D139: 1.000005 | E139: 0.5000075 | F139: 0.25000875 | G139: 0.125009375 | H139: 0.0625096875 | I139: 0.09375953125 | J139: 0.07813460937 | K139: 0.08594707031 | L139: 0.08985330078 | M139: 0.08790018555 | N139: 0.08692362793 | O139: 0.08643534912 | P139: 0.08667948853 | Q139: 0.08655741882 | R139: 0.08649638397 | S139: 0.0865269014 | T139: 0.08651164268 | U139: 0.08651927204 | V139: 0.08651545736 | W139: 0.08651355002 | X139: 0.08651259635 | Y139: 0.08651211952
B140: 38 | C140: 22 | D140: 1.000005 | E140: 0.5000075 | F140: 0.25000875 | G140: 0.125009375 | H140: 0.0625096875 | I140: 0.09375953125 | J140: 0.07813460937 | K140: 0.08594707031 | L140: 0.08985330078 | M140: 0.08790018555 | N140: 0.08887674316 | O140: 0.08936502197 | P140: 0.08912088257 | Q140: 0.08924295227 | R140: 0.08918191742 | S140: 0.08915139999 | T140: 0.08913614128 | U140: 0.08912851192 | V140: 0.08912469725 | W140: 0.08912278991 | X140: 0.08912183624 | Y140: 0.08912231307
B141: 39 | C141: 22 | D141: 1.000005 | E141: 0.5000075 | F141: 0.25000875 | G141: 0.125009375 | H141: 0.0625096875 | I141: 0.09375953125 | J141: 0.07813460937 | K141: 0.08594707031 | L141: 0.08985330078 | M141: 0.09180641602 | N141: 0.0908298584 | O141: 0.09131813721 | P141: 0.09156227661 | Q141: 0.09144020691 | R141: 0.09150124176 | S141: 0.09147072433 | T141: 0.09145546562 | U141: 0.09146309498 | V141: 0.09146690966 | W141: 0.091468817 | X141: 0.09146977067 | Y141: 0.0914702475
B142: 40 | C142: 22 | D142: 1.000005 | E142: 0.5000075 | F142: 0.25000875 | G142: 0.125009375 | H142: 0.0625096875 | I142: 0.09375953125 | J142: 0.1093844531 | K142: 0.1015719922 | L142: 0.09766576172 | M142: 0.09571264648 | N142: 0.09473608887 | O142: 0.09424781006 | P142: 0.09400367065 | Q142: 0.09388160095 | R142: 0.0939426358 | S142: 0.09397315323 | T142: 0.09398841194 | U142: 0.0939960413 | V142: 0.09399222662 | W142: 0.09399413396 | X142: 0.09399318029 | Y142: 0.09399365712
B143: 41 | C143: 21 | D143: 1.000005 | E143: 0.5000075 | F143: 0.25000875 | G143: 0.125009375 | H143: 0.0625096875 | I143: 0.09375953125 | J143: 0.1093844531 | K143: 0.1015719922 | L143: 0.09766576172 | M143: 0.09571264648 | N143: 0.0966892041 | O143: 0.09620092529 | P143: 0.09595678589 | Q143: 0.09607885559 | R143: 0.09601782074 | S143: 0.09604833817 | T143: 0.09603307945 | U143: 0.0960254501 | V143: 0.09602926477 | W143: 0.09602735744 | X143: 0.09602640377
B144: 42 | C144: 21 | D144: 1.000005 | E144: 0.5000075 | F144: 0.25000875 | G144: 0.125009375 | H144: 0.0625096875 | I144: 0.09375953125 | J144: 0.1093844531 | K144: 0.1015719922 | L144: 0.09766576172 | M144: 0.09961887695 | N144: 0.09864231934 | O144: 0.09815404053 | P144: 0.09790990112 | Q144: 0.09778783142 | R144: 0.09772679657 | S144: 0.097757314 | T144: 0.09777257271 | U144: 0.09776494335 | V144: 0.09776875803 | W144: 0.09777066537 | X144: 0.0977697117
B145: 43 | C145: 21 | D145: 1.000005 | E145: 0.5000075 | F145: 0.25000875 | G145: 0.125009375 | H145: 0.0625096875 | I145: 0.09375953125 | J145: 0.1093844531 | K145: 0.1015719922 | L145: 0.09766576172 | M145: 0.09961887695 | N145: 0.1005954346 | O145: 0.1001071558 | P145: 0.09986301636 | Q145: 0.09974094666 | R145: 0.09980198151 | S145: 0.09983249893 | T145: 0.09984775764 | U145: 0.099855387 | V145: 0.09985920168 | W145: 0.09986110902 | X145: 0.09986015535
B146: 44 | C146: 21 | D146: 1.000005 | E146: 0.5000075 | F146: 0.25000875 | G146: 0.125009375 | H146: 0.0625096875 | I146: 0.09375953125 | J146: 0.1093844531 | K146: 0.1015719922 | L146: 0.1054782227 | M146: 0.1035251074 | N146: 0.1025485498 | O146: 0.102060271 | P146: 0.1018161316 | Q146: 0.1016940619 | R146: 0.101633027 | S146: 0.1016635445 | T146: 0.1016482858 | U146: 0.1016406564 | V146: 0.1016444711 | W146: 0.1016425637 | X146: 0.1016435174
B147: 45 | C147: 21 | D147: 1.000005 | E147: 0.5000075 | F147: 0.25000875 | G147: 0.125009375 | H147: 0.0625096875 | I147: 0.09375953125 | J147: 0.1093844531 | K147: 0.1015719922 | L147: 0.1054782227 | M147: 0.1035251074 | N147: 0.104501665 | O147: 0.1040133862 | P147: 0.1037692468 | Q147: 0.1038913165 | R147: 0.1038302817 | S147: 0.1037997643 | T147: 0.1037845055 | U147: 0.1037768762 | V147: 0.1037806909 | W147: 0.1037825982 | X147: 0.1037835519
B148: 46 | C148: 21 | D148: 1.000005 | E148: 0.5000075 | F148: 0.25000875 | G148: 0.125009375 | H148: 0.0625096875 | I148: 0.09375953125 | J148: 0.1093844531 | K148: 0.1015719922 | L148: 0.1054782227 | M148: 0.1074313379 | N148: 0.1064547803 | O148: 0.1059665015 | P148: 0.1057223621 | Q148: 0.1056002924 | R148: 0.1056613272 | S148: 0.1056308098 | T148: 0.1056155511 | U148: 0.1056079217 | V148: 0.1056117364 | W148: 0.1056136437 | X148: 0.1056145974
B149: 47 | C149: 21 | D149: 1.000005 | E149: 0.5000075 | F149: 0.25000875 | G149: 0.125009375 | H149: 0.0625096875 | I149: 0.09375953125 | J149: 0.1093844531 | K149: 0.1015719922 | L149: 0.1054782227 | M149: 0.1074313379 | N149: 0.1084078955 | O149: 0.1079196167 | P149: 0.1076754773 | Q149: 0.107797547 | R149: 0.1077365121 | S149: 0.1077670296 | T149: 0.1077822883 | U149: 0.1077899176 | V149: 0.1077937323 | W149: 0.1077956397 | X149: 0.1077965933
B150: 48 | C150: 21 | D150: 1.000005 | E150: 0.5000075 | F150: 0.25000875 | G150: 0.125009375 | H150: 0.0625096875 | I150: 0.09375953125 | J150: 0.1093844531 | K150: 0.1171969141 | L150: 0.1132906836 | M150: 0.1113375684 | N150: 0.1103610107 | O150: 0.1098727319 | P150: 0.1096285925 | Q150: 0.1097506622 | R150: 0.1096896274 | S150: 0.10965911 | T150: 0.1096743687 | U150: 0.109681998 | V150: 0.1096781833 | W150: 0.109676276 | X150: 0.1096753223
B151: 49 | C151: 21 | D151: 1.000005 | E151: 0.5000075 | F151: 0.25000875 | G151: 0.125009375 | H151: 0.0625096875 | I151: 0.09375953125 | J151: 0.1093844531 | K151: 0.1171969141 | L151: 0.1132906836 | M151: 0.1113375684 | N151: 0.112314126 | O151: 0.1118258472 | P151: 0.1120699866 | Q151: 0.1119479169 | R151: 0.111886882 | S151: 0.1119173994 | T151: 0.1119021407 | U151: 0.1118945114 | V151: 0.1118983261 | W151: 0.1118964187 | X151: 0.1118973724
B152: 50 | C152: 21 | D152: 1.000005 | E152: 0.5000075 | F152: 0.25000875 | G152: 0.125009375 | H152: 0.0625096875 | I152: 0.09375953125 | J152: 0.1093844531 | K152: 0.1171969141 | L152: 0.1132906836 | M152: 0.1152437988 | N152: 0.1142672412 | O152: 0.1137789624 | P152: 0.1140231018 | Q152: 0.1139010321 | R152: 0.1138399973 | S152: 0.1138094798 | T152: 0.1138247385 | U152: 0.1138323679 | V152: 0.1138285532 | W152: 0.1138266459 | X152: 0.1138256922
B153: 51 | C153: 21 | D153: 1.000005 | E153: 0.5000075 | F153: 0.25000875 | G153: 0.125009375 | H153: 0.0625096875 | I153: 0.09375953125 | J153: 0.1093844531 | K153: 0.1171969141 | L153: 0.1132906836 | M153: 0.1152437988 | N153: 0.1162203564 | O153: 0.1157320776 | P153: 0.115976217 | Q153: 0.1160982867 | R153: 0.1160372519 | S153: 0.1160677693 | T153: 0.116083028 | U153: 0.1160753987 | V153: 0.1160792134 | W153: 0.1160811207 | X153: 0.116080167
B154: 52 | C154: 21 | D154: 1.000005 | E154: 0.5000075 | F154: 0.25000875 | G154: 0.125009375 | H154: 0.0625096875 | I154: 0.09375953125 | J154: 0.1093844531 | K154: 0.1171969141 | L154: 0.1211031445 | M154: 0.1191500293 | N154: 0.1181734717 | O154: 0.1176851929 | P154: 0.1179293323 | Q154: 0.118051402 | R154: 0.1181124368 | S154: 0.1180819194 | T154: 0.1180666607 | U154: 0.1180590313 | V154: 0.118062846 | W154: 0.1180647534 | X154: 0.1180637997
B155: 53 | C155: 21 | D155: 1.000005 | E155: 0.5000075 | F155: 0.25000875 | G155: 0.125009375 | H155: 0.0625096875 | I155: 0.09375953125 | J155: 0.1093844531 | K155: 0.1171969141 | L155: 0.1211031445 | M155: 0.1191500293 | N155: 0.1201265869 | O155: 0.1206148657 | P155: 0.1203707263 | Q155: 0.120492796 | R155: 0.1205538309 | S155: 0.1205233134 | T155: 0.1205080547 | U155: 0.1205156841 | V155: 0.1205118694 | W155: 0.1205137768 | X155: 0.1205128231
B156: 54 | C156: 21 | D156: 1.000005 | E156: 0.5000075 | F156: 0.25000875 | G156: 0.125009375 | H156: 0.0625096875 | I156: 0.09375953125 | J156: 0.1093844531 | K156: 0.1171969141 | L156: 0.1211031445 | M156: 0.1230562598 | N156: 0.1220797021 | O156: 0.122567981 | P156: 0.1228121204 | Q156: 0.1226900507 | R156: 0.1227510855 | S156: 0.1227205681 | T156: 0.1227358268 | U156: 0.1227434562 | V156: 0.1227396415 | W156: 0.1227377341 | X156: 0.1227367805
B157: 55 | C157: 21 | D157: 1.000005 | E157: 0.5000075 | F157: 0.25000875 | G157: 0.125009375 | H157: 0.1875090625 | I157: 0.1562592187 | J157: 0.1406342969 | K157: 0.1328218359 | L157: 0.1289156055 | M157: 0.1269624902 | N157: 0.1259859326 | O157: 0.1254976538 | P157: 0.1252535144 | Q157: 0.1251314447 | R157: 0.1251924796 | S157: 0.125222997 | T157: 0.1252077383 | U157: 0.1252153676 | V157: 0.1252115529 | W157: 0.1252134603 | X157: 0.1252125066
B158: 56 | C158: 21 | D158: 1.000005 | E158: 0.5000075 | F158: 0.25000875 | G158: 0.125009375 | H158: 0.1875090625 | I158: 0.1562592187 | J158: 0.1406342969 | K158: 0.1328218359 | L158: 0.1289156055 | M158: 0.1269624902 | N158: 0.1279390479 | O158: 0.127450769 | P158: 0.1276949084 | Q158: 0.1278169781 | R158: 0.1277559433 | S158: 0.1277864607 | T158: 0.127771202 | U158: 0.1277635727 | V158: 0.127759758 | W158: 0.1277578506 | X158: 0.1277588043
B159: 57 | C159: 21 | D159: 1.000005 | E159: 0.5000075 | F159: 0.25000875 | G159: 0.125009375 | H159: 0.1875090625 | I159: 0.1562592187 | J159: 0.1406342969 | K159: 0.1328218359 | L159: 0.1289156055 | M159: 0.1308687207 | N159: 0.1298921631 | O159: 0.1303804419 | P159: 0.1301363025 | Q159: 0.1300142328 | R159: 0.1299531979 | S159: 0.1299837154 | T159: 0.1299989741 | U159: 0.1299913447 | V159: 0.1299951594 | W159: 0.1299932521 | X159: 0.1299942057
B160: 58 | C160: 21 | D160: 1.000005 | E160: 0.5000075 | F160: 0.25000875 | G160: 0.125009375 | H160: 0.1875090625 | I160: 0.1562592187 | J160: 0.1406342969 | K160: 0.1328218359 | L160: 0.1289156055 | M160: 0.1308687207 | N160: 0.1318452783 | O160: 0.1323335571 | P160: 0.1325776965 | Q160: 0.1324556268 | R160: 0.1325166617 | S160: 0.1325471791 | T160: 0.1325319204 | U160: 0.1325395498 | V160: 0.1325433644 | W160: 0.1325414571 | X160: 0.1325424108
B161: 59 | C161: 21 | D161: 1.000005 | E161: 0.5000075 | F161: 0.25000875 | G161: 0.125009375 | H161: 0.1875090625 | I161: 0.1562592187 | J161: 0.1406342969 | K161: 0.1328218359 | L161: 0.1367280664 | M161: 0.1347749512 | N161: 0.1357515088 | O161: 0.13526323 | P161: 0.1350190906 | Q161: 0.1351411603 | R161: 0.1350801254 | S161: 0.1351106429 | T161: 0.1351259016 | U161: 0.1351182722 | V161: 0.1351144575 | W161: 0.1351163649 | X161: 0.1351173185
B162: 60 | C162: 21 | D162: 1.000005 | E162: 0.5000075 | F162: 0.25000875 | G162: 0.125009375 | H162: 0.1875090625 | I162: 0.1562592187 | J162: 0.1406342969 | K162: 0.1328218359 | L162: 0.1367280664 | M162: 0.1386811816 | N162: 0.137704624 | O162: 0.1372163452 | P162: 0.1374604846 | Q162: 0.1373384149 | R162: 0.1373994498 | S162: 0.1374299672 | T162: 0.1374147085 | U162: 0.1374070791 | V162: 0.1374032644 | W162: 0.1374013571 | X162: 0.1374023108
B163: 61 | C163: 21 | D163: 1.000005 | E163: 0.5000075 | F163: 0.25000875 | G163: 0.125009375 | H163: 0.1875090625 | I163: 0.1562592187 | J163: 0.1406342969 | K163: 0.1328218359 | L163: 0.1367280664 | M163: 0.1386811816 | N163: 0.1396577393 | O163: 0.1401460181 | P163: 0.1399018787 | Q163: 0.1400239484 | R163: 0.1400849832 | S163: 0.1400544658 | T163: 0.1400392071 | U163: 0.1400315777 | V163: 0.140027763 | W163: 0.1400296704 | X163: 0.1400287167
B164: 62 | C164: 21 | D164: 1.000005 | E164: 0.5000075 | F164: 0.25000875 | G164: 0.125009375 | H164: 0.1875090625 | I164: 0.1562592187 | J164: 0.1406342969 | K164: 0.1484467578 | L164: 0.1445405273 | M164: 0.1425874121 | N164: 0.1416108545 | O164: 0.1420991333 | P164: 0.1423432727 | Q164: 0.1424653424 | R164: 0.1424043076 | S164: 0.1423737901 | T164: 0.1423890488 | U164: 0.1423814195 | V164: 0.1423852342 | W164: 0.1423871415 | X164: 0.1423880952
B165: 63 | C165: 21 | D165: 1.000005 | E165: 0.5000075 | F165: 0.25000875 | G165: 0.125009375 | H165: 0.1875090625 | I165: 0.1562592187 | J165: 0.1406342969 | K165: 0.1484467578 | L165: 0.1445405273 | M165: 0.1464936426 | N165: 0.145517085 | O165: 0.1450288062 | P165: 0.1452729456 | Q165: 0.1451508759 | R165: 0.145089841 | S165: 0.1450593236 | T165: 0.1450440649 | U165: 0.1450516942 | V165: 0.1450478795 | W165: 0.1450459722 | X165: 0.1450450185
B166: 64 | C166: 21 | D166: 1.000005 | E166: 0.5000075 | F166: 0.25000875 | G166: 0.125009375 | H166: 0.1875090625 | I166: 0.1562592187 | J166: 0.1406342969 | K166: 0.1484467578 | L166: 0.1445405273 | M166: 0.1464936426 | N166: 0.1474702002 | O166: 0.147958479 | P166: 0.1477143396 | Q166: 0.1478364093 | R166: 0.1477753745 | S166: 0.147744857 | T166: 0.1477601157 | U166: 0.1477524864 | V166: 0.1477486717 | W166: 0.1477467644 | X166: 0.1477458107
B167: 65 | C167: 21 | D167: 1.000005 | E167: 0.5000075 | F167: 0.25000875 | G167: 0.125009375 | H167: 0.1875090625 | I167: 0.1562592187 | J167: 0.1406342969 | K167: 0.1484467578 | L167: 0.1523529883 | M167: 0.150399873 | N167: 0.1494233154 | O167: 0.1499115942 | P167: 0.1501557336 | Q167: 0.1500336639 | R167: 0.1500946988 | S167: 0.1501252162 | T167: 0.1501404749 | U167: 0.1501481043 | V167: 0.150151919 | W167: 0.1501538263 | X167: 0.15015478
B168: 66 | C168: 21 | D168: 1.000005 | E168: 0.5000075 | F168: 0.25000875 | G168: 0.125009375 | H168: 0.1875090625 | I168: 0.1562592187 | J168: 0.1406342969 | K168: 0.1484467578 | L168: 0.1523529883 | M168: 0.1543061035 | N168: 0.1533295459 | O168: 0.1528412671 | P168: 0.1525971277 | Q168: 0.1527191974 | R168: 0.1527802322 | S168: 0.1528107497 | T168: 0.1528260084 | U168: 0.1528336377 | V168: 0.1528374524 | W168: 0.1528393598 | X168: 0.1528403134
B169: 67 | C169: 21 | D169: 1.000005 | E169: 0.5000075 | F169: 0.25000875 | G169: 0.125009375 | H169: 0.1875090625 | I169: 0.1562592187 | J169: 0.1406342969 | K169: 0.1484467578 | L169: 0.1523529883 | M169: 0.1543061035 | N169: 0.1552826611 | O169: 0.1557709399 | P169: 0.1555268005 | Q169: 0.1556488702 | R169: 0.1555878354 | S169: 0.155557318 | T169: 0.1555725767 | U169: 0.1555649473 | V169: 0.155568762 | W169: 0.1555706693 | X169: 0.1555697157
B170: 68 | C170: 21 | D170: 1.000005 | E170: 0.5000075 | F170: 0.25000875 | G170: 0.125009375 | H170: 0.1875090625 | I170: 0.1562592187 | J170: 0.1718841406 | K170: 0.1640716797 | L170: 0.1601654492 | M170: 0.158212334 | N170: 0.1572357764 | O170: 0.1577240552 | P170: 0.1579681946 | Q170: 0.1580902643 | R170: 0.1580292294 | S170: 0.157998712 | T170: 0.1580139707 | U170: 0.1580063414 | V170: 0.1580025267 | W170: 0.158004434 | X170: 0.1580034804
B171: 69 | C171: 21 | D171: 1.000005 | E171: 0.5000075 | F171: 0.25000875 | G171: 0.125009375 | H171: 0.1875090625 | I171: 0.1562592187 | J171: 0.1718841406 | K171: 0.1640716797 | L171: 0.1601654492 | M171: 0.1621185645 | N171: 0.1611420068 | O171: 0.160653728 | P171: 0.1608978674 | Q171: 0.1607757977 | R171: 0.1607147629 | S171: 0.1607452803 | T171: 0.1607300216 | U171: 0.1607223922 | V171: 0.1607185776 | W171: 0.1607166702 | X171: 0.1607157165
B172: 70 | C172: 21 | D172: 1.000005 | E172: 0.5000075 | F172: 0.25000875 | G172: 0.125009375 | H172: 0.1875090625 | I172: 0.1562592187 | J172: 0.1718841406 | K172: 0.1640716797 | L172: 0.1601654492 | M172: 0.1621185645 | N172: 0.1630951221 | O172: 0.1635834009 | P172: 0.1633392615 | Q172: 0.1634613312 | R172: 0.163522366 | S172: 0.1634918486 | T172: 0.1634765899 | U172: 0.1634689605 | V172: 0.1634651459 | W172: 0.1634670532 | X172: 0.1634680069
B173: 71 | C173: 21 | D173: 1.000005 | E173: 0.5000075 | F173: 0.25000875 | G173: 0.125009375 | H173: 0.1875090625 | I173: 0.1562592187 | J173: 0.1718841406 | K173: 0.1640716797 | L173: 0.1679779102 | M173: 0.1660247949 | N173: 0.1650482373 | O173: 0.1655365161 | P173: 0.1657806555 | Q173: 0.1659027252 | R173: 0.1659637601 | S173: 0.1659332426 | T173: 0.1659179839 | U173: 0.1659256133 | V173: 0.165929428 | W173: 0.1659275206 | X173: 0.1659284743
B174: 72 | C174: 21 | D174: 1.000005 | E174: 0.5000075 | F174: 0.25000875 | G174: 0.125009375 | H174: 0.1875090625 | I174: 0.1562592187 | J174: 0.1718841406 | K174: 0.1640716797 | L174: 0.1679779102 | M174: 0.1699310254 | N174: 0.1689544678 | O174: 0.168466189 | P174: 0.1687103284 | Q174: 0.1685882587 | R174: 0.1686492935 | S174: 0.1686798109 | T174: 0.1686645522 | U174: 0.1686569229 | V174: 0.1686607376 | W174: 0.1686626449 | X174: 0.1686635986
B175: 73 | C175: 21 | D175: 1.000005 | E175: 0.5000075 | F175: 0.25000875 | G175: 0.125009375 | H175: 0.1875090625 | I175: 0.1562592187 | J175: 0.1718841406 | K175: 0.1640716797 | L175: 0.1679779102 | M175: 0.1699310254 | N175: 0.170907583 | O175: 0.1713958618 | P175: 0.1716400012 | Q175: 0.1715179315 | R175: 0.1714568967 | S175: 0.1714263792 | T175: 0.171441638 | U175: 0.1714340086 | V175: 0.1714378233 | W175: 0.1714359159 | X175: 0.1714368696
B176: 74 | C176: 21 | D176: 1.000005 | E176: 0.5000075 | F176: 0.25000875 | G176: 0.125009375 | H176: 0.1875090625 | I176: 0.1562592187 | J176: 0.1718841406 | K176: 0.1796966016 | L176: 0.1757903711 | M176: 0.1738372559 | N176: 0.1748138135 | O176: 0.1743255347 | P176: 0.1740813953 | Q176: 0.174203465 | R176: 0.1742644998 | S176: 0.1742339824 | T176: 0.1742492411 | U176: 0.1742416117 | V176: 0.1742454264 | W176: 0.1742435191 | X176: 0.1742425654
B177: 75 | C177: 21 | D177: 1.000005 | E177: 0.5000075 | F177: 0.25000875 | G177: 0.125009375 | H177: 0.1875090625 | I177: 0.1562592187 | J177: 0.1718841406 | K177: 0.1796966016 | L177: 0.1757903711 | M177: 0.1777434863 | N177: 0.1767669287 | O177: 0.1762786499 | P177: 0.1765227893 | Q177: 0.176644859 | R177: 0.1767058939 | S177: 0.1766753764 | T177: 0.1766906351 | U177: 0.1766830058 | V177: 0.1766791911 | W177: 0.1766772838 | X177: 0.1766782374
B178: 76 | C178: 21 | D178: 1.000005 | E178: 0.5000075 | F178: 0.25000875 | G178: 0.125009375 | H178: 0.1875090625 | I178: 0.1562592187 | J178: 0.1718841406 | K178: 0.1796966016 | L178: 0.1757903711 | M178: 0.1777434863 | N178: 0.1787200439 | O178: 0.1792083228 | P178: 0.1794524622 | Q178: 0.1795745319 | R178: 0.179513497 | S178: 0.1794829796 | T178: 0.1794677209 | U178: 0.1794753502 | V178: 0.1794715355 | W178: 0.1794696282 | X178: 0.1794686745
B179: 77 | C179: 21 | D179: 1.000005 | E179: 0.5000075 | F179: 0.25000875 | G179: 0.125009375 | H179: 0.1875090625 | I179: 0.1562592187 | J179: 0.1718841406 | K179: 0.1796966016 | L179: 0.183602832 | M179: 0.1816497168 | N179: 0.1826262744 | O179: 0.1821379956 | P179: 0.182382135 | Q179: 0.1822600653 | R179: 0.1823211002 | S179: 0.1822905827 | T179: 0.182275324 | U179: 0.1822829534 | V179: 0.1822867681 | W179: 0.1822886754 | X179: 0.1822896291
B180: 78 | C180: 21 | D180: 1.000005 | E180: 0.5000075 | F180: 0.25000875 | G180: 0.125009375 | H180: 0.1875090625 | I180: 0.1562592187 | J180: 0.1718841406 | K180: 0.1796966016 | L180: 0.183602832 | M180: 0.1855559473 | N180: 0.1845793896 | O180: 0.1850676685 | P180: 0.1848235291 | Q180: 0.1847014594 | R180: 0.1847624942 | S180: 0.1847319768 | T180: 0.1847472355 | U180: 0.1847548648 | V180: 0.1847510502 | W180: 0.1847529575 | X180: 0.1847539112
B181: 79 | C181: 21 | D181: 1.000005 | E181: 0.5000075 | F181: 0.25000875 | G181: 0.125009375 | H181: 0.1875090625 | I181: 0.2187589062 | J181: 0.2031339844 | K181: 0.1953215234 | L181: 0.191415293 | M181: 0.1894621777 | N181: 0.1884856201 | O181: 0.1879973413 | P181: 0.1877532019 | Q181: 0.1876311322 | R181: 0.1875700974 | S181: 0.1875395799 | T181: 0.1875548386 | U181: 0.187562468 | V181: 0.1875586533 | W181: 0.187556746 | X181: 0.1875576996
B182: 80 | C182: 21 | D182: 1.000005 | E182: 0.5000075 | F182: 0.25000875 | G182: 0.125009375 | H182: 0.1875090625 | I182: 0.2187589062 | J182: 0.2031339844 | K182: 0.1953215234 | L182: 0.191415293 | M182: 0.1894621777 | N182: 0.1904387354 | O182: 0.1899504565 | P182: 0.1901945959 | Q182: 0.1903166656 | R182: 0.1903777005 | S182: 0.1904082179 | T182: 0.1903929592 | U182: 0.1903853299 | V182: 0.1903891445 | W182: 0.1903910519 | X182: 0.1903900982
B183: 81 | C183: 20 | D183: 1.000005 | E183: 0.5000075 | F183: 0.25000875 | G183: 0.125009375 | H183: 0.1875090625 | I183: 0.2187589062 | J183: 0.2031339844 | K183: 0.1953215234 | L183: 0.191415293 | M183: 0.1933684082 | N183: 0.1923918506 | O183: 0.1928801294 | P183: 0.1931242688 | Q183: 0.1930021991 | R183: 0.1929411642 | S183: 0.1929106468 | T183: 0.1928953881 | U183: 0.1928877588 | V183: 0.1928839441 | W183: 0.1928858514
B184: 82 | C184: 20 | D184: 1.000005 | E184: 0.5000075 | F184: 0.25000875 | G184: 0.125009375 | H184: 0.1875090625 | I184: 0.2187589062 | J184: 0.2031339844 | K184: 0.1953215234 | L184: 0.1992277539 | M184: 0.1972746387 | N184: 0.1962980811 | O184: 0.1958098022 | P184: 0.1955656628 | Q184: 0.1956877325 | R184: 0.1957487674 | S184: 0.19571825 | T184: 0.1957029913 | U184: 0.1956953619 | V184: 0.1956991766 | W184: 0.1957010839
B185: 83 | C185: 20 | D185: 1.000005 | E185: 0.5000075 | F185: 0.25000875 | G185: 0.125009375 | H185: 0.1875090625 | I185: 0.2187589062 | J185: 0.2031339844 | K185: 0.1953215234 | L185: 0.1992277539 | M185: 0.1972746387 | N185: 0.1982511963 | O185: 0.1987394751 | P185: 0.1984953357 | Q185: 0.198373266 | R185: 0.1983122311 | S185: 0.1982817137 | T185: 0.198266455 | U185: 0.1982740844 | V185: 0.198277899 | W185: 0.1982798064
B186: 84 | C186: 20 | D186: 1.000005 | E186: 0.5000075 | F186: 0.25000875 | G186: 0.125009375 | H186: 0.1875090625 | I186: 0.2187589062 | J186: 0.2031339844 | K186: 0.1953215234 | L186: 0.1992277539 | M186: 0.2011808691 | N186: 0.2002043115 | O186: 0.2006925903 | P186: 0.2009367297 | Q186: 0.2010587994 | R186: 0.2009977646 | S186: 0.2009672472 | T186: 0.2009825059 | U186: 0.2009901352 | V186: 0.2009939499 | W186: 0.2009958572
B187: 85 | C187: 20 | D187: 1.000005 | E187: 0.5000075 | F187: 0.25000875 | G187: 0.125009375 | H187: 0.1875090625 | I187: 0.2187589062 | J187: 0.2031339844 | K187: 0.2109464453 | L187: 0.2070402148 | M187: 0.2050870996 | N187: 0.204110542 | O187: 0.2036222632 | P187: 0.2038664026 | Q187: 0.2039884723 | R187: 0.2039274374 | S187: 0.20389692 | T187: 0.2038816613 | U187: 0.2038740319 | V187: 0.2038778466 | W187: 0.2038759393
B188: 86 | C188: 20 | D188: 1.000005 | E188: 0.5000075 | F188: 0.25000875 | G188: 0.125009375 | H188: 0.1875090625 | I188: 0.2187589062 | J188: 0.2031339844 | K188: 0.2109464453 | L188: 0.2070402148 | M188: 0.2050870996 | N188: 0.2060636572 | O188: 0.206551936 | P188: 0.2067960754 | Q188: 0.2069181451 | R188: 0.20697918 | S188: 0.2069486626 | T188: 0.2069334039 | U188: 0.2069410332 | V188: 0.2069372185 | W188: 0.2069353112
B189: 87 | C189: 20 | D189: 1.000005 | E189: 0.5000075 | F189: 0.25000875 | G189: 0.125009375 | H189: 0.1875090625 | I189: 0.2187589062 | J189: 0.2031339844 | K189: 0.2109464453 | L189: 0.2070402148 | M189: 0.2089933301 | N189: 0.2099698877 | O189: 0.2104581665 | P189: 0.2102140271 | Q189: 0.2100919574 | R189: 0.2101529922 | S189: 0.2101835097 | T189: 0.2101987684 | U189: 0.210191139 | V189: 0.2101949537 | W189: 0.210196861
B190: 88 | C190: 20 | D190: 1.000005 | E190: 0.5000075 | F190: 0.25000875 | G190: 0.125009375 | H190: 0.1875090625 | I190: 0.2187589062 | J190: 0.2031339844 | K190: 0.2109464453 | L190: 0.2148526758 | M190: 0.2128995605 | N190: 0.2138761182 | O190: 0.2133878394 | P190: 0.2136319788 | Q190: 0.2137540485 | R190: 0.2136930136 | S190: 0.2136624962 | T190: 0.2136777549 | U190: 0.2136853843 | V190: 0.2136891989 | W190: 0.2136872916
B191: 89 | C191: 20 | D191: 1.000005 | E191: 0.5000075 | F191: 0.25000875 | G191: 0.125009375 | H191: 0.1875090625 | I191: 0.2187589062 | J191: 0.2031339844 | K191: 0.2109464453 | L191: 0.2148526758 | M191: 0.216805791 | N191: 0.2177823486 | O191: 0.2172940698 | P191: 0.2175382092 | Q191: 0.2174161395 | R191: 0.2174771744 | S191: 0.217446657 | T191: 0.2174313982 | U191: 0.2174390276 | V191: 0.2174352129 | W191: 0.2174333056
B192: 90 | C192: 20 | D192: 1.000005 | E192: 0.5000075 | F192: 0.25000875 | G192: 0.125009375 | H192: 0.1875090625 | I192: 0.2187589062 | J192: 0.2343838281 | K192: 0.2265713672 | L192: 0.2226651367 | M192: 0.2207120215 | N192: 0.2216885791 | O192: 0.2212003003 | P192: 0.2214444397 | Q192: 0.2215665094 | R192: 0.2215054745 | S192: 0.2214749571 | T192: 0.2214902158 | U192: 0.2214825865 | V192: 0.2214864012 | W192: 0.2214844938
B193: 91 | C193: 20 | D193: 1.000005 | E193: 0.5000075 | F193: 0.25000875 | G193: 0.125009375 | H193: 0.1875090625 | I193: 0.2187589062 | J193: 0.2343838281 | K193: 0.2265713672 | L193: 0.2226651367 | M193: 0.224618252 | N193: 0.2255948096 | O193: 0.2260830884 | P193: 0.225838949 | Q193: 0.2259610187 | R193: 0.2258999838 | S193: 0.2258694664 | T193: 0.2258847251 | U193: 0.2258770958 | V193: 0.2258809104 | W193: 0.2258790031
B194: 92 | C194: 20 | D194: 1.000005 | E194: 0.5000075 | F194: 0.25000875 | G194: 0.125009375 | H194: 0.1875090625 | I194: 0.2187589062 | J194: 0.2343838281 | K194: 0.2265713672 | L194: 0.2304775977 | M194: 0.2324307129 | N194: 0.2314541553 | O194: 0.2309658765 | P194: 0.2307217371 | Q194: 0.2305996674 | R194: 0.2306607022 | S194: 0.2306912196 | T194: 0.2306759609 | U194: 0.2306835903 | V194: 0.230687405 | W194: 0.2306854976
B195: 93 | C195: 20 | D195: 1.000005 | E195: 0.5000075 | F195: 0.25000875 | G195: 0.125009375 | H195: 0.1875090625 | I195: 0.2187589062 | J195: 0.2343838281 | K195: 0.2421962891 | L195: 0.2382900586 | M195: 0.2363369434 | N195: 0.2353603857 | O195: 0.2358486646 | P195: 0.236092804 | Q195: 0.2359707343 | R195: 0.2360317691 | S195: 0.2360012517 | T195: 0.235985993 | U195: 0.2359783636 | V195: 0.2359745489 | W195: 0.2359764563
B196: 94 | C196: 20 | D196: 1.000005 | E196: 0.5000075 | F196: 0.25000875 | G196: 0.125009375 | H196: 0.1875090625 | I196: 0.2187589062 | J196: 0.2343838281 | K196: 0.2421962891 | L196: 0.2382900586 | M196: 0.2402431738 | N196: 0.2412197314 | O196: 0.2417080103 | P196: 0.2419521497 | Q196: 0.24183008 | R196: 0.2418911148 | S196: 0.2418605974 | T196: 0.2418453387 | U196: 0.241852968 | V196: 0.2418567827 | W196: 0.24185869
B197: 95 | C197: 20 | D197: 1.000005 | E197: 0.5000075 | F197: 0.25000875 | G197: 0.125009375 | H197: 0.1875090625 | I197: 0.2187589062 | J197: 0.2343838281 | K197: 0.2421962891 | L197: 0.2461025195 | M197: 0.2480556348 | N197: 0.2490321924 | O197: 0.2485439136 | P197: 0.2482997742 | Q197: 0.2484218439 | R197: 0.2484828787 | S197: 0.2484523613 | T197: 0.24846762 | U197: 0.2484752494 | V197: 0.2484714347 | W197: 0.248473342
B198: 96 | C198: 20 | D198: 1.000005 | E198: 0.5000075 | F198: 0.25000875 | G198: 0.375008125 | H198: 0.3125084375 | I198: 0.2812585938 | J198: 0.2656336719 | K198: 0.2578212109 | L198: 0.2539149805 | M198: 0.2558680957 | N198: 0.2568446533 | O198: 0.2563563745 | P198: 0.2561122351 | Q198: 0.2559901654 | R198: 0.2560512003 | S198: 0.2560206828 | T198: 0.2560054241 | U198: 0.2560130535 | V198: 0.2560168682 | W198: 0.2560149608
B199: 97 | C199: 20 | D199: 1.000005 | E199: 0.5000075 | F199: 0.25000875 | G199: 0.375008125 | H199: 0.3125084375 | I199: 0.2812585938 | J199: 0.2656336719 | K199: 0.2578212109 | L199: 0.2617274414 | M199: 0.2636805566 | N199: 0.2646571143 | O199: 0.2651453931 | P199: 0.2649012537 | Q199: 0.264779184 | R199: 0.2647181491 | S199: 0.2647486665 | T199: 0.2647639252 | U199: 0.2647715546 | V199: 0.2647677399 | W199: 0.2647696473
B200: 98 | C200: 20 | D200: 1.000005 | E200: 0.5000075 | F200: 0.25000875 | G200: 0.375008125 | H200: 0.3125084375 | I200: 0.2812585938 | J200: 0.2656336719 | K200: 0.2734461328 | L200: 0.2773523633 | M200: 0.275399248 | N200: 0.2744226904 | O200: 0.2749109692 | P200: 0.2751551086 | Q200: 0.2752771783 | R200: 0.2752161435 | S200: 0.2751856261 | T200: 0.2751703674 | U200: 0.2751779967 | V200: 0.2751818114 | W200: 0.2751837187
... 104 more rows

Sheet 中立軸計算2
A1: ケース 1 | B1: ステップ | C1: 収束回数 | D1: 収束状況
A2: 降伏時 | B2: 1 | C2: 0
B3: 2 | C3: 20 | D3: -0.9300007 | E3: -0.39500105 | F3: -0.127501225 | G3: -0.2612511375 | H3: -0.1943761812 | I3: -0.2278136594 | J3: -0.2110949203 | K3: -0.2194542898 | L3: -0.2152746051 | M3: -0.2173644475 | N3: -0.2184093687 | O3: -0.2178869081 | P3: -0.2176256778 | Q3: -0.2174950626 | R3: -0.217429755 | S3: -0.2174624088 | T3: -0.2174460819 | U3: -0.2174379185 | V3: -0.2174420002 | W3: -0.2174399593
B4: 3 | C4: 23 | D4: -0.9300007 | E4: -0.39500105 | F4: -0.127501225 | G4: 0.0062486875 | H4: -0.06062626875 | I4: -0.02718879062 | J4: -0.04390752969 | K4: -0.03554816016 | L4: -0.03972784492 | M4: -0.03763800254 | N4: -0.03868292373 | O4: -0.03920538433 | P4: -0.03946661462 | Q4: -0.03959722977 | R4: -0.0395319222 | S4: -0.03949926841 | T4: -0.0395155953 | U4: -0.03952375875 | V4: -0.03951967703 | W4: -0.03952171789 | X4: -0.03952069746 | Y4: -0.03952120767 | Z4: -0.03952095257
B5: 4 | C5: 25 | D5: -0.9300007 | E5: -0.39500105 | F5: -0.127501225 | G5: 0.0062486875 | H5: 0.07312364375 | I5: 0.03968616563 | J5: 0.02296742656 | K5: 0.01460805703 | L5: 0.01042837227 | M5: 0.01251821465 | N5: 0.01147329346 | O5: 0.01095083286 | P5: 0.01068960256 | Q5: 0.01055898741 | R5: 0.01062429499 | S5: 0.0105916412 | T5: 0.01057531431 | U5: 0.01058347775 | V5: 0.01058755948 | W5: 0.01058551862 | X5: 0.01058653905 | Y5: 0.01058704926 | Z5: 0.01058679416 | AA5: 0.0105866666 | AB5: 0.01058660282
B6: 5 | C6: 24 | D6: -0.9300007 | E6: -0.39500105 | F6: -0.127501225 | G6: 0.0062486875 | H6: 0.07312364375 | I6: 0.03968616563 | J6: 0.02296742656 | K6: 0.01460805703 | L6: 0.0187877418 | M6: 0.02087758418 | N6: 0.01983266299 | O6: 0.01931020239 | P6: 0.01957143269 | Q6: 0.01944081754 | R6: 0.01950612512 | S6: 0.01947347133 | T6: 0.01948979822 | U6: 0.01949796167 | V6: 0.01950204339 | W6: 0.01950000253 | X6: 0.01950102296 | Y6: 0.01950051275 | Z6: 0.01950025764 | AA6: 0.01950038519
B7: 6 | C7: 23 | D7: -0.9300007 | E7: -0.39500105 | F7: -0.127501225 | G7: 0.0062486875 | H7: 0.07312364375 | I7: 0.03968616563 | J7: 0.02296742656 | K7: 0.03132679609 | L7: 0.02714711133 | M7: 0.02505726895 | N7: 0.02610219014 | O7: 0.02557972954 | P7: 0.02584095984 | Q7: 0.02597157499 | R7: 0.02590626741 | S7: 0.02587361363 | T7: 0.02588994052 | U7: 0.02589810397 | V7: 0.02589402224 | W7: 0.0258960631 | X7: 0.02589708354 | Y7: 0.02589759375 | Z7: 0.02589784886
B8: 7 | C8: 23 | D8: -0.9300007 | E8: -0.39500105 | F8: -0.127501225 | G8: 0.0062486875 | H8: 0.07312364375 | I8: 0.03968616563 | J8: 0.02296742656 | K8: 0.03132679609 | L8: 0.02714711133 | M8: 0.02923695371 | N8: 0.0302818749 | O8: 0.0308043355 | P8: 0.0305431052 | Q8: 0.03067372035 | R8: 0.03060841277 | S8: 0.03057575899 | T8: 0.03059208588 | U8: 0.03058392243 | V8: 0.03057984071 | W8: 0.03057779985 | X8: 0.03057677942 | Y8: 0.0305762692 | Z8: 0.03057652431
B9: 8 | C9: 23 | D9: -0.9300007 | E9: -0.39500105 | F9: -0.127501225 | G9: 0.0062486875 | H9: 0.07312364375 | I9: 0.03968616563 | J9: 0.02296742656 | K9: 0.03132679609 | L9: 0.03550648086 | M9: 0.03341663848 | N9: 0.03446155967 | O9: 0.03498402026 | P9: 0.03472278997 | Q9: 0.03459217482 | R9: 0.03465748239 | S9: 0.0346248286 | T9: 0.0346411555 | U9: 0.03463299205 | V9: 0.03462891033 | W9: 0.03463095119 | X9: 0.03462993076 | Y9: 0.03463044097 | Z9: 0.03463018587
B10: 9 | C10: 23 | D10: -0.9300007 | E10: -0.39500105 | F10: -0.127501225 | G10: 0.0062486875 | H10: 0.07312364375 | I10: 0.03968616563 | J10: 0.02296742656 | K10: 0.03132679609 | L10: 0.03550648086 | M10: 0.03759632324 | N10: 0.03864124443 | O10: 0.03811878384 | P10: 0.03838001414 | Q10: 0.03824939899 | R10: 0.03818409141 | S10: 0.0382167452 | T10: 0.03823307209 | U10: 0.03824123554 | V10: 0.03823715382 | W10: 0.03823919468 | X10: 0.03823817425 | Y10: 0.03823868446 | Z10: 0.03823842936
B11: 10 | C11: 23 | D11: -0.9300007 | E11: -0.39500105 | F11: -0.127501225 | G11: 0.0062486875 | H11: 0.07312364375 | I11: 0.03968616563 | J11: 0.05640490469 | K11: 0.04804553516 | L11: 0.04386585039 | M11: 0.04177600801 | N11: 0.04073108682 | O11: 0.04125354741 | P11: 0.04151477771 | Q11: 0.04164539286 | R11: 0.04158008528 | S11: 0.0415474315 | T11: 0.0415311046 | U11: 0.04152294116 | V11: 0.04151885943 | W11: 0.0415209003 | X11: 0.04151987986 | Y11: 0.04152039008 | Z11: 0.04152013497
B12: 11 | C12: 23 | D12: -0.9300007 | E12: -0.39500105 | F12: -0.127501225 | G12: 0.0062486875 | H12: 0.07312364375 | I12: 0.03968616563 | J12: 0.05640490469 | K12: 0.04804553516 | L12: 0.04386585039 | M12: 0.04595569277 | N12: 0.04491077158 | O12: 0.04438831099 | P12: 0.04412708069 | Q12: 0.04425769584 | R12: 0.04419238826 | S12: 0.04415973448 | T12: 0.04414340758 | U12: 0.04413524414 | V12: 0.04413932586 | W12: 0.044137285 | X12: 0.04413830543 | Y12: 0.04413881564 | Z12: 0.04413907075
B13: 12 | C13: 23 | D13: -0.9300007 | E13: -0.39500105 | F13: -0.127501225 | G13: 0.0062486875 | H13: 0.07312364375 | I13: 0.03968616563 | J13: 0.05640490469 | K13: 0.04804553516 | L13: 0.04386585039 | M13: 0.04595569277 | N13: 0.04700061396 | O13: 0.04647815337 | P13: 0.04673938367 | Q13: 0.04686999882 | R13: 0.04693530639 | S13: 0.0469026526 | T13: 0.0469189795 | U13: 0.04692714294 | V13: 0.04693122467 | W13: 0.04693326553 | X13: 0.0469322451 | Y13: 0.04693173488 | Z13: 0.04693198999
B14: 13 | C14: 23 | D14: -0.9300007 | E14: -0.39500105 | F14: -0.127501225 | G14: 0.0062486875 | H14: 0.07312364375 | I14: 0.03968616563 | J14: 0.05640490469 | K14: 0.04804553516 | L14: 0.05222521992 | M14: 0.05013537754 | N14: 0.04909045635 | O14: 0.04961291694 | P14: 0.04935168665 | Q14: 0.0492210715 | R14: 0.04928637907 | S14: 0.04925372528 | T14: 0.04927005218 | U14: 0.04926188873 | V14: 0.04925780701 | W14: 0.04925576615 | X14: 0.04925678658 | Y14: 0.04925627636 | Z14: 0.04925653147
B15: 14 | C15: 22 | D15: -0.9300007 | E15: -0.39500105 | F15: -0.127501225 | G15: 0.0062486875 | H15: 0.07312364375 | I15: 0.03968616563 | J15: 0.05640490469 | K15: 0.04804553516 | L15: 0.05222521992 | M15: 0.05013537754 | N15: 0.05118029873 | O15: 0.05170275933 | P15: 0.05196398962 | Q15: 0.05183337448 | R15: 0.0517680669 | S15: 0.05173541311 | T15: 0.05171908622 | U15: 0.05171092277 | V15: 0.05170684105 | W15: 0.05170480019 | X15: 0.05170377976 | Y15: 0.05170428997
B16: 15 | C16: 22 | D16: -0.9300007 | E16: -0.39500105 | F16: -0.127501225 | G16: 0.0062486875 | H16: 0.07312364375 | I16: 0.03968616563 | J16: 0.05640490469 | K16: 0.04804553516 | L16: 0.05222521992 | M16: 0.0543150623 | N16: 0.05327014111 | O16: 0.05379260171 | P16: 0.05405383201 | Q16: 0.05392321686 | R16: 0.05398852443 | S16: 0.05402117822 | T16: 0.05403750511 | U16: 0.05402934167 | V16: 0.05403342339 | W16: 0.05403546425 | X16: 0.05403648468 | Y16: 0.05403597447
B17: 16 | C17: 22 | D17: -0.9300007 | E17: -0.39500105 | F17: -0.127501225 | G17: 0.0062486875 | H17: 0.07312364375 | I17: 0.03968616563 | J17: 0.05640490469 | K17: 0.04804553516 | L17: 0.05222521992 | M17: 0.0543150623 | N17: 0.0553599835 | O17: 0.05588244409 | P17: 0.05614367439 | Q17: 0.05601305924 | R17: 0.05594775167 | S17: 0.05598040545 | T17: 0.05599673235 | U17: 0.0559885689 | V17: 0.05598448718 | W17: 0.05598244632 | X17: 0.05598142588 | Y17: 0.05598091567
B18: 17 | C18: 22 | D18: -0.9300007 | E18: -0.39500105 | F18: -0.127501225 | G18: 0.0062486875 | H18: 0.07312364375 | I18: 0.03968616563 | J18: 0.05640490469 | K18: 0.06476427422 | L18: 0.06058458945 | M18: 0.05849474707 | N18: 0.05744982588 | O18: 0.05797228647 | P18: 0.05771105618 | Q18: 0.05784167133 | R18: 0.0579069789 | S18: 0.05787432511 | T18: 0.05789065201 | U18: 0.05789881545 | V18: 0.05790289718 | W18: 0.05790085632 | X18: 0.05790187675 | Y18: 0.05790238696
B19: 18 | C19: 22 | D19: -0.9300007 | E19: -0.39500105 | F19: -0.127501225 | G19: 0.0062486875 | H19: 0.07312364375 | I19: 0.03968616563 | J19: 0.05640490469 | K19: 0.06476427422 | L19: 0.06058458945 | M19: 0.05849474707 | N19: 0.05953966826 | O19: 0.06006212886 | P19: 0.05980089856 | Q19: 0.05993151371 | R19: 0.05986620613 | S19: 0.05989885992 | T19: 0.05991518681 | U19: 0.05990702337 | V19: 0.05991110509 | W19: 0.05990906423 | X19: 0.05991008466 | Y19: 0.05990957445
B20: 19 | C20: 22 | D20: -0.9300007 | E20: -0.39500105 | F20: -0.127501225 | G20: 0.0062486875 | H20: 0.07312364375 | I20: 0.03968616563 | J20: 0.05640490469 | K20: 0.06476427422 | L20: 0.06058458945 | M20: 0.06267443184 | N20: 0.06162951064 | O20: 0.06215197124 | P20: 0.06189074094 | Q20: 0.06176012579 | R20: 0.06169481822 | S20: 0.06172747201 | T20: 0.06171114511 | U20: 0.06170298167 | V20: 0.06170706339 | W20: 0.06170502253 | X20: 0.06170604296 | Y20: 0.06170553274
B21: 20 | C21: 22 | D21: -0.9300007 | E21: -0.39500105 | F21: -0.127501225 | G21: 0.0062486875 | H21: 0.07312364375 | I21: 0.03968616563 | J21: 0.05640490469 | K21: 0.06476427422 | L21: 0.06058458945 | M21: 0.06267443184 | N21: 0.06371935303 | O21: 0.06319689243 | P21: 0.06345812273 | Q21: 0.06358873788 | R21: 0.06365404545 | S21: 0.06362139167 | T21: 0.06360506477 | U21: 0.06361322822 | V21: 0.06361730994 | W21: 0.06361526908 | X21: 0.06361424865 | Y21: 0.06361475887
B22: 21 | C22: 22 | D22: -0.9300007 | E22: -0.39500105 | F22: -0.127501225 | G22: 0.0062486875 | H22: 0.07312364375 | I22: 0.03968616563 | J22: 0.05640490469 | K22: 0.06476427422 | L22: 0.06894395898 | M22: 0.0668541166 | N22: 0.06580919541 | O22: 0.06528673481 | P22: 0.06502550452 | Q22: 0.06515611967 | R22: 0.06522142724 | S22: 0.06525408103 | T22: 0.06527040792 | U22: 0.06527857137 | V22: 0.06528265309 | W22: 0.06528061223 | X22: 0.0652795918 | Y22: 0.06528010201
B23: 22 | C23: 22 | D23: -0.9300007 | E23: -0.39500105 | F23: -0.127501225 | G23: 0.0062486875 | H23: 0.07312364375 | I23: 0.03968616563 | J23: 0.05640490469 | K23: 0.06476427422 | L23: 0.06894395898 | M23: 0.0668541166 | N23: 0.06789903779 | O23: 0.0673765772 | P23: 0.0671153469 | Q23: 0.06698473175 | R23: 0.06705003932 | S23: 0.06708269311 | T23: 0.06709902001 | U23: 0.06710718345 | V23: 0.06711126518 | W23: 0.06711330604 | X23: 0.06711432647 | Y23: 0.06711483668
B24: 23 | C24: 22 | D24: -0.9300007 | E24: -0.39500105 | F24: -0.127501225 | G24: 0.0062486875 | H24: 0.07312364375 | I24: 0.03968616563 | J24: 0.05640490469 | K24: 0.06476427422 | L24: 0.06894395898 | M24: 0.0668541166 | N24: 0.06789903779 | O24: 0.06842149839 | P24: 0.06868272869 | Q24: 0.06855211354 | R24: 0.06861742111 | S24: 0.0686500749 | T24: 0.06866640179 | U24: 0.06867456524 | V24: 0.06867048352 | W24: 0.06866844265 | X24: 0.06866742222 | Y24: 0.06866691201
B25: 24 | C25: 22 | D25: -0.9300007 | E25: -0.39500105 | F25: -0.127501225 | G25: 0.0062486875 | H25: 0.07312364375 | I25: 0.03968616563 | J25: 0.05640490469 | K25: 0.06476427422 | L25: 0.06894395898 | M25: 0.07103380137 | N25: 0.06998888018 | O25: 0.07051134077 | P25: 0.07025011047 | Q25: 0.07011949532 | R25: 0.0701848029 | S25: 0.07021745669 | T25: 0.07023378358 | U25: 0.07022562013 | V25: 0.07022153841 | W25: 0.07021949755 | X25: 0.07022051798 | Y25: 0.07022102819
B26: 25 | C26: 22 | D26: -0.9300007 | E26: -0.39500105 | F26: -0.127501225 | G26: 0.0062486875 | H26: 0.07312364375 | I26: 0.03968616563 | J26: 0.05640490469 | K26: 0.06476427422 | L26: 0.06894395898 | M26: 0.07103380137 | N26: 0.07207872256 | O26: 0.07155626196 | P26: 0.07181749226 | Q26: 0.07194810741 | R26: 0.07188279984 | S26: 0.07191545362 | T26: 0.07193178052 | U26: 0.07192361707 | V26: 0.07191953535 | W26: 0.07192157621 | X26: 0.07192055578 | Y26: 0.07192004556
B27: 26 | C27: 22 | D27: -0.9300007 | E27: -0.39500105 | F27: -0.127501225 | G27: 0.0062486875 | H27: 0.07312364375 | I27: 0.1065611219 | J27: 0.08984238281 | K27: 0.08148301328 | L27: 0.07730332852 | M27: 0.07521348613 | N27: 0.07416856494 | O27: 0.07364610435 | P27: 0.07338487405 | Q27: 0.0735154892 | R27: 0.07345018162 | S27: 0.07341752784 | T27: 0.07340120094 | U27: 0.07340936439 | V27: 0.07340528266 | W27: 0.0734032418 | X27: 0.07340426223 | Y27: 0.07340375202
B28: 27 | C28: 22 | D28: -0.9300007 | E28: -0.39500105 | F28: -0.127501225 | G28: 0.0062486875 | H28: 0.07312364375 | I28: 0.1065611219 | J28: 0.08984238281 | K28: 0.08148301328 | L28: 0.07730332852 | M28: 0.07521348613 | N28: 0.07416856494 | O28: 0.07469102554 | P28: 0.07495225583 | Q28: 0.07508287098 | R28: 0.07514817856 | S28: 0.07511552477 | T28: 0.07509919788 | U28: 0.07509103443 | V28: 0.07509511615 | W28: 0.07509715702 | X28: 0.07509613658 | Y28: 0.07509562637
B29: 28 | C29: 22 | D29: -0.9300007 | E29: -0.39500105 | F29: -0.127501225 | G29: 0.0062486875 | H29: 0.07312364375 | I29: 0.1065611219 | J29: 0.08984238281 | K29: 0.08148301328 | L29: 0.07730332852 | M29: 0.07521348613 | N29: 0.07625840732 | O29: 0.07678086792 | P29: 0.07651963762 | Q29: 0.07665025277 | R29: 0.0765849452 | S29: 0.07655229141 | T29: 0.07653596452 | U29: 0.07652780107 | V29: 0.07653188279 | W29: 0.07653392365 | X29: 0.07653290322 | Y29: 0.07653239301
B30: 29 | C30: 22 | D30: -0.9300007 | E30: -0.39500105 | F30: -0.127501225 | G30: 0.0062486875 | H30: 0.07312364375 | I30: 0.1065611219 | J30: 0.08984238281 | K30: 0.08148301328 | L30: 0.07730332852 | M30: 0.0793931709 | N30: 0.07834824971 | O30: 0.07782578911 | P30: 0.07808701941 | Q30: 0.07795640426 | R30: 0.07802171183 | S30: 0.07798905805 | T30: 0.07800538494 | U30: 0.07799722149 | V30: 0.07799313977 | W30: 0.07799109891 | X30: 0.07799007848 | Y30: 0.07798956826
B31: 30 | C31: 22 | D31: -0.9300007 | E31: -0.39500105 | F31: -0.127501225 | G31: 0.0062486875 | H31: 0.07312364375 | I31: 0.1065611219 | J31: 0.08984238281 | K31: 0.08148301328 | L31: 0.07730332852 | M31: 0.0793931709 | N31: 0.08043809209 | O31: 0.07991563149 | P31: 0.0796544012 | Q31: 0.07952378605 | R31: 0.07958909362 | S31: 0.07962174741 | T31: 0.0796380743 | U31: 0.07964623775 | V31: 0.07964215603 | W31: 0.07964011516 | X31: 0.07963909473 | Y31: 0.07963858452
B32: 31 | C32: 22 | D32: -0.9300007 | E32: -0.39500105 | F32: -0.127501225 | G32: 0.0062486875 | H32: 0.07312364375 | I32: 0.1065611219 | J32: 0.08984238281 | K32: 0.08148301328 | L32: 0.07730332852 | M32: 0.0793931709 | N32: 0.08043809209 | O32: 0.08096055269 | P32: 0.08122178298 | Q32: 0.08109116783 | R32: 0.08102586026 | S32: 0.08105851405 | T32: 0.08104218715 | U32: 0.0810503506 | V32: 0.08105443232 | W32: 0.08105239146 | X32: 0.08105341189 | Y32: 0.08105290168
B33: 32 | C33: 22 | D33: -0.9300007 | E33: -0.39500105 | F33: -0.127501225 | G33: 0.0062486875 | H33: 0.07312364375 | I33: 0.1065611219 | J33: 0.08984238281 | K33: 0.08148301328 | L33: 0.08566269805 | M33: 0.08357285566 | N33: 0.08252793447 | O33: 0.08200547388 | P33: 0.08226670417 | Q33: 0.08239731932 | R33: 0.0824626269 | S33: 0.08249528069 | T33: 0.08247895379 | U33: 0.08248711724 | V33: 0.08249119896 | W33: 0.0824891581 | X33: 0.08248813767 | Y33: 0.08248762745
B34: 33 | C34: 22 | D34: -0.9300007 | E34: -0.39500105 | F34: -0.127501225 | G34: 0.0062486875 | H34: 0.07312364375 | I34: 0.1065611219 | J34: 0.08984238281 | K34: 0.08148301328 | L34: 0.08566269805 | M34: 0.08357285566 | N34: 0.08461777686 | O34: 0.08409531626 | P34: 0.08383408596 | Q34: 0.08396470111 | R34: 0.08403000869 | S34: 0.08406266247 | T34: 0.08407898937 | U34: 0.08408715281 | V34: 0.08409123454 | W34: 0.08408919367 | X34: 0.08409021411 | Y34: 0.08408970389
B35: 34 | C35: 22 | D35: -0.9300007 | E35: -0.39500105 | F35: -0.127501225 | G35: 0.0062486875 | H35: 0.07312364375 | I35: 0.1065611219 | J35: 0.08984238281 | K35: 0.08148301328 | L35: 0.08566269805 | M35: 0.08357285566 | N35: 0.08461777686 | O35: 0.08514023745 | P35: 0.08540146775 | Q35: 0.0855320829 | R35: 0.08546677532 | S35: 0.08549942911 | T35: 0.08548310222 | U35: 0.08547493877 | V35: 0.08547902049 | W35: 0.08547697963 | X35: 0.0854759592 | Y35: 0.08547544899
B36: 35 | C36: 22 | D36: -0.9300007 | E36: -0.39500105 | F36: -0.127501225 | G36: 0.0062486875 | H36: 0.07312364375 | I36: 0.1065611219 | J36: 0.08984238281 | K36: 0.08148301328 | L36: 0.08566269805 | M36: 0.08775254043 | N36: 0.08670761924 | O36: 0.08723007983 | P36: 0.08696884954 | Q36: 0.08683823439 | R36: 0.08690354196 | S36: 0.08687088817 | T36: 0.08688721507 | U36: 0.08687905162 | V36: 0.08688313334 | W36: 0.08688109248 | X36: 0.08688007205 | Y36: 0.08687956184
B37: 36 | C37: 22 | D37: -0.9300007 | E37: -0.39500105 | F37: -0.127501225 | G37: 0.0062486875 | H37: 0.07312364375 | I37: 0.1065611219 | J37: 0.08984238281 | K37: 0.08148301328 | L37: 0.08566269805 | M37: 0.08775254043 | N37: 0.08879746162 | O37: 0.08827500103 | P37: 0.08853623132 | Q37: 0.08840561617 | R37: 0.08847092375 | S37: 0.08843826996 | T37: 0.08842194307 | U37: 0.08843010651 | V37: 0.08843418824 | W37: 0.08843214738 | X37: 0.08843112695 | Y37: 0.08843163716
B38: 37 | C38: 22 | D38: -0.9300007 | E38: -0.39500105 | F38: -0.127501225 | G38: 0.0062486875 | H38: 0.07312364375 | I38: 0.1065611219 | J38: 0.08984238281 | K38: 0.08148301328 | L38: 0.08566269805 | M38: 0.08775254043 | N38: 0.08879746162 | O38: 0.08931992222 | P38: 0.08958115251 | Q38: 0.08971176766 | R38: 0.08977707524 | S38: 0.08980972903 | T38: 0.08979340213 | U38: 0.08978523868 | V38: 0.08978115696 | W38: 0.0897791161 | X38: 0.08977809567 | Y38: 0.08977860588
B39: 38 | C39: 22 | D39: -0.9300007 | E39: -0.39500105 | F39: -0.127501225 | G39: 0.0062486875 | H39: 0.07312364375 | I39: 0.1065611219 | J39: 0.08984238281 | K39: 0.09820175234 | L39: 0.09402206758 | M39: 0.0919322252 | N39: 0.090887304 | O39: 0.0914097646 | P39: 0.0911485343 | Q39: 0.09101791915 | R39: 0.09108322673 | S39: 0.09111588051 | T39: 0.09113220741 | U39: 0.09114037085 | V39: 0.09114445258 | W39: 0.09114241172 | X39: 0.09114343215 | Y39: 0.09114292193
B40: 39 | C40: 22 | D40: -0.9300007 | E40: -0.39500105 | F40: -0.127501225 | G40: 0.0062486875 | H40: 0.07312364375 | I40: 0.1065611219 | J40: 0.08984238281 | K40: 0.09820175234 | L40: 0.09402206758 | M40: 0.0919322252 | N40: 0.09297714639 | O40: 0.09245468579 | P40: 0.09271591609 | Q40: 0.09258530094 | R40: 0.09265060851 | S40: 0.09261795473 | T40: 0.09263428162 | U40: 0.09264244507 | V40: 0.09263836334 | W40: 0.09264040421 | X40: 0.09264142464 | Y40: 0.09264091442
B41: 40 | C41: 22 | D41: -0.9300007 | E41: -0.39500105 | F41: -0.127501225 | G41: 0.0062486875 | H41: 0.07312364375 | I41: 0.1065611219 | J41: 0.08984238281 | K41: 0.09820175234 | L41: 0.09402206758 | M41: 0.0919322252 | N41: 0.09297714639 | O41: 0.09349960698 | P41: 0.09376083728 | Q41: 0.09389145243 | R41: 0.09395676 | S41: 0.09392410622 | T41: 0.09394043311 | U41: 0.09393226966 | V41: 0.09393635139 | W41: 0.09393839225 | X41: 0.09393941268 | Y41: 0.09393890246
B42: 41 | C42: 22 | D42: -0.9300007 | E42: -0.39500105 | F42: -0.127501225 | G42: 0.0062486875 | H42: 0.07312364375 | I42: 0.1065611219 | J42: 0.08984238281 | K42: 0.09820175234 | L42: 0.09402206758 | M42: 0.09611190996 | N42: 0.09506698877 | O42: 0.09558944937 | P42: 0.09532821907 | Q42: 0.09519760392 | R42: 0.09526291149 | S42: 0.09523025771 | T42: 0.0952465846 | U42: 0.09525474805 | V42: 0.09525066632 | W42: 0.09525270718 | X42: 0.09525168675 | Y42: 0.09525117654
B43: 42 | C43: 22 | D43: -0.9300007 | E43: -0.39500105 | F43: -0.127501225 | G43: 0.0062486875 | H43: 0.07312364375 | I43: 0.1065611219 | J43: 0.08984238281 | K43: 0.09820175234 | L43: 0.09402206758 | M43: 0.09611190996 | N43: 0.09715683115 | O43: 0.09663437056 | P43: 0.09689560085 | Q43: 0.09676498571 | R43: 0.09669967813 | S43: 0.09666702434 | T43: 0.09668335124 | U43: 0.09669151468 | V43: 0.09669559641 | W43: 0.09669355555 | X43: 0.09669253512 | Y43: 0.09669304533
B44: 43 | C44: 22 | D44: -0.9300007 | E44: -0.39500105 | F44: -0.127501225 | G44: 0.0062486875 | H44: 0.07312364375 | I44: 0.1065611219 | J44: 0.08984238281 | K44: 0.09820175234 | L44: 0.09402206758 | M44: 0.09611190996 | N44: 0.09715683115 | O44: 0.09767929175 | P44: 0.09794052205 | Q44: 0.0978099069 | R44: 0.09787521447 | S44: 0.09790786826 | T44: 0.09792419515 | U44: 0.0979323586 | V44: 0.09792827688 | W44: 0.09793031774 | X44: 0.09792929731 | Y44: 0.09792980752
B45: 44 | C45: 22 | D45: -0.9300007 | E45: -0.39500105 | F45: -0.127501225 | G45: 0.0062486875 | H45: 0.07312364375 | I45: 0.1065611219 | J45: 0.08984238281 | K45: 0.09820175234 | L45: 0.1023814371 | M45: 0.1002915947 | N45: 0.09924667354 | O45: 0.09872421294 | P45: 0.09898544324 | Q45: 0.09911605839 | R45: 0.09918136596 | S45: 0.09914871217 | T45: 0.09916503907 | U45: 0.09917320251 | V45: 0.09917728424 | W45: 0.09917524338 | X45: 0.09917626381 | Y45: 0.09917575359
B46: 45 | C46: 22 | D46: -0.9300007 | E46: -0.39500105 | F46: -0.127501225 | G46: 0.0062486875 | H46: 0.07312364375 | I46: 0.1065611219 | J46: 0.08984238281 | K46: 0.09820175234 | L46: 0.1023814371 | M46: 0.1002915947 | N46: 0.1013365159 | O46: 0.1008140553 | P46: 0.100552825 | Q46: 0.1006834402 | R46: 0.1007487477 | S46: 0.1007814015 | T46: 0.1007650746 | U46: 0.1007732381 | V46: 0.1007691564 | W46: 0.1007671155 | X46: 0.1007660951 | Y46: 0.1007666053
B47: 46 | C47: 21 | D47: -0.9300007 | E47: -0.39500105 | F47: -0.127501225 | G47: 0.0062486875 | H47: 0.07312364375 | I47: 0.1065611219 | J47: 0.08984238281 | K47: 0.09820175234 | L47: 0.1023814371 | M47: 0.1044712795 | N47: 0.1034263583 | O47: 0.1029038977 | P47: 0.1026426674 | Q47: 0.1025120523 | R47: 0.1024467447 | S47: 0.1024140909 | T47: 0.102397764 | U47: 0.1023896006 | V47: 0.1023936823 | W47: 0.1023916414 | X47: 0.1023926618
B48: 47 | C48: 21 | D48: -0.9300007 | E48: -0.39500105 | F48: -0.127501225 | G48: 0.0062486875 | H48: 0.07312364375 | I48: 0.1065611219 | J48: 0.08984238281 | K48: 0.09820175234 | L48: 0.1023814371 | M48: 0.1044712795 | N48: 0.1034263583 | O48: 0.1039488189 | P48: 0.1042100492 | Q48: 0.104079434 | R48: 0.1041447416 | S48: 0.1041120878 | T48: 0.1040957609 | U48: 0.1040875975 | V48: 0.1040916792 | W48: 0.1040896384 | X48: 0.1040906588
B49: 48 | C49: 21 | D49: -0.9300007 | E49: -0.39500105 | F49: -0.127501225 | G49: 0.0062486875 | H49: 0.07312364375 | I49: 0.1065611219 | J49: 0.08984238281 | K49: 0.09820175234 | L49: 0.1023814371 | M49: 0.1044712795 | N49: 0.1055162007 | O49: 0.1060386613 | P49: 0.105777431 | Q49: 0.1059080461 | R49: 0.1059733537 | S49: 0.1059406999 | T49: 0.105924373 | U49: 0.1059162096 | V49: 0.1059121279 | W49: 0.105910087 | X49: 0.1059111074
B50: 49 | C50: 21 | D50: -0.9300007 | E50: -0.39500105 | F50: -0.127501225 | G50: 0.0062486875 | H50: 0.07312364375 | I50: 0.1065611219 | J50: 0.1232798609 | K50: 0.1149204914 | L50: 0.1107408066 | M50: 0.1086509643 | N50: 0.1076060431 | O50: 0.1070835825 | P50: 0.1073448128 | Q50: 0.1074754279 | R50: 0.1075407355 | S50: 0.1075733893 | T50: 0.1075897162 | U50: 0.1075815527 | V50: 0.107577471 | W50: 0.1075754301 | X50: 0.1075744097
B51: 50 | C51: 21 | D51: -0.9300007 | E51: -0.39500105 | F51: -0.127501225 | G51: 0.0062486875 | H51: 0.07312364375 | I51: 0.1065611219 | J51: 0.1232798609 | K51: 0.1149204914 | L51: 0.1107408066 | M51: 0.1086509643 | N51: 0.1096958854 | O51: 0.1091734249 | P51: 0.1094346552 | Q51: 0.1095652703 | R51: 0.1094999627 | S51: 0.1094673089 | T51: 0.109450982 | U51: 0.1094428186 | V51: 0.1094469003 | W51: 0.1094448595 | X51: 0.109443839
B52: 51 | C52: 21 | D52: -0.9300007 | E52: -0.39500105 | F52: -0.127501225 | G52: 0.0062486875 | H52: 0.07312364375 | I52: 0.1065611219 | J52: 0.1232798609 | K52: 0.1149204914 | L52: 0.1107408066 | M52: 0.112830649 | N52: 0.1117857278 | O52: 0.1112632672 | P52: 0.1110020369 | Q52: 0.1111326521 | R52: 0.1110673445 | S52: 0.1110999983 | T52: 0.1110836714 | U52: 0.111075508 | V52: 0.1110714262 | W52: 0.1110693854 | X52: 0.1110683649
B53: 52 | C53: 21 | D53: -0.9300007 | E53: -0.39500105 | F53: -0.127501225 | G53: 0.0062486875 | H53: 0.07312364375 | I53: 0.1065611219 | J53: 0.1232798609 | K53: 0.1149204914 | L53: 0.1107408066 | M53: 0.112830649 | N53: 0.1117857278 | O53: 0.1123081884 | P53: 0.1125694187 | Q53: 0.1127000339 | R53: 0.1127653414 | S53: 0.1127979952 | T53: 0.1127816683 | U53: 0.1127898318 | V53: 0.1127857501 | W53: 0.1127877909 | X53: 0.1127888114
B54: 53 | C54: 21 | D54: -0.9300007 | E54: -0.39500105 | F54: -0.127501225 | G54: 0.0062486875 | H54: 0.07312364375 | I54: 0.1065611219 | J54: 0.1232798609 | K54: 0.1149204914 | L54: 0.1107408066 | M54: 0.112830649 | N54: 0.1138755702 | O54: 0.1143980308 | P54: 0.1146592611 | Q54: 0.114528646 | R54: 0.1145939535 | S54: 0.1145612997 | T54: 0.1145776266 | U54: 0.1145857901 | V54: 0.1145817084 | W54: 0.1145796675 | X54: 0.1145786471
B55: 54 | C55: 21 | D55: -0.9300007 | E55: -0.39500105 | F55: -0.127501225 | G55: 0.0062486875 | H55: 0.07312364375 | I55: 0.1065611219 | J55: 0.1232798609 | K55: 0.1149204914 | L55: 0.1191001762 | M55: 0.1170103338 | N55: 0.1159654126 | O55: 0.1164878732 | P55: 0.1162266429 | Q55: 0.116357258 | R55: 0.1162919505 | S55: 0.1162592967 | T55: 0.1162756236 | U55: 0.1162674601 | V55: 0.1162633784 | W55: 0.1162654193 | X55: 0.1162664397
B56: 55 | C56: 21 | D56: -0.9300007 | E56: -0.39500105 | F56: -0.127501225 | G56: 0.0062486875 | H56: 0.07312364375 | I56: 0.1065611219 | J56: 0.1232798609 | K56: 0.1149204914 | L56: 0.1191001762 | M56: 0.1170103338 | N56: 0.118055255 | O56: 0.1185777156 | P56: 0.1183164853 | Q56: 0.1181858701 | R56: 0.1181205626 | S56: 0.1180879088 | T56: 0.1181042357 | U56: 0.1181123991 | V56: 0.1181083174 | W56: 0.1181062765 | X56: 0.118107297
B57: 56 | C57: 21 | D57: -0.9300007 | E57: -0.39500105 | F57: -0.127501225 | G57: 0.0062486875 | H57: 0.07312364375 | I57: 0.1065611219 | J57: 0.1232798609 | K57: 0.1149204914 | L57: 0.1191001762 | M57: 0.1211900186 | N57: 0.1201450974 | O57: 0.1196226368 | P57: 0.1198838671 | Q57: 0.1197532519 | R57: 0.1196879443 | S57: 0.1197205981 | T57: 0.119736925 | U57: 0.1197450885 | V57: 0.1197491702 | W57: 0.1197471293 | X57: 0.1197461089
B58: 57 | C58: 21 | D58: -0.9300007 | E58: -0.39500105 | F58: -0.127501225 | G58: 0.0062486875 | H58: 0.07312364375 | I58: 0.1065611219 | J58: 0.1232798609 | K58: 0.1149204914 | L58: 0.1191001762 | M58: 0.1211900186 | N58: 0.1222349397 | O58: 0.1217124792 | P58: 0.1214512489 | Q58: 0.121581864 | R58: 0.1215165564 | S58: 0.1214839026 | T58: 0.1214675757 | U58: 0.1214757392 | V58: 0.1214798209 | W58: 0.1214818618 | X58: 0.1214828822
B59: 58 | C59: 21 | D59: -0.9300007 | E59: -0.39500105 | F59: -0.127501225 | G59: 0.0062486875 | H59: 0.07312364375 | I59: 0.1065611219 | J59: 0.1232798609 | K59: 0.1149204914 | L59: 0.1191001762 | M59: 0.1211900186 | N59: 0.1222349397 | O59: 0.1227574003 | P59: 0.1230186306 | Q59: 0.1231492458 | R59: 0.1232145534 | S59: 0.1232472072 | T59: 0.1232308803 | U59: 0.1232390437 | V59: 0.1232431254 | W59: 0.1232410846 | X59: 0.123242105
B60: 59 | C60: 21 | D60: -0.9300007 | E60: -0.39500105 | F60: -0.127501225 | G60: 0.0062486875 | H60: 0.07312364375 | I60: 0.1065611219 | J60: 0.1232798609 | K60: 0.1316392305 | L60: 0.1274595457 | M60: 0.1253697033 | N60: 0.1243247821 | O60: 0.1248472427 | P60: 0.125108473 | Q60: 0.1249778579 | R60: 0.1249125503 | S60: 0.1249452041 | T60: 0.124961531 | U60: 0.1249533675 | V60: 0.1249574493 | W60: 0.1249554084 | X60: 0.1249564288
B61: 60 | C61: 21 | D61: -0.9300007 | E61: -0.39500105 | F61: -0.127501225 | G61: 0.0062486875 | H61: 0.07312364375 | I61: 0.1065611219 | J61: 0.1232798609 | K61: 0.1316392305 | L61: 0.1274595457 | M61: 0.1253697033 | N61: 0.1264146245 | O61: 0.1269370851 | P61: 0.1266758548 | Q61: 0.12680647 | R61: 0.1267411624 | S61: 0.1267738162 | T61: 0.1267574893 | U61: 0.1267656527 | V61: 0.1267697344 | W61: 0.1267676936 | X61: 0.1267666732
B62: 61 | C62: 21 | D62: -0.9300007 | E62: -0.39500105 | F62: -0.127501225 | G62: 0.0062486875 | H62: 0.07312364375 | I62: 0.1065611219 | J62: 0.1232798609 | K62: 0.1316392305 | L62: 0.1274595457 | M62: 0.1295493881 | N62: 0.1285044669 | O62: 0.1279820063 | P62: 0.1282432366 | Q62: 0.1283738517 | R62: 0.1284391593 | S62: 0.1284065055 | T62: 0.1284228324 | U62: 0.1284309959 | V62: 0.1284269141 | W62: 0.1284248733 | X62: 0.1284258937
B63: 62 | C63: 21 | D63: -0.9300007 | E63: -0.39500105 | F63: -0.127501225 | G63: 0.0062486875 | H63: 0.07312364375 | I63: 0.1065611219 | J63: 0.1232798609 | K63: 0.1316392305 | L63: 0.1274595457 | M63: 0.1295493881 | N63: 0.1305943093 | O63: 0.1300718487 | P63: 0.130333079 | Q63: 0.1302024638 | R63: 0.1301371563 | S63: 0.13016981 | T63: 0.1301534831 | U63: 0.1301616466 | V63: 0.1301657283 | W63: 0.1301636875 | X63: 0.1301647079
B64: 63 | C64: 21 | D64: -0.9300007 | E64: -0.39500105 | F64: -0.127501225 | G64: 0.0062486875 | H64: 0.07312364375 | I64: 0.1065611219 | J64: 0.1232798609 | K64: 0.1316392305 | L64: 0.1358189152 | M64: 0.1337290729 | N64: 0.1326841517 | O64: 0.1321616911 | P64: 0.1319004608 | Q64: 0.1317698456 | R64: 0.1318351532 | S64: 0.131867807 | T64: 0.1318841339 | U64: 0.1318759704 | V64: 0.1318800521 | W64: 0.131882093 | X64: 0.1318810726
B65: 64 | C65: 21 | D65: -0.9300007 | E65: -0.39500105 | F65: -0.127501225 | G65: 0.0062486875 | H65: 0.07312364375 | I65: 0.1065611219 | J65: 0.1232798609 | K65: 0.1316392305 | L65: 0.1358189152 | M65: 0.1337290729 | N65: 0.1326841517 | O65: 0.1332066123 | P65: 0.1334678426 | Q65: 0.1335984577 | R65: 0.1336637653 | S65: 0.1336311115 | T65: 0.1336147846 | U65: 0.1336066211 | V65: 0.1336107029 | W65: 0.1336127437 | X65: 0.1336137642
B66: 65 | C66: 21 | D66: -0.9300007 | E66: -0.39500105 | F66: -0.127501225 | G66: 0.0062486875 | H66: 0.07312364375 | I66: 0.1065611219 | J66: 0.1232798609 | K66: 0.1316392305 | L66: 0.1358189152 | M66: 0.1337290729 | N66: 0.134773994 | O66: 0.1352964546 | P66: 0.1355576849 | Q66: 0.1354270698 | R66: 0.1353617622 | S66: 0.1353291084 | T66: 0.1353127815 | U66: 0.1353046181 | V66: 0.1353086998 | W66: 0.1353066589 | X66: 0.1353056385
B67: 66 | C67: 21 | D67: -0.9300007 | E67: -0.39500105 | F67: -0.127501225 | G67: 0.0062486875 | H67: 0.07312364375 | I67: 0.1065611219 | J67: 0.1232798609 | K67: 0.1316392305 | L67: 0.1358189152 | M67: 0.1379087576 | N67: 0.1368638364 | O67: 0.137386297 | P67: 0.1371250667 | Q67: 0.1369944516 | R67: 0.136929144 | S67: 0.1369617978 | T67: 0.1369454709 | U67: 0.1369373074 | V67: 0.1369413892 | W67: 0.1369393483 | X67: 0.1369383279
B68: 67 | C68: 21 | D68: -0.9300007 | E68: -0.39500105 | F68: -0.127501225 | G68: 0.0062486875 | H68: 0.07312364375 | I68: 0.1065611219 | J68: 0.1232798609 | K68: 0.1316392305 | L68: 0.1358189152 | M68: 0.1379087576 | N68: 0.1389536788 | O68: 0.1384312182 | P68: 0.1386924485 | Q68: 0.1385618334 | R68: 0.1386271409 | S68: 0.1385944871 | T68: 0.138610814 | U68: 0.1386189775 | V68: 0.1386148958 | W68: 0.1386169366 | X68: 0.1386159162
B69: 68 | C69: 0
B70: 69 | C70: 0
B71: 70 | C71: 0
B72: 71 | C72: 0
B73: 72 | C73: 0
B74: 73 | C74: 0
B75: 74 | C75: 0
B76: 75 | C76: 0
B77: 76 | C77: 0
B78: 77 | C78: 0
B79: 78 | C79: 0
B80: 79 | C80: 0
B81: 80 | C81: 0
B82: 81 | C82: 0
B83: 82 | C83: 0
B84: 83 | C84: 0
B85: 84 | C85: 0
B86: 85 | C86: 0
B87: 86 | C87: 0
B88: 87 | C88: 0
B89: 88 | C89: 0
B90: 89 | C90: 0
B91: 90 | C91: 0
B92: 91 | C92: 0
B93: 92 | C93: 0
B94: 93 | C94: 0
B95: 94 | C95: 0
B96: 95 | C96: 0
B97: 96 | C97: 0
B98: 97 | C98: 0
B99: 98 | C99: 0
B100: 99 | C100: 0
B101: 100 | C101: 0
B102: 101 | C102: 0
A103: 終局時 | B103: 1 | C103: 34 | D103: 1.000005 | E103: 0.5000075 | F103: 0.25000875 | G103: 0.125009375 | H103: 0.0625096875 | I103: 0.03125984375 | J103: 0.01563492188 | K103: 0.007822460938 | L103: 0.003916230469 | M103: 0.001963115234 | N103: 0.0009865576172 | O103: 0.0004982788086 | P103: 0.0002541394043 | Q103: 0.0001320697021 | R103: 7.103485107e-05 | S103: 4.051742554e-05 | T103: 2.525871277e-05 | U103: 1.762935638e-05 | V103: 2.144403458e-05 | W103: 2.335137367e-05 | X103: 2.239770412e-05 | Y103: 2.192086935e-05 | Z103: 2.215928674e-05 | AA103: 2.204007804e-05 | AB103: 2.209968239e-05 | AC103: 2.212948456e-05 | AD103: 2.211458348e-05 | AE103: 2.210713293e-05 | AF103: 2.211085821e-05 | AG103: 2.211272084e-05 | AH103: 2.211365216e-05 | AI103: 2.21131865e-05 | AJ103: 2.211295367e-05 | AK103: 2.211283726e-05
B104: 2 | C104: 27 | D104: 1.000005 | E104: 0.5000075 | F104: 0.25000875 | G104: 0.125009375 | H104: 0.0625096875 | I104: 0.03125984375 | J104: 0.01563492188 | K104: 0.007822460938 | L104: 0.003916230469 | M104: 0.001963115234 | N104: 0.002939672852 | O104: 0.002451394043 | P104: 0.002695533447 | Q104: 0.002573463745 | R104: 0.002512428894 | S104: 0.002481911469 | T104: 0.002466652756 | U104: 0.002474282112 | V104: 0.00247809679 | W104: 0.002476189451 | X104: 0.002475235782 | Y104: 0.002474758947 | Z104: 0.00247452053 | AA104: 0.002474639738 | AB104: 0.002474580134 | AC104: 0.002474609936 | AD104: 0.002474595035
B105: 3 | C105: 26 | D105: 1.000005 | E105: 0.5000075 | F105: 0.25000875 | G105: 0.125009375 | H105: 0.0625096875 | I105: 0.03125984375 | J105: 0.01563492188 | K105: 0.007822460938 | L105: 0.003916230469 | M105: 0.005869345703 | N105: 0.004892788086 | O105: 0.005381066895 | P105: 0.005625206299 | Q105: 0.005747276001 | R105: 0.005808310852 | S105: 0.005777793427 | T105: 0.005793052139 | U105: 0.005800681496 | V105: 0.005804496174 | W105: 0.005806403513 | X105: 0.005807357183 | Y105: 0.005806880348 | Z105: 0.005807118765 | AA105: 0.005806999556 | AB105: 0.005807059161 | AC105: 0.005807029359
B106: 4 | C106: 25 | D106: 1.000005 | E106: 0.5000075 | F106: 0.25000875 | G106: 0.125009375 | H106: 0.0625096875 | I106: 0.03125984375 | J106: 0.01563492188 | K106: 0.007822460938 | L106: 0.01172869141 | M106: 0.009775576172 | N106: 0.008799018555 | O106: 0.008310739746 | P106: 0.00855487915 | Q106: 0.008676948853 | R106: 0.008737983704 | S106: 0.008707466278 | T106: 0.008692207565 | U106: 0.008699836922 | V106: 0.0087036516 | W106: 0.008705558939 | X106: 0.008704605269 | Y106: 0.008705082104 | Z106: 0.008705320522 | AA106: 0.00870543973 | AB106: 0.008705499335
B107: 5 | C107: 25 | D107: 1.000005 | E107: 0.5000075 | F107: 0.25000875 | G107: 0.125009375 | H107: 0.0625096875 | I107: 0.03125984375 | J107: 0.01563492188 | K107: 0.007822460938 | L107: 0.01172869141 | M107: 0.009775576172 | N107: 0.01075213379 | O107: 0.0112404126 | P107: 0.011484552 | Q107: 0.0116066217 | R107: 0.01166765656 | S107: 0.01169817398 | T107: 0.01171343269 | U107: 0.01172106205 | V107: 0.01171724737 | W107: 0.01171534003 | X107: 0.0117162937 | Y107: 0.01171581687 | Z107: 0.01171557845 | AA107: 0.01171545924 | AB107: 0.01171539964
B108: 6 | C108: 24 | D108: 1.000005 | E108: 0.5000075 | F108: 0.25000875 | G108: 0.125009375 | H108: 0.0625096875 | I108: 0.03125984375 | J108: 0.01563492188 | K108: 0.007822460938 | L108: 0.01172869141 | M108: 0.01368180664 | N108: 0.01465836426 | O108: 0.01514664307 | P108: 0.01490250366 | Q108: 0.01478043396 | R108: 0.01484146881 | S108: 0.01481095139 | T108: 0.01479569267 | U108: 0.01478806332 | V108: 0.01478424864 | W108: 0.01478615598 | X108: 0.01478710965 | Y108: 0.01478758648 | Z108: 0.0147878249 | AA108: 0.01478794411
B109: 7 | C109: 24 | D109: 1.000005 | E109: 0.5000075 | F109: 0.25000875 | G109: 0.125009375 | H109: 0.0625096875 | I109: 0.03125984375 | J109: 0.01563492188 | K109: 0.02344738281 | L109: 0.01954115234 | M109: 0.01758803711 | N109: 0.01856459473 | O109: 0.01807631592 | P109: 0.01783217651 | Q109: 0.01771010681 | R109: 0.01777114166 | S109: 0.01780165909 | T109: 0.01778640038 | U109: 0.01779402973 | V109: 0.01779021505 | W109: 0.01778830771 | X109: 0.01778735404 | Y109: 0.01778687721 | Z109: 0.01778663879 | AA109: 0.01778651958
B110: 8 | C110: 24 | D110: 1.000005 | E110: 0.5000075 | F110: 0.25000875 | G110: 0.125009375 | H110: 0.0625096875 | I110: 0.03125984375 | J110: 0.01563492188 | K110: 0.02344738281 | L110: 0.01954115234 | M110: 0.02149426758 | N110: 0.02051770996 | O110: 0.02100598877 | P110: 0.02076184937 | Q110: 0.02088391907 | R110: 0.02082288422 | S110: 0.02079236679 | T110: 0.02077710808 | U110: 0.02076947872 | V110: 0.02076566404 | W110: 0.0207637567 | X110: 0.02076280303 | Y110: 0.02076327987 | Z110: 0.02076351829 | AA110: 0.0207636375
B111: 9 | C111: 24 | D111: 1.000005 | E111: 0.5000075 | F111: 0.25000875 | G111: 0.125009375 | H111: 0.0625096875 | I111: 0.03125984375 | J111: 0.01563492188 | K111: 0.02344738281 | L111: 0.02735361328 | M111: 0.02540049805 | N111: 0.02442394043 | O111: 0.02393566162 | P111: 0.02369152222 | Q111: 0.02381359192 | R111: 0.02375255707 | S111: 0.02378307449 | T111: 0.02376781578 | U111: 0.02377544514 | V111: 0.02377163046 | W111: 0.0237735378 | X111: 0.02377449147 | Y111: 0.02377401463 | Z111: 0.02377425305 | AA111: 0.02377437226
B112: 10 | C112: 23 | D112: 1.000005 | E112: 0.5000075 | F112: 0.25000875 | G112: 0.125009375 | H112: 0.0625096875 | I112: 0.03125984375 | J112: 0.01563492188 | K112: 0.02344738281 | L112: 0.02735361328 | M112: 0.02540049805 | N112: 0.02637705566 | O112: 0.02686533447 | P112: 0.02710947388 | Q112: 0.02698740417 | R112: 0.02692636932 | S112: 0.0268958519 | T112: 0.02688059319 | U112: 0.02687296383 | V112: 0.02687677851 | W112: 0.02687487117 | X112: 0.0268739175 | Y112: 0.02687344066 | Z112: 0.02687367908
B113: 11 | C113: 23 | D113: 1.000005 | E113: 0.5000075 | F113: 0.25000875 | G113: 0.125009375 | H113: 0.0625096875 | I113: 0.03125984375 | J113: 0.01563492188 | K113: 0.02344738281 | L113: 0.02735361328 | M113: 0.02930672852 | N113: 0.03028328613 | O113: 0.02979500732 | P113: 0.02955086792 | Q113: 0.02967293762 | R113: 0.02973397247 | S113: 0.0297644899 | T113: 0.02974923119 | U113: 0.02975686054 | V113: 0.02975304586 | W113: 0.0297549532 | X113: 0.02975590687 | Y113: 0.02975638371 | Z113: 0.02975662212
B114: 12 | C114: 23 | D114: 1.000005 | E114: 0.5000075 | F114: 0.25000875 | G114: 0.125009375 | H114: 0.0625096875 | I114: 0.03125984375 | J114: 0.04688476563 | K114: 0.03907230469 | L114: 0.03516607422 | M114: 0.03321295898 | N114: 0.03223640137 | O114: 0.03272468018 | P114: 0.03296881958 | Q114: 0.03284674988 | R114: 0.03278571503 | S114: 0.0327551976 | T114: 0.03273993889 | U114: 0.03274756824 | V114: 0.03274375357 | W114: 0.03274566091 | X114: 0.03274661458 | Y114: 0.03274709141 | Z114: 0.03274685299
B115: 13 | C115: 23 | D115: 1.000005 | E115: 0.5000075 | F115: 0.25000875 | G115: 0.125009375 | H115: 0.0625096875 | I115: 0.03125984375 | J115: 0.04688476563 | K115: 0.03907230469 | L115: 0.03516607422 | M115: 0.03711918945 | N115: 0.03614263184 | O115: 0.03565435303 | P115: 0.03589849243 | Q115: 0.03577642273 | R115: 0.03571538788 | S115: 0.0357459053 | T115: 0.03573064659 | U115: 0.03573827595 | V115: 0.03574209063 | W115: 0.03574018329 | X115: 0.03574113696 | Y115: 0.03574066012 | Z115: 0.03574089854
B116: 14 | C116: 23 | D116: 1.000005 | E116: 0.5000075 | F116: 0.25000875 | G116: 0.125009375 | H116: 0.0625096875 | I116: 0.03125984375 | J116: 0.04688476563 | K116: 0.03907230469 | L116: 0.03516607422 | M116: 0.03711918945 | N116: 0.03809574707 | O116: 0.03858402588 | P116: 0.03882816528 | Q116: 0.03870609558 | R116: 0.03876713043 | S116: 0.03879764786 | T116: 0.03881290657 | U116: 0.03880527721 | V116: 0.03880146254 | W116: 0.03880336987 | X116: 0.03880241621 | Y116: 0.03880289304 | Z116: 0.03880313146
B117: 15 | C117: 23 | D117: 1.000005 | E117: 0.5000075 | F117: 0.25000875 | G117: 0.125009375 | H117: 0.0625096875 | I117: 0.03125984375 | J117: 0.04688476563 | K117: 0.03907230469 | L117: 0.04297853516 | M117: 0.04102541992 | N117: 0.0400488623 | O117: 0.04053714111 | P117: 0.04078128052 | Q117: 0.04090335022 | R117: 0.04096438507 | S117: 0.04093386765 | T117: 0.04094912636 | U117: 0.04095675571 | V117: 0.04095294104 | W117: 0.0409510337 | X117: 0.04095198737 | Y117: 0.04095151053 | Z117: 0.04095174895
B118: 16 | C118: 23 | D118: 1.000005 | E118: 0.5000075 | F118: 0.25000875 | G118: 0.125009375 | H118: 0.0625096875 | I118: 0.03125984375 | J118: 0.04688476563 | K118: 0.03907230469 | L118: 0.04297853516 | M118: 0.04102541992 | N118: 0.04200197754 | O118: 0.04249025635 | P118: 0.04273439575 | Q118: 0.04261232605 | R118: 0.0425512912 | S118: 0.04252077377 | T118: 0.04253603249 | U118: 0.04254366184 | V118: 0.04254747652 | W118: 0.04254938386 | X118: 0.04254843019 | Y118: 0.04254795336 | Z118: 0.04254819177
B119: 17 | C119: 23 | D119: 1.000005 | E119: 0.5000075 | F119: 0.25000875 | G119: 0.125009375 | H119: 0.0625096875 | I119: 0.03125984375 | J119: 0.04688476563 | K119: 0.03907230469 | L119: 0.04297853516 | M119: 0.04493165039 | N119: 0.04395509277 | O119: 0.04444337158 | P119: 0.04419923218 | Q119: 0.04407716248 | R119: 0.04413819733 | S119: 0.0441076799 | T119: 0.04409242119 | U119: 0.04408479183 | V119: 0.04408097715 | W119: 0.04408288449 | X119: 0.04408383816 | Y119: 0.04408336133 | Z119: 0.04408359975
B120: 18 | C120: 23 | D120: 1.000005 | E120: 0.5000075 | F120: 0.25000875 | G120: 0.125009375 | H120: 0.0625096875 | I120: 0.03125984375 | J120: 0.04688476563 | K120: 0.03907230469 | L120: 0.04297853516 | M120: 0.04493165039 | N120: 0.04590820801 | O120: 0.0454199292 | P120: 0.0456640686 | Q120: 0.04578613831 | R120: 0.04572510345 | S120: 0.04575562088 | T120: 0.04574036217 | U120: 0.04573273281 | V120: 0.04572891813 | W120: 0.04573082547 | X120: 0.04573177914 | Y120: 0.04573225598 | Z120: 0.04573201756
B121: 19 | C121: 23 | D121: 1.000005 | E121: 0.5000075 | F121: 0.25000875 | G121: 0.125009375 | H121: 0.0625096875 | I121: 0.03125984375 | J121: 0.04688476563 | K121: 0.05469722656 | L121: 0.05079099609 | M121: 0.04883788086 | N121: 0.04786132324 | O121: 0.04737304443 | P121: 0.04761718384 | Q121: 0.04749511414 | R121: 0.04743407928 | S121: 0.04746459671 | T121: 0.047449338 | U121: 0.04744170864 | V121: 0.04743789396 | W121: 0.0474398013 | X121: 0.04743884763 | Y121: 0.04743932447 | Z121: 0.04743956288
B122: 20 | C122: 22 | D122: 1.000005 | E122: 0.5000075 | F122: 0.25000875 | G122: 0.125009375 | H122: 0.0625096875 | I122: 0.03125984375 | J122: 0.04688476563 | K122: 0.05469722656 | L122: 0.05079099609 | M122: 0.04883788086 | N122: 0.04981443848 | O122: 0.04932615967 | P122: 0.04908202026 | Q122: 0.04920408997 | R122: 0.04914305511 | S122: 0.04917357254 | T122: 0.04918883125 | U122: 0.0491812019 | V122: 0.04918501657 | W122: 0.04918310924 | X122: 0.04918406291 | Y122: 0.04918453974
B123: 21 | C123: 22 | D123: 1.000005 | E123: 0.5000075 | F123: 0.25000875 | G123: 0.125009375 | H123: 0.0625096875 | I123: 0.03125984375 | J123: 0.04688476563 | K123: 0.05469722656 | L123: 0.05079099609 | M123: 0.05274411133 | N123: 0.05176755371 | O123: 0.0512792749 | P123: 0.0510351355 | Q123: 0.0509130658 | R123: 0.05097410065 | S123: 0.05100461807 | T123: 0.05101987679 | U123: 0.05101224743 | V123: 0.05101606211 | W123: 0.05101796945 | X123: 0.05101701578 | Y123: 0.05101653894
B124: 22 | C124: 22 | D124: 1.000005 | E124: 0.5000075 | F124: 0.25000875 | G124: 0.125009375 | H124: 0.0625096875 | I124: 0.03125984375 | J124: 0.04688476563 | K124: 0.05469722656 | L124: 0.05079099609 | M124: 0.05274411133 | N124: 0.05372066895 | O124: 0.05323239014 | P124: 0.05298825073 | Q124: 0.05286618103 | R124: 0.05280514618 | S124: 0.0528356636 | T124: 0.05285092232 | U124: 0.05284329296 | V124: 0.05284710764 | W124: 0.05284901498 | X124: 0.05284806131 | Y124: 0.05284853814
B125: 23 | C125: 22 | D125: 1.000005 | E125: 0.5000075 | F125: 0.25000875 | G125: 0.125009375 | H125: 0.0625096875 | I125: 0.03125984375 | J125: 0.04688476563 | K125: 0.05469722656 | L125: 0.05860345703 | M125: 0.0566503418 | N125: 0.05567378418 | O125: 0.05518550537 | P125: 0.05494136597 | Q125: 0.05481929626 | R125: 0.05475826141 | S125: 0.05478877884 | T125: 0.05480403755 | U125: 0.0547964082 | V125: 0.05479259352 | W125: 0.05479068618 | X125: 0.05479163985 | Y125: 0.05479116301
B126: 24 | C126: 22 | D126: 1.000005 | E126: 0.5000075 | F126: 0.25000875 | G126: 0.125009375 | H126: 0.0625096875 | I126: 0.03125984375 | J126: 0.04688476563 | K126: 0.05469722656 | L126: 0.05860345703 | M126: 0.0566503418 | N126: 0.05762689941 | O126: 0.05713862061 | P126: 0.0568944812 | Q126: 0.0567724115 | R126: 0.05671137665 | S126: 0.05668085922 | T126: 0.05669611794 | U126: 0.05670374729 | V126: 0.05670756197 | W126: 0.05670565463 | X126: 0.0567066083 | Y126: 0.05670708513
B127: 25 | C127: 22 | D127: 1.000005 | E127: 0.5000075 | F127: 0.25000875 | G127: 0.125009375 | H127: 0.0625096875 | I127: 0.03125984375 | J127: 0.04688476563 | K127: 0.05469722656 | L127: 0.05860345703 | M127: 0.06055657227 | N127: 0.05958001465 | O127: 0.05909173584 | P127: 0.05884759644 | Q127: 0.05872552673 | R127: 0.05878656158 | S127: 0.05875604416 | T127: 0.05874078545 | U127: 0.0587484148 | V127: 0.05874460012 | W127: 0.05874650746 | X127: 0.05874555379 | Y127: 0.05874603063
B128: 26 | C128: 22 | D128: 1.000005 | E128: 0.5000075 | F128: 0.25000875 | G128: 0.125009375 | H128: 0.0625096875 | I128: 0.03125984375 | J128: 0.04688476563 | K128: 0.05469722656 | L128: 0.05860345703 | M128: 0.06055657227 | N128: 0.06153312988 | O128: 0.06104485107 | P128: 0.06080071167 | Q128: 0.06092278137 | R128: 0.06086174652 | S128: 0.0608312291 | T128: 0.06081597038 | U128: 0.06080834103 | V128: 0.0608121557 | W128: 0.06081406304 | X128: 0.06081501671 | Y128: 0.06081549355
B129: 27 | C129: 22 | D129: 1.000005 | E129: 0.5000075 | F129: 0.25000875 | G129: 0.125009375 | H129: 0.0625096875 | I129: 0.09375953125 | J129: 0.07813460937 | K129: 0.07032214844 | L129: 0.06641591797 | M129: 0.06446280273 | N129: 0.06348624512 | O129: 0.06299796631 | P129: 0.0627538269 | Q129: 0.06287589661 | R129: 0.06293693146 | S129: 0.06296744888 | T129: 0.0629827076 | U129: 0.06297507824 | V129: 0.06297126356 | W129: 0.0629731709 | X129: 0.06297412457 | Y129: 0.06297364774
B130: 28 | C130: 22 | D130: 1.000005 | E130: 0.5000075 | F130: 0.25000875 | G130: 0.125009375 | H130: 0.0625096875 | I130: 0.09375953125 | J130: 0.07813460937 | K130: 0.07032214844 | L130: 0.06641591797 | M130: 0.06446280273 | N130: 0.06543936035 | O130: 0.06495108154 | P130: 0.06519522095 | Q130: 0.06531729065 | R130: 0.0653783255 | S130: 0.06534780807 | T130: 0.06536306679 | U130: 0.06535543743 | V130: 0.06535925211 | W130: 0.06535734477 | X130: 0.06535829844 | Y130: 0.06535782161
B131: 29 | C131: 22 | D131: 1.000005 | E131: 0.5000075 | F131: 0.25000875 | G131: 0.125009375 | H131: 0.0625096875 | I131: 0.09375953125 | J131: 0.07813460937 | K131: 0.07032214844 | L131: 0.06641591797 | M131: 0.0683690332 | N131: 0.06739247559 | O131: 0.06788075439 | P131: 0.06763661499 | Q131: 0.06751454529 | R131: 0.06745351044 | S131: 0.06742299301 | T131: 0.06743825172 | U131: 0.06744588108 | V131: 0.0674420664 | W131: 0.06744397374 | X131: 0.06744302007 | Y131: 0.06744254324
B132: 30 | C132: 22 | D132: 1.000005 | E132: 0.5000075 | F132: 0.25000875 | G132: 0.125009375 | H132: 0.0625096875 | I132: 0.09375953125 | J132: 0.07813460937 | K132: 0.07032214844 | L132: 0.06641591797 | M132: 0.0683690332 | N132: 0.06934559082 | O132: 0.06983386963 | P132: 0.06958973022 | Q132: 0.06971179993 | R132: 0.06977283478 | S132: 0.0698033522 | T132: 0.06981861092 | U132: 0.06982624027 | V132: 0.06983005495 | W132: 0.06982814761 | X132: 0.06982910128 | Y132: 0.06982862445
B133: 31 | C133: 22 | D133: 1.000005 | E133: 0.5000075 | F133: 0.25000875 | G133: 0.125009375 | H133: 0.0625096875 | I133: 0.09375953125 | J133: 0.07813460937 | K133: 0.07032214844 | L133: 0.07422837891 | M133: 0.07227526367 | N133: 0.07129870605 | O133: 0.07178698486 | P133: 0.07203112427 | Q133: 0.07190905457 | R133: 0.07197008942 | S133: 0.07200060684 | T133: 0.07201586555 | U133: 0.07202349491 | V133: 0.07202730959 | W133: 0.07202921693 | X133: 0.0720301706 | Y133: 0.07202969376
B134: 32 | C134: 22 | D134: 1.000005 | E134: 0.5000075 | F134: 0.25000875 | G134: 0.125009375 | H134: 0.0625096875 | I134: 0.09375953125 | J134: 0.07813460937 | K134: 0.07032214844 | L134: 0.07422837891 | M134: 0.07618149414 | N134: 0.07520493652 | O134: 0.07471665771 | P134: 0.07447251831 | Q134: 0.07435044861 | R134: 0.07441148346 | S134: 0.07444200089 | T134: 0.07442674217 | U134: 0.07443437153 | V134: 0.07443055685 | W134: 0.07442864951 | X134: 0.07442769584 | Y134: 0.07442721901
B135: 33 | C135: 22 | D135: 1.000005 | E135: 0.5000075 | F135: 0.25000875 | G135: 0.125009375 | H135: 0.0625096875 | I135: 0.09375953125 | J135: 0.07813460937 | K135: 0.07032214844 | L135: 0.07422837891 | M135: 0.07618149414 | N135: 0.07715805176 | O135: 0.07666977295 | P135: 0.07691391235 | Q135: 0.07703598206 | R135: 0.0769749472 | S135: 0.07694442978 | T135: 0.07695968849 | U135: 0.07695205914 | V135: 0.07694824446 | W135: 0.07694633712 | X135: 0.07694729079 | Y135: 0.07694681395
B136: 34 | C136: 22 | D136: 1.000005 | E136: 0.5000075 | F136: 0.25000875 | G136: 0.125009375 | H136: 0.0625096875 | I136: 0.09375953125 | J136: 0.07813460937 | K136: 0.08594707031 | L136: 0.08204083984 | M136: 0.08008772461 | N136: 0.07911116699 | O136: 0.0795994458 | P136: 0.0793553064 | Q136: 0.07923323669 | R136: 0.07917220184 | S136: 0.07914168442 | T136: 0.07915694313 | U136: 0.07914931377 | V136: 0.07915312845 | W136: 0.07915122111 | X136: 0.07915026744 | Y136: 0.07915074428
B137: 35 | C137: 22 | D137: 1.000005 | E137: 0.5000075 | F137: 0.25000875 | G137: 0.125009375 | H137: 0.0625096875 | I137: 0.09375953125 | J137: 0.07813460937 | K137: 0.08594707031 | L137: 0.08204083984 | M137: 0.08008772461 | N137: 0.08106428223 | O137: 0.08155256104 | P137: 0.08179670044 | Q137: 0.08167463074 | R137: 0.08161359589 | S137: 0.08164411331 | T137: 0.08165937202 | U137: 0.08166700138 | V137: 0.08167081606 | W137: 0.0816727234 | X137: 0.08167176973 | Y137: 0.08167224656
B138: 36 | C138: 22 | D138: 1.000005 | E138: 0.5000075 | F138: 0.25000875 | G138: 0.125009375 | H138: 0.0625096875 | I138: 0.09375953125 | J138: 0.07813460937 | K138: 0.08594707031 | L138: 0.08204083984 | M138: 0.08399395508 | N138: 0.0849705127 | O138: 0.08448223389 | P138: 0.08423809448 | Q138: 0.08436016418 | R138: 0.08429912933 | S138: 0.08426861191 | T138: 0.08428387062 | U138: 0.08429149998 | V138: 0.0842876853 | W138: 0.08428577796 | X138: 0.08428673163 | Y138: 0.08428720846
B139: 37 | C139: 22 | D139: 1.000005 | E139: 0.5000075 | F139: 0.25000875 | G139: 0.125009375 | H139: 0.0625096875 | I139: 0.09375953125 | J139: 0.07813460937 | K139: 0.08594707031 | L139: 0.08985330078 | M139: 0.08790018555 | N139: 0.08692362793 | O139: 0.08643534912 | P139: 0.08667948853 | Q139: 0.08655741882 | R139: 0.08649638397 | S139: 0.0865269014 | T139: 0.08651164268 | U139: 0.08651927204 | V139: 0.08651545736 | W139: 0.08651355002 | X139: 0.08651259635 | Y139: 0.08651211952
B140: 38 | C140: 22 | D140: 1.000005 | E140: 0.5000075 | F140: 0.25000875 | G140: 0.125009375 | H140: 0.0625096875 | I140: 0.09375953125 | J140: 0.07813460937 | K140: 0.08594707031 | L140: 0.08985330078 | M140: 0.08790018555 | N140: 0.08887674316 | O140: 0.08936502197 | P140: 0.08912088257 | Q140: 0.08924295227 | R140: 0.08918191742 | S140: 0.08915139999 | T140: 0.08913614128 | U140: 0.08912851192 | V140: 0.08912469725 | W140: 0.08912278991 | X140: 0.08912183624 | Y140: 0.08912231307
B141: 39 | C141: 22 | D141: 1.000005 | E141: 0.5000075 | F141: 0.25000875 | G141: 0.125009375 | H141: 0.0625096875 | I141: 0.09375953125 | J141: 0.07813460937 | K141: 0.08594707031 | L141: 0.08985330078 | M141: 0.09180641602 | N141: 0.0908298584 | O141: 0.09131813721 | P141: 0.09156227661 | Q141: 0.09144020691 | R141: 0.09150124176 | S141: 0.09147072433 | T141: 0.09145546562 | U141: 0.09146309498 | V141: 0.09146690966 | W141: 0.091468817 | X141: 0.09146977067 | Y141: 0.0914702475
B142: 40 | C142: 22 | D142: 1.000005 | E142: 0.5000075 | F142: 0.25000875 | G142: 0.125009375 | H142: 0.0625096875 | I142: 0.09375953125 | J142: 0.1093844531 | K142: 0.1015719922 | L142: 0.09766576172 | M142: 0.09571264648 | N142: 0.09473608887 | O142: 0.09424781006 | P142: 0.09400367065 | Q142: 0.09388160095 | R142: 0.0939426358 | S142: 0.09397315323 | T142: 0.09398841194 | U142: 0.0939960413 | V142: 0.09399222662 | W142: 0.09399413396 | X142: 0.09399318029 | Y142: 0.09399365712
B143: 41 | C143: 21 | D143: 1.000005 | E143: 0.5000075 | F143: 0.25000875 | G143: 0.125009375 | H143: 0.0625096875 | I143: 0.09375953125 | J143: 0.1093844531 | K143: 0.1015719922 | L143: 0.09766576172 | M143: 0.09571264648 | N143: 0.0966892041 | O143: 0.09620092529 | P143: 0.09595678589 | Q143: 0.09607885559 | R143: 0.09601782074 | S143: 0.09604833817 | T143: 0.09603307945 | U143: 0.0960254501 | V143: 0.09602926477 | W143: 0.09602735744 | X143: 0.09602640377
B144: 42 | C144: 21 | D144: 1.000005 | E144: 0.5000075 | F144: 0.25000875 | G144: 0.125009375 | H144: 0.0625096875 | I144: 0.09375953125 | J144: 0.1093844531 | K144: 0.1015719922 | L144: 0.09766576172 | M144: 0.09961887695 | N144: 0.09864231934 | O144: 0.09815404053 | P144: 0.09790990112 | Q144: 0.09778783142 | R144: 0.09772679657 | S144: 0.097757314 | T144: 0.09777257271 | U144: 0.09776494335 | V144: 0.09776875803 | W144: 0.09777066537 | X144: 0.0977697117
B145: 43 | C145: 21 | D145: 1.000005 | E145: 0.5000075 | F145: 0.25000875 | G145: 0.125009375 | H145: 0.0625096875 | I145: 0.09375953125 | J145: 0.1093844531 | K145: 0.1015719922 | L145: 0.09766576172 | M145: 0.09961887695 | N145: 0.1005954346 | O145: 0.1001071558 | P145: 0.09986301636 | Q145: 0.09974094666 | R145: 0.09980198151 | S145: 0.09983249893 | T145: 0.09984775764 | U145: 0.099855387 | V145: 0.09985920168 | W145: 0.09986110902 | X145: 0.09986015535
B146: 44 | C146: 21 | D146: 1.000005 | E146: 0.5000075 | F146: 0.25000875 | G146: 0.125009375 | H146: 0.0625096875 | I146: 0.09375953125 | J146: 0.1093844531 | K146: 0.1015719922 | L146: 0.1054782227 | M146: 0.1035251074 | N146: 0.1025485498 | O146: 0.102060271 | P146: 0.1018161316 | Q146: 0.1016940619 | R146: 0.101633027 | S146: 0.1016635445 | T146: 0.1016482858 | U146: 0.1016406564 | V146: 0.1016444711 | W146: 0.1016425637 | X146: 0.1016435174
B147: 45 | C147: 21 | D147: 1.000005 | E147: 0.5000075 | F147: 0.25000875 | G147: 0.125009375 | H147: 0.0625096875 | I147: 0.09375953125 | J147: 0.1093844531 | K147: 0.1015719922 | L147: 0.1054782227 | M147: 0.1035251074 | N147: 0.104501665 | O147: 0.1040133862 | P147: 0.1037692468 | Q147: 0.1038913165 | R147: 0.1038302817 | S147: 0.1037997643 | T147: 0.1037845055 | U147: 0.1037768762 | V147: 0.1037806909 | W147: 0.1037825982 | X147: 0.1037835519
B148: 46 | C148: 21 | D148: 1.000005 | E148: 0.5000075 | F148: 0.25000875 | G148: 0.125009375 | H148: 0.0625096875 | I148: 0.09375953125 | J148: 0.1093844531 | K148: 0.1015719922 | L148: 0.1054782227 | M148: 0.1074313379 | N148: 0.1064547803 | O148: 0.1059665015 | P148: 0.1057223621 | Q148: 0.1056002924 | R148: 0.1056613272 | S148: 0.1056308098 | T148: 0.1056155511 | U148: 0.1056079217 | V148: 0.1056117364 | W148: 0.1056136437 | X148: 0.1056145974
B149: 47 | C149: 21 | D149: 1.000005 | E149: 0.5000075 | F149: 0.25000875 | G149: 0.125009375 | H149: 0.0625096875 | I149: 0.09375953125 | J149: 0.1093844531 | K149: 0.1015719922 | L149: 0.1054782227 | M149: 0.1074313379 | N149: 0.1084078955 | O149: 0.1079196167 | P149: 0.1076754773 | Q149: 0.107797547 | R149: 0.1077365121 | S149: 0.1077670296 | T149: 0.1077822883 | U149: 0.1077899176 | V149: 0.1077937323 | W149: 0.1077956397 | X149: 0.1077965933
B150: 48 | C150: 21 | D150: 1.000005 | E150: 0.5000075 | F150: 0.25000875 | G150: 0.125009375 | H150: 0.0625096875 | I150: 0.09375953125 | J150: 0.1093844531 | K150: 0.1171969141 | L150: 0.1132906836 | M150: 0.1113375684 | N150: 0.1103610107 | O150: 0.1098727319 | P150: 0.1096285925 | Q150: 0.1097506622 | R150: 0.1096896274 | S150: 0.10965911 | T150: 0.1096743687 | U150: 0.109681998 | V150: 0.1096781833 | W150: 0.109676276 | X150: 0.1096753223
B151: 49 | C151: 21 | D151: 1.000005 | E151: 0.5000075 | F151: 0.25000875 | G151: 0.125009375 | H151: 0.0625096875 | I151: 0.09375953125 | J151: 0.1093844531 | K151: 0.1171969141 | L151: 0.1132906836 | M151: 0.1113375684 | N151: 0.112314126 | O151: 0.1118258472 | P151: 0.1120699866 | Q151: 0.1119479169 | R151: 0.111886882 | S151: 0.1119173994 | T151: 0.1119021407 | U151: 0.1118945114 | V151: 0.1118983261 | W151: 0.1118964187 | X151: 0.1118973724
B152: 50 | C152: 21 | D152: 1.000005 | E152: 0.5000075 | F152: 0.25000875 | G152: 0.125009375 | H152: 0.0625096875 | I152: 0.09375953125 | J152: 0.1093844531 | K152: 0.1171969141 | L152: 0.1132906836 | M152: 0.1152437988 | N152: 0.1142672412 | O152: 0.1137789624 | P152: 0.1140231018 | Q152: 0.1139010321 | R152: 0.1138399973 | S152: 0.1138094798 | T152: 0.1138247385 | U152: 0.1138323679 | V152: 0.1138285532 | W152: 0.1138266459 | X152: 0.1138256922
B153: 51 | C153: 21 | D153: 1.000005 | E153: 0.5000075 | F153: 0.25000875 | G153: 0.125009375 | H153: 0.0625096875 | I153: 0.09375953125 | J153: 0.1093844531 | K153: 0.1171969141 | L153: 0.1132906836 | M153: 0.1152437988 | N153: 0.1162203564 | O153: 0.1157320776 | P153: 0.115976217 | Q153: 0.1160982867 | R153: 0.1160372519 | S153: 0.1160677693 | T153: 0.116083028 | U153: 0.1160753987 | V153: 0.1160792134 | W153: 0.1160811207 | X153: 0.116080167
B154: 52 | C154: 21 | D154: 1.000005 | E154: 0.5000075 | F154: 0.25000875 | G154: 0.125009375 | H154: 0.0625096875 | I154: 0.09375953125 | J154: 0.1093844531 | K154: 0.1171969141 | L154: 0.1211031445 | M154: 0.1191500293 | N154: 0.1181734717 | O154: 0.1176851929 | P154: 0.1179293323 | Q154: 0.118051402 | R154: 0.1181124368 | S154: 0.1180819194 | T154: 0.1180666607 | U154: 0.1180590313 | V154: 0.118062846 | W154: 0.1180647534 | X154: 0.1180637997
B155: 53 | C155: 21 | D155: 1.000005 | E155: 0.5000075 | F155: 0.25000875 | G155: 0.125009375 | H155: 0.0625096875 | I155: 0.09375953125 | J155: 0.1093844531 | K155: 0.1171969141 | L155: 0.1211031445 | M155: 0.1191500293 | N155: 0.1201265869 | O155: 0.1206148657 | P155: 0.1203707263 | Q155: 0.120492796 | R155: 0.1205538309 | S155: 0.1205233134 | T155: 0.1205080547 | U155: 0.1205156841 | V155: 0.1205118694 | W155: 0.1205137768 | X155: 0.1205128231
B156: 54 | C156: 21 | D156: 1.000005 | E156: 0.5000075 | F156: 0.25000875 | G156: 0.125009375 | H156: 0.0625096875 | I156: 0.09375953125 | J156: 0.1093844531 | K156: 0.1171969141 | L156: 0.1211031445 | M156: 0.1230562598 | N156: 0.1220797021 | O156: 0.122567981 | P156: 0.1228121204 | Q156: 0.1226900507 | R156: 0.1227510855 | S156: 0.1227205681 | T156: 0.1227358268 | U156: 0.1227434562 | V156: 0.1227396415 | W156: 0.1227377341 | X156: 0.1227367805
B157: 55 | C157: 21 | D157: 1.000005 | E157: 0.5000075 | F157: 0.25000875 | G157: 0.125009375 | H157: 0.1875090625 | I157: 0.1562592187 | J157: 0.1406342969 | K157: 0.1328218359 | L157: 0.1289156055 | M157: 0.1269624902 | N157: 0.1259859326 | O157: 0.1254976538 | P157: 0.1252535144 | Q157: 0.1251314447 | R157: 0.1251924796 | S157: 0.125222997 | T157: 0.1252077383 | U157: 0.1252153676 | V157: 0.1252115529 | W157: 0.1252134603 | X157: 0.1252125066
B158: 56 | C158: 21 | D158: 1.000005 | E158: 0.5000075 | F158: 0.25000875 | G158: 0.125009375 | H158: 0.1875090625 | I158: 0.1562592187 | J158: 0.1406342969 | K158: 0.1328218359 | L158: 0.1289156055 | M158: 0.1269624902 | N158: 0.1279390479 | O158: 0.127450769 | P158: 0.1276949084 | Q158: 0.1278169781 | R158: 0.1277559433 | S158: 0.1277864607 | T158: 0.127771202 | U158: 0.1277635727 | V158: 0.127759758 | W158: 0.1277578506 | X158: 0.1277588043
B159: 57 | C159: 21 | D159: 1.000005 | E159: 0.5000075 | F159: 0.25000875 | G159: 0.125009375 | H159: 0.1875090625 | I159: 0.1562592187 | J159: 0.1406342969 | K159: 0.1328218359 | L159: 0.1289156055 | M159: 0.1308687207 | N159: 0.1298921631 | O159: 0.1303804419 | P159: 0.1301363025 | Q159: 0.1300142328 | R159: 0.1299531979 | S159: 0.1299837154 | T159: 0.1299989741 | U159: 0.1299913447 | V159: 0.1299951594 | W159: 0.1299932521 | X159: 0.1299942057
B160: 58 | C160: 21 | D160: 1.000005 | E160: 0.5000075 | F160: 0.25000875 | G160: 0.125009375 | H160: 0.1875090625 | I160: 0.1562592187 | J160: 0.1406342969 | K160: 0.1328218359 | L160: 0.1289156055 | M160: 0.1308687207 | N160: 0.1318452783 | O160: 0.1323335571 | P160: 0.1325776965 | Q160: 0.1324556268 | R160: 0.1325166617 | S160: 0.1325471791 | T160: 0.1325319204 | U160: 0.1325395498 | V160: 0.1325433644 | W160: 0.1325414571 | X160: 0.1325424108
B161: 59 | C161: 21 | D161: 1.000005 | E161: 0.5000075 | F161: 0.25000875 | G161: 0.125009375 | H161: 0.1875090625 | I161: 0.1562592187 | J161: 0.1406342969 | K161: 0.1328218359 | L161: 0.1367280664 | M161: 0.1347749512 | N161: 0.1357515088 | O161: 0.13526323 | P161: 0.1350190906 | Q161: 0.1351411603 | R161: 0.1350801254 | S161: 0.1351106429 | T161: 0.1351259016 | U161: 0.1351182722 | V161: 0.1351144575 | W161: 0.1351163649 | X161: 0.1351173185
B162: 60 | C162: 21 | D162: 1.000005 | E162: 0.5000075 | F162: 0.25000875 | G162: 0.125009375 | H162: 0.1875090625 | I162: 0.1562592187 | J162: 0.1406342969 | K162: 0.1328218359 | L162: 0.1367280664 | M162: 0.1386811816 | N162: 0.137704624 | O162: 0.1372163452 | P162: 0.1374604846 | Q162: 0.1373384149 | R162: 0.1373994498 | S162: 0.1374299672 | T162: 0.1374147085 | U162: 0.1374070791 | V162: 0.1374032644 | W162: 0.1374013571 | X162: 0.1374023108
B163: 61 | C163: 21 | D163: 1.000005 | E163: 0.5000075 | F163: 0.25000875 | G163: 0.125009375 | H163: 0.1875090625 | I163: 0.1562592187 | J163: 0.1406342969 | K163: 0.1328218359 | L163: 0.1367280664 | M163: 0.1386811816 | N163: 0.1396577393 | O163: 0.1401460181 | P163: 0.1399018787 | Q163: 0.1400239484 | R163: 0.1400849832 | S163: 0.1400544658 | T163: 0.1400392071 | U163: 0.1400315777 | V163: 0.140027763 | W163: 0.1400296704 | X163: 0.1400287167
B164: 62 | C164: 21 | D164: 1.000005 | E164: 0.5000075 | F164: 0.25000875 | G164: 0.125009375 | H164: 0.1875090625 | I164: 0.1562592187 | J164: 0.1406342969 | K164: 0.1484467578 | L164: 0.1445405273 | M164: 0.1425874121 | N164: 0.1416108545 | O164: 0.1420991333 | P164: 0.1423432727 | Q164: 0.1424653424 | R164: 0.1424043076 | S164: 0.1423737901 | T164: 0.1423890488 | U164: 0.1423814195 | V164: 0.1423852342 | W164: 0.1423871415 | X164: 0.1423880952
B165: 63 | C165: 21 | D165: 1.000005 | E165: 0.5000075 | F165: 0.25000875 | G165: 0.125009375 | H165: 0.1875090625 | I165: 0.1562592187 | J165: 0.1406342969 | K165: 0.1484467578 | L165: 0.1445405273 | M165: 0.1464936426 | N165: 0.145517085 | O165: 0.1450288062 | P165: 0.1452729456 | Q165: 0.1451508759 | R165: 0.145089841 | S165: 0.1450593236 | T165: 0.1450440649 | U165: 0.1450516942 | V165: 0.1450478795 | W165: 0.1450459722 | X165: 0.1450450185
B166: 64 | C166: 21 | D166: 1.000005 | E166: 0.5000075 | F166: 0.25000875 | G166: 0.125009375 | H166: 0.1875090625 | I166: 0.1562592187 | J166: 0.1406342969 | K166: 0.1484467578 | L166: 0.1445405273 | M166: 0.1464936426 | N166: 0.1474702002 | O166: 0.147958479 | P166: 0.1477143396 | Q166: 0.1478364093 | R166: 0.1477753745 | S166: 0.147744857 | T166: 0.1477601157 | U166: 0.1477524864 | V166: 0.1477486717 | W166: 0.1477467644 | X166: 0.1477458107
B167: 65 | C167: 21 | D167: 1.000005 | E167: 0.5000075 | F167: 0.25000875 | G167: 0.125009375 | H167: 0.1875090625 | I167: 0.1562592187 | J167: 0.1406342969 | K167: 0.1484467578 | L167: 0.1523529883 | M167: 0.150399873 | N167: 0.1494233154 | O167: 0.1499115942 | P167: 0.1501557336 | Q167: 0.1500336639 | R167: 0.1500946988 | S167: 0.1501252162 | T167: 0.1501404749 | U167: 0.1501481043 | V167: 0.150151919 | W167: 0.1501538263 | X167: 0.15015478
B168: 66 | C168: 21 | D168: 1.000005 | E168: 0.5000075 | F168: 0.25000875 | G168: 0.125009375 | H168: 0.1875090625 | I168: 0.1562592187 | J168: 0.1406342969 | K168: 0.1484467578 | L168: 0.1523529883 | M168: 0.1543061035 | N168: 0.1533295459 | O168: 0.1528412671 | P168: 0.1525971277 | Q168: 0.1527191974 | R168: 0.1527802322 | S168: 0.1528107497 | T168: 0.1528260084 | U168: 0.1528336377 | V168: 0.1528374524 | W168: 0.1528393598 | X168: 0.1528403134
B169: 67 | C169: 21 | D169: 1.000005 | E169: 0.5000075 | F169: 0.25000875 | G169: 0.125009375 | H169: 0.1875090625 | I169: 0.1562592187 | J169: 0.1406342969 | K169: 0.1484467578 | L169: 0.1523529883 | M169: 0.1543061035 | N169: 0.1552826611 | O169: 0.1557709399 | P169: 0.1555268005 | Q169: 0.1556488702 | R169: 0.1555878354 | S169: 0.155557318 | T169: 0.1555725767 | U169: 0.1555649473 | V169: 0.155568762 | W169: 0.1555706693 | X169: 0.1555697157
B170: 68 | C170: 21 | D170: 1.000005 | E170: 0.5000075 | F170: 0.25000875 | G170: 0.125009375 | H170: 0.1875090625 | I170: 0.1562592187 | J170: 0.1718841406 | K170: 0.1640716797 | L170: 0.1601654492 | M170: 0.158212334 | N170: 0.1572357764 | O170: 0.1577240552 | P170: 0.1579681946 | Q170: 0.1580902643 | R170: 0.1580292294 | S170: 0.157998712 | T170: 0.1580139707 | U170: 0.1580063414 | V170: 0.1580025267 | W170: 0.158004434 | X170: 0.1580034804
B171: 69 | C171: 21 | D171: 1.000005 | E171: 0.5000075 | F171: 0.25000875 | G171: 0.125009375 | H171: 0.1875090625 | I171: 0.1562592187 | J171: 0.1718841406 | K171: 0.1640716797 | L171: 0.1601654492 | M171: 0.1621185645 | N171: 0.1611420068 | O171: 0.160653728 | P171: 0.1608978674 | Q171: 0.1607757977 | R171: 0.1607147629 | S171: 0.1607452803 | T171: 0.1607300216 | U171: 0.1607223922 | V171: 0.1607185776 | W171: 0.1607166702 | X171: 0.1607157165
B172: 70 | C172: 21 | D172: 1.000005 | E172: 0.5000075 | F172: 0.25000875 | G172: 0.125009375 | H172: 0.1875090625 | I172: 0.1562592187 | J172: 0.1718841406 | K172: 0.1640716797 | L172: 0.1601654492 | M172: 0.1621185645 | N172: 0.1630951221 | O172: 0.1635834009 | P172: 0.1633392615 | Q172: 0.1634613312 | R172: 0.163522366 | S172: 0.1634918486 | T172: 0.1634765899 | U172: 0.1634689605 | V172: 0.1634651459 | W172: 0.1634670532 | X172: 0.1634680069
B173: 71 | C173: 21 | D173: 1.000005 | E173: 0.5000075 | F173: 0.25000875 | G173: 0.125009375 | H173: 0.1875090625 | I173: 0.1562592187 | J173: 0.1718841406 | K173: 0.1640716797 | L173: 0.1679779102 | M173: 0.1660247949 | N173: 0.1650482373 | O173: 0.1655365161 | P173: 0.1657806555 | Q173: 0.1659027252 | R173: 0.1659637601 | S173: 0.1659332426 | T173: 0.1659179839 | U173: 0.1659256133 | V173: 0.165929428 | W173: 0.1659275206 | X173: 0.1659284743
B174: 72 | C174: 21 | D174: 1.000005 | E174: 0.5000075 | F174: 0.25000875 | G174: 0.125009375 | H174: 0.1875090625 | I174: 0.1562592187 | J174: 0.1718841406 | K174: 0.1640716797 | L174: 0.1679779102 | M174: 0.1699310254 | N174: 0.1689544678 | O174: 0.168466189 | P174: 0.1687103284 | Q174: 0.1685882587 | R174: 0.1686492935 | S174: 0.1686798109 | T174: 0.1686645522 | U174: 0.1686569229 | V174: 0.1686607376 | W174: 0.1686626449 | X174: 0.1686635986
B175: 73 | C175: 21 | D175: 1.000005 | E175: 0.5000075 | F175: 0.25000875 | G175: 0.125009375 | H175: 0.1875090625 | I175: 0.1562592187 | J175: 0.1718841406 | K175: 0.1640716797 | L175: 0.1679779102 | M175: 0.1699310254 | N175: 0.170907583 | O175: 0.1713958618 | P175: 0.1716400012 | Q175: 0.1715179315 | R175: 0.1714568967 | S175: 0.1714263792 | T175: 0.171441638 | U175: 0.1714340086 | V175: 0.1714378233 | W175: 0.1714359159 | X175: 0.1714368696
B176: 74 | C176: 21 | D176: 1.000005 | E176: 0.5000075 | F176: 0.25000875 | G176: 0.125009375 | H176: 0.1875090625 | I176: 0.1562592187 | J176: 0.1718841406 | K176: 0.1796966016 | L176: 0.1757903711 | M176: 0.1738372559 | N176: 0.1748138135 | O176: 0.1743255347 | P176: 0.1740813953 | Q176: 0.174203465 | R176: 0.1742644998 | S176: 0.1742339824 | T176: 0.1742492411 | U176: 0.1742416117 | V176: 0.1742454264 | W176: 0.1742435191 | X176: 0.1742425654
B177: 75 | C177: 21 | D177: 1.000005 | E177: 0.5000075 | F177: 0.25000875 | G177: 0.125009375 | H177: 0.1875090625 | I177: 0.1562592187 | J177: 0.1718841406 | K177: 0.1796966016 | L177: 0.1757903711 | M177: 0.1777434863 | N177: 0.1767669287 | O177: 0.1762786499 | P177: 0.1765227893 | Q177: 0.176644859 | R177: 0.1767058939 | S177: 0.1766753764 | T177: 0.1766906351 | U177: 0.1766830058 | V177: 0.1766791911 | W177: 0.1766772838 | X177: 0.1766782374
B178: 76 | C178: 21 | D178: 1.000005 | E178: 0.5000075 | F178: 0.25000875 | G178: 0.125009375 | H178: 0.1875090625 | I178: 0.1562592187 | J178: 0.1718841406 | K178: 0.1796966016 | L178: 0.1757903711 | M178: 0.1777434863 | N178: 0.1787200439 | O178: 0.1792083228 | P178: 0.1794524622 | Q178: 0.1795745319 | R178: 0.179513497 | S178: 0.1794829796 | T178: 0.1794677209 | U178: 0.1794753502 | V178: 0.1794715355 | W178: 0.1794696282 | X178: 0.1794686745
B179: 77 | C179: 21 | D179: 1.000005 | E179: 0.5000075 | F179: 0.25000875 | G179: 0.125009375 | H179: 0.1875090625 | I179: 0.1562592187 | J179: 0.1718841406 | K179: 0.1796966016 | L179: 0.183602832 | M179: 0.1816497168 | N179: 0.1826262744 | O179: 0.1821379956 | P179: 0.182382135 | Q179: 0.1822600653 | R179: 0.1823211002 | S179: 0.1822905827 | T179: 0.182275324 | U179: 0.1822829534 | V179: 0.1822867681 | W179: 0.1822886754 | X179: 0.1822896291
B180: 78 | C180: 21 | D180: 1.000005 | E180: 0.5000075 | F180: 0.25000875 | G180: 0.125009375 | H180: 0.1875090625 | I180: 0.1562592187 | J180: 0.1718841406 | K180: 0.1796966016 | L180: 0.183602832 | M180: 0.1855559473 | N180: 0.1845793896 | O180: 0.1850676685 | P180: 0.1848235291 | Q180: 0.1847014594 | R180: 0.1847624942 | S180: 0.1847319768 | T180: 0.1847472355 | U180: 0.1847548648 | V180: 0.1847510502 | W180: 0.1847529575 | X180: 0.1847539112
B181: 79 | C181: 21 | D181: 1.000005 | E181: 0.5000075 | F181: 0.25000875 | G181: 0.125009375 | H181: 0.1875090625 | I181: 0.2187589062 | J181: 0.2031339844 | K181: 0.1953215234 | L181: 0.191415293 | M181: 0.1894621777 | N181: 0.1884856201 | O181: 0.1879973413 | P181: 0.1877532019 | Q181: 0.1876311322 | R181: 0.1875700974 | S181: 0.1875395799 | T181: 0.1875548386 | U181: 0.187562468 | V181: 0.1875586533 | W181: 0.187556746 | X181: 0.1875576996
B182: 80 | C182: 21 | D182: 1.000005 | E182: 0.5000075 | F182: 0.25000875 | G182: 0.125009375 | H182: 0.1875090625 | I182: 0.2187589062 | J182: 0.2031339844 | K182: 0.1953215234 | L182: 0.191415293 | M182: 0.1894621777 | N182: 0.1904387354 | O182: 0.1899504565 | P182: 0.1901945959 | Q182: 0.1903166656 | R182: 0.1903777005 | S182: 0.1904082179 | T182: 0.1903929592 | U182: 0.1903853299 | V182: 0.1903891445 | W182: 0.1903910519 | X182: 0.1903900982
B183: 81 | C183: 20 | D183: 1.000005 | E183: 0.5000075 | F183: 0.25000875 | G183: 0.125009375 | H183: 0.1875090625 | I183: 0.2187589062 | J183: 0.2031339844 | K183: 0.1953215234 | L183: 0.191415293 | M183: 0.1933684082 | N183: 0.1923918506 | O183: 0.1928801294 | P183: 0.1931242688 | Q183: 0.1930021991 | R183: 0.1929411642 | S183: 0.1929106468 | T183: 0.1928953881 | U183: 0.1928877588 | V183: 0.1928839441 | W183: 0.1928858514
B184: 82 | C184: 20 | D184: 1.000005 | E184: 0.5000075 | F184: 0.25000875 | G184: 0.125009375 | H184: 0.1875090625 | I184: 0.2187589062 | J184: 0.2031339844 | K184: 0.1953215234 | L184: 0.1992277539 | M184: 0.1972746387 | N184: 0.1962980811 | O184: 0.1958098022 | P184: 0.1955656628 | Q184: 0.1956877325 | R184: 0.1957487674 | S184: 0.19571825 | T184: 0.1957029913 | U184: 0.1956953619 | V184: 0.1956991766 | W184: 0.1957010839
B185: 83 | C185: 20 | D185: 1.000005 | E185: 0.5000075 | F185: 0.25000875 | G185: 0.125009375 | H185: 0.1875090625 | I185: 0.2187589062 | J185: 0.2031339844 | K185: 0.1953215234 | L185: 0.1992277539 | M185: 0.1972746387 | N185: 0.1982511963 | O185: 0.1987394751 | P185: 0.1984953357 | Q185: 0.198373266 | R185: 0.1983122311 | S185: 0.1982817137 | T185: 0.198266455 | U185: 0.1982740844 | V185: 0.198277899 | W185: 0.1982798064
B186: 84 | C186: 20 | D186: 1.000005 | E186: 0.5000075 | F186: 0.25000875 | G186: 0.125009375 | H186: 0.1875090625 | I186: 0.2187589062 | J186: 0.2031339844 | K186: 0.1953215234 | L186: 0.1992277539 | M186: 0.2011808691 | N186: 0.2002043115 | O186: 0.2006925903 | P186: 0.2009367297 | Q186: 0.2010587994 | R186: 0.2009977646 | S186: 0.2009672472 | T186: 0.2009825059 | U186: 0.2009901352 | V186: 0.2009939499 | W186: 0.2009958572
B187: 85 | C187: 20 | D187: 1.000005 | E187: 0.5000075 | F187: 0.25000875 | G187: 0.125009375 | H187: 0.1875090625 | I187: 0.2187589062 | J187: 0.2031339844 | K187: 0.2109464453 | L187: 0.2070402148 | M187: 0.2050870996 | N187: 0.204110542 | O187: 0.2036222632 | P187: 0.2038664026 | Q187: 0.2039884723 | R187: 0.2039274374 | S187: 0.20389692 | T187: 0.2038816613 | U187: 0.2038740319 | V187: 0.2038778466 | W187: 0.2038759393
B188: 86 | C188: 20 | D188: 1.000005 | E188: 0.5000075 | F188: 0.25000875 | G188: 0.125009375 | H188: 0.1875090625 | I188: 0.2187589062 | J188: 0.2031339844 | K188: 0.2109464453 | L188: 0.2070402148 | M188: 0.2050870996 | N188: 0.2060636572 | O188: 0.206551936 | P188: 0.2067960754 | Q188: 0.2069181451 | R188: 0.20697918 | S188: 0.2069486626 | T188: 0.2069334039 | U188: 0.2069410332 | V188: 0.2069372185 | W188: 0.2069353112
B189: 87 | C189: 20 | D189: 1.000005 | E189: 0.5000075 | F189: 0.25000875 | G189: 0.125009375 | H189: 0.1875090625 | I189: 0.2187589062 | J189: 0.2031339844 | K189: 0.2109464453 | L189: 0.2070402148 | M189: 0.2089933301 | N189: 0.2099698877 | O189: 0.2104581665 | P189: 0.2102140271 | Q189: 0.2100919574 | R189: 0.2101529922 | S189: 0.2101835097 | T189: 0.2101987684 | U189: 0.210191139 | V189: 0.2101949537 | W189: 0.210196861
B190: 88 | C190: 20 | D190: 1.000005 | E190: 0.5000075 | F190: 0.25000875 | G190: 0.125009375 | H190: 0.1875090625 | I190: 0.2187589062 | J190: 0.2031339844 | K190: 0.2109464453 | L190: 0.2148526758 | M190: 0.2128995605 | N190: 0.2138761182 | O190: 0.2133878394 | P190: 0.2136319788 | Q190: 0.2137540485 | R190: 0.2136930136 | S190: 0.2136624962 | T190: 0.2136777549 | U190: 0.2136853843 | V190: 0.2136891989 | W190: 0.2136872916
B191: 89 | C191: 20 | D191: 1.000005 | E191: 0.5000075 | F191: 0.25000875 | G191: 0.125009375 | H191: 0.1875090625 | I191: 0.2187589062 | J191: 0.2031339844 | K191: 0.2109464453 | L191: 0.2148526758 | M191: 0.216805791 | N191: 0.2177823486 | O191: 0.2172940698 | P191: 0.2175382092 | Q191: 0.2174161395 | R191: 0.2174771744 | S191: 0.217446657 | T191: 0.2174313982 | U191: 0.2174390276 | V191: 0.2174352129 | W191: 0.2174333056
B192: 90 | C192: 20 | D192: 1.000005 | E192: 0.5000075 | F192: 0.25000875 | G192: 0.125009375 | H192: 0.1875090625 | I192: 0.2187589062 | J192: 0.2343838281 | K192: 0.2265713672 | L192: 0.2226651367 | M192: 0.2207120215 | N192: 0.2216885791 | O192: 0.2212003003 | P192: 0.2214444397 | Q192: 0.2215665094 | R192: 0.2215054745 | S192: 0.2214749571 | T192: 0.2214902158 | U192: 0.2214825865 | V192: 0.2214864012 | W192: 0.2214844938
B193: 91 | C193: 20 | D193: 1.000005 | E193: 0.5000075 | F193: 0.25000875 | G193: 0.125009375 | H193: 0.1875090625 | I193: 0.2187589062 | J193: 0.2343838281 | K193: 0.2265713672 | L193: 0.2226651367 | M193: 0.224618252 | N193: 0.2255948096 | O193: 0.2260830884 | P193: 0.225838949 | Q193: 0.2259610187 | R193: 0.2258999838 | S193: 0.2258694664 | T193: 0.2258847251 | U193: 0.2258770958 | V193: 0.2258809104 | W193: 0.2258790031
B194: 92 | C194: 20 | D194: 1.000005 | E194: 0.5000075 | F194: 0.25000875 | G194: 0.125009375 | H194: 0.1875090625 | I194: 0.2187589062 | J194: 0.2343838281 | K194: 0.2265713672 | L194: 0.2304775977 | M194: 0.2324307129 | N194: 0.2314541553 | O194: 0.2309658765 | P194: 0.2307217371 | Q194: 0.2305996674 | R194: 0.2306607022 | S194: 0.2306912196 | T194: 0.2306759609 | U194: 0.2306835903 | V194: 0.230687405 | W194: 0.2306854976
B195: 93 | C195: 20 | D195: 1.000005 | E195: 0.5000075 | F195: 0.25000875 | G195: 0.125009375 | H195: 0.1875090625 | I195: 0.2187589062 | J195: 0.2343838281 | K195: 0.2421962891 | L195: 0.2382900586 | M195: 0.2363369434 | N195: 0.2353603857 | O195: 0.2358486646 | P195: 0.236092804 | Q195: 0.2359707343 | R195: 0.2360317691 | S195: 0.2360012517 | T195: 0.235985993 | U195: 0.2359783636 | V195: 0.2359745489 | W195: 0.2359764563
B196: 94 | C196: 20 | D196: 1.000005 | E196: 0.5000075 | F196: 0.25000875 | G196: 0.125009375 | H196: 0.1875090625 | I196: 0.2187589062 | J196: 0.2343838281 | K196: 0.2421962891 | L196: 0.2382900586 | M196: 0.2402431738 | N196: 0.2412197314 | O196: 0.2417080103 | P196: 0.2419521497 | Q196: 0.24183008 | R196: 0.2418911148 | S196: 0.2418605974 | T196: 0.2418453387 | U196: 0.241852968 | V196: 0.2418567827 | W196: 0.24185869
B197: 95 | C197: 20 | D197: 1.000005 | E197: 0.5000075 | F197: 0.25000875 | G197: 0.125009375 | H197: 0.1875090625 | I197: 0.2187589062 | J197: 0.2343838281 | K197: 0.2421962891 | L197: 0.2461025195 | M197: 0.2480556348 | N197: 0.2490321924 | O197: 0.2485439136 | P197: 0.2482997742 | Q197: 0.2484218439 | R197: 0.2484828787 | S197: 0.2484523613 | T197: 0.24846762 | U197: 0.2484752494 | V197: 0.2484714347 | W197: 0.248473342
B198: 96 | C198: 20 | D198: 1.000005 | E198: 0.5000075 | F198: 0.25000875 | G198: 0.375008125 | H198: 0.3125084375 | I198: 0.2812585938 | J198: 0.2656336719 | K198: 0.2578212109 | L198: 0.2539149805 | M198: 0.2558680957 | N198: 0.2568446533 | O198: 0.2563563745 | P198: 0.2561122351 | Q198: 0.2559901654 | R198: 0.2560512003 | S198: 0.2560206828 | T198: 0.2560054241 | U198: 0.2560130535 | V198: 0.2560168682 | W198: 0.2560149608
B199: 97 | C199: 20 | D199: 1.000005 | E199: 0.5000075 | F199: 0.25000875 | G199: 0.375008125 | H199: 0.3125084375 | I199: 0.2812585938 | J199: 0.2656336719 | K199: 0.2578212109 | L199: 0.2617274414 | M199: 0.2636805566 | N199: 0.2646571143 | O199: 0.2651453931 | P199: 0.2649012537 | Q199: 0.264779184 | R199: 0.2647181491 | S199: 0.2647486665 | T199: 0.2647639252 | U199: 0.2647715546 | V199: 0.2647677399 | W199: 0.2647696473
B200: 98 | C200: 20 | D200: 1.000005 | E200: 0.5000075 | F200: 0.25000875 | G200: 0.375008125 | H200: 0.3125084375 | I200: 0.2812585938 | J200: 0.2656336719 | K200: 0.2734461328 | L200: 0.2773523633 | M200: 0.275399248 | N200: 0.2744226904 | O200: 0.2749109692 | P200: 0.2751551086 | Q200: 0.2752771783 | R200: 0.2752161435 | S200: 0.2751856261 | T200: 0.2751703674 | U200: 0.2751779967 | V200: 0.2751818114 | W200: 0.2751837187
... 104 more rows

Sheet 中立軸計算3
A1: ケース 1 | B1: ステップ | C1: 収束回数 | D1: 収束状況
A2: 降伏時 | B2: 1 | C2: 22 | D2: -0.9300007 | E2: -0.39500105 | F2: -0.127501225 | G2: 0.0062486875 | H2: 0.07312364375 | I2: 0.03968616563 | J2: 0.05640490469 | K2: 0.06476427422 | L2: 0.06894395898 | M2: 0.07103380137 | N2: 0.07207872256 | O2: 0.07155626196 | P2: 0.07129503167 | Q2: 0.07116441652 | R2: 0.07109910894 | S2: 0.07113176273 | T2: 0.07111543584 | U2: 0.07110727239 | V2: 0.07110319067 | W2: 0.07110523153 | X2: 0.0711042111 | Y2: 0.07110370088
A3: 終局時 | B3: 1 | C3: 22 | D3: 1.000005 | E3: 0.5000075 | F3: 0.25000875 | G3: 0.125009375 | H3: 0.0625096875 | I3: 0.03125984375 | J3: 0.04688476563 | K3: 0.05469722656 | L3: 0.05860345703 | M3: 0.0566503418 | N3: 0.05762689941 | O3: 0.05811517822 | P3: 0.05787103882 | Q3: 0.05774896912 | R3: 0.05768793427 | S3: 0.05771845169 | T3: 0.0577337104 | U3: 0.05772608105 | V3: 0.05772226637 | W3: 0.05772417371 | X3: 0.05772322004 | Y3: 0.05772369687

Sheet 市販ソフトとの比較
B2: 市販ソフト （諸元ケース1） | E2: 本マクロ （諸元ケース1） | J2: 市販ソフト （諸元ケース2） | M2: 本マクロ （諸元ケース2、正側） | P2: 本マクロ （諸元ケース2、負側）
B3: 終局モーメント | C3: 軸力 | E3: 番号 | F3: 曲げモーメント(kNm) | G3: 軸力(kN) | J3: 終局モーメント | K3: 軸力 | M3: 番号 | N3: 曲げモー メント(kNm) | O3: 軸力(kN) | P3: 番号 | Q3: 曲げモー メント(kNm) | R3: 軸力(kN)
E4: ='Mu(+)-N関係'!B2 -> 1 | F4: ='Mu(+)-N関係'!C2 -> 0.08741333415 | G4: ='Mu(+)-N関係'!D2 -> -873.35577 | M4: ='Mu(+)-N関係'!J2 -> 1 | N4: ='Mu(+)-N関係'!K2 -> 8.466449276 | O4: ='Mu(+)-N関係'!L2 -> -655.0168275 | P4: ='Mu(-)-N関係'!J2 -> 1 | Q4: ='Mu(-)-N関係'!K2 -> 8.33532565 | R4: ='Mu(-)-N関係'!L2 -> -655.0168275
B5: Mu(kN.m) | C5: N(kN) | E5: ='Mu(+)-N関係'!B3 -> 2 | F5: ='Mu(+)-N関係'!C3 -> 9.662242645 | G5: ='Mu(+)-N関係'!D3 -> -776.3970907 | J5: Mu(kN.m) | K5: N(kN) | M5: ='Mu(+)-N関係'!J3 -> 2 | N5: ='Mu(+)-N関係'!K3 -> 17.68242021 | O5: ='Mu(+)-N関係'!L3 -> -562.2366493 | P5: ='Mu(-)-N関係'!J3 -> 2 | Q5: ='Mu(-)-N関係'!K3 -> -0.783926188 | R5: ='Mu(-)-N関係'!L3 -> -562.2366493
B6: 0 | C6: 8906.73 | E6: ='Mu(+)-N関係'!B4 -> 3 | F6: ='Mu(+)-N関係'!C4 -> 18.99044481 | G6: ='Mu(+)-N関係'!D4 -> -679.4384115 | J6: -8.742 | K6: 8688.173 | M6: ='Mu(+)-N関係'!J4 -> 3 | N6: ='Mu(+)-N関係'!K4 -> 26.67635758 | O6: ='Mu(+)-N関係'!L4 -> -469.4564711 | P6: ='Mu(-)-N関係'!J4 -> 3 | Q6: ='Mu(-)-N関係'!K4 -> -9.681144473 | R6: ='Mu(-)-N関係'!L4 -> -469.4564711
B7: 31.046 | C7: 8500 | E7: ='Mu(+)-N関係'!B5 -> 4 | F7: ='Mu(+)-N関係'!C5 -> 28.05800735 | G7: ='Mu(+)-N関係'!D5 -> -582.4797322 | J7: 6.612 | K7: 8500 | M7: ='Mu(+)-N関係'!J5 -> 4 | N7: ='Mu(+)-N関係'!K5 -> 35.41274851 | O7: ='Mu(+)-N関係'!L5 -> -376.6762929 | P7: ='Mu(-)-N関係'!J5 -> 4 | Q7: ='Mu(-)-N関係'!K5 -> -18.32081631 | R7: ='Mu(-)-N関係'!L5 -> -376.6762929
B8: 64.496 | C8: 8000 | E8: ='Mu(+)-N関係'!B6 -> 5 | F8: ='Mu(+)-N関係'!C6 -> 36.90890189 | G8: ='Mu(+)-N関係'!D6 -> -485.5210529 | J8: 41.232 | K8: 8000 | M8: ='Mu(+)-N関係'!J6 -> 5 | N8: ='Mu(+)-N関係'!K6 -> 43.98189036 | O8: ='Mu(+)-N関係'!L6 -> -283.8961147 | P8: ='Mu(-)-N関係'!J6 -> 5 | Q8: ='Mu(-)-N関係'!K6 -> -26.79323907 | R8: ='Mu(-)-N関係'!L6 -> -283.8961147
B9: 97.175 | C9: 7500 | E9: ='Mu(+)-N関係'!B7 -> 6 | F9: ='Mu(+)-N関係'!C7 -> 45.52285361 | G9: ='Mu(+)-N関係'!D7 -> -388.5623737 | J9: 74.229 | K9: 7500 | M9: ='Mu(+)-N関係'!J7 -> 6 | N9: ='Mu(+)-N関係'!K7 -> 52.3162495 | O9: ='Mu(+)-N関係'!L7 -> -191.1159365 | P9: ='Mu(-)-N関係'!J7 -> 6 | Q9: ='Mu(-)-N関係'!K7 -> -35.03087912 | R9: ='Mu(-)-N関係'!L7 -> -191.1159365
B10: 128.846 | C10: 7000 | E10: ='Mu(+)-N関係'!B8 -> 7 | F10: ='Mu(+)-N関係'!C8 -> 53.89141579 | G10: ='Mu(+)-N関係'!D8 -> -291.6036944 | J10: 106.561 | K10: 7000 | M10: ='Mu(+)-N関係'!J8 -> 7 | N10: ='Mu(+)-N関係'!K8 -> 60.41736648 | O10: ='Mu(+)-N関係'!L8 -> -98.33575831 | P10: ='Mu(-)-N関係'!J8 -> 7 | Q10: ='Mu(-)-N関係'!K8 -> -43.03527701 | R10: ='Mu(-)-N関係'!L8 -> -98.33575831
B11: 155.983 | C11: 6500 | E11: ='Mu(+)-N関係'!B9 -> 8 | F11: ='Mu(+)-N関係'!C9 -> 62.01748685 | G11: ='Mu(+)-N関係'!D9 -> -194.6450151 | J11: 136.033 | K11: 6500 | M11: ='Mu(+)-N関係'!J9 -> 8 | N11: ='Mu(+)-N関係'!K9 -> 68.30581306 | O11: ='Mu(+)-N関係'!L9 -> -5.555580109 | P11: ='Mu(-)-N関係'!J9 -> 8 | Q11: ='Mu(-)-N関係'!K9 -> -50.8270045 | R11: ='Mu(-)-N関係'!L9 -> -5.555580109
B12: 177.927 | C12: 6000 | E12: ='Mu(+)-N関係'!B10 -> 9 | F12: ='Mu(+)-N関係'!C10 -> 69.90055006 | G12: ='Mu(+)-N関係'!D10 -> -97.68633588 | J12: 160.216 | K12: 6000 | M12: ='Mu(+)-N関係'!J10 -> 9 | N12: ='Mu(+)-N関係'!K10 -> 75.98815046 | O12: ='Mu(+)-N関係'!L10 -> 87.22459809 | P12: ='Mu(-)-N関係'!J10 -> 9 | Q12: ='Mu(-)-N関係'!K10 -> -58.41262281 | R12: ='Mu(-)-N関係'!L10 -> 87.22459809
B13: 194.942 | C13: 5500 | E13: ='Mu(+)-N関係'!B11 -> 10 | F13: ='Mu(+)-N関係'!C11 -> 77.57121766 | G13: ='Mu(+)-N関係'!D11 -> -0.727656615 | J13: 179.35 | K13: 5500 | M13: ='Mu(+)-N関係'!J11 -> 10 | N13: ='Mu(+)-N関係'!K11 -> 83.43553392 | O13: ='Mu(+)-N関係'!L11 -> 180.0047763 | P13: ='Mu(-)-N関係'!J11 -> 10 | Q13: ='Mu(-)-N関係'!K11 -> -65.76328718 | R13: ='Mu(-)-N関係'!L11 -> 180.0047763
B14: 207.36 | C14: 5000 | E14: ='Mu(+)-N関係'!B12 -> 11 | F14: ='Mu(+)-N関係'!C12 -> 84.96548278 | G14: ='Mu(+)-N関係'!D12 -> 96.23102265 | J14: 193.731 | K14: 5000 | M14: ='Mu(+)-N関係'!J12 -> 11 | N14: ='Mu(+)-N関係'!K12 -> 90.66277316 | O14: ='Mu(+)-N関係'!L12 -> 272.7849545 | P14: ='Mu(-)-N関係'!J12 -> 11 | Q14: ='Mu(-)-N関係'!K12 -> -72.89380732 | R14: ='Mu(-)-N関係'!L12 -> 272.7849545
B15: 215.589 | C15: 4500 | E15: ='Mu(+)-N関係'!B13 -> 12 | F15: ='Mu(+)-N関係'!C13 -> 92.12713077 | G15: ='Mu(+)-N関係'!D13 -> 193.1897019 | J15: 203.735 | K15: 4500 | M15: ='Mu(+)-N関係'!J13 -> 12 | N15: ='Mu(+)-N関係'!K13 -> 97.68402043 | O15: ='Mu(+)-N関係'!L13 -> 365.5651327 | P15: ='Mu(-)-N関係'!J13 -> 12 | Q15: ='Mu(-)-N関係'!K13 -> -79.81833551 | R15: ='Mu(-)-N関係'!L13 -> 365.5651327
B16: 219.664 | C16: 4000 | E16: ='Mu(+)-N関係'!B14 -> 13 | F16: ='Mu(+)-N関係'!C14 -> 99.05175066 | G16: ='Mu(+)-N関係'!D14 -> 290.1483812 | J16: 209.824 | K16: 4000 | M16: ='Mu(+)-N関係'!J14 -> 13 | N16: ='Mu(+)-N関係'!K14 -> 104.4704916 | O16: ='Mu(+)-N関係'!L14 -> 458.3453109 | P16: ='Mu(-)-N関係'!J14 -> 13 | Q16: ='Mu(-)-N関係'!K14 -> -86.50808763 | R16: ='Mu(-)-N関係'!L14 -> 458.3453109
B17: 219.313 | C17: 3500 | E17: ='Mu(+)-N関係'!B15 -> 14 | F17: ='Mu(+)-N関係'!C15 -> 105.7628372 | G17: ='Mu(+)-N関係'!D15 -> 387.1070604 | J17: 211.764 | K17: 3500 | M17: ='Mu(+)-N関係'!J15 -> 14 | N17: ='Mu(+)-N関係'!K15 -> 111.0394065 | O17: ='Mu(+)-N関係'!L15 -> 551.1254891 | P17: ='Mu(-)-N関係'!J15 -> 14 | Q17: ='Mu(-)-N関係'!K15 -> -92.98028335 | R17: ='Mu(-)-N関係'!L15 -> 551.1254891
B18: 216.721 | C18: 3000 | E18: ='Mu(+)-N関係'!B16 -> 15 | F18: ='Mu(+)-N関係'!C16 -> 111.5599475 | G18: ='Mu(+)-N関係'!D16 -> 484.0657397 | J18: 210.906 | K18: 3000 | M18: ='Mu(+)-N関係'!J16 -> 15 | N18: ='Mu(+)-N関係'!K16 -> 117.3878522 | O18: ='Mu(+)-N関係'!L16 -> 643.9056673 | P18: ='Mu(-)-N関係'!J16 -> 15 | Q18: ='Mu(-)-N関係'!K16 -> -99.23201003 | R18: ='Mu(-)-N関係'!L16 -> 643.9056673
B19: 203.766 | C19: 2500 | E19: ='Mu(+)-N関係'!B17 -> 16 | F19: ='Mu(+)-N関係'!C17 -> 116.6840189 | G19: ='Mu(+)-N関係'!D17 -> 581.024419 | J19: 202.636 | K19: 2500 | M19: ='Mu(+)-N関係'!J17 -> 16 | N19: ='Mu(+)-N関係'!K17 -> 122.849253 | O19: ='Mu(+)-N関係'!L17 -> 736.6858455 | P19: ='Mu(-)-N関係'!J17 -> 16 | Q19: ='Mu(-)-N関係'!K17 -> -104.2414732 | R19: ='Mu(-)-N関係'!L17 -> 736.6858455
B20: 185.29 | C20: 2000 | E20: ='Mu(+)-N関係'!B18 -> 17 | F20: ='Mu(+)-N関係'!C18 -> 121.807007 | G20: ='Mu(+)-N関係'!D18 -> 677.9830982 | J20: 185.312 | K20: 2000 | M20: ='Mu(+)-N関係'!J18 -> 17 | N20: ='Mu(+)-N関係'!K18 -> 128.157567 | O20: ='Mu(+)-N関係'!L18 -> 829.4660237 | P20: ='Mu(-)-N関係'!J18 -> 17 | Q20: ='Mu(-)-N関係'!K18 -> -109.0948185 | R20: ='Mu(-)-N関係'!L18 -> 829.4660237
B21: 163.232 | C21: 1500 | E21: ='Mu(+)-N関係'!B19 -> 18 | F21: ='Mu(+)-N関係'!C19 -> 126.8991023 | G21: ='Mu(+)-N関係'!D19 -> 774.9417775 | J21: 163.215 | K21: 1500 | M21: ='Mu(+)-N関係'!J19 -> 18 | N21: ='Mu(+)-N関係'!K19 -> 133.4282521 | O21: ='Mu(+)-N関係'!L19 -> 922.2462019 | P21: ='Mu(-)-N関係'!J19 -> 18 | Q21: ='Mu(-)-N関係'!K19 -> -113.9374091 | R21: ='Mu(-)-N関係'!L19 -> 922.2462019
B22: 138.572 | C22: 1000 | E22: ='Mu(+)-N関係'!B20 -> 19 | F22: ='Mu(+)-N関係'!C20 -> 131.9473115 | G22: ='Mu(+)-N関係'!D20 -> 871.9004568 | J22: 137.257 | K22: 1000 | M22: ='Mu(+)-N関係'!J20 -> 19 | N22: ='Mu(+)-N関係'!K20 -> 138.5800848 | O22: ='Mu(+)-N関係'!L20 -> 1015.02638 | P22: ='Mu(-)-N関係'!J20 -> 19 | Q22: ='Mu(-)-N関係'!K20 -> -118.7494421 | R22: ='Mu(-)-N関係'!L20 -> 1015.02638
B23: 112.414 | C23: 500 | E23: ='Mu(+)-N関係'!B21 -> 20 | F23: ='Mu(+)-N関係'!C21 -> 136.9530717 | G23: ='Mu(+)-N関係'!D21 -> 968.859136 | J23: 107.222 | K23: 500 | M23: ='Mu(+)-N関係'!J21 -> 20 | N23: ='Mu(+)-N関係'!K21 -> 143.6901465 | O23: ='Mu(+)-N関係'!L21 -> 1107.806558 | P23: ='Mu(-)-N関係'!J21 -> 20 | Q23: ='Mu(-)-N関係'!K21 -> -123.5253399 | R23: ='Mu(-)-N関係'!L21 -> 1107.806558
B24: 77.645 | C24: 0 | E24: ='Mu(+)-N関係'!B22 -> 21 | F24: ='Mu(+)-N関係'!C22 -> 141.9061746 | G24: ='Mu(+)-N関係'!D22 -> 1065.817815 | J24: 68.809 | K24: 0 | M24: ='Mu(+)-N関係'!J22 -> 21 | N24: ='Mu(+)-N関係'!K22 -> 148.6478418 | O24: ='Mu(+)-N関係'!L22 -> 1200.586736 | P24: ='Mu(-)-N関係'!J22 -> 21 | Q24: ='Mu(-)-N関係'!K22 -> -128.261317 | R24: ='Mu(-)-N関係'!L22 -> 1200.586736
B25: 35.631 | C25: -500 | E25: ='Mu(+)-N関係'!B23 -> 22 | F25: ='Mu(+)-N関係'!C23 -> 146.7889037 | G25: ='Mu(+)-N関係'!D23 -> 1162.776495 | J25: 23.999 | K25: -500 | M25: ='Mu(+)-N関係'!J23 -> 22 | N25: ='Mu(+)-N関係'!K23 -> 153.5460675 | O25: ='Mu(+)-N関係'!L23 -> 1293.366915 | P25: ='Mu(-)-N関係'!J23 -> 22 | Q25: ='Mu(-)-N関係'!K23 -> -132.9442804 | R25: ='Mu(-)-N関係'!L23 -> 1293.366915
B26: 0.001 | C26: -874.223 | E26: ='Mu(+)-N関係'!B24 -> 23 | F26: ='Mu(+)-N関係'!C24 -> 151.6190828 | G26: ='Mu(+)-N関係'!D24 -> 1259.735174 | J26: 8.743 | K26: -655.666 | M26: ='Mu(+)-N関係'!J24 -> 23 | N26: ='Mu(+)-N関係'!K24 -> 158.2887548 | O26: ='Mu(+)-N関係'!L24 -> 1386.147093 | P26: ='Mu(-)-N関係'!J24 -> 23 | Q26: ='Mu(-)-N関係'!K24 -> -137.5652902 | R26: ='Mu(-)-N関係'!L24 -> 1386.147093
E27: ='Mu(+)-N関係'!B25 -> 24 | F27: ='Mu(+)-N関係'!C25 -> 156.3501416 | G27: ='Mu(+)-N関係'!D25 -> 1356.693853 | J27: 8.741 | K27: -655.666 | M27: ='Mu(+)-N関係'!J25 -> 24 | N27: ='Mu(+)-N関係'!K25 -> 162.9343134 | O27: ='Mu(+)-N関係'!L25 -> 1478.927271 | P27: ='Mu(-)-N関係'!J25 -> 24 | Q27: ='Mu(-)-N関係'!K25 -> -142.1370378 | R27: ='Mu(-)-N関係'!L25 -> 1478.927271
E28: ='Mu(+)-N関係'!B26 -> 25 | F28: ='Mu(+)-N関係'!C26 -> 161.0208965 | G28: ='Mu(+)-N関係'!D26 -> 1453.652532 | J28: -6.515 | K28: -500 | M28: ='Mu(+)-N関係'!J26 -> 25 | N28: ='Mu(+)-N関係'!K26 -> 167.5023911 | O28: ='Mu(+)-N関係'!L26 -> 1571.707449 | P28: ='Mu(-)-N関係'!J26 -> 25 | Q28: ='Mu(-)-N関係'!K26 -> -146.6164843 | R28: ='Mu(-)-N関係'!L26 -> 1571.707449
E29: ='Mu(+)-N関係'!B27 -> 26 | F29: ='Mu(+)-N関係'!C27 -> 165.5786061 | G29: ='Mu(+)-N関係'!D27 -> 1550.611212 | J29: -51.325 | K29: 0 | M29: ='Mu(+)-N関係'!J27 -> 26 | N29: ='Mu(+)-N関係'!K27 -> 171.8001831 | O29: ='Mu(+)-N関係'!L27 -> 1664.487627 | P29: ='Mu(-)-N関係'!J27 -> 26 | Q29: ='Mu(-)-N関係'!K27 -> -151.0472206 | R29: ='Mu(-)-N関係'!L27 -> 1664.487627
B30: 市販ソフト （諸元ケース1） | E30: ='Mu(+)-N関係'!B28 -> 27 | F30: ='Mu(+)-N関係'!C28 -> 170.0515704 | G30: ='Mu(+)-N関係'!D28 -> 1647.569891 | J30: -89.738 | K30: 500 | M30: ='Mu(+)-N関係'!J28 -> 27 | N30: ='Mu(+)-N関係'!K28 -> 176.0633505 | O30: ='Mu(+)-N関係'!L28 -> 1757.267806 | P30: ='Mu(-)-N関係'!J28 -> 27 | Q30: ='Mu(-)-N関係'!K28 -> -155.3647616 | R30: ='Mu(-)-N関係'!L28 -> 1757.267806
E31: ='Mu(+)-N関係'!B29 -> 28 | F31: ='Mu(+)-N関係'!C29 -> 174.4889003 | G31: ='Mu(+)-N関係'!D29 -> 1744.52857 | J31: -118.516 | K31: 1000 | M31: ='Mu(+)-N関係'!J29 -> 28 | N31: ='Mu(+)-N関係'!K29 -> 180.2065817 | O31: ='Mu(+)-N関係'!L29 -> 1850.047984 | P31: ='Mu(-)-N関係'!J29 -> 28 | Q31: ='Mu(-)-N関係'!K29 -> -159.6213936 | R31: ='Mu(-)-N関係'!L29 -> 1850.047984
B32: My(kNm) | C32: N(kN) | E32: ='Mu(+)-N関係'!B30 -> 29 | F32: ='Mu(+)-N関係'!C30 -> 178.6402728 | G32: ='Mu(+)-N関係'!D30 -> 1841.487249 | J32: -143.967 | K32: 1500 | M32: ='Mu(+)-N関係'!J30 -> 29 | N32: ='Mu(+)-N関係'!K30 -> 183.994755 | O32: ='Mu(+)-N関係'!L30 -> 1942.828162 | P32: ='Mu(-)-N関係'!J30 -> 29 | Q32: ='Mu(-)-N関係'!K30 -> -163.7504613 | R32: ='Mu(-)-N関係'!L30 -> 1942.828162
B33: 181.711 | C33: 2000 | E33: ='Mu(+)-N関係'!B31 -> 30 | F33: ='Mu(+)-N関係'!C31 -> 182.791279 | G33: ='Mu(+)-N関係'!D31 -> 1938.445929 | J33: -167.293 | K33: 2000 | M33: ='Mu(+)-N関係'!J31 -> 30 | N33: ='Mu(+)-N関係'!K31 -> 187.7765316 | O33: ='Mu(+)-N関係'!L31 -> 2035.60834 | P33: ='Mu(-)-N関係'!J31 -> 30 | Q33: ='Mu(-)-N関係'!K31 -> -167.7950139 | R33: ='Mu(-)-N関係'!L31 -> 2035.60834
B34: 202.053 | C34: 2500 | E34: ='Mu(+)-N関係'!B32 -> 31 | F34: ='Mu(+)-N関係'!C32 -> 186.6824223 | G34: ='Mu(+)-N関係'!D32 -> 2035.404608 | J34: -187.443 | K34: 2500 | M34: ='Mu(+)-N関係'!J32 -> 31 | N34: ='Mu(+)-N関係'!K32 -> 191.4348177 | O34: ='Mu(+)-N関係'!L32 -> 2128.388518 | P34: ='Mu(-)-N関係'!J32 -> 31 | Q34: ='Mu(-)-N関係'!K32 -> -171.7836698 | R34: ='Mu(-)-N関係'!L32 -> 2128.388518
B35: 適用範囲外 | C35: 3000 | E35: ='Mu(+)-N関係'!B33 -> 32 | F35: ='Mu(+)-N関係'!C33 -> 190.5270274 | G35: ='Mu(+)-N関係'!D33 -> 2132.363287 | J35: -203.546 | K35: 3000 | M35: ='Mu(+)-N関係'!J33 -> 32 | N35: ='Mu(+)-N関係'!K33 -> 194.6759355 | O35: ='Mu(+)-N関係'!L33 -> 2221.168697 | P35: ='Mu(-)-N関係'!J33 -> 32 | Q35: ='Mu(-)-N関係'!K33 -> -175.4705714 | R35: ='Mu(-)-N関係'!L33 -> 2221.168697
E36: ='Mu(+)-N関係'!B34 -> 33 | F36: ='Mu(+)-N関係'!C34 -> 194.2800832 | G36: ='Mu(+)-N関係'!D34 -> 2229.321966 | J36: -211.966 | K36: 3500 | M36: ='Mu(+)-N関係'!J34 -> 33 | N36: ='Mu(+)-N関係'!K34 -> 197.9439102 | O36: ='Mu(+)-N関係'!L34 -> 2313.948875 | P36: ='Mu(-)-N関係'!J34 -> 33 | Q36: ='Mu(-)-N関係'!K34 -> -179.1867873 | R36: ='Mu(-)-N関係'!L34 -> 2313.948875
E37: ='Mu(+)-N関係'!B35 -> 34 | F37: ='Mu(+)-N関係'!C35 -> 197.660096 | G37: ='Mu(+)-N関係'!D35 -> 2326.280646 | J37: -215.642 | K37: 4000 | M37: ='Mu(+)-N関係'!J35 -> 34 | N37: ='Mu(+)-N関係'!K35 -> 200.8830056 | O37: ='Mu(+)-N関係'!L35 -> 2406.729053 | P37: ='Mu(-)-N関係'!J35 -> 34 | Q37: ='Mu(-)-N関係'!K35 -> -182.6202807 | R37: ='Mu(-)-N関係'!L35 -> 2406.729053
B38: 本マクロ （諸元ケース1） | E38: ='Mu(+)-N関係'!B36 -> 35 | F38: ='Mu(+)-N関係'!C36 -> 201.0644738 | G38: ='Mu(+)-N関係'!D36 -> 2423.239325 | J38: -214.268 | K38: 4500 | M38: ='Mu(+)-N関係'!J36 -> 35 | N38: ='Mu(+)-N関係'!K36 -> 203.7514956 | O38: ='Mu(+)-N関係'!L36 -> 2499.509231 | P38: ='Mu(-)-N関係'!J36 -> 35 | Q38: ='Mu(-)-N関係'!K36 -> -186.039538 | R38: ='Mu(-)-N関係'!L36 -> 2499.509231
E39: ='Mu(+)-N関係'!B37 -> 36 | F39: ='Mu(+)-N関係'!C37 -> 204.3622216 | G39: ='Mu(+)-N関係'!D37 -> 2520.198004 | J39: -207.379 | K39: 5000 | M39: ='Mu(+)-N関係'!J37 -> 36 | N39: ='Mu(+)-N関係'!K37 -> 206.4754355 | O39: ='Mu(+)-N関係'!L37 -> 2592.289409 | P39: ='Mu(-)-N関係'!J37 -> 36 | Q39: ='Mu(-)-N関係'!K37 -> -189.3785198 | R39: ='Mu(-)-N関係'!L37 -> 2592.289409
B40: 釣合軸力 (kN) | C40: ='Mu(+)-N関係'!H4 -> 2896.191919 | E40: ='Mu(+)-N関係'!B38 -> 37 | F40: ='Mu(+)-N関係'!C38 -> 207.1946259 | G40: ='Mu(+)-N関係'!D38 -> 2617.156684 | J40: -195.371 | K40: 5500 | M40: ='Mu(+)-N関係'!J38 -> 37 | N40: ='Mu(+)-N関係'!K38 -> 208.8384598 | O40: ='Mu(+)-N関係'!L38 -> 2685.069588 | P40: ='Mu(-)-N関係'!J38 -> 37 | Q40: ='Mu(-)-N関係'!K38 -> -192.3072252 | R40: ='Mu(-)-N関係'!L38 -> 2685.069588
E41: ='Mu(+)-N関係'!B39 -> 38 | F41: ='Mu(+)-N関係'!C39 -> 210.1106236 | G41: ='Mu(+)-N関係'!D39 -> 2714.115363 | J41: -177.955 | K41: 6000 | M41: ='Mu(+)-N関係'!J39 -> 38 | N41: ='Mu(+)-N関係'!K39 -> 210.7289825 | O41: ='Mu(+)-N関係'!L39 -> 2777.849766 | P41: ='Mu(-)-N関係'!J39 -> 38 | Q41: ='Mu(-)-N関係'!K39 -> -195.3181664 | R41: ='Mu(-)-N関係'!L39 -> 2777.849766
E42: ='Mu(+)-N関係'!B40 -> 39 | F42: ='Mu(+)-N関係'!C40 -> 212.6412814 | G42: ='Mu(+)-N関係'!D40 -> 2811.074042 | J42: -154.929 | K42: 6500 | M42: ='Mu(+)-N関係'!J40 -> 39 | N42: ='Mu(+)-N関係'!K40 -> 211.2539918 | O42: ='Mu(+)-N関係'!L40 -> 2870.629944 | P42: ='Mu(-)-N関係'!J40 -> 39 | Q42: ='Mu(-)-N関係'!K40 -> -197.9678717 | R42: ='Mu(-)-N関係'!L40 -> 2870.629944
E43: ='Mu(+)-N関係'!B41 -> 40 | F43: ='Mu(+)-N関係'!C41 -> 214.9710722 | G43: ='Mu(+)-N関係'!D41 -> 2908.032721 | J43: -126.123 | K43: 7000 | M43: ='Mu(+)-N関係'!J41 -> 40 | N43: ='Mu(+)-N関係'!K41 -> 211.6782646 | O43: ='Mu(+)-N関係'!L41 -> 2963.410122 | P43: ='Mu(-)-N関係'!J41 -> 40 | Q43: ='Mu(-)-N関係'!K41 -> -200.6292381 | R43: ='Mu(-)-N関係'!L41 -> 2963.410122
E44: ='Mu(+)-N関係'!B42 -> 41 | F44: ='Mu(+)-N関係'!C42 -> 215.6798238 | G44: ='Mu(+)-N関係'!D42 -> 3004.991401 | J44: -93.337 | K44: 7500 | M44: ='Mu(+)-N関係'!J42 -> 41 | N44: ='Mu(+)-N関係'!K42 -> 212.0979171 | O44: ='Mu(+)-N関係'!L42 -> 3056.1903 | P44: ='Mu(-)-N関係'!J42 -> 41 | Q44: ='Mu(-)-N関係'!K42 -> -203.1898361 | R44: ='Mu(-)-N関係'!L42 -> 3056.1903
E45: ='Mu(+)-N関係'!B43 -> 42 | F45: ='Mu(+)-N関係'!C43 -> 216.2509639 | G45: ='Mu(+)-N関係'!D43 -> 3101.95008 | J45: -59.629 | K45: 8000 | M45: ='Mu(+)-N関係'!J43 -> 42 | N45: ='Mu(+)-N関係'!K43 -> 212.3710281 | O45: ='Mu(+)-N関係'!L43 -> 3148.970479 | P45: ='Mu(-)-N関係'!J43 -> 42 | Q45: ='Mu(-)-N関係'!K43 -> -204.9787499 | R45: ='Mu(-)-N関係'!L43 -> 3148.970479
E46: ='Mu(+)-N関係'!B44 -> 43 | F46: ='Mu(+)-N関係'!C44 -> 216.8542628 | G46: ='Mu(+)-N関係'!D44 -> 3198.908759 | J46: -24.098 | K46: 8500 | M46: ='Mu(+)-N関係'!J44 -> 43 | N46: ='Mu(+)-N関係'!K44 -> 212.665709 | O46: ='Mu(+)-N関係'!L44 -> 3241.750657 | P46: ='Mu(-)-N関係'!J44 -> 43 | Q46: ='Mu(-)-N関係'!K44 -> -206.278536 | R46: ='Mu(-)-N関係'!L44 -> 3241.750657
E47: ='Mu(+)-N関係'!B45 -> 44 | F47: ='Mu(+)-N関係'!C45 -> 217.2653759 | G47: ='Mu(+)-N関係'!D45 -> 3295.867438 | J47: -8.742 | K47: 8688.173 | M47: ='Mu(+)-N関係'!J45 -> 44 | N47: ='Mu(+)-N関係'!K45 -> 212.7699633 | O47: ='Mu(+)-N関係'!L45 -> 3334.530835 | P47: ='Mu(-)-N関係'!J45 -> 44 | Q47: ='Mu(-)-N関係'!K45 -> -207.3333439 | R47: ='Mu(-)-N関係'!L45 -> 3334.530835
E48: ='Mu(+)-N関係'!B46 -> 45 | F48: ='Mu(+)-N関係'!C46 -> 217.742472 | G48: ='Mu(+)-N関係'!D46 -> 3392.826118 | M48: ='Mu(+)-N関係'!J46 -> 45 | N48: ='Mu(+)-N関係'!K46 -> 212.9140629 | O48: ='Mu(+)-N関係'!L46 -> 3427.311013 | P48: ='Mu(-)-N関係'!J46 -> 45 | Q48: ='Mu(-)-N関係'!K46 -> -208.4351808 | R48: ='Mu(-)-N関係'!L46 -> 3427.311013
E49: ='Mu(+)-N関係'!B47 -> 46 | F49: ='Mu(+)-N関係'!C47 -> 217.9770824 | G49: ='Mu(+)-N関係'!D47 -> 3489.784797 | M49: ='Mu(+)-N関係'!J47 -> 46 | N49: ='Mu(+)-N関係'!K47 -> 212.8353424 | O49: ='Mu(+)-N関係'!L47 -> 3520.091191 | P49: ='Mu(-)-N関係'!J47 -> 46 | Q49: ='Mu(-)-N関係'!K47 -> -209.2796675 | R49: ='Mu(-)-N関係'!L47 -> 3520.091191
E50: ='Mu(+)-N関係'!B48 -> 47 | F50: ='Mu(+)-N関係'!C48 -> 218.2996605 | G50: ='Mu(+)-N関係'!D48 -> 3586.743476 | M50: ='Mu(+)-N関係'!J48 -> 47 | N50: ='Mu(+)-N関係'!K48 -> 212.8103495 | O50: ='Mu(+)-N関係'!L48 -> 3612.87137 | P50: ='Mu(-)-N関係'!J48 -> 47 | Q50: ='Mu(-)-N関係'!K48 -> -210.1617959 | R50: ='Mu(-)-N関係'!L48 -> 3612.87137
E51: ='Mu(+)-N関係'!B49 -> 48 | F51: ='Mu(+)-N関係'!C49 -> 218.3434843 | G51: ='Mu(+)-N関係'!D49 -> 3683.702155 | M51: ='Mu(+)-N関係'!J49 -> 48 | N51: ='Mu(+)-N関係'!K49 -> 212.5358403 | O51: ='Mu(+)-N関係'!L49 -> 3705.651548 | P51: ='Mu(-)-N関係'!J49 -> 48 | Q51: ='Mu(-)-N関係'!K49 -> -210.7822477 | R51: ='Mu(-)-N関係'!L49 -> 3705.651548
E52: ='Mu(+)-N関係'!B50 -> 49 | F52: ='Mu(+)-N関係'!C50 -> 218.4907365 | G52: ='Mu(+)-N関係'!D50 -> 3780.660835 | M52: ='Mu(+)-N関係'!J50 -> 49 | N52: ='Mu(+)-N関係'!K50 -> 212.3180008 | O52: ='Mu(+)-N関係'!L50 -> 3798.431726 | P52: ='Mu(-)-N関係'!J50 -> 49 | Q52: ='Mu(-)-N関係'!K50 -> -211.420909 | R52: ='Mu(-)-N関係'!L50 -> 3798.431726
E53: ='Mu(+)-N関係'!B51 -> 50 | F53: ='Mu(+)-N関係'!C51 -> 218.3327929 | G53: ='Mu(+)-N関係'!D51 -> 3877.619514 | M53: ='Mu(+)-N関係'!J51 -> 50 | N53: ='Mu(+)-N関係'!K51 -> 211.8190879 | O53: ='Mu(+)-N関係'!L51 -> 3891.211904 | P53: ='Mu(-)-N関係'!J51 -> 50 | Q53: ='Mu(-)-N関係'!K51 -> -212.0051947 | R53: ='Mu(-)-N関係'!L51 -> 3891.211904
E54: ='Mu(+)-N関係'!B52 -> 51 | F54: ='Mu(+)-N関係'!C52 -> 218.2790815 | G54: ='Mu(+)-N関係'!D52 -> 3974.578193 | M54: ='Mu(+)-N関係'!J52 -> 51 | N54: ='Mu(+)-N関係'!K52 -> 211.1787013 | O54: ='Mu(+)-N関係'!L52 -> 3983.992082 | P54: ='Mu(-)-N関係'!J52 -> 51 | Q54: ='Mu(-)-N関係'!K52 -> -212.1875575 | R54: ='Mu(-)-N関係'!L52 -> 3983.992082
E55: ='Mu(+)-N関係'!B53 -> 52 | F55: ='Mu(+)-N関係'!C53 -> 217.9058802 | G55: ='Mu(+)-N関係'!D53 -> 4071.536873 | M55: ='Mu(+)-N関係'!J53 -> 52 | N55: ='Mu(+)-N関係'!K53 -> 210.2918876 | O55: ='Mu(+)-N関係'!L53 -> 4076.772261 | P55: ='Mu(-)-N関係'!J53 -> 52 | Q55: ='Mu(-)-N関係'!K53 -> -212.4989568 | R55: ='Mu(-)-N関係'!L53 -> 4076.772261
E56: ='Mu(+)-N関係'!B54 -> 53 | F56: ='Mu(+)-N関係'!C54 -> 217.2528607 | G56: ='Mu(+)-N関係'!D54 -> 4168.495552 | M56: ='Mu(+)-N関係'!J54 -> 53 | N56: ='Mu(+)-N関係'!K54 -> 209.4066366 | O56: ='Mu(+)-N関係'!L54 -> 4169.552439 | P56: ='Mu(-)-N関係'!J54 -> 53 | Q56: ='Mu(-)-N関係'!K54 -> -212.4110721 | R56: ='Mu(-)-N関係'!L54 -> 4169.552439
E57: ='Mu(+)-N関係'!B55 -> 54 | F57: ='Mu(+)-N関係'!C55 -> 216.2803193 | G57: ='Mu(+)-N関係'!D55 -> 4265.454231 | M57: ='Mu(+)-N関係'!J55 -> 54 | N57: ='Mu(+)-N関係'!K55 -> 208.4513092 | O57: ='Mu(+)-N関係'!L55 -> 4262.332617 | P57: ='Mu(-)-N関係'!J55 -> 54 | Q57: ='Mu(-)-N関係'!K55 -> -212.0161057 | R57: ='Mu(-)-N関係'!L55 -> 4262.332617
E58: ='Mu(+)-N関係'!B56 -> 55 | F58: ='Mu(+)-N関係'!C56 -> 215.3144815 | G58: ='Mu(+)-N関係'!D56 -> 4362.41291 | M58: ='Mu(+)-N関係'!J56 -> 55 | N58: ='Mu(+)-N関係'!K56 -> 207.1403849 | O58: ='Mu(+)-N関係'!L56 -> 4355.112795 | P58: ='Mu(-)-N関係'!J56 -> 55 | Q58: ='Mu(-)-N関係'!K56 -> -211.5102234 | R58: ='Mu(-)-N関係'!L56 -> 4355.112795
E59: ='Mu(+)-N関係'!B57 -> 56 | F59: ='Mu(+)-N関係'!C57 -> 214.2625455 | G59: ='Mu(+)-N関係'!D57 -> 4459.37159 | M59: ='Mu(+)-N関係'!J57 -> 56 | N59: ='Mu(+)-N関係'!K57 -> 205.9120149 | O59: ='Mu(+)-N関係'!L57 -> 4447.892973 | P59: ='Mu(-)-N関係'!J57 -> 56 | Q59: ='Mu(-)-N関係'!K57 -> -210.5824706 | R59: ='Mu(-)-N関係'!L57 -> 4447.892973
E60: ='Mu(+)-N関係'!B58 -> 57 | F60: ='Mu(+)-N関係'!C58 -> 212.8400622 | G60: ='Mu(+)-N関係'!D58 -> 4556.330269 | M60: ='Mu(+)-N関係'!J58 -> 57 | N60: ='Mu(+)-N関係'!K58 -> 204.3555041 | O60: ='Mu(+)-N関係'!L58 -> 4540.673152 | P60: ='Mu(-)-N関係'!J58 -> 57 | Q60: ='Mu(-)-N関係'!K58 -> -209.7238746 | R60: ='Mu(-)-N関係'!L58 -> 4540.673152
E61: ='Mu(+)-N関係'!B59 -> 58 | F61: ='Mu(+)-N関係'!C59 -> 211.487955 | G61: ='Mu(+)-N関係'!D59 -> 4653.288948 | M61: ='Mu(+)-N関係'!J59 -> 58 | N61: ='Mu(+)-N関係'!K59 -> 202.8372381 | O61: ='Mu(+)-N関係'!L59 -> 4633.45333 | P61: ='Mu(-)-N関係'!J59 -> 58 | Q61: ='Mu(-)-N関係'!K59 -> -208.7487119 | R61: ='Mu(-)-N関係'!L59 -> 4633.45333
E62: ='Mu(+)-N関係'!B60 -> 59 | F62: ='Mu(+)-N関係'!C60 -> 210.0188827 | G62: ='Mu(+)-N関係'!D60 -> 4750.247627 | M62: ='Mu(+)-N関係'!J60 -> 59 | N62: ='Mu(+)-N関係'!K60 -> 201.2148674 | O62: ='Mu(+)-N関係'!L60 -> 4726.233508 | P62: ='Mu(-)-N関係'!J60 -> 59 | Q62: ='Mu(-)-N関係'!K60 -> -207.2971055 | R62: ='Mu(-)-N関係'!L60 -> 4726.233508
E63: ='Mu(+)-N関係'!B61 -> 60 | F63: ='Mu(+)-N関係'!C61 -> 208.1330768 | G63: ='Mu(+)-N関係'!D61 -> 4847.206307 | M63: ='Mu(+)-N関係'!J61 -> 60 | N63: ='Mu(+)-N関係'!K61 -> 199.2335813 | O63: ='Mu(+)-N関係'!L61 -> 4819.013686 | P63: ='Mu(-)-N関係'!J61 -> 60 | Q63: ='Mu(-)-N関係'!K61 -> -205.9467388 | R63: ='Mu(-)-N関係'!L61 -> 4819.013686
E64: ='Mu(+)-N関係'!B62 -> 61 | F64: ='Mu(+)-N関係'!C62 -> 206.3693192 | G64: ='Mu(+)-N関係'!D62 -> 4944.164986 | M64: ='Mu(+)-N関係'!J62 -> 61 | N64: ='Mu(+)-N関係'!K62 -> 197.3446736 | O64: ='Mu(+)-N関係'!L62 -> 4911.793864 | P64: ='Mu(-)-N関係'!J62 -> 61 | Q64: ='Mu(-)-N関係'!K62 -> -204.4587286 | R64: ='Mu(-)-N関係'!L62 -> 4911.793864
E65: ='Mu(+)-N関係'!B63 -> 62 | F65: ='Mu(+)-N関係'!C63 -> 204.2058373 | G65: ='Mu(+)-N関係'!D63 -> 5041.123665 | M65: ='Mu(+)-N関係'!J63 -> 62 | N65: ='Mu(+)-N関係'!K63 -> 195.3575379 | O65: ='Mu(+)-N関係'!L63 -> 5004.574043 | P65: ='Mu(-)-N関係'!J63 -> 62 | Q65: ='Mu(-)-N関係'!K63 -> -202.4934933 | R65: ='Mu(-)-N関係'!L63 -> 5004.574043
E66: ='Mu(+)-N関係'!B64 -> 63 | F66: ='Mu(+)-N関係'!C64 -> 202.1134919 | G66: ='Mu(+)-N関係'!D64 -> 5138.082344 | M66: ='Mu(+)-N関係'!J64 -> 63 | N66: ='Mu(+)-N関係'!K64 -> 192.8443156 | O66: ='Mu(+)-N関係'!L64 -> 5097.354221 | P66: ='Mu(-)-N関係'!J64 -> 63 | Q66: ='Mu(-)-N関係'!K64 -> -200.6411949 | R66: ='Mu(-)-N関係'!L64 -> 5097.354221
E67: ='Mu(+)-N関係'!B65 -> 64 | F67: ='Mu(+)-N関係'!C65 -> 199.8895572 | G67: ='Mu(+)-N関係'!D65 -> 5235.041024 | M67: ='Mu(+)-N関係'!J65 -> 64 | N67: ='Mu(+)-N関係'!K65 -> 190.4997931 | O67: ='Mu(+)-N関係'!L65 -> 5190.134399 | P67: ='Mu(-)-N関係'!J65 -> 64 | Q67: ='Mu(-)-N関係'!K65 -> -198.653341 | R67: ='Mu(-)-N関係'!L65 -> 5190.134399
E68: ='Mu(+)-N関係'!B66 -> 65 | F68: ='Mu(+)-N関係'!C66 -> 197.2036463 | G68: ='Mu(+)-N関係'!D66 -> 5331.999703 | M68: ='Mu(+)-N関係'!J66 -> 65 | N68: ='Mu(+)-N関係'!K66 -> 187.7096536 | O68: ='Mu(+)-N関係'!L66 -> 5282.914577 | P68: ='Mu(-)-N関係'!J66 -> 65 | Q68: ='Mu(-)-N関係'!K66 -> -196.1136937 | R68: ='Mu(-)-N関係'!L66 -> 5282.914577
E69: ='Mu(+)-N関係'!B67 -> 66 | F69: ='Mu(+)-N関係'!C67 -> 194.5900714 | G69: ='Mu(+)-N関係'!D67 -> 5428.958382 | M69: ='Mu(+)-N関係'!J67 -> 66 | N69: ='Mu(+)-N関係'!K67 -> 185.0017015 | O69: ='Mu(+)-N関係'!L67 -> 5375.694755 | P69: ='Mu(-)-N関係'!J67 -> 66 | Q69: ='Mu(-)-N関係'!K67 -> -193.7071551 | R69: ='Mu(-)-N関係'!L67 -> 5375.694755
E70: ='Mu(+)-N関係'!B68 -> 67 | F70: ='Mu(+)-N関係'!C68 -> 191.8420566 | G70: ='Mu(+)-N関係'!D68 -> 5525.917061 | M70: ='Mu(+)-N関係'!J68 -> 67 | N70: ='Mu(+)-N関係'!K68 -> 182.180463 | O70: ='Mu(+)-N関係'!L68 -> 5468.474934 | P70: ='Mu(-)-N関係'!J68 -> 67 | Q70: ='Mu(-)-N関係'!K68 -> -191.1567791 | R70: ='Mu(-)-N関係'!L68 -> 5468.474934
E71: ='Mu(+)-N関係'!B69 -> 68 | F71: ='Mu(+)-N関係'!C69 -> 188.5958768 | G71: ='Mu(+)-N関係'!D69 -> 5622.875741 | M71: ='Mu(+)-N関係'!J69 -> 68 | N71: ='Mu(+)-N関係'!K69 -> 178.8510857 | O71: ='Mu(+)-N関係'!L69 -> 5561.255112 | P71: ='Mu(-)-N関係'!J69 -> 68 | Q71: ='Mu(-)-N関係'!K69 -> -188.0425898 | R71: ='Mu(-)-N関係'!L69 -> 5561.255112
E72: ='Mu(+)-N関係'!B70 -> 69 | F72: ='Mu(+)-N関係'!C70 -> 185.4408322 | G72: ='Mu(+)-N関係'!D70 -> 5719.83442 | M72: ='Mu(+)-N関係'!J70 -> 69 | N72: ='Mu(+)-N関係'!K70 -> 175.6502593 | O72: ='Mu(+)-N関係'!L70 -> 5654.03529 | P72: ='Mu(-)-N関係'!J70 -> 69 | Q72: ='Mu(-)-N関係'!K70 -> -185.0643898 | R72: ='Mu(-)-N関係'!L70 -> 5654.03529
E73: ='Mu(+)-N関係'!B71 -> 70 | F73: ='Mu(+)-N関係'!C71 -> 182.1448837 | G73: ='Mu(+)-N関係'!D71 -> 5816.793099 | M73: ='Mu(+)-N関係'!J71 -> 70 | N73: ='Mu(+)-N関係'!K71 -> 172.3317327 | O73: ='Mu(+)-N関係'!L71 -> 5746.815468 | P73: ='Mu(-)-N関係'!J71 -> 70 | Q73: ='Mu(-)-N関係'!K71 -> -181.9395189 | R73: ='Mu(-)-N関係'!L71 -> 5746.815468
E74: ='Mu(+)-N関係'!B72 -> 71 | F74: ='Mu(+)-N関係'!C72 -> 178.3257761 | G74: ='Mu(+)-N関係'!D72 -> 5913.751779 | M74: ='Mu(+)-N関係'!J72 -> 71 | N74: ='Mu(+)-N関係'!K72 -> 168.4525303 | O74: ='Mu(+)-N関係'!L72 -> 5839.595646 | P74: ='Mu(-)-N関係'!J72 -> 71 | Q74: ='Mu(-)-N関係'!K72 -> -178.2421559 | R74: ='Mu(-)-N関係'!L72 -> 5839.595646
E75: ='Mu(+)-N関係'!B73 -> 72 | F75: ='Mu(+)-N関係'!C73 -> 174.6099331 | G75: ='Mu(+)-N関係'!D73 -> 6010.710458 | M75: ='Mu(+)-N関係'!J73 -> 72 | N75: ='Mu(+)-N関係'!K73 -> 164.7411838 | O75: ='Mu(+)-N関係'!L73 -> 5932.375825 | P75: ='Mu(-)-N関係'!J73 -> 72 | Q75: ='Mu(-)-N関係'!K73 -> -174.6824377 | R75: ='Mu(-)-N関係'!L73 -> 5932.375825
E76: ='Mu(+)-N関係'!B74 -> 73 | F76: ='Mu(+)-N関係'!C74 -> 170.7458791 | G76: ='Mu(+)-N関係'!D74 -> 6107.669137 | M76: ='Mu(+)-N関係'!J74 -> 73 | N76: ='Mu(+)-N関係'!K74 -> 160.9089867 | O76: ='Mu(+)-N関係'!L74 -> 6025.156003 | P76: ='Mu(-)-N関係'!J74 -> 73 | Q76: ='Mu(-)-N関係'!K74 -> -170.9708266 | R76: ='Mu(-)-N関係'!L74 -> 6025.156003
E77: ='Mu(+)-N関係'!B75 -> 74 | F77: ='Mu(+)-N関係'!C75 -> 166.7330114 | G77: ='Mu(+)-N関係'!D75 -> 6204.627816 | M77: ='Mu(+)-N関係'!J75 -> 74 | N77: ='Mu(+)-N関係'!K75 -> 156.4700999 | O77: ='Mu(+)-N関係'!L75 -> 6117.936181 | P77: ='Mu(-)-N関係'!J75 -> 74 | Q77: ='Mu(-)-N関係'!K75 -> -166.6870266 | R77: ='Mu(-)-N関係'!L75 -> 6117.936181
E78: ='Mu(+)-N関係'!B76 -> 75 | F78: ='Mu(+)-N関係'!C76 -> 162.0470406 | G78: ='Mu(+)-N関係'!D76 -> 6301.586496 | M78: ='Mu(+)-N関係'!J76 -> 75 | N78: ='Mu(+)-N関係'!K76 -> 152.2342075 | O78: ='Mu(+)-N関係'!L76 -> 6210.716359 | P78: ='Mu(-)-N関係'!J76 -> 75 | Q78: ='Mu(-)-N関係'!K76 -> -162.5336741 | R78: ='Mu(-)-N関係'!L76 -> 6210.716359
E79: ='Mu(+)-N関係'!B77 -> 76 | F79: ='Mu(+)-N関係'!C77 -> 157.5978488 | G79: ='Mu(+)-N関係'!D77 -> 6398.545175 | M79: ='Mu(+)-N関係'!J77 -> 76 | N79: ='Mu(+)-N関係'!K77 -> 147.8719514 | O79: ='Mu(+)-N関係'!L77 -> 6303.496537 | P79: ='Mu(-)-N関係'!J77 -> 76 | Q79: ='Mu(-)-N関係'!K77 -> -158.2248126 | R79: ='Mu(-)-N関係'!L77 -> 6303.496537
E80: ='Mu(+)-N関係'!B78 -> 77 | F80: ='Mu(+)-N関係'!C78 -> 152.9932315 | G80: ='Mu(+)-N関係'!D78 -> 6495.503854 | M80: ='Mu(+)-N関係'!J78 -> 77 | N80: ='Mu(+)-N関係'!K78 -> 142.8633671 | O80: ='Mu(+)-N関係'!L78 -> 6396.276716 | P80: ='Mu(-)-N関係'!J78 -> 77 | Q80: ='Mu(-)-N関係'!K78 -> -153.7573115 | R80: ='Mu(-)-N関係'!L78 -> 6396.276716
E81: ='Mu(+)-N関係'!B79 -> 78 | F81: ='Mu(+)-N関係'!C79 -> 147.7097614 | G81: ='Mu(+)-N関係'!D79 -> 6592.462533 | M81: ='Mu(+)-N関係'!J79 -> 78 | N81: ='Mu(+)-N関係'!K79 -> 138.0901575 | O81: ='Mu(+)-N関係'!L79 -> 6489.056894 | P81: ='Mu(-)-N関係'!J79 -> 78 | Q81: ='Mu(-)-N関係'!K79 -> -148.5954381 | R81: ='Mu(-)-N関係'!L79 -> 6489.056894
E82: ='Mu(+)-N関係'!B80 -> 79 | F82: ='Mu(+)-N関係'!C80 -> 142.6580758 | G82: ='Mu(+)-N関係'!D80 -> 6689.421213 | M82: ='Mu(+)-N関係'!J80 -> 79 | N82: ='Mu(+)-N関係'!K80 -> 133.1826278 | O82: ='Mu(+)-N関係'!L80 -> 6581.837072 | P82: ='Mu(-)-N関係'!J80 -> 79 | Q82: ='Mu(-)-N関係'!K80 -> -143.6819552 | R82: ='Mu(-)-N関係'!L80 -> 6581.837072
E83: ='Mu(+)-N関係'!B81 -> 80 | F83: ='Mu(+)-N関係'!C81 -> 137.4476764 | G83: ='Mu(+)-N関係'!D81 -> 6786.379892 | M83: ='Mu(+)-N関係'!J81 -> 80 | N83: ='Mu(+)-N関係'!K81 -> 127.6000663 | O83: ='Mu(+)-N関係'!L81 -> 6674.61725 | P83: ='Mu(-)-N関係'!J81 -> 80 | Q83: ='Mu(-)-N関係'!K81 -> -138.6064923 | R83: ='Mu(-)-N関係'!L81 -> 6674.61725
E84: ='Mu(+)-N関係'!B82 -> 81 | F84: ='Mu(+)-N関係'!C82 -> 131.5608377 | G84: ='Mu(+)-N関係'!D82 -> 6883.338571 | M84: ='Mu(+)-N関係'!J82 -> 81 | N84: ='Mu(+)-N関係'!K82 -> 122.2741891 | O84: ='Mu(+)-N関係'!L82 -> 6767.397428 | P84: ='Mu(-)-N関係'!J82 -> 81 | Q84: ='Mu(-)-N関係'!K82 -> -132.8483321 | R84: ='Mu(-)-N関係'!L82 -> 6767.397428
E85: ='Mu(+)-N関係'!B83 -> 82 | F85: ='Mu(+)-N関係'!C83 -> 125.8941011 | G85: ='Mu(+)-N関係'!D83 -> 6980.29725 | M85: ='Mu(+)-N関係'!J83 -> 82 | N85: ='Mu(+)-N関係'!K83 -> 116.3929891 | O85: ='Mu(+)-N関係'!L83 -> 6860.177607 | P85: ='Mu(-)-N関係'!J83 -> 82 | Q85: ='Mu(-)-N関係'!K83 -> -127.3218222 | R85: ='Mu(-)-N関係'!L83 -> 6860.177607
E86: ='Mu(+)-N関係'!B84 -> 83 | F86: ='Mu(+)-N関係'!C84 -> 119.6950671 | G86: ='Mu(+)-N関係'!D84 -> 7077.25593 | M86: ='Mu(+)-N関係'!J84 -> 83 | N86: ='Mu(+)-N関係'!K84 -> 110.4868943 | O86: ='Mu(+)-N関係'!L84 -> 6952.957785 | P86: ='Mu(-)-N関係'!J84 -> 83 | Q86: ='Mu(-)-N関係'!K84 -> -121.251131 | R86: ='Mu(-)-N関係'!L84 -> 6952.957785
E87: ='Mu(+)-N関係'!B85 -> 84 | F87: ='Mu(+)-N関係'!C85 -> 113.4670133 | G87: ='Mu(+)-N関係'!D85 -> 7174.214609 | M87: ='Mu(+)-N関係'!J85 -> 84 | N87: ='Mu(+)-N関係'!K85 -> 104.5672885 | O87: ='Mu(+)-N関係'!L85 -> 7045.737963 | P87: ='Mu(-)-N関係'!J85 -> 84 | Q87: ='Mu(-)-N関係'!K85 -> -115.1526501 | R87: ='Mu(-)-N関係'!L85 -> 7045.737963
E88: ='Mu(+)-N関係'!B86 -> 85 | F88: ='Mu(+)-N関係'!C86 -> 107.2243026 | G88: ='Mu(+)-N関係'!D86 -> 7271.173288 | M88: ='Mu(+)-N関係'!J86 -> 85 | N88: ='Mu(+)-N関係'!K86 -> 98.6286434 | O88: ='Mu(+)-N関係'!L86 -> 7138.518141 | P88: ='Mu(-)-N関係'!J86 -> 85 | Q88: ='Mu(-)-N関係'!K86 -> -109.0320205 | R88: ='Mu(-)-N関係'!L86 -> 7138.518141
E89: ='Mu(+)-N関係'!B87 -> 86 | F89: ='Mu(+)-N関係'!C87 -> 100.9616344 | G89: ='Mu(+)-N関係'!D87 -> 7368.131968 | M89: ='Mu(+)-N関係'!J87 -> 86 | N89: ='Mu(+)-N関係'!K87 -> 92.66961722 | O89: ='Mu(+)-N関係'!L87 -> 7231.298319 | P89: ='Mu(-)-N関係'!J87 -> 86 | Q89: ='Mu(-)-N関係'!K87 -> -102.8898604 | R89: ='Mu(-)-N関係'!L87 -> 7231.298319
E90: ='Mu(+)-N関係'!B88 -> 87 | F90: ='Mu(+)-N関係'!C88 -> 94.67739735 | G90: ='Mu(+)-N関係'!D88 -> 7465.090647 | M90: ='Mu(+)-N関係'!J88 -> 87 | N90: ='Mu(+)-N関係'!K88 -> 86.69020902 | O90: ='Mu(+)-N関係'!L88 -> 7324.078498 | P90: ='Mu(-)-N関係'!J88 -> 87 | Q90: ='Mu(-)-N関係'!K88 -> -96.72286684 | R90: ='Mu(-)-N関係'!L88 -> 7324.078498
E91: ='Mu(+)-N関係'!B89 -> 88 | F91: ='Mu(+)-N関係'!C89 -> 88.36943123 | G91: ='Mu(+)-N関係'!D89 -> 7562.049326 | M91: ='Mu(+)-N関係'!J89 -> 88 | N91: ='Mu(+)-N関係'!K89 -> 80.68968099 | O91: ='Mu(+)-N関係'!L89 -> 7416.858676 | P91: ='Mu(-)-N関係'!J89 -> 88 | Q91: ='Mu(-)-N関係'!K89 -> -90.52629882 | R91: ='Mu(-)-N関係'!L89 -> 7416.858676
E92: ='Mu(+)-N関係'!B90 -> 89 | F92: ='Mu(+)-N関係'!C90 -> 82.03759566 | G92: ='Mu(+)-N関係'!D90 -> 7659.008005 | M92: ='Mu(+)-N関係'!J90 -> 89 | N92: ='Mu(+)-N関係'!K90 -> 74.66639688 | O92: ='Mu(+)-N関係'!L90 -> 7509.638854 | P92: ='Mu(-)-N関係'!J90 -> 89 | Q92: ='Mu(-)-N関係'!K90 -> -84.30205136 | R92: ='Mu(-)-N関係'!L90 -> 7509.638854
E93: ='Mu(+)-N関係'!B91 -> 90 | F93: ='Mu(+)-N関係'!C91 -> 75.68257626 | G93: ='Mu(+)-N関係'!D91 -> 7755.966685 | M93: ='Mu(+)-N関係'!J91 -> 90 | N93: ='Mu(+)-N関係'!K91 -> 68.62232712 | O93: ='Mu(+)-N関係'!L91 -> 7602.419032 | P93: ='Mu(-)-N関係'!J91 -> 90 | Q93: ='Mu(-)-N関係'!K91 -> -78.04838974 | R93: ='Mu(-)-N関係'!L91 -> 7602.419032
E94: ='Mu(+)-N関係'!B92 -> 91 | F94: ='Mu(+)-N関係'!C92 -> 69.30193656 | G94: ='Mu(+)-N関係'!D92 -> 7852.925364 | M94: ='Mu(+)-N関係'!J92 -> 91 | N94: ='Mu(+)-N関係'!K92 -> 62.55167604 | O94: ='Mu(+)-N関係'!L92 -> 7695.19921 | P94: ='Mu(-)-N関係'!J92 -> 91 | Q94: ='Mu(-)-N関係'!K92 -> -71.7596292 | R94: ='Mu(-)-N関係'!L92 -> 7695.19921
E95: ='Mu(+)-N関係'!B93 -> 92 | F95: ='Mu(+)-N関係'!C93 -> 62.89167456 | G95: ='Mu(+)-N関係'!D93 -> 7949.884043 | M95: ='Mu(+)-N関係'!J93 -> 92 | N95: ='Mu(+)-N関係'!K93 -> 56.45611048 | O95: ='Mu(+)-N関係'!L93 -> 7787.979389 | P95: ='Mu(-)-N関係'!J93 -> 92 | Q95: ='Mu(-)-N関係'!K93 -> -65.43702479 | R95: ='Mu(-)-N関係'!L93 -> 7787.979389
E96: ='Mu(+)-N関係'!B94 -> 93 | F96: ='Mu(+)-N関係'!C94 -> 56.45221138 | G96: ='Mu(+)-N関係'!D94 -> 8046.842722 | M96: ='Mu(+)-N関係'!J94 -> 93 | N96: ='Mu(+)-N関係'!K94 -> 50.33233898 | O96: ='Mu(+)-N関係'!L94 -> 7880.759567 | P96: ='Mu(-)-N関係'!J94 -> 93 | Q96: ='Mu(-)-N関係'!K94 -> -59.0732084 | R96: ='Mu(-)-N関係'!L94 -> 7880.759567
E97: ='Mu(+)-N関係'!B95 -> 94 | F97: ='Mu(+)-N関係'!C95 -> 49.98377049 | G97: ='Mu(+)-N関係'!D95 -> 8143.801402 | M97: ='Mu(+)-N関係'!J95 -> 94 | N97: ='Mu(+)-N関係'!K95 -> 44.18115735 | O97: ='Mu(+)-N関係'!L95 -> 7973.539745 | P97: ='Mu(-)-N関係'!J95 -> 94 | Q97: ='Mu(-)-N関係'!K95 -> -52.66731641 | R97: ='Mu(-)-N関係'!L95 -> 7973.539745
E98: ='Mu(+)-N関係'!B96 -> 95 | F98: ='Mu(+)-N関係'!C96 -> 43.48297463 | G98: ='Mu(+)-N関係'!D96 -> 8240.760081 | M98: ='Mu(+)-N関係'!J96 -> 95 | N98: ='Mu(+)-N関係'!K96 -> 37.99778612 | O98: ='Mu(+)-N関係'!L96 -> 8066.319923 | P98: ='Mu(-)-N関係'!J96 -> 95 | Q98: ='Mu(-)-N関係'!K96 -> -46.21516796 | R98: ='Mu(-)-N関係'!L96 -> 8066.319923
E99: ='Mu(+)-N関係'!B97 -> 96 | F99: ='Mu(+)-N関係'!C97 -> 36.94935482 | G99: ='Mu(+)-N関係'!D97 -> 8337.71876 | M99: ='Mu(+)-N関係'!J97 -> 96 | N99: ='Mu(+)-N関係'!K97 -> 31.78744675 | O99: ='Mu(+)-N関係'!L97 -> 8159.100101 | P99: ='Mu(-)-N関係'!J97 -> 96 | Q99: ='Mu(-)-N関係'!K97 -> -39.71229484 | R99: ='Mu(-)-N関係'!L97 -> 8159.100101
E100: ='Mu(+)-N関係'!B98 -> 97 | F100: ='Mu(+)-N関係'!C98 -> 30.38128142 | G100: ='Mu(+)-N関係'!D98 -> 8434.677439 | M100: ='Mu(+)-N関係'!J98 -> 97 | N100: ='Mu(+)-N関係'!K98 -> 25.54572393 | O100: ='Mu(+)-N関係'!L98 -> 8251.88028 | P100: ='Mu(-)-N関係'!J98 -> 97 | Q100: ='Mu(-)-N関係'!K98 -> -33.1523146 | R100: ='Mu(-)-N関係'!L98 -> 8251.88028
E101: ='Mu(+)-N関係'!B99 -> 98 | F101: ='Mu(+)-N関係'!C99 -> 23.78365747 | G101: ='Mu(+)-N関係'!D99 -> 8531.636119 | M101: ='Mu(+)-N関係'!J99 -> 98 | N101: ='Mu(+)-N関係'!K99 -> 19.23869359 | O101: ='Mu(+)-N関係'!L99 -> 8344.660458 | P101: ='Mu(-)-N関係'!J99 -> 98 | Q101: ='Mu(-)-N関係'!K99 -> -26.505334 | R101: ='Mu(-)-N関係'!L99 -> 8344.660458
E102: ='Mu(+)-N関係'!B100 -> 99 | F102: ='Mu(+)-N関係'!C100 -> 16.47844426 | G102: ='Mu(+)-N関係'!D100 -> 8628.594798 | M102: ='Mu(+)-N関係'!J100 -> 99 | N102: ='Mu(+)-N関係'!K100 -> 12.22846378 | O102: ='Mu(+)-N関係'!L100 -> 8437.440636 | P102: ='Mu(-)-N関係'!J100 -> 99 | Q102: ='Mu(-)-N関係'!K100 -> -19.40519624 | R102: ='Mu(-)-N関係'!L100 -> 8437.440636
E103: ='Mu(+)-N関係'!B101 -> 100 | F103: ='Mu(+)-N関係'!C101 -> 8.88555616 | G103: ='Mu(+)-N関係'!D101 -> 8725.553477 | M103: ='Mu(+)-N関係'!J101 -> 100 | N103: ='Mu(+)-N関係'!K101 -> 4.992679613 | O103: ='Mu(+)-N関係'!L101 -> 8530.220814 | P103: ='Mu(-)-N関係'!J101 -> 100 | Q103: ='Mu(-)-N関係'!K101 -> -12.07719032 | R103: ='Mu(-)-N関係'!L101 -> 8530.220814
E104: ='Mu(+)-N関係'!B102 -> 101 | F104: ='Mu(+)-N関係'!C102 -> 0.8113557066 | G104: ='Mu(+)-N関係'!D102 -> 8822.512157 | M104: ='Mu(+)-N関係'!J102 -> 101 | N104: ='Mu(+)-N関係'!K102 -> -2.700434949 | O104: ='Mu(+)-N関係'!L102 -> 8623.000992 | P104: ='Mu(-)-N関係'!J102 -> 101 | Q104: ='Mu(-)-N関係'!K102 -> -4.287351044 | R104: ='Mu(-)-N関係'!L102 -> 8623.000992
